Workbook

Sheet КАЛЬКУЛЯТОР
A1: КАЛЬКУЛЯТОР СУБСИДИРОВАНИЯ:
H3: Рыночная процентная ставка, % годовых | I3: =РПС!$B$4 -> 15.51% | J3: =I3*80.01% -> 12.410%
A4: Программа кредитования: | E4: ► ЗАПОЛНИТЬ ПОЛЕ | H4: Ключевая ставка ЦБ с 28.10.2024, % годовых | I4: 21.00%
A5: Регион приобретения объекта недвижимости, РФ: | E5: ► ЗАПОЛНИТЬ ПОЛЕ | H5: ВИДЫ КРЕДИТОВ | I5: БАЗОВАЯ %% ПРИ МАКС. ПВ:
A6: Первоначальный взнос, % от стоимости недвижимости | E6: ► ЗАПОЛНИТЬ ПОЛЕ | I6: 20% | J6: 50% | K6: от 50%
A7: в руб. | C7: =C8*C6 -> 0 | H7: «Ипотека с ГП для семей» | I7: - | J7: ='ИПОТЕКА С ГП ДЛЯ СЕМЕЙ'!$B$15 -> 6.00% | K7: =J7 -> 6.00%
A8: Первоначальная стоимость недвижимости, руб. | E8: ► ЗАПОЛНИТЬ ПОЛЕ | F8: =IF(OR(AND(C5=A46,C9>('1.2. СИ (регионы)'!A5-'1.2. СИ (регионы)'!C1)),AND(C5=A45,C9>('1.1. СИ (МФ,СПбФ)'!A5-'1.1. СИ (МФ,СПбФ)'!C1)),C8=""),"","ИЗМЕНИТЕ ПВ ИЛИ СТОИМОСТЬ ОБЪЕКТА!") ->  | H8: Объект приобретения: | L8: Возмещение: | M8: Надбавка:
A9: Сумма кредита (основной долг), руб.: | C9: =C8*(100%-$C$6) -> 0 | H9: Все цели: | L9: ='ИПОТЕКА С ГП ДЛЯ СЕМЕЙ'!$C$11 -> 17.00% | M9: ='ИПОТЕКА С ГП ДЛЯ СЕМЕЙ'!$B$11 -> 2.00%
A10: В рамках программы гос. поддержки | C10: =IF($C$5=$A$45,12000000,IF($C$5=$A$46,6000000,"")) ->  | M10: =I3-L9 -> -1.49%
A11: В рамках стандартной ипотеки | C11: =$C$9-$C$10 -> 
A12: Срок кредита, в мес.: | E12: ► ЗАПОЛНИТЬ ПОЛЕ
A13: Размер комбо-ставки, % годовых: | C13: =IF(AND($C$5=$A$45,$C$9>'1.1. СИ (МФ,СПбФ)'!$A$5-'1.1. СИ (МФ,СПбФ)'!$C$1),INDEX('1.1. СИ (МФ,СПбФ)'!$D$5:$D$19,ROUNDUP($C$11/'1.1. СИ (МФ,СПбФ)'!$C$1,0),1),IF(AND($C$5=$A$46,$C$9>'1.2. СИ (регионы)'!$A$5-'1.2. СИ (регионы)'!$C$1),INDEX('1.2. СИ (регионы)'!$D$5:$D$12,ROUNDUP($C$11/'1.2. СИ (регионы)'!$C$1,0),1),"")) -> 
A14: Надбавки / скидки к размеру комбо-ставки, % годовых:
A15: Есть передача в залог Банка объекта недвижимости | C15: Да
A16: Есть статус зарплатного клиента | E16: ► ЗАПОЛНИТЬ ПОЛЕ
A17: ИТОГО размер процентной ставки по комбо-ипотеке, % годовых: | C17: =IF($C$16=$A$41,$C$13-'ИПОТЕКА С ГП ДЛЯ СЕМЕЙ'!$E$7,$C$13) -> 
A18: Размер ежемесячного платежа, руб./мес. | C18: ='КАЛЬКУЛЯТОР 1'!$D$11 -> 
A19: Условия субсидирования процентной ставки: | E19: ► ЗАПОЛНИТЬ ПОЛЕ | F19: =IF(AND(OR(COUNT($C$20)>=1,COUNT($C$21)>=1),$E$30="► ПСК НИЖЕ МИН. РПС"),"ИЗМЕНИТЕ ПАРАМЕТРЫ КРЕДИТА!","") -> 
A20: Срок льготного периода, мес.: | E20: ► ЗАПОЛНИТЬ ПОЛЕ
A21: Льготная процентная ставка, % годовых: | E21: ► ЗАПОЛНИТЬ ПОЛЕ
A22: Размер ежемесячного платежа в льготный период, руб.: | C22: =IF($C$19=$A$43,'КАЛЬКУЛЯТОР 2'!$D$12-'КАЛЬКУЛЯТОР 2'!$E$12,IF($C$19=$A$44,INDEX('КАЛЬКУЛЯТОР 2'!$D$12:$D$371,'КАЛЬКУЛЯТОР 2'!$E$3,1))) -> FALSE
A23: Размер ежемесячного платежа вне льготного периода, руб.: | C23: =IF($C$19=$A$43,'КАЛЬКУЛЯТОР 2'!$D$12-'КАЛЬКУЛЯТОР 2'!$E$12,IF($C$19=$A$44,INDEX('КАЛЬКУЛЯТОР 2'!$D$12:$D$371,('КАЛЬКУЛЯТОР 2'!$E$3+1),1)-INDEX('КАЛЬКУЛЯТОР 2'!$E$12:$E$371,('КАЛЬКУЛЯТОР 2'!$E$3+1),1))) -> FALSE
A24: Процентная ставка вне льготного периода, % годовых: | C24: =$C$17 -> 
A25: Прогноз ЦБ по инфляции на 2024 год, % годовых | C25: 9.0%
A26: Размер субсидии в пользу Банка, % от суммы кредита: | C26: =IF(ROUNDUP((('КАЛЬКУЛЯТОР 1.1'!$M$8-'КАЛЬКУЛЯТОР 2.1'!$M$9)*(1+($C$25/12))^0)/$C$9,3)<0,0,ROUNDUP(ABS(('КАЛЬКУЛЯТОР 1.1'!$M$8-'КАЛЬКУЛЯТОР 2.1'!$M$9)*(1+($C$25/12))^0)/$C$9,3)) -> 
A27: В руб. | C27: =$C$26*$C$9 -> 
A28: Размер дисконта при субсидировании от базовой процентной ставки, п.п.: | C28: =IF(C26=0%,0%,$C$17-$C$21) -> 
A29: Итого финансовый результат Банка по кредиту (по факт. сроку), руб. | C29: =($C$9*$C$26)+'КАЛЬКУЛЯТОР 2.1'!$M$9+'КАЛЬКУЛЯТОР 2.1'!$E$7*('КАЛЬКУЛЯТОР 2.1'!$E$2/12) -> 
A30: Эффективная процентная ставка, % годовых | C30: =IRR('КАЛЬКУЛЯТОР 2'!$D$11:$D$371)*12 ->  | E30: =IF($C$31>=20%,"► ПСК НИЖЕ МИН. РПС","") -> 
C31: =1-($C$30/IF($M$10>0,$M$10,ABS($M$10))) ->  | E31: =IF(AND($C$30<$I$3,$C$31>=20%),"► ДОП. РЕЗЕРВ","► БЕЗ ДОП. РЕЗЕРВА") -> 
A32: Размер субсидии в пользу Банка с учетом дохода от субсидии, % от суммы кредита: | C32: =IF(ROUNDUP((('КАЛЬКУЛЯТОР 1.1'!$M$8-'КАЛЬКУЛЯТОР 2.1'!$M$9)*(1+($C$25/12))^0)/$C$9,3)<0,0,ROUNDUP((('КАЛЬКУЛЯТОР 1.1'!$M$8-'КАЛЬКУЛЯТОР 2.1'!$M$9-IF($C$19=$A$44,'КАЛЬКУЛЯТОР 2.1'!E7*C20/12))*(1+($C$25/12))^0)/$C$9,3)) -> 
A33: В руб. | C33: =$C$9*$C$32 -> 
A34: ПРИМЕЧАНИЯ: Минимальный первоначальный взнос в рамках программы субсидирования с государственной поддержкой − от 20% и более. Минимальный срок кредитования в рамках программы субсидирования с государственной поддержкой − от 10 до 30 лет (вкл.). Форма расчетов по договору купли-продажи (обязательно): покрытый безотзывный аккредитив. !!! Расчет размера субсидии возможен при условии верного заполнения всех соответствующих полей. !!! В случае изменения условий базового кредитования в рамках указанных программ АО БАНК «СНГБ» (далее − Банк) направляет застройщику обновленный калькулятор. Итоговые условия кредитования устанавливаются в рамках рассмотрения Банком заявки Клиента.
A41: Да
A42: Нет
A43: Весь срок кредитования
A44: Частичное субсидирование
A45: Москва, СПб, МО или ЛО
A46: Другие регионы РФ

Sheet СЕРТИФИКАТ
B5: Сертификат
B6: на предоставление дисконта к процентной ставке
B8: ФИО клиента: | F8: XXX
B10: Застройщик (юр. лицо): | F10: XXX
B12: Наименование программы: | F12: =КАЛЬКУЛЯТОР!$C$4 -> 0
B14: Первоначальный взнос: | F14: =КАЛЬКУЛЯТОР!$C$7 -> 0
B16: Размер дисконта к процентной ставке: | F16: =КАЛЬКУЛЯТОР!$C$28 -> 
B18: Срок действия дисконта: (в месяцах) | F18: =IF(КАЛЬКУЛЯТОР!$C$19="Частичное субсидирование",КАЛЬКУЛЯТОР!$C$20,КАЛЬКУЛЯТОР!$C$12) -> 0
B20: Размер субсидии от застройщика: | F20: =КАЛЬКУЛЯТОР!$C$27 -> 
B22: Дата выдачи сертификата: | F22: =TODAY() -> 2024-10-28
B24: Представитель Застройщика: (должность, ФИО) | F24: XXX
F26: (подпись представителя Застройщика, печать)

Sheet 1.1. СИ (МФ,СПбФ) (hidden)
C1: 1,000,000
A2: Сумма кредита, в руб. | D2: Размер процентной ставки, % годовых | G2: ИТОГО БАНКУ
A3: Всего | B3: Лимит ГП | C3: Лимит св. ГП | D3: Ср. взв. | E3: Льготная | F3: Стандартная
A4: =$B$4+C4 -> 12,000,000 | B4: 12,000,000 | C4: 0 | D4: =SUMPRODUCT(B4:C4,E4:F4)/A4 -> 6.00% | E4: 6.00% | F4: – | H4: =SUMPRODUCT(B4:C4,E4:F4)/A4 -> 6.000% | I4: Разн. | J4: Проверка
A5: =$B$4+C5 -> 16,000,000 | B5: =$B$4 -> 12,000,000 | C5: =C6-$C$1 -> 4,000,000 | D5: 11.00% | E5: =$E$4 -> 6.00% | F5: 26.00% | G5: =(B5*'ИПОТЕКА С ГП ДЛЯ СЕМЕЙ'!$D$11+C5*F5)/A5 -> 23.750% | H5: 11.000% | I5: =D5-$D$4 -> 5.000% | J5: =D5=H5 -> TRUE
A6: =$B$4+C6 -> 17,000,000 | B6: =$B$4 -> 12,000,000 | C6: =C7-$C$1 -> 5,000,000 | D6: 11.88% | E6: 6.00% | F6: 26.00% | G6: =(B6*'ИПОТЕКА С ГП ДЛЯ СЕМЕЙ'!$D$11+C6*F6)/A6 -> 23.882% | H6: 11.882% | I6: 5.882% | J6: TRUE
A7: 18,000,000 | B7: 12,000,000 | C7: 6,000,000 | D7: 12.67% | E7: 6.00% | F7: 26.00% | G7: =(B7*'ИПОТЕКА С ГП ДЛЯ СЕМЕЙ'!$D$11+C7*F7)/A7 -> 24.000% | H7: 12.667% | I7: 6.667% | J7: TRUE
A8: 19,000,000 | B8: 12,000,000 | C8: 7,000,000 | D8: 13.37% | E8: 6.00% | F8: 26.00% | G8: =(B8*'ИПОТЕКА С ГП ДЛЯ СЕМЕЙ'!$D$11+C8*F8)/A8 -> 24.105% | H8: 13.368% | I8: 7.368% | J8: TRUE
A9: 20,000,000 | B9: 12,000,000 | C9: 8,000,000 | D9: 14.00% | E9: 6.00% | F9: 26.00% | G9: =(B9*'ИПОТЕКА С ГП ДЛЯ СЕМЕЙ'!$D$11+C9*F9)/A9 -> 24.200% | H9: 14.000% | I9: 8.000% | J9: TRUE
A10: 21,000,000 | B10: 12,000,000 | C10: 9,000,000 | D10: 14.57% | E10: 6.00% | F10: 26.00% | G10: =(B10*'ИПОТЕКА С ГП ДЛЯ СЕМЕЙ'!$D$11+C10*F10)/A10 -> 24.286% | H10: 14.571% | I10: 8.571% | J10: TRUE
A11: 22,000,000 | B11: 12,000,000 | C11: 10,000,000 | D11: 15.09% | E11: 6.00% | F11: 26.00% | G11: =(B11*'ИПОТЕКА С ГП ДЛЯ СЕМЕЙ'!$D$11+C11*F11)/A11 -> 24.364% | H11: 15.091% | I11: 9.091% | J11: TRUE
A12: 23,000,000 | B12: 12,000,000 | C12: 11,000,000 | D12: 15.57% | E12: 6.00% | F12: 26.00% | G12: =(B12*'ИПОТЕКА С ГП ДЛЯ СЕМЕЙ'!$D$11+C12*F12)/A12 -> 24.435% | H12: 15.565% | I12: 9.565% | J12: TRUE
A13: 24,000,000 | B13: 12,000,000 | C13: 12,000,000 | D13: 16.00% | E13: 6.00% | F13: 26.00% | G13: =(B13*'ИПОТЕКА С ГП ДЛЯ СЕМЕЙ'!$D$11+C13*F13)/A13 -> 24.500% | H13: 16.000% | I13: 10.000% | J13: TRUE
A14: 25,000,000 | B14: 12,000,000 | C14: 13,000,000 | D14: 16.40% | E14: 6.00% | F14: 26.00% | G14: =(B14*'ИПОТЕКА С ГП ДЛЯ СЕМЕЙ'!$D$11+C14*F14)/A14 -> 24.560% | H14: 16.400% | I14: 10.400% | J14: TRUE
A15: 26,000,000 | B15: 12,000,000 | C15: 14,000,000 | D15: 16.77% | E15: 6.00% | F15: 26.00% | G15: =(B15*'ИПОТЕКА С ГП ДЛЯ СЕМЕЙ'!$D$11+C15*F15)/A15 -> 24.615% | H15: 16.769% | I15: 10.769% | J15: TRUE
A16: 27,000,000 | B16: 12,000,000 | C16: 15,000,000 | D16: 17.11% | E16: 6.00% | F16: 26.00% | G16: =(B16*'ИПОТЕКА С ГП ДЛЯ СЕМЕЙ'!$D$11+C16*F16)/A16 -> 24.667% | H16: 17.111% | I16: 11.111% | J16: TRUE
A17: 28,000,000 | B17: 12,000,000 | C17: 16,000,000 | D17: 17.43% | E17: 6.00% | F17: 26.00% | G17: =(B17*'ИПОТЕКА С ГП ДЛЯ СЕМЕЙ'!$D$11+C17*F17)/A17 -> 24.714% | H17: 17.429% | I17: 11.429% | J17: TRUE
A18: 29,000,000 | B18: 12,000,000 | C18: =C19-$C$1 -> 17,000,000 | D18: 17.72% | E18: 6.00% | F18: 26.00% | G18: =(B18*'ИПОТЕКА С ГП ДЛЯ СЕМЕЙ'!$D$11+C18*F18)/A18 -> 24.759% | H18: 17.724% | I18: 11.724% | J18: TRUE
A19: 30,000,000 | B19: 12,000,000 | C19: =A19-B19 -> 18,000,000 | D19: 18.00% | E19: 6.00% | F19: 26.00% | G19: =(B19*'ИПОТЕКА С ГП ДЛЯ СЕМЕЙ'!$D$11+C19*F19)/A19 -> 24.800% | H19: 18.000% | I19: 12.000% | J19: TRUE

Sheet 1.2. СИ (регионы) (hidden)
C1: 1,000,000
A2: Сумма кредита, в руб. | D2: Размер процентной ставки, % годовых | G2: ИТОГО БАНКУ
A3: Всего | B3: Лимит ГП | C3: Лимит св. ГП | D3: Ср. взв. | E3: Льготная | F3: Стандартная
A4: 6,000,000 | B4: =A4 -> 6,000,000 | C4: 0 | D4: =SUMPRODUCT(B4:C4,E4:F4)/A4 -> 6.00% | E4: 6.00% | F4: – | H4: =SUMPRODUCT(B4:C4,E4:F4)/A4 -> 6.000% | I4: Разн. | J4: Проверка
A5: =$B$4+C5 -> 8,000,000 | B5: =$B$4 -> 6,000,000 | C5: =C6-$C$1 -> 2,000,000 | D5: 11.00% | E5: =$E$4 -> 6.00% | F5: 26.00% | G5: =(B5*'ИПОТЕКА С ГП ДЛЯ СЕМЕЙ'!$D$11+C5*F5)/A5 -> 23.750% | H5: 11.000% | I5: =H5-$H$4 -> 5.000% | J5: =D5=H5 -> TRUE
A6: =$B$4+C6 -> 9,000,000 | B6: 6,000,000 | C6: =C7-$C$1 -> 3,000,000 | D6: 12.67% | E6: 6.00% | F6: 26.00% | G6: =(B6*'ИПОТЕКА С ГП ДЛЯ СЕМЕЙ'!$D$11+C6*F6)/A6 -> 24.000% | H6: 12.667% | I6: 6.667% | J6: TRUE
A7: 10,000,000 | B7: 6,000,000 | C7: 4,000,000 | D7: 14.00% | E7: 6.00% | F7: 26.00% | G7: =(B7*'ИПОТЕКА С ГП ДЛЯ СЕМЕЙ'!$D$11+C7*F7)/A7 -> 24.200% | H7: 14.000% | I7: 8.000% | J7: TRUE
A8: 11,000,000 | B8: 6,000,000 | C8: 5,000,000 | D8: 15.09% | E8: 6.00% | F8: 26.00% | G8: =(B8*'ИПОТЕКА С ГП ДЛЯ СЕМЕЙ'!$D$11+C8*F8)/A8 -> 24.364% | H8: 15.091% | I8: 9.091% | J8: TRUE
A9: 12,000,000 | B9: 6,000,000 | C9: 6,000,000 | D9: 16.00% | E9: 6.00% | F9: 26.00% | G9: =(B9*'ИПОТЕКА С ГП ДЛЯ СЕМЕЙ'!$D$11+C9*F9)/A9 -> 24.500% | H9: 16.000% | I9: 10.000% | J9: TRUE
A10: 13,000,000 | B10: 6,000,000 | C10: 7,000,000 | D10: 16.77% | E10: 6.00% | F10: 26.00% | G10: =(B10*'ИПОТЕКА С ГП ДЛЯ СЕМЕЙ'!$D$11+C10*F10)/A10 -> 24.615% | H10: 16.769% | I10: 10.769% | J10: TRUE
A11: 14,000,000 | B11: =$B$4 -> 6,000,000 | C11: =C12-$C$1 -> 8,000,000 | D11: 17.43% | E11: 6.00% | F11: 26.00% | G11: =(B11*'ИПОТЕКА С ГП ДЛЯ СЕМЕЙ'!$D$11+C11*F11)/A11 -> 24.714% | H11: 17.429% | I11: 11.429% | J11: TRUE
A12: 15,000,000 | B12: =$B$4 -> 6,000,000 | C12: =A12-B12 -> 9,000,000 | D12: 18.00% | E12: 6.00% | F12: 26.00% | G12: =(B12*'ИПОТЕКА С ГП ДЛЯ СЕМЕЙ'!$D$11+C12*F12)/A12 -> 24.800% | H12: 18.000% | I12: 12.000% | J12: TRUE

Sheet КАЛЬКУЛЯТОР 1 (hidden)
A1: =КАЛЬКУЛЯТОР!A9 -> Сумма кредита (основной долг), руб.: | E1: =КАЛЬКУЛЯТОР!$C$9 -> 0 | H1: 1. КОМИССИЯ ЗА ОТКР. АККРЕДИТИВА | K1: 7,000.00 ₽ | O1: Стоимость платных пассивов за 9 мес. 2024 | P1: 10.7%
A2: Срок кредита по договору, в мес.: | E2: =КАЛЬКУЛЯТОР!$C$12 -> 0 | H2: 2. КОМИССИЯ ЗА ЭРС | K2: 8,300.00 ₽
A3: Срок льготного периода, в мес.: | E3: 0 | H3: 3. ПЛАТА ЗА ОЦЕНКУ НЕДВ.ИМУЩЕСТВА | K3: 3,000.00 ₽
A4: =КАЛЬКУЛЯТОР!$A$17 -> ИТОГО размер процентной ставки по комбо-ипотеке, % годовых: | E4: =КАЛЬКУЛЯТОР!$C$17 ->  | H4: 4. СТРАХОВАНИЕ ЖИЗНИ | K4: 0.60%
A5: Инфляция IP, % годовых | E5: =КАЛЬКУЛЯТОР!$C$25 -> 9.00% | H5: 5. СТРАХОВАНИЕ ИМУЩЕСТВА | K5: 0.10%
J6: С УЧЕТОМ ВЛИЯНИЯ ИНФЛЯЦИИ
A7: ИТОГО: | D7: =SUMIF(A10:A369,"<="&E2,D10:D369) -> 0.00 | E7: =SUMIF(A10:A369,"<="&E2,E10:E369) -> 0.00 | F7: =SUMIF($A$10:$A$369,"<="&$E$2,F10:F369) -> 0.00 | G7: =SUMIF($A$10:$A$369,"<="&$E$2,G10:G369) -> 0.00 | H7: =SUMIF(A10:A369,"<="&E2,H10:H369) -> 0.00 | J7: =SUMIF(A10:A369,"<="&E2,J10:J369) -> 0.00 | K7: =SUMIF(A10:A369,"<="&E2,K10:K369) -> 0.00 | L7: =SUMIF($A$10:$A$369,"<="&$E$2,L10:L369) -> 0.00 | M7: =SUMIF($A$10:$A$369,"<="&$E$2,M10:M369) -> 0.00 | N7: =SUMIF(A10:A369,"<="&E2,N10:N369) -> 0.00
A8: Месяцы платежа | B8: Период платежа | C8: Процентная ставка | D8: Ежемесячный платеж | E8: Доп. платежи | F8: Процентные платежи | G8: ЧПД Банка | H8: Основной долг | I8: Остаток ссудной задолженности | J8: Ежемесячный платеж | K8: Доп. платежи | L8: Процентные платежи | M8: ЧПД Банка | N8: Основной долг | O8: Остаток ссудной задолженности
A9: 0 | D9: =-КАЛЬКУЛЯТОР!C9 -> 0.00 | I9: =$E$1 -> 0.00 | J9: =-КАЛЬКУЛЯТОР!C9 -> 0.00 | O9: =I9 -> 0.00
A10: 1 | B10: 1 | C10: =IF(A10<=$E$2,$E$4,"") ->  | D10: =IF(A10<=$E$2,-PMT(C10/12,IF(C10=КАЛЬКУЛЯТОР!$C$21,$E$2,$E$2-$E$3),IF(C10=КАЛЬКУЛЯТОР!$C$21,$I$9,$I$9-SUMIF($A$10:$A$369,"<="&$E$3,$H$10:$H$369)),0,0)+E10,"") ->  | E10: =K1+K2+K3+((I9+SUM(F10:F21))*($K$4+$K$5)) -> 18,300.00 | F10: =IFERROR(-IPMT(C10/12,B10,IF(C10=КАЛЬКУЛЯТОР!$C$21,$E$2,$E$2-$E$3),IF(C10=КАЛЬКУЛЯТОР!$C$21,$I$9,$I$9-SUMIF($A$10:$A$369,"<="&$E$3,$H$10:$H$369)),0,0),"") ->  | G10: =IFERROR(-IPMT((C10-$P$1)/12,B10,IF(C10=КАЛЬКУЛЯТОР!$C$21,$E$2,$E$2-$E$3),IF(C10=КАЛЬКУЛЯТОР!$C$21,$I$9,$I$9-SUMIF($A$10:$A$369,"<="&$E$3,$H$10:$H$369)),0,0),"") ->  | H10: =IFERROR((-PPMT(C10/12,B10,IF(C10=КАЛЬКУЛЯТОР!$C$21,$E$2,$E$2-$E$3),IF(C10=КАЛЬКУЛЯТОР!$C$21,$I$9,$I$9-SUMIF($A$10:$A$369,"<="&$E$3,$H$10:$H$369)),0,0)),"") ->  | I10: =IFERROR(I9-H10,"") ->  | J10: =PV($E$5/12,A10-1,0,-D10) ->  | K10: =PV($E$5/12,A10-1,0,-E10) -> 18,300.00 | L10: =PV($E$5/12,A10-1,0,-F10) ->  | M10: =PV($E$5/12,A10-1,0,-G10) ->  | N10: =PV($E$5/12,A10-1,0,-H10) ->  | O10: =O9-N10 ->  | P10: =AND(A10<=$E$3) -> FALSE
A11: 2 | B11: =IF(P11=$P$10,B10+1,A11-$E$3) -> 2 | C11: =IF(A11<=$E$2,$E$4,"") ->  | D11: =IF(A11<=$E$2,-PMT(C11/12,IF(C11=КАЛЬКУЛЯТОР!$C$21,$E$2,$E$2-$E$3),IF(C11=КАЛЬКУЛЯТОР!$C$21,$I$9,$I$9-SUMIF($A$10:$A$369,"<="&$E$3,$H$10:$H$369)),0,0),"") ->  | F11: =IFERROR(-IPMT(C11/12,B11,IF(C11=КАЛЬКУЛЯТОР!$C$21,$E$2,$E$2-$E$3),IF(C11=КАЛЬКУЛЯТОР!$C$21,$I$9,$I$9-SUMIF($A$10:$A$369,"<="&$E$3,$H$10:$H$369)),0,0),"") ->  | G11: =IFERROR(-IPMT((C11-$P$1)/12,B11,IF(C11=КАЛЬКУЛЯТОР!$C$21,$E$2,$E$2-$E$3),IF(C11=КАЛЬКУЛЯТОР!$C$21,$I$9,$I$9-SUMIF($A$10:$A$369,"<="&$E$3,$H$10:$H$369)),0,0),"") ->  | H11: =IFERROR((-PPMT(C11/12,B11,IF(C11=КАЛЬКУЛЯТОР!$C$21,$E$2,$E$2-$E$3),IF(C11=КАЛЬКУЛЯТОР!$C$21,$I$9,$I$9-SUMIF($A$10:$A$369,"<="&$E$3,$H$10:$H$369)),0,0)),"") ->  | J11: =PV($E$5/12,A11-1,0,-D11) ->  | L11: =PV($E$5/12,A11-1,0,-F11) ->  | M11: =PV($E$5/12,A11-1,0,-G11) ->  | P11: =AND(A11<=$E$3) -> FALSE
A12: 3 | B12: 3 | D12: =IF(A12<=$E$2,-PMT(C12/12,IF(C12=КАЛЬКУЛЯТОР!$C$21,$E$2,$E$2-$E$3),IF(C12=КАЛЬКУЛЯТОР!$C$21,$I$9,$I$9-SUMIF($A$10:$A$369,"<="&$E$3,$H$10:$H$369)),0,0),"") ->  | F12: =IFERROR(-IPMT(C12/12,B12,IF(C12=КАЛЬКУЛЯТОР!$C$21,$E$2,$E$2-$E$3),IF(C12=КАЛЬКУЛЯТОР!$C$21,$I$9,$I$9-SUMIF($A$10:$A$369,"<="&$E$3,$H$10:$H$369)),0,0),"") ->  | G12: =IFERROR(-IPMT((C12-$P$1)/12,B12,IF(C12=КАЛЬКУЛЯТОР!$C$21,$E$2,$E$2-$E$3),IF(C12=КАЛЬКУЛЯТОР!$C$21,$I$9,$I$9-SUMIF($A$10:$A$369,"<="&$E$3,$H$10:$H$369)),0,0),"") ->  | H12: =IFERROR((-PPMT(C12/12,B12,IF(C12=КАЛЬКУЛЯТОР!$C$21,$E$2,$E$2-$E$3),IF(C12=КАЛЬКУЛЯТОР!$C$21,$I$9,$I$9-SUMIF($A$10:$A$369,"<="&$E$3,$H$10:$H$369)),0,0)),"") ->  | P12: FALSE
A13: 4 | B13: 4 | D13: =IF(A13<=$E$2,-PMT(C13/12,IF(C13=КАЛЬКУЛЯТОР!$C$21,$E$2,$E$2-$E$3),IF(C13=КАЛЬКУЛЯТОР!$C$21,$I$9,$I$9-SUMIF($A$10:$A$369,"<="&$E$3,$H$10:$H$369)),0,0),"") ->  | F13: =IFERROR(-IPMT(C13/12,B13,IF(C13=КАЛЬКУЛЯТОР!$C$21,$E$2,$E$2-$E$3),IF(C13=КАЛЬКУЛЯТОР!$C$21,$I$9,$I$9-SUMIF($A$10:$A$369,"<="&$E$3,$H$10:$H$369)),0,0),"") ->  | G13: =IFERROR(-IPMT((C13-$P$1)/12,B13,IF(C13=КАЛЬКУЛЯТОР!$C$21,$E$2,$E$2-$E$3),IF(C13=КАЛЬКУЛЯТОР!$C$21,$I$9,$I$9-SUMIF($A$10:$A$369,"<="&$E$3,$H$10:$H$369)),0,0),"") ->  | H13: =IFERROR((-PPMT(C13/12,B13,IF(C13=КАЛЬКУЛЯТОР!$C$21,$E$2,$E$2-$E$3),IF(C13=КАЛЬКУЛЯТОР!$C$21,$I$9,$I$9-SUMIF($A$10:$A$369,"<="&$E$3,$H$10:$H$369)),0,0)),"") ->  | P13: FALSE
A14: 5 | B14: 5 | D14: =IF(A14<=$E$2,-PMT(C14/12,IF(C14=КАЛЬКУЛЯТОР!$C$21,$E$2,$E$2-$E$3),IF(C14=КАЛЬКУЛЯТОР!$C$21,$I$9,$I$9-SUMIF($A$10:$A$369,"<="&$E$3,$H$10:$H$369)),0,0),"") ->  | F14: =IFERROR(-IPMT(C14/12,B14,IF(C14=КАЛЬКУЛЯТОР!$C$21,$E$2,$E$2-$E$3),IF(C14=КАЛЬКУЛЯТОР!$C$21,$I$9,$I$9-SUMIF($A$10:$A$369,"<="&$E$3,$H$10:$H$369)),0,0),"") ->  | G14: =IFERROR(-IPMT((C14-$P$1)/12,B14,IF(C14=КАЛЬКУЛЯТОР!$C$21,$E$2,$E$2-$E$3),IF(C14=КАЛЬКУЛЯТОР!$C$21,$I$9,$I$9-SUMIF($A$10:$A$369,"<="&$E$3,$H$10:$H$369)),0,0),"") ->  | H14: =IFERROR((-PPMT(C14/12,B14,IF(C14=КАЛЬКУЛЯТОР!$C$21,$E$2,$E$2-$E$3),IF(C14=КАЛЬКУЛЯТОР!$C$21,$I$9,$I$9-SUMIF($A$10:$A$369,"<="&$E$3,$H$10:$H$369)),0,0)),"") ->  | P14: FALSE
A15: 6 | B15: 6 | D15: =IF(A15<=$E$2,-PMT(C15/12,IF(C15=КАЛЬКУЛЯТОР!$C$21,$E$2,$E$2-$E$3),IF(C15=КАЛЬКУЛЯТОР!$C$21,$I$9,$I$9-SUMIF($A$10:$A$369,"<="&$E$3,$H$10:$H$369)),0,0),"") ->  | F15: =IFERROR(-IPMT(C15/12,B15,IF(C15=КАЛЬКУЛЯТОР!$C$21,$E$2,$E$2-$E$3),IF(C15=КАЛЬКУЛЯТОР!$C$21,$I$9,$I$9-SUMIF($A$10:$A$369,"<="&$E$3,$H$10:$H$369)),0,0),"") ->  | G15: =IFERROR(-IPMT((C15-$P$1)/12,B15,IF(C15=КАЛЬКУЛЯТОР!$C$21,$E$2,$E$2-$E$3),IF(C15=КАЛЬКУЛЯТОР!$C$21,$I$9,$I$9-SUMIF($A$10:$A$369,"<="&$E$3,$H$10:$H$369)),0,0),"") ->  | H15: =IFERROR((-PPMT(C15/12,B15,IF(C15=КАЛЬКУЛЯТОР!$C$21,$E$2,$E$2-$E$3),IF(C15=КАЛЬКУЛЯТОР!$C$21,$I$9,$I$9-SUMIF($A$10:$A$369,"<="&$E$3,$H$10:$H$369)),0,0)),"") ->  | P15: FALSE
A16: 7 | B16: 7 | D16: =IF(A16<=$E$2,-PMT(C16/12,IF(C16=КАЛЬКУЛЯТОР!$C$21,$E$2,$E$2-$E$3),IF(C16=КАЛЬКУЛЯТОР!$C$21,$I$9,$I$9-SUMIF($A$10:$A$369,"<="&$E$3,$H$10:$H$369)),0,0),"") ->  | F16: =IFERROR(-IPMT(C16/12,B16,IF(C16=КАЛЬКУЛЯТОР!$C$21,$E$2,$E$2-$E$3),IF(C16=КАЛЬКУЛЯТОР!$C$21,$I$9,$I$9-SUMIF($A$10:$A$369,"<="&$E$3,$H$10:$H$369)),0,0),"") ->  | G16: =IFERROR(-IPMT((C16-$P$1)/12,B16,IF(C16=КАЛЬКУЛЯТОР!$C$21,$E$2,$E$2-$E$3),IF(C16=КАЛЬКУЛЯТОР!$C$21,$I$9,$I$9-SUMIF($A$10:$A$369,"<="&$E$3,$H$10:$H$369)),0,0),"") ->  | H16: =IFERROR((-PPMT(C16/12,B16,IF(C16=КАЛЬКУЛЯТОР!$C$21,$E$2,$E$2-$E$3),IF(C16=КАЛЬКУЛЯТОР!$C$21,$I$9,$I$9-SUMIF($A$10:$A$369,"<="&$E$3,$H$10:$H$369)),0,0)),"") ->  | P16: FALSE
A17: 8 | B17: 8 | D17: =IF(A17<=$E$2,-PMT(C17/12,IF(C17=КАЛЬКУЛЯТОР!$C$21,$E$2,$E$2-$E$3),IF(C17=КАЛЬКУЛЯТОР!$C$21,$I$9,$I$9-SUMIF($A$10:$A$369,"<="&$E$3,$H$10:$H$369)),0,0),"") ->  | F17: =IFERROR(-IPMT(C17/12,B17,IF(C17=КАЛЬКУЛЯТОР!$C$21,$E$2,$E$2-$E$3),IF(C17=КАЛЬКУЛЯТОР!$C$21,$I$9,$I$9-SUMIF($A$10:$A$369,"<="&$E$3,$H$10:$H$369)),0,0),"") ->  | G17: =IFERROR(-IPMT((C17-$P$1)/12,B17,IF(C17=КАЛЬКУЛЯТОР!$C$21,$E$2,$E$2-$E$3),IF(C17=КАЛЬКУЛЯТОР!$C$21,$I$9,$I$9-SUMIF($A$10:$A$369,"<="&$E$3,$H$10:$H$369)),0,0),"") ->  | H17: =IFERROR((-PPMT(C17/12,B17,IF(C17=КАЛЬКУЛЯТОР!$C$21,$E$2,$E$2-$E$3),IF(C17=КАЛЬКУЛЯТОР!$C$21,$I$9,$I$9-SUMIF($A$10:$A$369,"<="&$E$3,$H$10:$H$369)),0,0)),"") ->  | P17: FALSE
A18: 9 | B18: 9 | D18: =IF(A18<=$E$2,-PMT(C18/12,IF(C18=КАЛЬКУЛЯТОР!$C$21,$E$2,$E$2-$E$3),IF(C18=КАЛЬКУЛЯТОР!$C$21,$I$9,$I$9-SUMIF($A$10:$A$369,"<="&$E$3,$H$10:$H$369)),0,0),"") ->  | F18: =IFERROR(-IPMT(C18/12,B18,IF(C18=КАЛЬКУЛЯТОР!$C$21,$E$2,$E$2-$E$3),IF(C18=КАЛЬКУЛЯТОР!$C$21,$I$9,$I$9-SUMIF($A$10:$A$369,"<="&$E$3,$H$10:$H$369)),0,0),"") ->  | G18: =IFERROR(-IPMT((C18-$P$1)/12,B18,IF(C18=КАЛЬКУЛЯТОР!$C$21,$E$2,$E$2-$E$3),IF(C18=КАЛЬКУЛЯТОР!$C$21,$I$9,$I$9-SUMIF($A$10:$A$369,"<="&$E$3,$H$10:$H$369)),0,0),"") ->  | H18: =IFERROR((-PPMT(C18/12,B18,IF(C18=КАЛЬКУЛЯТОР!$C$21,$E$2,$E$2-$E$3),IF(C18=КАЛЬКУЛЯТОР!$C$21,$I$9,$I$9-SUMIF($A$10:$A$369,"<="&$E$3,$H$10:$H$369)),0,0)),"") ->  | P18: FALSE
A19: 10 | B19: 10 | D19: =IF(A19<=$E$2,-PMT(C19/12,IF(C19=КАЛЬКУЛЯТОР!$C$21,$E$2,$E$2-$E$3),IF(C19=КАЛЬКУЛЯТОР!$C$21,$I$9,$I$9-SUMIF($A$10:$A$369,"<="&$E$3,$H$10:$H$369)),0,0),"") ->  | F19: =IFERROR(-IPMT(C19/12,B19,IF(C19=КАЛЬКУЛЯТОР!$C$21,$E$2,$E$2-$E$3),IF(C19=КАЛЬКУЛЯТОР!$C$21,$I$9,$I$9-SUMIF($A$10:$A$369,"<="&$E$3,$H$10:$H$369)),0,0),"") ->  | G19: =IFERROR(-IPMT((C19-$P$1)/12,B19,IF(C19=КАЛЬКУЛЯТОР!$C$21,$E$2,$E$2-$E$3),IF(C19=КАЛЬКУЛЯТОР!$C$21,$I$9,$I$9-SUMIF($A$10:$A$369,"<="&$E$3,$H$10:$H$369)),0,0),"") ->  | H19: =IFERROR((-PPMT(C19/12,B19,IF(C19=КАЛЬКУЛЯТОР!$C$21,$E$2,$E$2-$E$3),IF(C19=КАЛЬКУЛЯТОР!$C$21,$I$9,$I$9-SUMIF($A$10:$A$369,"<="&$E$3,$H$10:$H$369)),0,0)),"") ->  | P19: FALSE
A20: 11 | B20: 11 | D20: =IF(A20<=$E$2,-PMT(C20/12,IF(C20=КАЛЬКУЛЯТОР!$C$21,$E$2,$E$2-$E$3),IF(C20=КАЛЬКУЛЯТОР!$C$21,$I$9,$I$9-SUMIF($A$10:$A$369,"<="&$E$3,$H$10:$H$369)),0,0),"") ->  | F20: =IFERROR(-IPMT(C20/12,B20,IF(C20=КАЛЬКУЛЯТОР!$C$21,$E$2,$E$2-$E$3),IF(C20=КАЛЬКУЛЯТОР!$C$21,$I$9,$I$9-SUMIF($A$10:$A$369,"<="&$E$3,$H$10:$H$369)),0,0),"") ->  | G20: =IFERROR(-IPMT((C20-$P$1)/12,B20,IF(C20=КАЛЬКУЛЯТОР!$C$21,$E$2,$E$2-$E$3),IF(C20=КАЛЬКУЛЯТОР!$C$21,$I$9,$I$9-SUMIF($A$10:$A$369,"<="&$E$3,$H$10:$H$369)),0,0),"") ->  | H20: =IFERROR((-PPMT(C20/12,B20,IF(C20=КАЛЬКУЛЯТОР!$C$21,$E$2,$E$2-$E$3),IF(C20=КАЛЬКУЛЯТОР!$C$21,$I$9,$I$9-SUMIF($A$10:$A$369,"<="&$E$3,$H$10:$H$369)),0,0)),"") ->  | P20: FALSE
A21: 12 | B21: 12 | D21: =IF(A21<=$E$2,-PMT(C21/12,IF(C21=КАЛЬКУЛЯТОР!$C$21,$E$2,$E$2-$E$3),IF(C21=КАЛЬКУЛЯТОР!$C$21,$I$9,$I$9-SUMIF($A$10:$A$369,"<="&$E$3,$H$10:$H$369)),0,0),"") ->  | F21: =IFERROR(-IPMT(C21/12,B21,IF(C21=КАЛЬКУЛЯТОР!$C$21,$E$2,$E$2-$E$3),IF(C21=КАЛЬКУЛЯТОР!$C$21,$I$9,$I$9-SUMIF($A$10:$A$369,"<="&$E$3,$H$10:$H$369)),0,0),"") ->  | G21: =IFERROR(-IPMT((C21-$P$1)/12,B21,IF(C21=КАЛЬКУЛЯТОР!$C$21,$E$2,$E$2-$E$3),IF(C21=КАЛЬКУЛЯТОР!$C$21,$I$9,$I$9-SUMIF($A$10:$A$369,"<="&$E$3,$H$10:$H$369)),0,0),"") ->  | H21: =IFERROR((-PPMT(C21/12,B21,IF(C21=КАЛЬКУЛЯТОР!$C$21,$E$2,$E$2-$E$3),IF(C21=КАЛЬКУЛЯТОР!$C$21,$I$9,$I$9-SUMIF($A$10:$A$369,"<="&$E$3,$H$10:$H$369)),0,0)),"") ->  | P21: FALSE
A22: 13 | B22: 13 | D22: =IF(A22<=$E$2,-PMT(C22/12,IF(C22=КАЛЬКУЛЯТОР!$C$21,$E$2,$E$2-$E$3),IF(C22=КАЛЬКУЛЯТОР!$C$21,$I$9,$I$9-SUMIF($A$10:$A$369,"<="&$E$3,$H$10:$H$369)),0,0)+E22,"") ->  | E22: =IF($E$2>$A21,(I21+SUM(F22:F33))*($K$4+$K$5),0) -> 0.00 | F22: =IFERROR(-IPMT(C22/12,B22,IF(C22=КАЛЬКУЛЯТОР!$C$21,$E$2,$E$2-$E$3),IF(C22=КАЛЬКУЛЯТОР!$C$21,$I$9,$I$9-SUMIF($A$10:$A$369,"<="&$E$3,$H$10:$H$369)),0,0),"") ->  | G22: =IFERROR(-IPMT((C22-$P$1)/12,B22,IF(C22=КАЛЬКУЛЯТОР!$C$21,$E$2,$E$2-$E$3),IF(C22=КАЛЬКУЛЯТОР!$C$21,$I$9,$I$9-SUMIF($A$10:$A$369,"<="&$E$3,$H$10:$H$369)),0,0),"") ->  | H22: =IFERROR((-PPMT(C22/12,B22,IF(C22=КАЛЬКУЛЯТОР!$C$21,$E$2,$E$2-$E$3),IF(C22=КАЛЬКУЛЯТОР!$C$21,$I$9,$I$9-SUMIF($A$10:$A$369,"<="&$E$3,$H$10:$H$369)),0,0)),"") ->  | K22: =PV($E$5/12,A22-1,0,-E22) -> 0.00 | L22: =PV($E$5/12,A22-1,0,-F22) ->  | P22: FALSE
A23: 14 | B23: 14 | D23: =IF(A23<=$E$2,-PMT(C23/12,IF(C23=КАЛЬКУЛЯТОР!$C$21,$E$2,$E$2-$E$3),IF(C23=КАЛЬКУЛЯТОР!$C$21,$I$9,$I$9-SUMIF($A$10:$A$369,"<="&$E$3,$H$10:$H$369)),0,0),"") ->  | F23: =IFERROR(-IPMT(C23/12,B23,IF(C23=КАЛЬКУЛЯТОР!$C$21,$E$2,$E$2-$E$3),IF(C23=КАЛЬКУЛЯТОР!$C$21,$I$9,$I$9-SUMIF($A$10:$A$369,"<="&$E$3,$H$10:$H$369)),0,0),"") ->  | G23: =IFERROR(-IPMT((C23-$P$1)/12,B23,IF(C23=КАЛЬКУЛЯТОР!$C$21,$E$2,$E$2-$E$3),IF(C23=КАЛЬКУЛЯТОР!$C$21,$I$9,$I$9-SUMIF($A$10:$A$369,"<="&$E$3,$H$10:$H$369)),0,0),"") ->  | H23: =IFERROR((-PPMT(C23/12,B23,IF(C23=КАЛЬКУЛЯТОР!$C$21,$E$2,$E$2-$E$3),IF(C23=КАЛЬКУЛЯТОР!$C$21,$I$9,$I$9-SUMIF($A$10:$A$369,"<="&$E$3,$H$10:$H$369)),0,0)),"") ->  | P23: FALSE
A24: 15 | B24: 15 | D24: =IF(A24<=$E$2,-PMT(C24/12,IF(C24=КАЛЬКУЛЯТОР!$C$21,$E$2,$E$2-$E$3),IF(C24=КАЛЬКУЛЯТОР!$C$21,$I$9,$I$9-SUMIF($A$10:$A$369,"<="&$E$3,$H$10:$H$369)),0,0),"") ->  | F24: =IFERROR(-IPMT(C24/12,B24,IF(C24=КАЛЬКУЛЯТОР!$C$21,$E$2,$E$2-$E$3),IF(C24=КАЛЬКУЛЯТОР!$C$21,$I$9,$I$9-SUMIF($A$10:$A$369,"<="&$E$3,$H$10:$H$369)),0,0),"") ->  | G24: =IFERROR(-IPMT((C24-$P$1)/12,B24,IF(C24=КАЛЬКУЛЯТОР!$C$21,$E$2,$E$2-$E$3),IF(C24=КАЛЬКУЛЯТОР!$C$21,$I$9,$I$9-SUMIF($A$10:$A$369,"<="&$E$3,$H$10:$H$369)),0,0),"") ->  | H24: =IFERROR((-PPMT(C24/12,B24,IF(C24=КАЛЬКУЛЯТОР!$C$21,$E$2,$E$2-$E$3),IF(C24=КАЛЬКУЛЯТОР!$C$21,$I$9,$I$9-SUMIF($A$10:$A$369,"<="&$E$3,$H$10:$H$369)),0,0)),"") ->  | P24: FALSE
A25: 16 | B25: 16 | D25: =IF(A25<=$E$2,-PMT(C25/12,IF(C25=КАЛЬКУЛЯТОР!$C$21,$E$2,$E$2-$E$3),IF(C25=КАЛЬКУЛЯТОР!$C$21,$I$9,$I$9-SUMIF($A$10:$A$369,"<="&$E$3,$H$10:$H$369)),0,0),"") ->  | F25: =IFERROR(-IPMT(C25/12,B25,IF(C25=КАЛЬКУЛЯТОР!$C$21,$E$2,$E$2-$E$3),IF(C25=КАЛЬКУЛЯТОР!$C$21,$I$9,$I$9-SUMIF($A$10:$A$369,"<="&$E$3,$H$10:$H$369)),0,0),"") ->  | G25: =IFERROR(-IPMT((C25-$P$1)/12,B25,IF(C25=КАЛЬКУЛЯТОР!$C$21,$E$2,$E$2-$E$3),IF(C25=КАЛЬКУЛЯТОР!$C$21,$I$9,$I$9-SUMIF($A$10:$A$369,"<="&$E$3,$H$10:$H$369)),0,0),"") ->  | H25: =IFERROR((-PPMT(C25/12,B25,IF(C25=КАЛЬКУЛЯТОР!$C$21,$E$2,$E$2-$E$3),IF(C25=КАЛЬКУЛЯТОР!$C$21,$I$9,$I$9-SUMIF($A$10:$A$369,"<="&$E$3,$H$10:$H$369)),0,0)),"") ->  | P25: FALSE
A26: 17 | B26: 17 | D26: =IF(A26<=$E$2,-PMT(C26/12,IF(C26=КАЛЬКУЛЯТОР!$C$21,$E$2,$E$2-$E$3),IF(C26=КАЛЬКУЛЯТОР!$C$21,$I$9,$I$9-SUMIF($A$10:$A$369,"<="&$E$3,$H$10:$H$369)),0,0),"") ->  | F26: =IFERROR(-IPMT(C26/12,B26,IF(C26=КАЛЬКУЛЯТОР!$C$21,$E$2,$E$2-$E$3),IF(C26=КАЛЬКУЛЯТОР!$C$21,$I$9,$I$9-SUMIF($A$10:$A$369,"<="&$E$3,$H$10:$H$369)),0,0),"") ->  | G26: =IFERROR(-IPMT((C26-$P$1)/12,B26,IF(C26=КАЛЬКУЛЯТОР!$C$21,$E$2,$E$2-$E$3),IF(C26=КАЛЬКУЛЯТОР!$C$21,$I$9,$I$9-SUMIF($A$10:$A$369,"<="&$E$3,$H$10:$H$369)),0,0),"") ->  | H26: =IFERROR((-PPMT(C26/12,B26,IF(C26=КАЛЬКУЛЯТОР!$C$21,$E$2,$E$2-$E$3),IF(C26=КАЛЬКУЛЯТОР!$C$21,$I$9,$I$9-SUMIF($A$10:$A$369,"<="&$E$3,$H$10:$H$369)),0,0)),"") ->  | P26: FALSE
A27: 18 | B27: 18 | D27: =IF(A27<=$E$2,-PMT(C27/12,IF(C27=КАЛЬКУЛЯТОР!$C$21,$E$2,$E$2-$E$3),IF(C27=КАЛЬКУЛЯТОР!$C$21,$I$9,$I$9-SUMIF($A$10:$A$369,"<="&$E$3,$H$10:$H$369)),0,0),"") ->  | F27: =IFERROR(-IPMT(C27/12,B27,IF(C27=КАЛЬКУЛЯТОР!$C$21,$E$2,$E$2-$E$3),IF(C27=КАЛЬКУЛЯТОР!$C$21,$I$9,$I$9-SUMIF($A$10:$A$369,"<="&$E$3,$H$10:$H$369)),0,0),"") ->  | G27: =IFERROR(-IPMT((C27-$P$1)/12,B27,IF(C27=КАЛЬКУЛЯТОР!$C$21,$E$2,$E$2-$E$3),IF(C27=КАЛЬКУЛЯТОР!$C$21,$I$9,$I$9-SUMIF($A$10:$A$369,"<="&$E$3,$H$10:$H$369)),0,0),"") ->  | H27: =IFERROR((-PPMT(C27/12,B27,IF(C27=КАЛЬКУЛЯТОР!$C$21,$E$2,$E$2-$E$3),IF(C27=КАЛЬКУЛЯТОР!$C$21,$I$9,$I$9-SUMIF($A$10:$A$369,"<="&$E$3,$H$10:$H$369)),0,0)),"") ->  | P27: FALSE
A28: 19 | B28: 19 | D28: =IF(A28<=$E$2,-PMT(C28/12,IF(C28=КАЛЬКУЛЯТОР!$C$21,$E$2,$E$2-$E$3),IF(C28=КАЛЬКУЛЯТОР!$C$21,$I$9,$I$9-SUMIF($A$10:$A$369,"<="&$E$3,$H$10:$H$369)),0,0),"") ->  | F28: =IFERROR(-IPMT(C28/12,B28,IF(C28=КАЛЬКУЛЯТОР!$C$21,$E$2,$E$2-$E$3),IF(C28=КАЛЬКУЛЯТОР!$C$21,$I$9,$I$9-SUMIF($A$10:$A$369,"<="&$E$3,$H$10:$H$369)),0,0),"") ->  | G28: =IFERROR(-IPMT((C28-$P$1)/12,B28,IF(C28=КАЛЬКУЛЯТОР!$C$21,$E$2,$E$2-$E$3),IF(C28=КАЛЬКУЛЯТОР!$C$21,$I$9,$I$9-SUMIF($A$10:$A$369,"<="&$E$3,$H$10:$H$369)),0,0),"") ->  | H28: =IFERROR((-PPMT(C28/12,B28,IF(C28=КАЛЬКУЛЯТОР!$C$21,$E$2,$E$2-$E$3),IF(C28=КАЛЬКУЛЯТОР!$C$21,$I$9,$I$9-SUMIF($A$10:$A$369,"<="&$E$3,$H$10:$H$369)),0,0)),"") ->  | P28: FALSE
A29: 20 | B29: 20 | D29: =IF(A29<=$E$2,-PMT(C29/12,IF(C29=КАЛЬКУЛЯТОР!$C$21,$E$2,$E$2-$E$3),IF(C29=КАЛЬКУЛЯТОР!$C$21,$I$9,$I$9-SUMIF($A$10:$A$369,"<="&$E$3,$H$10:$H$369)),0,0),"") ->  | F29: =IFERROR(-IPMT(C29/12,B29,IF(C29=КАЛЬКУЛЯТОР!$C$21,$E$2,$E$2-$E$3),IF(C29=КАЛЬКУЛЯТОР!$C$21,$I$9,$I$9-SUMIF($A$10:$A$369,"<="&$E$3,$H$10:$H$369)),0,0),"") ->  | G29: =IFERROR(-IPMT((C29-$P$1)/12,B29,IF(C29=КАЛЬКУЛЯТОР!$C$21,$E$2,$E$2-$E$3),IF(C29=КАЛЬКУЛЯТОР!$C$21,$I$9,$I$9-SUMIF($A$10:$A$369,"<="&$E$3,$H$10:$H$369)),0,0),"") ->  | H29: =IFERROR((-PPMT(C29/12,B29,IF(C29=КАЛЬКУЛЯТОР!$C$21,$E$2,$E$2-$E$3),IF(C29=КАЛЬКУЛЯТОР!$C$21,$I$9,$I$9-SUMIF($A$10:$A$369,"<="&$E$3,$H$10:$H$369)),0,0)),"") ->  | P29: FALSE
A30: 21 | B30: 21 | D30: =IF(A30<=$E$2,-PMT(C30/12,IF(C30=КАЛЬКУЛЯТОР!$C$21,$E$2,$E$2-$E$3),IF(C30=КАЛЬКУЛЯТОР!$C$21,$I$9,$I$9-SUMIF($A$10:$A$369,"<="&$E$3,$H$10:$H$369)),0,0),"") ->  | F30: =IFERROR(-IPMT(C30/12,B30,IF(C30=КАЛЬКУЛЯТОР!$C$21,$E$2,$E$2-$E$3),IF(C30=КАЛЬКУЛЯТОР!$C$21,$I$9,$I$9-SUMIF($A$10:$A$369,"<="&$E$3,$H$10:$H$369)),0,0),"") ->  | G30: =IFERROR(-IPMT((C30-$P$1)/12,B30,IF(C30=КАЛЬКУЛЯТОР!$C$21,$E$2,$E$2-$E$3),IF(C30=КАЛЬКУЛЯТОР!$C$21,$I$9,$I$9-SUMIF($A$10:$A$369,"<="&$E$3,$H$10:$H$369)),0,0),"") ->  | H30: =IFERROR((-PPMT(C30/12,B30,IF(C30=КАЛЬКУЛЯТОР!$C$21,$E$2,$E$2-$E$3),IF(C30=КАЛЬКУЛЯТОР!$C$21,$I$9,$I$9-SUMIF($A$10:$A$369,"<="&$E$3,$H$10:$H$369)),0,0)),"") ->  | P30: FALSE
A31: 22 | B31: 22 | D31: =IF(A31<=$E$2,-PMT(C31/12,IF(C31=КАЛЬКУЛЯТОР!$C$21,$E$2,$E$2-$E$3),IF(C31=КАЛЬКУЛЯТОР!$C$21,$I$9,$I$9-SUMIF($A$10:$A$369,"<="&$E$3,$H$10:$H$369)),0,0),"") ->  | F31: =IFERROR(-IPMT(C31/12,B31,IF(C31=КАЛЬКУЛЯТОР!$C$21,$E$2,$E$2-$E$3),IF(C31=КАЛЬКУЛЯТОР!$C$21,$I$9,$I$9-SUMIF($A$10:$A$369,"<="&$E$3,$H$10:$H$369)),0,0),"") ->  | G31: =IFERROR(-IPMT((C31-$P$1)/12,B31,IF(C31=КАЛЬКУЛЯТОР!$C$21,$E$2,$E$2-$E$3),IF(C31=КАЛЬКУЛЯТОР!$C$21,$I$9,$I$9-SUMIF($A$10:$A$369,"<="&$E$3,$H$10:$H$369)),0,0),"") ->  | H31: =IFERROR((-PPMT(C31/12,B31,IF(C31=КАЛЬКУЛЯТОР!$C$21,$E$2,$E$2-$E$3),IF(C31=КАЛЬКУЛЯТОР!$C$21,$I$9,$I$9-SUMIF($A$10:$A$369,"<="&$E$3,$H$10:$H$369)),0,0)),"") ->  | P31: FALSE
A32: 23 | B32: 23 | D32: =IF(A32<=$E$2,-PMT(C32/12,IF(C32=КАЛЬКУЛЯТОР!$C$21,$E$2,$E$2-$E$3),IF(C32=КАЛЬКУЛЯТОР!$C$21,$I$9,$I$9-SUMIF($A$10:$A$369,"<="&$E$3,$H$10:$H$369)),0,0),"") ->  | F32: =IFERROR(-IPMT(C32/12,B32,IF(C32=КАЛЬКУЛЯТОР!$C$21,$E$2,$E$2-$E$3),IF(C32=КАЛЬКУЛЯТОР!$C$21,$I$9,$I$9-SUMIF($A$10:$A$369,"<="&$E$3,$H$10:$H$369)),0,0),"") ->  | G32: =IFERROR(-IPMT((C32-$P$1)/12,B32,IF(C32=КАЛЬКУЛЯТОР!$C$21,$E$2,$E$2-$E$3),IF(C32=КАЛЬКУЛЯТОР!$C$21,$I$9,$I$9-SUMIF($A$10:$A$369,"<="&$E$3,$H$10:$H$369)),0,0),"") ->  | H32: =IFERROR((-PPMT(C32/12,B32,IF(C32=КАЛЬКУЛЯТОР!$C$21,$E$2,$E$2-$E$3),IF(C32=КАЛЬКУЛЯТОР!$C$21,$I$9,$I$9-SUMIF($A$10:$A$369,"<="&$E$3,$H$10:$H$369)),0,0)),"") ->  | P32: FALSE
A33: 24 | B33: 24 | D33: =IF(A33<=$E$2,-PMT(C33/12,IF(C33=КАЛЬКУЛЯТОР!$C$21,$E$2,$E$2-$E$3),IF(C33=КАЛЬКУЛЯТОР!$C$21,$I$9,$I$9-SUMIF($A$10:$A$369,"<="&$E$3,$H$10:$H$369)),0,0),"") ->  | F33: =IFERROR(-IPMT(C33/12,B33,IF(C33=КАЛЬКУЛЯТОР!$C$21,$E$2,$E$2-$E$3),IF(C33=КАЛЬКУЛЯТОР!$C$21,$I$9,$I$9-SUMIF($A$10:$A$369,"<="&$E$3,$H$10:$H$369)),0,0),"") ->  | G33: =IFERROR(-IPMT((C33-$P$1)/12,B33,IF(C33=КАЛЬКУЛЯТОР!$C$21,$E$2,$E$2-$E$3),IF(C33=КАЛЬКУЛЯТОР!$C$21,$I$9,$I$9-SUMIF($A$10:$A$369,"<="&$E$3,$H$10:$H$369)),0,0),"") ->  | H33: =IFERROR((-PPMT(C33/12,B33,IF(C33=КАЛЬКУЛЯТОР!$C$21,$E$2,$E$2-$E$3),IF(C33=КАЛЬКУЛЯТОР!$C$21,$I$9,$I$9-SUMIF($A$10:$A$369,"<="&$E$3,$H$10:$H$369)),0,0)),"") ->  | P33: FALSE
A34: 25 | B34: 25 | D34: =IF(A34<=$E$2,-PMT(C34/12,IF(C34=КАЛЬКУЛЯТОР!$C$21,$E$2,$E$2-$E$3),IF(C34=КАЛЬКУЛЯТОР!$C$21,$I$9,$I$9-SUMIF($A$10:$A$369,"<="&$E$3,$H$10:$H$369)),0,0)+E34,"") ->  | E34: =IF($E$2>$A33,(I33+SUM(F34:F45))*($K$4+$K$5),0) -> 0.00 | F34: =IFERROR(-IPMT(C34/12,B34,IF(C34=КАЛЬКУЛЯТОР!$C$21,$E$2,$E$2-$E$3),IF(C34=КАЛЬКУЛЯТОР!$C$21,$I$9,$I$9-SUMIF($A$10:$A$369,"<="&$E$3,$H$10:$H$369)),0,0),"") ->  | G34: =IFERROR(-IPMT((C34-$P$1)/12,B34,IF(C34=КАЛЬКУЛЯТОР!$C$21,$E$2,$E$2-$E$3),IF(C34=КАЛЬКУЛЯТОР!$C$21,$I$9,$I$9-SUMIF($A$10:$A$369,"<="&$E$3,$H$10:$H$369)),0,0),"") ->  | H34: =IFERROR((-PPMT(C34/12,B34,IF(C34=КАЛЬКУЛЯТОР!$C$21,$E$2,$E$2-$E$3),IF(C34=КАЛЬКУЛЯТОР!$C$21,$I$9,$I$9-SUMIF($A$10:$A$369,"<="&$E$3,$H$10:$H$369)),0,0)),"") ->  | K34: =PV($E$5/12,A34-1,0,-E34) -> 0.00 | P34: FALSE
A35: 26 | B35: 26 | D35: =IF(A35<=$E$2,-PMT(C35/12,IF(C35=КАЛЬКУЛЯТОР!$C$21,$E$2,$E$2-$E$3),IF(C35=КАЛЬКУЛЯТОР!$C$21,$I$9,$I$9-SUMIF($A$10:$A$369,"<="&$E$3,$H$10:$H$369)),0,0),"") ->  | F35: =IFERROR(-IPMT(C35/12,B35,IF(C35=КАЛЬКУЛЯТОР!$C$21,$E$2,$E$2-$E$3),IF(C35=КАЛЬКУЛЯТОР!$C$21,$I$9,$I$9-SUMIF($A$10:$A$369,"<="&$E$3,$H$10:$H$369)),0,0),"") ->  | G35: =IFERROR(-IPMT((C35-$P$1)/12,B35,IF(C35=КАЛЬКУЛЯТОР!$C$21,$E$2,$E$2-$E$3),IF(C35=КАЛЬКУЛЯТОР!$C$21,$I$9,$I$9-SUMIF($A$10:$A$369,"<="&$E$3,$H$10:$H$369)),0,0),"") ->  | H35: =IFERROR((-PPMT(C35/12,B35,IF(C35=КАЛЬКУЛЯТОР!$C$21,$E$2,$E$2-$E$3),IF(C35=КАЛЬКУЛЯТОР!$C$21,$I$9,$I$9-SUMIF($A$10:$A$369,"<="&$E$3,$H$10:$H$369)),0,0)),"") ->  | P35: FALSE
A36: 27 | B36: 27 | D36: =IF(A36<=$E$2,-PMT(C36/12,IF(C36=КАЛЬКУЛЯТОР!$C$21,$E$2,$E$2-$E$3),IF(C36=КАЛЬКУЛЯТОР!$C$21,$I$9,$I$9-SUMIF($A$10:$A$369,"<="&$E$3,$H$10:$H$369)),0,0),"") ->  | F36: =IFERROR(-IPMT(C36/12,B36,IF(C36=КАЛЬКУЛЯТОР!$C$21,$E$2,$E$2-$E$3),IF(C36=КАЛЬКУЛЯТОР!$C$21,$I$9,$I$9-SUMIF($A$10:$A$369,"<="&$E$3,$H$10:$H$369)),0,0),"") ->  | G36: =IFERROR(-IPMT((C36-$P$1)/12,B36,IF(C36=КАЛЬКУЛЯТОР!$C$21,$E$2,$E$2-$E$3),IF(C36=КАЛЬКУЛЯТОР!$C$21,$I$9,$I$9-SUMIF($A$10:$A$369,"<="&$E$3,$H$10:$H$369)),0,0),"") ->  | H36: =IFERROR((-PPMT(C36/12,B36,IF(C36=КАЛЬКУЛЯТОР!$C$21,$E$2,$E$2-$E$3),IF(C36=КАЛЬКУЛЯТОР!$C$21,$I$9,$I$9-SUMIF($A$10:$A$369,"<="&$E$3,$H$10:$H$369)),0,0)),"") ->  | P36: FALSE
A37: 28 | B37: 28 | D37: =IF(A37<=$E$2,-PMT(C37/12,IF(C37=КАЛЬКУЛЯТОР!$C$21,$E$2,$E$2-$E$3),IF(C37=КАЛЬКУЛЯТОР!$C$21,$I$9,$I$9-SUMIF($A$10:$A$369,"<="&$E$3,$H$10:$H$369)),0,0),"") ->  | F37: =IFERROR(-IPMT(C37/12,B37,IF(C37=КАЛЬКУЛЯТОР!$C$21,$E$2,$E$2-$E$3),IF(C37=КАЛЬКУЛЯТОР!$C$21,$I$9,$I$9-SUMIF($A$10:$A$369,"<="&$E$3,$H$10:$H$369)),0,0),"") ->  | G37: =IFERROR(-IPMT((C37-$P$1)/12,B37,IF(C37=КАЛЬКУЛЯТОР!$C$21,$E$2,$E$2-$E$3),IF(C37=КАЛЬКУЛЯТОР!$C$21,$I$9,$I$9-SUMIF($A$10:$A$369,"<="&$E$3,$H$10:$H$369)),0,0),"") ->  | H37: =IFERROR((-PPMT(C37/12,B37,IF(C37=КАЛЬКУЛЯТОР!$C$21,$E$2,$E$2-$E$3),IF(C37=КАЛЬКУЛЯТОР!$C$21,$I$9,$I$9-SUMIF($A$10:$A$369,"<="&$E$3,$H$10:$H$369)),0,0)),"") ->  | P37: FALSE
A38: 29 | B38: 29 | D38: =IF(A38<=$E$2,-PMT(C38/12,IF(C38=КАЛЬКУЛЯТОР!$C$21,$E$2,$E$2-$E$3),IF(C38=КАЛЬКУЛЯТОР!$C$21,$I$9,$I$9-SUMIF($A$10:$A$369,"<="&$E$3,$H$10:$H$369)),0,0),"") ->  | F38: =IFERROR(-IPMT(C38/12,B38,IF(C38=КАЛЬКУЛЯТОР!$C$21,$E$2,$E$2-$E$3),IF(C38=КАЛЬКУЛЯТОР!$C$21,$I$9,$I$9-SUMIF($A$10:$A$369,"<="&$E$3,$H$10:$H$369)),0,0),"") ->  | G38: =IFERROR(-IPMT((C38-$P$1)/12,B38,IF(C38=КАЛЬКУЛЯТОР!$C$21,$E$2,$E$2-$E$3),IF(C38=КАЛЬКУЛЯТОР!$C$21,$I$9,$I$9-SUMIF($A$10:$A$369,"<="&$E$3,$H$10:$H$369)),0,0),"") ->  | H38: =IFERROR((-PPMT(C38/12,B38,IF(C38=КАЛЬКУЛЯТОР!$C$21,$E$2,$E$2-$E$3),IF(C38=КАЛЬКУЛЯТОР!$C$21,$I$9,$I$9-SUMIF($A$10:$A$369,"<="&$E$3,$H$10:$H$369)),0,0)),"") ->  | P38: FALSE
A39: 30 | B39: 30 | D39: =IF(A39<=$E$2,-PMT(C39/12,IF(C39=КАЛЬКУЛЯТОР!$C$21,$E$2,$E$2-$E$3),IF(C39=КАЛЬКУЛЯТОР!$C$21,$I$9,$I$9-SUMIF($A$10:$A$369,"<="&$E$3,$H$10:$H$369)),0,0),"") ->  | F39: =IFERROR(-IPMT(C39/12,B39,IF(C39=КАЛЬКУЛЯТОР!$C$21,$E$2,$E$2-$E$3),IF(C39=КАЛЬКУЛЯТОР!$C$21,$I$9,$I$9-SUMIF($A$10:$A$369,"<="&$E$3,$H$10:$H$369)),0,0),"") ->  | G39: =IFERROR(-IPMT((C39-$P$1)/12,B39,IF(C39=КАЛЬКУЛЯТОР!$C$21,$E$2,$E$2-$E$3),IF(C39=КАЛЬКУЛЯТОР!$C$21,$I$9,$I$9-SUMIF($A$10:$A$369,"<="&$E$3,$H$10:$H$369)),0,0),"") ->  | H39: =IFERROR((-PPMT(C39/12,B39,IF(C39=КАЛЬКУЛЯТОР!$C$21,$E$2,$E$2-$E$3),IF(C39=КАЛЬКУЛЯТОР!$C$21,$I$9,$I$9-SUMIF($A$10:$A$369,"<="&$E$3,$H$10:$H$369)),0,0)),"") ->  | P39: FALSE
A40: 31 | B40: 31 | D40: =IF(A40<=$E$2,-PMT(C40/12,IF(C40=КАЛЬКУЛЯТОР!$C$21,$E$2,$E$2-$E$3),IF(C40=КАЛЬКУЛЯТОР!$C$21,$I$9,$I$9-SUMIF($A$10:$A$369,"<="&$E$3,$H$10:$H$369)),0,0),"") ->  | F40: =IFERROR(-IPMT(C40/12,B40,IF(C40=КАЛЬКУЛЯТОР!$C$21,$E$2,$E$2-$E$3),IF(C40=КАЛЬКУЛЯТОР!$C$21,$I$9,$I$9-SUMIF($A$10:$A$369,"<="&$E$3,$H$10:$H$369)),0,0),"") ->  | G40: =IFERROR(-IPMT((C40-$P$1)/12,B40,IF(C40=КАЛЬКУЛЯТОР!$C$21,$E$2,$E$2-$E$3),IF(C40=КАЛЬКУЛЯТОР!$C$21,$I$9,$I$9-SUMIF($A$10:$A$369,"<="&$E$3,$H$10:$H$369)),0,0),"") ->  | H40: =IFERROR((-PPMT(C40/12,B40,IF(C40=КАЛЬКУЛЯТОР!$C$21,$E$2,$E$2-$E$3),IF(C40=КАЛЬКУЛЯТОР!$C$21,$I$9,$I$9-SUMIF($A$10:$A$369,"<="&$E$3,$H$10:$H$369)),0,0)),"") ->  | P40: FALSE
A41: 32 | B41: 32 | D41: =IF(A41<=$E$2,-PMT(C41/12,IF(C41=КАЛЬКУЛЯТОР!$C$21,$E$2,$E$2-$E$3),IF(C41=КАЛЬКУЛЯТОР!$C$21,$I$9,$I$9-SUMIF($A$10:$A$369,"<="&$E$3,$H$10:$H$369)),0,0),"") ->  | F41: =IFERROR(-IPMT(C41/12,B41,IF(C41=КАЛЬКУЛЯТОР!$C$21,$E$2,$E$2-$E$3),IF(C41=КАЛЬКУЛЯТОР!$C$21,$I$9,$I$9-SUMIF($A$10:$A$369,"<="&$E$3,$H$10:$H$369)),0,0),"") ->  | G41: =IFERROR(-IPMT((C41-$P$1)/12,B41,IF(C41=КАЛЬКУЛЯТОР!$C$21,$E$2,$E$2-$E$3),IF(C41=КАЛЬКУЛЯТОР!$C$21,$I$9,$I$9-SUMIF($A$10:$A$369,"<="&$E$3,$H$10:$H$369)),0,0),"") ->  | H41: =IFERROR((-PPMT(C41/12,B41,IF(C41=КАЛЬКУЛЯТОР!$C$21,$E$2,$E$2-$E$3),IF(C41=КАЛЬКУЛЯТОР!$C$21,$I$9,$I$9-SUMIF($A$10:$A$369,"<="&$E$3,$H$10:$H$369)),0,0)),"") ->  | P41: FALSE
A42: 33 | B42: 33 | D42: =IF(A42<=$E$2,-PMT(C42/12,IF(C42=КАЛЬКУЛЯТОР!$C$21,$E$2,$E$2-$E$3),IF(C42=КАЛЬКУЛЯТОР!$C$21,$I$9,$I$9-SUMIF($A$10:$A$369,"<="&$E$3,$H$10:$H$369)),0,0),"") ->  | F42: =IFERROR(-IPMT(C42/12,B42,IF(C42=КАЛЬКУЛЯТОР!$C$21,$E$2,$E$2-$E$3),IF(C42=КАЛЬКУЛЯТОР!$C$21,$I$9,$I$9-SUMIF($A$10:$A$369,"<="&$E$3,$H$10:$H$369)),0,0),"") ->  | G42: =IFERROR(-IPMT((C42-$P$1)/12,B42,IF(C42=КАЛЬКУЛЯТОР!$C$21,$E$2,$E$2-$E$3),IF(C42=КАЛЬКУЛЯТОР!$C$21,$I$9,$I$9-SUMIF($A$10:$A$369,"<="&$E$3,$H$10:$H$369)),0,0),"") ->  | H42: =IFERROR((-PPMT(C42/12,B42,IF(C42=КАЛЬКУЛЯТОР!$C$21,$E$2,$E$2-$E$3),IF(C42=КАЛЬКУЛЯТОР!$C$21,$I$9,$I$9-SUMIF($A$10:$A$369,"<="&$E$3,$H$10:$H$369)),0,0)),"") ->  | P42: FALSE
A43: 34 | B43: 34 | D43: =IF(A43<=$E$2,-PMT(C43/12,IF(C43=КАЛЬКУЛЯТОР!$C$21,$E$2,$E$2-$E$3),IF(C43=КАЛЬКУЛЯТОР!$C$21,$I$9,$I$9-SUMIF($A$10:$A$369,"<="&$E$3,$H$10:$H$369)),0,0),"") ->  | F43: =IFERROR(-IPMT(C43/12,B43,IF(C43=КАЛЬКУЛЯТОР!$C$21,$E$2,$E$2-$E$3),IF(C43=КАЛЬКУЛЯТОР!$C$21,$I$9,$I$9-SUMIF($A$10:$A$369,"<="&$E$3,$H$10:$H$369)),0,0),"") ->  | G43: =IFERROR(-IPMT((C43-$P$1)/12,B43,IF(C43=КАЛЬКУЛЯТОР!$C$21,$E$2,$E$2-$E$3),IF(C43=КАЛЬКУЛЯТОР!$C$21,$I$9,$I$9-SUMIF($A$10:$A$369,"<="&$E$3,$H$10:$H$369)),0,0),"") ->  | H43: =IFERROR((-PPMT(C43/12,B43,IF(C43=КАЛЬКУЛЯТОР!$C$21,$E$2,$E$2-$E$3),IF(C43=КАЛЬКУЛЯТОР!$C$21,$I$9,$I$9-SUMIF($A$10:$A$369,"<="&$E$3,$H$10:$H$369)),0,0)),"") ->  | P43: FALSE
A44: 35 | B44: 35 | D44: =IF(A44<=$E$2,-PMT(C44/12,IF(C44=КАЛЬКУЛЯТОР!$C$21,$E$2,$E$2-$E$3),IF(C44=КАЛЬКУЛЯТОР!$C$21,$I$9,$I$9-SUMIF($A$10:$A$369,"<="&$E$3,$H$10:$H$369)),0,0),"") ->  | F44: =IFERROR(-IPMT(C44/12,B44,IF(C44=КАЛЬКУЛЯТОР!$C$21,$E$2,$E$2-$E$3),IF(C44=КАЛЬКУЛЯТОР!$C$21,$I$9,$I$9-SUMIF($A$10:$A$369,"<="&$E$3,$H$10:$H$369)),0,0),"") ->  | G44: =IFERROR(-IPMT((C44-$P$1)/12,B44,IF(C44=КАЛЬКУЛЯТОР!$C$21,$E$2,$E$2-$E$3),IF(C44=КАЛЬКУЛЯТОР!$C$21,$I$9,$I$9-SUMIF($A$10:$A$369,"<="&$E$3,$H$10:$H$369)),0,0),"") ->  | H44: =IFERROR((-PPMT(C44/12,B44,IF(C44=КАЛЬКУЛЯТОР!$C$21,$E$2,$E$2-$E$3),IF(C44=КАЛЬКУЛЯТОР!$C$21,$I$9,$I$9-SUMIF($A$10:$A$369,"<="&$E$3,$H$10:$H$369)),0,0)),"") ->  | P44: FALSE
A45: 36 | B45: 36 | D45: =IF(A45<=$E$2,-PMT(C45/12,IF(C45=КАЛЬКУЛЯТОР!$C$21,$E$2,$E$2-$E$3),IF(C45=КАЛЬКУЛЯТОР!$C$21,$I$9,$I$9-SUMIF($A$10:$A$369,"<="&$E$3,$H$10:$H$369)),0,0),"") ->  | F45: =IFERROR(-IPMT(C45/12,B45,IF(C45=КАЛЬКУЛЯТОР!$C$21,$E$2,$E$2-$E$3),IF(C45=КАЛЬКУЛЯТОР!$C$21,$I$9,$I$9-SUMIF($A$10:$A$369,"<="&$E$3,$H$10:$H$369)),0,0),"") ->  | G45: =IFERROR(-IPMT((C45-$P$1)/12,B45,IF(C45=КАЛЬКУЛЯТОР!$C$21,$E$2,$E$2-$E$3),IF(C45=КАЛЬКУЛЯТОР!$C$21,$I$9,$I$9-SUMIF($A$10:$A$369,"<="&$E$3,$H$10:$H$369)),0,0),"") ->  | H45: =IFERROR((-PPMT(C45/12,B45,IF(C45=КАЛЬКУЛЯТОР!$C$21,$E$2,$E$2-$E$3),IF(C45=КАЛЬКУЛЯТОР!$C$21,$I$9,$I$9-SUMIF($A$10:$A$369,"<="&$E$3,$H$10:$H$369)),0,0)),"") ->  | P45: FALSE
A46: 37 | B46: 37 | D46: =IF(A46<=$E$2,-PMT(C46/12,IF(C46=КАЛЬКУЛЯТОР!$C$21,$E$2,$E$2-$E$3),IF(C46=КАЛЬКУЛЯТОР!$C$21,$I$9,$I$9-SUMIF($A$10:$A$369,"<="&$E$3,$H$10:$H$369)),0,0)+E46,"") ->  | E46: =IF($E$2>$A45,(I45+SUM(F46:F57))*($K$4+$K$5),0) -> 0.00 | F46: =IFERROR(-IPMT(C46/12,B46,IF(C46=КАЛЬКУЛЯТОР!$C$21,$E$2,$E$2-$E$3),IF(C46=КАЛЬКУЛЯТОР!$C$21,$I$9,$I$9-SUMIF($A$10:$A$369,"<="&$E$3,$H$10:$H$369)),0,0),"") ->  | G46: =IFERROR(-IPMT((C46-$P$1)/12,B46,IF(C46=КАЛЬКУЛЯТОР!$C$21,$E$2,$E$2-$E$3),IF(C46=КАЛЬКУЛЯТОР!$C$21,$I$9,$I$9-SUMIF($A$10:$A$369,"<="&$E$3,$H$10:$H$369)),0,0),"") ->  | H46: =IFERROR((-PPMT(C46/12,B46,IF(C46=КАЛЬКУЛЯТОР!$C$21,$E$2,$E$2-$E$3),IF(C46=КАЛЬКУЛЯТОР!$C$21,$I$9,$I$9-SUMIF($A$10:$A$369,"<="&$E$3,$H$10:$H$369)),0,0)),"") ->  | K46: =PV($E$5/12,A46-1,0,-E46) -> 0.00 | P46: FALSE
A47: 38 | B47: 38 | D47: =IF(A47<=$E$2,-PMT(C47/12,IF(C47=КАЛЬКУЛЯТОР!$C$21,$E$2,$E$2-$E$3),IF(C47=КАЛЬКУЛЯТОР!$C$21,$I$9,$I$9-SUMIF($A$10:$A$369,"<="&$E$3,$H$10:$H$369)),0,0),"") ->  | F47: =IFERROR(-IPMT(C47/12,B47,IF(C47=КАЛЬКУЛЯТОР!$C$21,$E$2,$E$2-$E$3),IF(C47=КАЛЬКУЛЯТОР!$C$21,$I$9,$I$9-SUMIF($A$10:$A$369,"<="&$E$3,$H$10:$H$369)),0,0),"") ->  | G47: =IFERROR(-IPMT((C47-$P$1)/12,B47,IF(C47=КАЛЬКУЛЯТОР!$C$21,$E$2,$E$2-$E$3),IF(C47=КАЛЬКУЛЯТОР!$C$21,$I$9,$I$9-SUMIF($A$10:$A$369,"<="&$E$3,$H$10:$H$369)),0,0),"") ->  | H47: =IFERROR((-PPMT(C47/12,B47,IF(C47=КАЛЬКУЛЯТОР!$C$21,$E$2,$E$2-$E$3),IF(C47=КАЛЬКУЛЯТОР!$C$21,$I$9,$I$9-SUMIF($A$10:$A$369,"<="&$E$3,$H$10:$H$369)),0,0)),"") ->  | P47: FALSE
A48: 39 | B48: 39 | D48: =IF(A48<=$E$2,-PMT(C48/12,IF(C48=КАЛЬКУЛЯТОР!$C$21,$E$2,$E$2-$E$3),IF(C48=КАЛЬКУЛЯТОР!$C$21,$I$9,$I$9-SUMIF($A$10:$A$369,"<="&$E$3,$H$10:$H$369)),0,0),"") ->  | F48: =IFERROR(-IPMT(C48/12,B48,IF(C48=КАЛЬКУЛЯТОР!$C$21,$E$2,$E$2-$E$3),IF(C48=КАЛЬКУЛЯТОР!$C$21,$I$9,$I$9-SUMIF($A$10:$A$369,"<="&$E$3,$H$10:$H$369)),0,0),"") ->  | G48: =IFERROR(-IPMT((C48-$P$1)/12,B48,IF(C48=КАЛЬКУЛЯТОР!$C$21,$E$2,$E$2-$E$3),IF(C48=КАЛЬКУЛЯТОР!$C$21,$I$9,$I$9-SUMIF($A$10:$A$369,"<="&$E$3,$H$10:$H$369)),0,0),"") ->  | H48: =IFERROR((-PPMT(C48/12,B48,IF(C48=КАЛЬКУЛЯТОР!$C$21,$E$2,$E$2-$E$3),IF(C48=КАЛЬКУЛЯТОР!$C$21,$I$9,$I$9-SUMIF($A$10:$A$369,"<="&$E$3,$H$10:$H$369)),0,0)),"") ->  | P48: FALSE
A49: 40 | B49: 40 | D49: =IF(A49<=$E$2,-PMT(C49/12,IF(C49=КАЛЬКУЛЯТОР!$C$21,$E$2,$E$2-$E$3),IF(C49=КАЛЬКУЛЯТОР!$C$21,$I$9,$I$9-SUMIF($A$10:$A$369,"<="&$E$3,$H$10:$H$369)),0,0),"") ->  | F49: =IFERROR(-IPMT(C49/12,B49,IF(C49=КАЛЬКУЛЯТОР!$C$21,$E$2,$E$2-$E$3),IF(C49=КАЛЬКУЛЯТОР!$C$21,$I$9,$I$9-SUMIF($A$10:$A$369,"<="&$E$3,$H$10:$H$369)),0,0),"") ->  | G49: =IFERROR(-IPMT((C49-$P$1)/12,B49,IF(C49=КАЛЬКУЛЯТОР!$C$21,$E$2,$E$2-$E$3),IF(C49=КАЛЬКУЛЯТОР!$C$21,$I$9,$I$9-SUMIF($A$10:$A$369,"<="&$E$3,$H$10:$H$369)),0,0),"") ->  | H49: =IFERROR((-PPMT(C49/12,B49,IF(C49=КАЛЬКУЛЯТОР!$C$21,$E$2,$E$2-$E$3),IF(C49=КАЛЬКУЛЯТОР!$C$21,$I$9,$I$9-SUMIF($A$10:$A$369,"<="&$E$3,$H$10:$H$369)),0,0)),"") ->  | P49: FALSE
A50: 41 | B50: 41 | D50: =IF(A50<=$E$2,-PMT(C50/12,IF(C50=КАЛЬКУЛЯТОР!$C$21,$E$2,$E$2-$E$3),IF(C50=КАЛЬКУЛЯТОР!$C$21,$I$9,$I$9-SUMIF($A$10:$A$369,"<="&$E$3,$H$10:$H$369)),0,0),"") ->  | F50: =IFERROR(-IPMT(C50/12,B50,IF(C50=КАЛЬКУЛЯТОР!$C$21,$E$2,$E$2-$E$3),IF(C50=КАЛЬКУЛЯТОР!$C$21,$I$9,$I$9-SUMIF($A$10:$A$369,"<="&$E$3,$H$10:$H$369)),0,0),"") ->  | G50: =IFERROR(-IPMT((C50-$P$1)/12,B50,IF(C50=КАЛЬКУЛЯТОР!$C$21,$E$2,$E$2-$E$3),IF(C50=КАЛЬКУЛЯТОР!$C$21,$I$9,$I$9-SUMIF($A$10:$A$369,"<="&$E$3,$H$10:$H$369)),0,0),"") ->  | H50: =IFERROR((-PPMT(C50/12,B50,IF(C50=КАЛЬКУЛЯТОР!$C$21,$E$2,$E$2-$E$3),IF(C50=КАЛЬКУЛЯТОР!$C$21,$I$9,$I$9-SUMIF($A$10:$A$369,"<="&$E$3,$H$10:$H$369)),0,0)),"") ->  | P50: FALSE
A51: 42 | B51: 42 | D51: =IF(A51<=$E$2,-PMT(C51/12,IF(C51=КАЛЬКУЛЯТОР!$C$21,$E$2,$E$2-$E$3),IF(C51=КАЛЬКУЛЯТОР!$C$21,$I$9,$I$9-SUMIF($A$10:$A$369,"<="&$E$3,$H$10:$H$369)),0,0),"") ->  | F51: =IFERROR(-IPMT(C51/12,B51,IF(C51=КАЛЬКУЛЯТОР!$C$21,$E$2,$E$2-$E$3),IF(C51=КАЛЬКУЛЯТОР!$C$21,$I$9,$I$9-SUMIF($A$10:$A$369,"<="&$E$3,$H$10:$H$369)),0,0),"") ->  | G51: =IFERROR(-IPMT((C51-$P$1)/12,B51,IF(C51=КАЛЬКУЛЯТОР!$C$21,$E$2,$E$2-$E$3),IF(C51=КАЛЬКУЛЯТОР!$C$21,$I$9,$I$9-SUMIF($A$10:$A$369,"<="&$E$3,$H$10:$H$369)),0,0),"") ->  | H51: =IFERROR((-PPMT(C51/12,B51,IF(C51=КАЛЬКУЛЯТОР!$C$21,$E$2,$E$2-$E$3),IF(C51=КАЛЬКУЛЯТОР!$C$21,$I$9,$I$9-SUMIF($A$10:$A$369,"<="&$E$3,$H$10:$H$369)),0,0)),"") ->  | P51: FALSE
A52: 43 | B52: 43 | D52: =IF(A52<=$E$2,-PMT(C52/12,IF(C52=КАЛЬКУЛЯТОР!$C$21,$E$2,$E$2-$E$3),IF(C52=КАЛЬКУЛЯТОР!$C$21,$I$9,$I$9-SUMIF($A$10:$A$369,"<="&$E$3,$H$10:$H$369)),0,0),"") ->  | F52: =IFERROR(-IPMT(C52/12,B52,IF(C52=КАЛЬКУЛЯТОР!$C$21,$E$2,$E$2-$E$3),IF(C52=КАЛЬКУЛЯТОР!$C$21,$I$9,$I$9-SUMIF($A$10:$A$369,"<="&$E$3,$H$10:$H$369)),0,0),"") ->  | G52: =IFERROR(-IPMT((C52-$P$1)/12,B52,IF(C52=КАЛЬКУЛЯТОР!$C$21,$E$2,$E$2-$E$3),IF(C52=КАЛЬКУЛЯТОР!$C$21,$I$9,$I$9-SUMIF($A$10:$A$369,"<="&$E$3,$H$10:$H$369)),0,0),"") ->  | H52: =IFERROR((-PPMT(C52/12,B52,IF(C52=КАЛЬКУЛЯТОР!$C$21,$E$2,$E$2-$E$3),IF(C52=КАЛЬКУЛЯТОР!$C$21,$I$9,$I$9-SUMIF($A$10:$A$369,"<="&$E$3,$H$10:$H$369)),0,0)),"") ->  | P52: FALSE
A53: 44 | B53: 44 | D53: =IF(A53<=$E$2,-PMT(C53/12,IF(C53=КАЛЬКУЛЯТОР!$C$21,$E$2,$E$2-$E$3),IF(C53=КАЛЬКУЛЯТОР!$C$21,$I$9,$I$9-SUMIF($A$10:$A$369,"<="&$E$3,$H$10:$H$369)),0,0),"") ->  | F53: =IFERROR(-IPMT(C53/12,B53,IF(C53=КАЛЬКУЛЯТОР!$C$21,$E$2,$E$2-$E$3),IF(C53=КАЛЬКУЛЯТОР!$C$21,$I$9,$I$9-SUMIF($A$10:$A$369,"<="&$E$3,$H$10:$H$369)),0,0),"") ->  | G53: =IFERROR(-IPMT((C53-$P$1)/12,B53,IF(C53=КАЛЬКУЛЯТОР!$C$21,$E$2,$E$2-$E$3),IF(C53=КАЛЬКУЛЯТОР!$C$21,$I$9,$I$9-SUMIF($A$10:$A$369,"<="&$E$3,$H$10:$H$369)),0,0),"") ->  | H53: =IFERROR((-PPMT(C53/12,B53,IF(C53=КАЛЬКУЛЯТОР!$C$21,$E$2,$E$2-$E$3),IF(C53=КАЛЬКУЛЯТОР!$C$21,$I$9,$I$9-SUMIF($A$10:$A$369,"<="&$E$3,$H$10:$H$369)),0,0)),"") ->  | P53: FALSE
A54: 45 | B54: 45 | D54: =IF(A54<=$E$2,-PMT(C54/12,IF(C54=КАЛЬКУЛЯТОР!$C$21,$E$2,$E$2-$E$3),IF(C54=КАЛЬКУЛЯТОР!$C$21,$I$9,$I$9-SUMIF($A$10:$A$369,"<="&$E$3,$H$10:$H$369)),0,0),"") ->  | F54: =IFERROR(-IPMT(C54/12,B54,IF(C54=КАЛЬКУЛЯТОР!$C$21,$E$2,$E$2-$E$3),IF(C54=КАЛЬКУЛЯТОР!$C$21,$I$9,$I$9-SUMIF($A$10:$A$369,"<="&$E$3,$H$10:$H$369)),0,0),"") ->  | G54: =IFERROR(-IPMT((C54-$P$1)/12,B54,IF(C54=КАЛЬКУЛЯТОР!$C$21,$E$2,$E$2-$E$3),IF(C54=КАЛЬКУЛЯТОР!$C$21,$I$9,$I$9-SUMIF($A$10:$A$369,"<="&$E$3,$H$10:$H$369)),0,0),"") ->  | H54: =IFERROR((-PPMT(C54/12,B54,IF(C54=КАЛЬКУЛЯТОР!$C$21,$E$2,$E$2-$E$3),IF(C54=КАЛЬКУЛЯТОР!$C$21,$I$9,$I$9-SUMIF($A$10:$A$369,"<="&$E$3,$H$10:$H$369)),0,0)),"") ->  | P54: FALSE
A55: 46 | B55: 46 | D55: =IF(A55<=$E$2,-PMT(C55/12,IF(C55=КАЛЬКУЛЯТОР!$C$21,$E$2,$E$2-$E$3),IF(C55=КАЛЬКУЛЯТОР!$C$21,$I$9,$I$9-SUMIF($A$10:$A$369,"<="&$E$3,$H$10:$H$369)),0,0),"") ->  | F55: =IFERROR(-IPMT(C55/12,B55,IF(C55=КАЛЬКУЛЯТОР!$C$21,$E$2,$E$2-$E$3),IF(C55=КАЛЬКУЛЯТОР!$C$21,$I$9,$I$9-SUMIF($A$10:$A$369,"<="&$E$3,$H$10:$H$369)),0,0),"") ->  | G55: =IFERROR(-IPMT((C55-$P$1)/12,B55,IF(C55=КАЛЬКУЛЯТОР!$C$21,$E$2,$E$2-$E$3),IF(C55=КАЛЬКУЛЯТОР!$C$21,$I$9,$I$9-SUMIF($A$10:$A$369,"<="&$E$3,$H$10:$H$369)),0,0),"") ->  | H55: =IFERROR((-PPMT(C55/12,B55,IF(C55=КАЛЬКУЛЯТОР!$C$21,$E$2,$E$2-$E$3),IF(C55=КАЛЬКУЛЯТОР!$C$21,$I$9,$I$9-SUMIF($A$10:$A$369,"<="&$E$3,$H$10:$H$369)),0,0)),"") ->  | P55: FALSE
A56: 47 | B56: 47 | D56: =IF(A56<=$E$2,-PMT(C56/12,IF(C56=КАЛЬКУЛЯТОР!$C$21,$E$2,$E$2-$E$3),IF(C56=КАЛЬКУЛЯТОР!$C$21,$I$9,$I$9-SUMIF($A$10:$A$369,"<="&$E$3,$H$10:$H$369)),0,0),"") ->  | F56: =IFERROR(-IPMT(C56/12,B56,IF(C56=КАЛЬКУЛЯТОР!$C$21,$E$2,$E$2-$E$3),IF(C56=КАЛЬКУЛЯТОР!$C$21,$I$9,$I$9-SUMIF($A$10:$A$369,"<="&$E$3,$H$10:$H$369)),0,0),"") ->  | G56: =IFERROR(-IPMT((C56-$P$1)/12,B56,IF(C56=КАЛЬКУЛЯТОР!$C$21,$E$2,$E$2-$E$3),IF(C56=КАЛЬКУЛЯТОР!$C$21,$I$9,$I$9-SUMIF($A$10:$A$369,"<="&$E$3,$H$10:$H$369)),0,0),"") ->  | H56: =IFERROR((-PPMT(C56/12,B56,IF(C56=КАЛЬКУЛЯТОР!$C$21,$E$2,$E$2-$E$3),IF(C56=КАЛЬКУЛЯТОР!$C$21,$I$9,$I$9-SUMIF($A$10:$A$369,"<="&$E$3,$H$10:$H$369)),0,0)),"") ->  | P56: FALSE
A57: 48 | B57: 48 | D57: =IF(A57<=$E$2,-PMT(C57/12,IF(C57=КАЛЬКУЛЯТОР!$C$21,$E$2,$E$2-$E$3),IF(C57=КАЛЬКУЛЯТОР!$C$21,$I$9,$I$9-SUMIF($A$10:$A$369,"<="&$E$3,$H$10:$H$369)),0,0),"") ->  | F57: =IFERROR(-IPMT(C57/12,B57,IF(C57=КАЛЬКУЛЯТОР!$C$21,$E$2,$E$2-$E$3),IF(C57=КАЛЬКУЛЯТОР!$C$21,$I$9,$I$9-SUMIF($A$10:$A$369,"<="&$E$3,$H$10:$H$369)),0,0),"") ->  | G57: =IFERROR(-IPMT((C57-$P$1)/12,B57,IF(C57=КАЛЬКУЛЯТОР!$C$21,$E$2,$E$2-$E$3),IF(C57=КАЛЬКУЛЯТОР!$C$21,$I$9,$I$9-SUMIF($A$10:$A$369,"<="&$E$3,$H$10:$H$369)),0,0),"") ->  | H57: =IFERROR((-PPMT(C57/12,B57,IF(C57=КАЛЬКУЛЯТОР!$C$21,$E$2,$E$2-$E$3),IF(C57=КАЛЬКУЛЯТОР!$C$21,$I$9,$I$9-SUMIF($A$10:$A$369,"<="&$E$3,$H$10:$H$369)),0,0)),"") ->  | P57: FALSE
A58: 49 | B58: 49 | D58: =IF(A58<=$E$2,-PMT(C58/12,IF(C58=КАЛЬКУЛЯТОР!$C$21,$E$2,$E$2-$E$3),IF(C58=КАЛЬКУЛЯТОР!$C$21,$I$9,$I$9-SUMIF($A$10:$A$369,"<="&$E$3,$H$10:$H$369)),0,0)+E58,"") ->  | E58: =IF($E$2>$A57,(I57+SUM(F58:F69))*($K$4+$K$5),0) -> 0.00 | F58: =IFERROR(-IPMT(C58/12,B58,IF(C58=КАЛЬКУЛЯТОР!$C$21,$E$2,$E$2-$E$3),IF(C58=КАЛЬКУЛЯТОР!$C$21,$I$9,$I$9-SUMIF($A$10:$A$369,"<="&$E$3,$H$10:$H$369)),0,0),"") ->  | G58: =IFERROR(-IPMT((C58-$P$1)/12,B58,IF(C58=КАЛЬКУЛЯТОР!$C$21,$E$2,$E$2-$E$3),IF(C58=КАЛЬКУЛЯТОР!$C$21,$I$9,$I$9-SUMIF($A$10:$A$369,"<="&$E$3,$H$10:$H$369)),0,0),"") ->  | H58: =IFERROR((-PPMT(C58/12,B58,IF(C58=КАЛЬКУЛЯТОР!$C$21,$E$2,$E$2-$E$3),IF(C58=КАЛЬКУЛЯТОР!$C$21,$I$9,$I$9-SUMIF($A$10:$A$369,"<="&$E$3,$H$10:$H$369)),0,0)),"") ->  | K58: =PV($E$5/12,A58-1,0,-E58) -> 0.00 | P58: FALSE
A59: 50 | B59: 50 | D59: =IF(A59<=$E$2,-PMT(C59/12,IF(C59=КАЛЬКУЛЯТОР!$C$21,$E$2,$E$2-$E$3),IF(C59=КАЛЬКУЛЯТОР!$C$21,$I$9,$I$9-SUMIF($A$10:$A$369,"<="&$E$3,$H$10:$H$369)),0,0),"") ->  | F59: =IFERROR(-IPMT(C59/12,B59,IF(C59=КАЛЬКУЛЯТОР!$C$21,$E$2,$E$2-$E$3),IF(C59=КАЛЬКУЛЯТОР!$C$21,$I$9,$I$9-SUMIF($A$10:$A$369,"<="&$E$3,$H$10:$H$369)),0,0),"") ->  | G59: =IFERROR(-IPMT((C59-$P$1)/12,B59,IF(C59=КАЛЬКУЛЯТОР!$C$21,$E$2,$E$2-$E$3),IF(C59=КАЛЬКУЛЯТОР!$C$21,$I$9,$I$9-SUMIF($A$10:$A$369,"<="&$E$3,$H$10:$H$369)),0,0),"") ->  | H59: =IFERROR((-PPMT(C59/12,B59,IF(C59=КАЛЬКУЛЯТОР!$C$21,$E$2,$E$2-$E$3),IF(C59=КАЛЬКУЛЯТОР!$C$21,$I$9,$I$9-SUMIF($A$10:$A$369,"<="&$E$3,$H$10:$H$369)),0,0)),"") ->  | P59: FALSE
A60: 51 | B60: 51 | D60: =IF(A60<=$E$2,-PMT(C60/12,IF(C60=КАЛЬКУЛЯТОР!$C$21,$E$2,$E$2-$E$3),IF(C60=КАЛЬКУЛЯТОР!$C$21,$I$9,$I$9-SUMIF($A$10:$A$369,"<="&$E$3,$H$10:$H$369)),0,0),"") ->  | F60: =IFERROR(-IPMT(C60/12,B60,IF(C60=КАЛЬКУЛЯТОР!$C$21,$E$2,$E$2-$E$3),IF(C60=КАЛЬКУЛЯТОР!$C$21,$I$9,$I$9-SUMIF($A$10:$A$369,"<="&$E$3,$H$10:$H$369)),0,0),"") ->  | G60: =IFERROR(-IPMT((C60-$P$1)/12,B60,IF(C60=КАЛЬКУЛЯТОР!$C$21,$E$2,$E$2-$E$3),IF(C60=КАЛЬКУЛЯТОР!$C$21,$I$9,$I$9-SUMIF($A$10:$A$369,"<="&$E$3,$H$10:$H$369)),0,0),"") ->  | H60: =IFERROR((-PPMT(C60/12,B60,IF(C60=КАЛЬКУЛЯТОР!$C$21,$E$2,$E$2-$E$3),IF(C60=КАЛЬКУЛЯТОР!$C$21,$I$9,$I$9-SUMIF($A$10:$A$369,"<="&$E$3,$H$10:$H$369)),0,0)),"") ->  | P60: FALSE
A61: 52 | B61: 52 | D61: =IF(A61<=$E$2,-PMT(C61/12,IF(C61=КАЛЬКУЛЯТОР!$C$21,$E$2,$E$2-$E$3),IF(C61=КАЛЬКУЛЯТОР!$C$21,$I$9,$I$9-SUMIF($A$10:$A$369,"<="&$E$3,$H$10:$H$369)),0,0),"") ->  | F61: =IFERROR(-IPMT(C61/12,B61,IF(C61=КАЛЬКУЛЯТОР!$C$21,$E$2,$E$2-$E$3),IF(C61=КАЛЬКУЛЯТОР!$C$21,$I$9,$I$9-SUMIF($A$10:$A$369,"<="&$E$3,$H$10:$H$369)),0,0),"") ->  | G61: =IFERROR(-IPMT((C61-$P$1)/12,B61,IF(C61=КАЛЬКУЛЯТОР!$C$21,$E$2,$E$2-$E$3),IF(C61=КАЛЬКУЛЯТОР!$C$21,$I$9,$I$9-SUMIF($A$10:$A$369,"<="&$E$3,$H$10:$H$369)),0,0),"") ->  | H61: =IFERROR((-PPMT(C61/12,B61,IF(C61=КАЛЬКУЛЯТОР!$C$21,$E$2,$E$2-$E$3),IF(C61=КАЛЬКУЛЯТОР!$C$21,$I$9,$I$9-SUMIF($A$10:$A$369,"<="&$E$3,$H$10:$H$369)),0,0)),"") ->  | P61: FALSE
A62: 53 | B62: 53 | D62: =IF(A62<=$E$2,-PMT(C62/12,IF(C62=КАЛЬКУЛЯТОР!$C$21,$E$2,$E$2-$E$3),IF(C62=КАЛЬКУЛЯТОР!$C$21,$I$9,$I$9-SUMIF($A$10:$A$369,"<="&$E$3,$H$10:$H$369)),0,0),"") ->  | F62: =IFERROR(-IPMT(C62/12,B62,IF(C62=КАЛЬКУЛЯТОР!$C$21,$E$2,$E$2-$E$3),IF(C62=КАЛЬКУЛЯТОР!$C$21,$I$9,$I$9-SUMIF($A$10:$A$369,"<="&$E$3,$H$10:$H$369)),0,0),"") ->  | G62: =IFERROR(-IPMT((C62-$P$1)/12,B62,IF(C62=КАЛЬКУЛЯТОР!$C$21,$E$2,$E$2-$E$3),IF(C62=КАЛЬКУЛЯТОР!$C$21,$I$9,$I$9-SUMIF($A$10:$A$369,"<="&$E$3,$H$10:$H$369)),0,0),"") ->  | H62: =IFERROR((-PPMT(C62/12,B62,IF(C62=КАЛЬКУЛЯТОР!$C$21,$E$2,$E$2-$E$3),IF(C62=КАЛЬКУЛЯТОР!$C$21,$I$9,$I$9-SUMIF($A$10:$A$369,"<="&$E$3,$H$10:$H$369)),0,0)),"") ->  | P62: FALSE
A63: 54 | B63: 54 | D63: =IF(A63<=$E$2,-PMT(C63/12,IF(C63=КАЛЬКУЛЯТОР!$C$21,$E$2,$E$2-$E$3),IF(C63=КАЛЬКУЛЯТОР!$C$21,$I$9,$I$9-SUMIF($A$10:$A$369,"<="&$E$3,$H$10:$H$369)),0,0),"") ->  | F63: =IFERROR(-IPMT(C63/12,B63,IF(C63=КАЛЬКУЛЯТОР!$C$21,$E$2,$E$2-$E$3),IF(C63=КАЛЬКУЛЯТОР!$C$21,$I$9,$I$9-SUMIF($A$10:$A$369,"<="&$E$3,$H$10:$H$369)),0,0),"") ->  | G63: =IFERROR(-IPMT((C63-$P$1)/12,B63,IF(C63=КАЛЬКУЛЯТОР!$C$21,$E$2,$E$2-$E$3),IF(C63=КАЛЬКУЛЯТОР!$C$21,$I$9,$I$9-SUMIF($A$10:$A$369,"<="&$E$3,$H$10:$H$369)),0,0),"") ->  | H63: =IFERROR((-PPMT(C63/12,B63,IF(C63=КАЛЬКУЛЯТОР!$C$21,$E$2,$E$2-$E$3),IF(C63=КАЛЬКУЛЯТОР!$C$21,$I$9,$I$9-SUMIF($A$10:$A$369,"<="&$E$3,$H$10:$H$369)),0,0)),"") ->  | P63: FALSE
A64: 55 | B64: 55 | D64: =IF(A64<=$E$2,-PMT(C64/12,IF(C64=КАЛЬКУЛЯТОР!$C$21,$E$2,$E$2-$E$3),IF(C64=КАЛЬКУЛЯТОР!$C$21,$I$9,$I$9-SUMIF($A$10:$A$369,"<="&$E$3,$H$10:$H$369)),0,0),"") ->  | F64: =IFERROR(-IPMT(C64/12,B64,IF(C64=КАЛЬКУЛЯТОР!$C$21,$E$2,$E$2-$E$3),IF(C64=КАЛЬКУЛЯТОР!$C$21,$I$9,$I$9-SUMIF($A$10:$A$369,"<="&$E$3,$H$10:$H$369)),0,0),"") ->  | G64: =IFERROR(-IPMT((C64-$P$1)/12,B64,IF(C64=КАЛЬКУЛЯТОР!$C$21,$E$2,$E$2-$E$3),IF(C64=КАЛЬКУЛЯТОР!$C$21,$I$9,$I$9-SUMIF($A$10:$A$369,"<="&$E$3,$H$10:$H$369)),0,0),"") ->  | H64: =IFERROR((-PPMT(C64/12,B64,IF(C64=КАЛЬКУЛЯТОР!$C$21,$E$2,$E$2-$E$3),IF(C64=КАЛЬКУЛЯТОР!$C$21,$I$9,$I$9-SUMIF($A$10:$A$369,"<="&$E$3,$H$10:$H$369)),0,0)),"") ->  | P64: FALSE
A65: 56 | B65: 56 | D65: =IF(A65<=$E$2,-PMT(C65/12,IF(C65=КАЛЬКУЛЯТОР!$C$21,$E$2,$E$2-$E$3),IF(C65=КАЛЬКУЛЯТОР!$C$21,$I$9,$I$9-SUMIF($A$10:$A$369,"<="&$E$3,$H$10:$H$369)),0,0),"") ->  | F65: =IFERROR(-IPMT(C65/12,B65,IF(C65=КАЛЬКУЛЯТОР!$C$21,$E$2,$E$2-$E$3),IF(C65=КАЛЬКУЛЯТОР!$C$21,$I$9,$I$9-SUMIF($A$10:$A$369,"<="&$E$3,$H$10:$H$369)),0,0),"") ->  | G65: =IFERROR(-IPMT((C65-$P$1)/12,B65,IF(C65=КАЛЬКУЛЯТОР!$C$21,$E$2,$E$2-$E$3),IF(C65=КАЛЬКУЛЯТОР!$C$21,$I$9,$I$9-SUMIF($A$10:$A$369,"<="&$E$3,$H$10:$H$369)),0,0),"") ->  | H65: =IFERROR((-PPMT(C65/12,B65,IF(C65=КАЛЬКУЛЯТОР!$C$21,$E$2,$E$2-$E$3),IF(C65=КАЛЬКУЛЯТОР!$C$21,$I$9,$I$9-SUMIF($A$10:$A$369,"<="&$E$3,$H$10:$H$369)),0,0)),"") ->  | P65: FALSE
A66: 57 | B66: 57 | D66: =IF(A66<=$E$2,-PMT(C66/12,IF(C66=КАЛЬКУЛЯТОР!$C$21,$E$2,$E$2-$E$3),IF(C66=КАЛЬКУЛЯТОР!$C$21,$I$9,$I$9-SUMIF($A$10:$A$369,"<="&$E$3,$H$10:$H$369)),0,0),"") ->  | F66: =IFERROR(-IPMT(C66/12,B66,IF(C66=КАЛЬКУЛЯТОР!$C$21,$E$2,$E$2-$E$3),IF(C66=КАЛЬКУЛЯТОР!$C$21,$I$9,$I$9-SUMIF($A$10:$A$369,"<="&$E$3,$H$10:$H$369)),0,0),"") ->  | G66: =IFERROR(-IPMT((C66-$P$1)/12,B66,IF(C66=КАЛЬКУЛЯТОР!$C$21,$E$2,$E$2-$E$3),IF(C66=КАЛЬКУЛЯТОР!$C$21,$I$9,$I$9-SUMIF($A$10:$A$369,"<="&$E$3,$H$10:$H$369)),0,0),"") ->  | H66: =IFERROR((-PPMT(C66/12,B66,IF(C66=КАЛЬКУЛЯТОР!$C$21,$E$2,$E$2-$E$3),IF(C66=КАЛЬКУЛЯТОР!$C$21,$I$9,$I$9-SUMIF($A$10:$A$369,"<="&$E$3,$H$10:$H$369)),0,0)),"") ->  | P66: FALSE
A67: 58 | B67: 58 | D67: =IF(A67<=$E$2,-PMT(C67/12,IF(C67=КАЛЬКУЛЯТОР!$C$21,$E$2,$E$2-$E$3),IF(C67=КАЛЬКУЛЯТОР!$C$21,$I$9,$I$9-SUMIF($A$10:$A$369,"<="&$E$3,$H$10:$H$369)),0,0),"") ->  | F67: =IFERROR(-IPMT(C67/12,B67,IF(C67=КАЛЬКУЛЯТОР!$C$21,$E$2,$E$2-$E$3),IF(C67=КАЛЬКУЛЯТОР!$C$21,$I$9,$I$9-SUMIF($A$10:$A$369,"<="&$E$3,$H$10:$H$369)),0,0),"") ->  | G67: =IFERROR(-IPMT((C67-$P$1)/12,B67,IF(C67=КАЛЬКУЛЯТОР!$C$21,$E$2,$E$2-$E$3),IF(C67=КАЛЬКУЛЯТОР!$C$21,$I$9,$I$9-SUMIF($A$10:$A$369,"<="&$E$3,$H$10:$H$369)),0,0),"") ->  | H67: =IFERROR((-PPMT(C67/12,B67,IF(C67=КАЛЬКУЛЯТОР!$C$21,$E$2,$E$2-$E$3),IF(C67=КАЛЬКУЛЯТОР!$C$21,$I$9,$I$9-SUMIF($A$10:$A$369,"<="&$E$3,$H$10:$H$369)),0,0)),"") ->  | P67: FALSE
A68: 59 | B68: 59 | D68: =IF(A68<=$E$2,-PMT(C68/12,IF(C68=КАЛЬКУЛЯТОР!$C$21,$E$2,$E$2-$E$3),IF(C68=КАЛЬКУЛЯТОР!$C$21,$I$9,$I$9-SUMIF($A$10:$A$369,"<="&$E$3,$H$10:$H$369)),0,0),"") ->  | F68: =IFERROR(-IPMT(C68/12,B68,IF(C68=КАЛЬКУЛЯТОР!$C$21,$E$2,$E$2-$E$3),IF(C68=КАЛЬКУЛЯТОР!$C$21,$I$9,$I$9-SUMIF($A$10:$A$369,"<="&$E$3,$H$10:$H$369)),0,0),"") ->  | G68: =IFERROR(-IPMT((C68-$P$1)/12,B68,IF(C68=КАЛЬКУЛЯТОР!$C$21,$E$2,$E$2-$E$3),IF(C68=КАЛЬКУЛЯТОР!$C$21,$I$9,$I$9-SUMIF($A$10:$A$369,"<="&$E$3,$H$10:$H$369)),0,0),"") ->  | H68: =IFERROR((-PPMT(C68/12,B68,IF(C68=КАЛЬКУЛЯТОР!$C$21,$E$2,$E$2-$E$3),IF(C68=КАЛЬКУЛЯТОР!$C$21,$I$9,$I$9-SUMIF($A$10:$A$369,"<="&$E$3,$H$10:$H$369)),0,0)),"") ->  | P68: FALSE
A69: 60 | B69: 60 | D69: =IF(A69<=$E$2,-PMT(C69/12,IF(C69=КАЛЬКУЛЯТОР!$C$21,$E$2,$E$2-$E$3),IF(C69=КАЛЬКУЛЯТОР!$C$21,$I$9,$I$9-SUMIF($A$10:$A$369,"<="&$E$3,$H$10:$H$369)),0,0),"") ->  | F69: =IFERROR(-IPMT(C69/12,B69,IF(C69=КАЛЬКУЛЯТОР!$C$21,$E$2,$E$2-$E$3),IF(C69=КАЛЬКУЛЯТОР!$C$21,$I$9,$I$9-SUMIF($A$10:$A$369,"<="&$E$3,$H$10:$H$369)),0,0),"") ->  | G69: =IFERROR(-IPMT((C69-$P$1)/12,B69,IF(C69=КАЛЬКУЛЯТОР!$C$21,$E$2,$E$2-$E$3),IF(C69=КАЛЬКУЛЯТОР!$C$21,$I$9,$I$9-SUMIF($A$10:$A$369,"<="&$E$3,$H$10:$H$369)),0,0),"") ->  | H69: =IFERROR((-PPMT(C69/12,B69,IF(C69=КАЛЬКУЛЯТОР!$C$21,$E$2,$E$2-$E$3),IF(C69=КАЛЬКУЛЯТОР!$C$21,$I$9,$I$9-SUMIF($A$10:$A$369,"<="&$E$3,$H$10:$H$369)),0,0)),"") ->  | P69: FALSE
A70: 61 | B70: 61 | D70: =IF(A70<=$E$2,-PMT(C70/12,IF(C70=КАЛЬКУЛЯТОР!$C$21,$E$2,$E$2-$E$3),IF(C70=КАЛЬКУЛЯТОР!$C$21,$I$9,$I$9-SUMIF($A$10:$A$369,"<="&$E$3,$H$10:$H$369)),0,0)+E70,"") ->  | E70: =IF($E$2>$A69,(I69+SUM(F70:F81))*($K$4+$K$5),0) -> 0.00 | F70: =IFERROR(-IPMT(C70/12,B70,IF(C70=КАЛЬКУЛЯТОР!$C$21,$E$2,$E$2-$E$3),IF(C70=КАЛЬКУЛЯТОР!$C$21,$I$9,$I$9-SUMIF($A$10:$A$369,"<="&$E$3,$H$10:$H$369)),0,0),"") ->  | G70: =IFERROR(-IPMT((C70-$P$1)/12,B70,IF(C70=КАЛЬКУЛЯТОР!$C$21,$E$2,$E$2-$E$3),IF(C70=КАЛЬКУЛЯТОР!$C$21,$I$9,$I$9-SUMIF($A$10:$A$369,"<="&$E$3,$H$10:$H$369)),0,0),"") ->  | H70: =IFERROR((-PPMT(C70/12,B70,IF(C70=КАЛЬКУЛЯТОР!$C$21,$E$2,$E$2-$E$3),IF(C70=КАЛЬКУЛЯТОР!$C$21,$I$9,$I$9-SUMIF($A$10:$A$369,"<="&$E$3,$H$10:$H$369)),0,0)),"") ->  | K70: =PV($E$5/12,A70-1,0,-E70) -> 0.00 | P70: FALSE
A71: 62 | B71: 62 | D71: =IF(A71<=$E$2,-PMT(C71/12,IF(C71=КАЛЬКУЛЯТОР!$C$21,$E$2,$E$2-$E$3),IF(C71=КАЛЬКУЛЯТОР!$C$21,$I$9,$I$9-SUMIF($A$10:$A$369,"<="&$E$3,$H$10:$H$369)),0,0),"") ->  | F71: =IFERROR(-IPMT(C71/12,B71,IF(C71=КАЛЬКУЛЯТОР!$C$21,$E$2,$E$2-$E$3),IF(C71=КАЛЬКУЛЯТОР!$C$21,$I$9,$I$9-SUMIF($A$10:$A$369,"<="&$E$3,$H$10:$H$369)),0,0),"") ->  | G71: =IFERROR(-IPMT((C71-$P$1)/12,B71,IF(C71=КАЛЬКУЛЯТОР!$C$21,$E$2,$E$2-$E$3),IF(C71=КАЛЬКУЛЯТОР!$C$21,$I$9,$I$9-SUMIF($A$10:$A$369,"<="&$E$3,$H$10:$H$369)),0,0),"") ->  | H71: =IFERROR((-PPMT(C71/12,B71,IF(C71=КАЛЬКУЛЯТОР!$C$21,$E$2,$E$2-$E$3),IF(C71=КАЛЬКУЛЯТОР!$C$21,$I$9,$I$9-SUMIF($A$10:$A$369,"<="&$E$3,$H$10:$H$369)),0,0)),"") ->  | P71: FALSE
A72: 63 | B72: 63 | D72: =IF(A72<=$E$2,-PMT(C72/12,IF(C72=КАЛЬКУЛЯТОР!$C$21,$E$2,$E$2-$E$3),IF(C72=КАЛЬКУЛЯТОР!$C$21,$I$9,$I$9-SUMIF($A$10:$A$369,"<="&$E$3,$H$10:$H$369)),0,0),"") ->  | F72: =IFERROR(-IPMT(C72/12,B72,IF(C72=КАЛЬКУЛЯТОР!$C$21,$E$2,$E$2-$E$3),IF(C72=КАЛЬКУЛЯТОР!$C$21,$I$9,$I$9-SUMIF($A$10:$A$369,"<="&$E$3,$H$10:$H$369)),0,0),"") ->  | G72: =IFERROR(-IPMT((C72-$P$1)/12,B72,IF(C72=КАЛЬКУЛЯТОР!$C$21,$E$2,$E$2-$E$3),IF(C72=КАЛЬКУЛЯТОР!$C$21,$I$9,$I$9-SUMIF($A$10:$A$369,"<="&$E$3,$H$10:$H$369)),0,0),"") ->  | H72: =IFERROR((-PPMT(C72/12,B72,IF(C72=КАЛЬКУЛЯТОР!$C$21,$E$2,$E$2-$E$3),IF(C72=КАЛЬКУЛЯТОР!$C$21,$I$9,$I$9-SUMIF($A$10:$A$369,"<="&$E$3,$H$10:$H$369)),0,0)),"") ->  | P72: FALSE
A73: 64 | B73: 64 | D73: =IF(A73<=$E$2,-PMT(C73/12,IF(C73=КАЛЬКУЛЯТОР!$C$21,$E$2,$E$2-$E$3),IF(C73=КАЛЬКУЛЯТОР!$C$21,$I$9,$I$9-SUMIF($A$10:$A$369,"<="&$E$3,$H$10:$H$369)),0,0),"") ->  | F73: =IFERROR(-IPMT(C73/12,B73,IF(C73=КАЛЬКУЛЯТОР!$C$21,$E$2,$E$2-$E$3),IF(C73=КАЛЬКУЛЯТОР!$C$21,$I$9,$I$9-SUMIF($A$10:$A$369,"<="&$E$3,$H$10:$H$369)),0,0),"") ->  | G73: =IFERROR(-IPMT((C73-$P$1)/12,B73,IF(C73=КАЛЬКУЛЯТОР!$C$21,$E$2,$E$2-$E$3),IF(C73=КАЛЬКУЛЯТОР!$C$21,$I$9,$I$9-SUMIF($A$10:$A$369,"<="&$E$3,$H$10:$H$369)),0,0),"") ->  | H73: =IFERROR((-PPMT(C73/12,B73,IF(C73=КАЛЬКУЛЯТОР!$C$21,$E$2,$E$2-$E$3),IF(C73=КАЛЬКУЛЯТОР!$C$21,$I$9,$I$9-SUMIF($A$10:$A$369,"<="&$E$3,$H$10:$H$369)),0,0)),"") ->  | P73: FALSE
A74: 65 | B74: 65 | D74: =IF(A74<=$E$2,-PMT(C74/12,IF(C74=КАЛЬКУЛЯТОР!$C$21,$E$2,$E$2-$E$3),IF(C74=КАЛЬКУЛЯТОР!$C$21,$I$9,$I$9-SUMIF($A$10:$A$369,"<="&$E$3,$H$10:$H$369)),0,0),"") ->  | F74: =IFERROR(-IPMT(C74/12,B74,IF(C74=КАЛЬКУЛЯТОР!$C$21,$E$2,$E$2-$E$3),IF(C74=КАЛЬКУЛЯТОР!$C$21,$I$9,$I$9-SUMIF($A$10:$A$369,"<="&$E$3,$H$10:$H$369)),0,0),"") ->  | G74: =IFERROR(-IPMT((C74-$P$1)/12,B74,IF(C74=КАЛЬКУЛЯТОР!$C$21,$E$2,$E$2-$E$3),IF(C74=КАЛЬКУЛЯТОР!$C$21,$I$9,$I$9-SUMIF($A$10:$A$369,"<="&$E$3,$H$10:$H$369)),0,0),"") ->  | H74: =IFERROR((-PPMT(C74/12,B74,IF(C74=КАЛЬКУЛЯТОР!$C$21,$E$2,$E$2-$E$3),IF(C74=КАЛЬКУЛЯТОР!$C$21,$I$9,$I$9-SUMIF($A$10:$A$369,"<="&$E$3,$H$10:$H$369)),0,0)),"") ->  | I74: =IFERROR(I73-H74,"") ->  | J74: =PV($E$5/12,A74-1,0,-D74) ->  | L74: =PV($E$5/12,A74-1,0,-F74) ->  | M74: =PV($E$5/12,A74-1,0,-G74) ->  | N74: =PV($E$5/12,A74-1,0,-H74) ->  | O74: =O73-N74 ->  | P74: =AND(A74<=$E$3) -> FALSE
A75: 66 | B75: =IF(P75=$P$10,B74+1,A75-$E$3) -> 66 | C75: =IF(A75<=$E$2,$E$4,"") ->  | D75: =IF(A75<=$E$2,-PMT(C75/12,IF(C75=КАЛЬКУЛЯТОР!$C$21,$E$2,$E$2-$E$3),IF(C75=КАЛЬКУЛЯТОР!$C$21,$I$9,$I$9-SUMIF($A$10:$A$369,"<="&$E$3,$H$10:$H$369)),0,0),"") ->  | F75: =IFERROR(-IPMT(C75/12,B75,IF(C75=КАЛЬКУЛЯТОР!$C$21,$E$2,$E$2-$E$3),IF(C75=КАЛЬКУЛЯТОР!$C$21,$I$9,$I$9-SUMIF($A$10:$A$369,"<="&$E$3,$H$10:$H$369)),0,0),"") ->  | G75: =IFERROR(-IPMT((C75-$P$1)/12,B75,IF(C75=КАЛЬКУЛЯТОР!$C$21,$E$2,$E$2-$E$3),IF(C75=КАЛЬКУЛЯТОР!$C$21,$I$9,$I$9-SUMIF($A$10:$A$369,"<="&$E$3,$H$10:$H$369)),0,0),"") ->  | H75: =IFERROR((-PPMT(C75/12,B75,IF(C75=КАЛЬКУЛЯТОР!$C$21,$E$2,$E$2-$E$3),IF(C75=КАЛЬКУЛЯТОР!$C$21,$I$9,$I$9-SUMIF($A$10:$A$369,"<="&$E$3,$H$10:$H$369)),0,0)),"") ->  | P75: FALSE
A76: 67 | B76: 67 | D76: =IF(A76<=$E$2,-PMT(C76/12,IF(C76=КАЛЬКУЛЯТОР!$C$21,$E$2,$E$2-$E$3),IF(C76=КАЛЬКУЛЯТОР!$C$21,$I$9,$I$9-SUMIF($A$10:$A$369,"<="&$E$3,$H$10:$H$369)),0,0),"") ->  | F76: =IFERROR(-IPMT(C76/12,B76,IF(C76=КАЛЬКУЛЯТОР!$C$21,$E$2,$E$2-$E$3),IF(C76=КАЛЬКУЛЯТОР!$C$21,$I$9,$I$9-SUMIF($A$10:$A$369,"<="&$E$3,$H$10:$H$369)),0,0),"") ->  | G76: =IFERROR(-IPMT((C76-$P$1)/12,B76,IF(C76=КАЛЬКУЛЯТОР!$C$21,$E$2,$E$2-$E$3),IF(C76=КАЛЬКУЛЯТОР!$C$21,$I$9,$I$9-SUMIF($A$10:$A$369,"<="&$E$3,$H$10:$H$369)),0,0),"") ->  | H76: =IFERROR((-PPMT(C76/12,B76,IF(C76=КАЛЬКУЛЯТОР!$C$21,$E$2,$E$2-$E$3),IF(C76=КАЛЬКУЛЯТОР!$C$21,$I$9,$I$9-SUMIF($A$10:$A$369,"<="&$E$3,$H$10:$H$369)),0,0)),"") ->  | P76: FALSE
A77: 68 | B77: 68 | D77: =IF(A77<=$E$2,-PMT(C77/12,IF(C77=КАЛЬКУЛЯТОР!$C$21,$E$2,$E$2-$E$3),IF(C77=КАЛЬКУЛЯТОР!$C$21,$I$9,$I$9-SUMIF($A$10:$A$369,"<="&$E$3,$H$10:$H$369)),0,0),"") ->  | F77: =IFERROR(-IPMT(C77/12,B77,IF(C77=КАЛЬКУЛЯТОР!$C$21,$E$2,$E$2-$E$3),IF(C77=КАЛЬКУЛЯТОР!$C$21,$I$9,$I$9-SUMIF($A$10:$A$369,"<="&$E$3,$H$10:$H$369)),0,0),"") ->  | G77: =IFERROR(-IPMT((C77-$P$1)/12,B77,IF(C77=КАЛЬКУЛЯТОР!$C$21,$E$2,$E$2-$E$3),IF(C77=КАЛЬКУЛЯТОР!$C$21,$I$9,$I$9-SUMIF($A$10:$A$369,"<="&$E$3,$H$10:$H$369)),0,0),"") ->  | H77: =IFERROR((-PPMT(C77/12,B77,IF(C77=КАЛЬКУЛЯТОР!$C$21,$E$2,$E$2-$E$3),IF(C77=КАЛЬКУЛЯТОР!$C$21,$I$9,$I$9-SUMIF($A$10:$A$369,"<="&$E$3,$H$10:$H$369)),0,0)),"") ->  | P77: FALSE
A78: 69 | B78: 69 | D78: =IF(A78<=$E$2,-PMT(C78/12,IF(C78=КАЛЬКУЛЯТОР!$C$21,$E$2,$E$2-$E$3),IF(C78=КАЛЬКУЛЯТОР!$C$21,$I$9,$I$9-SUMIF($A$10:$A$369,"<="&$E$3,$H$10:$H$369)),0,0),"") ->  | F78: =IFERROR(-IPMT(C78/12,B78,IF(C78=КАЛЬКУЛЯТОР!$C$21,$E$2,$E$2-$E$3),IF(C78=КАЛЬКУЛЯТОР!$C$21,$I$9,$I$9-SUMIF($A$10:$A$369,"<="&$E$3,$H$10:$H$369)),0,0),"") ->  | G78: =IFERROR(-IPMT((C78-$P$1)/12,B78,IF(C78=КАЛЬКУЛЯТОР!$C$21,$E$2,$E$2-$E$3),IF(C78=КАЛЬКУЛЯТОР!$C$21,$I$9,$I$9-SUMIF($A$10:$A$369,"<="&$E$3,$H$10:$H$369)),0,0),"") ->  | H78: =IFERROR((-PPMT(C78/12,B78,IF(C78=КАЛЬКУЛЯТОР!$C$21,$E$2,$E$2-$E$3),IF(C78=КАЛЬКУЛЯТОР!$C$21,$I$9,$I$9-SUMIF($A$10:$A$369,"<="&$E$3,$H$10:$H$369)),0,0)),"") ->  | P78: FALSE
A79: 70 | B79: 70 | D79: =IF(A79<=$E$2,-PMT(C79/12,IF(C79=КАЛЬКУЛЯТОР!$C$21,$E$2,$E$2-$E$3),IF(C79=КАЛЬКУЛЯТОР!$C$21,$I$9,$I$9-SUMIF($A$10:$A$369,"<="&$E$3,$H$10:$H$369)),0,0),"") ->  | F79: =IFERROR(-IPMT(C79/12,B79,IF(C79=КАЛЬКУЛЯТОР!$C$21,$E$2,$E$2-$E$3),IF(C79=КАЛЬКУЛЯТОР!$C$21,$I$9,$I$9-SUMIF($A$10:$A$369,"<="&$E$3,$H$10:$H$369)),0,0),"") ->  | G79: =IFERROR(-IPMT((C79-$P$1)/12,B79,IF(C79=КАЛЬКУЛЯТОР!$C$21,$E$2,$E$2-$E$3),IF(C79=КАЛЬКУЛЯТОР!$C$21,$I$9,$I$9-SUMIF($A$10:$A$369,"<="&$E$3,$H$10:$H$369)),0,0),"") ->  | H79: =IFERROR((-PPMT(C79/12,B79,IF(C79=КАЛЬКУЛЯТОР!$C$21,$E$2,$E$2-$E$3),IF(C79=КАЛЬКУЛЯТОР!$C$21,$I$9,$I$9-SUMIF($A$10:$A$369,"<="&$E$3,$H$10:$H$369)),0,0)),"") ->  | P79: FALSE
A80: 71 | B80: 71 | D80: =IF(A80<=$E$2,-PMT(C80/12,IF(C80=КАЛЬКУЛЯТОР!$C$21,$E$2,$E$2-$E$3),IF(C80=КАЛЬКУЛЯТОР!$C$21,$I$9,$I$9-SUMIF($A$10:$A$369,"<="&$E$3,$H$10:$H$369)),0,0),"") ->  | F80: =IFERROR(-IPMT(C80/12,B80,IF(C80=КАЛЬКУЛЯТОР!$C$21,$E$2,$E$2-$E$3),IF(C80=КАЛЬКУЛЯТОР!$C$21,$I$9,$I$9-SUMIF($A$10:$A$369,"<="&$E$3,$H$10:$H$369)),0,0),"") ->  | G80: =IFERROR(-IPMT((C80-$P$1)/12,B80,IF(C80=КАЛЬКУЛЯТОР!$C$21,$E$2,$E$2-$E$3),IF(C80=КАЛЬКУЛЯТОР!$C$21,$I$9,$I$9-SUMIF($A$10:$A$369,"<="&$E$3,$H$10:$H$369)),0,0),"") ->  | H80: =IFERROR((-PPMT(C80/12,B80,IF(C80=КАЛЬКУЛЯТОР!$C$21,$E$2,$E$2-$E$3),IF(C80=КАЛЬКУЛЯТОР!$C$21,$I$9,$I$9-SUMIF($A$10:$A$369,"<="&$E$3,$H$10:$H$369)),0,0)),"") ->  | P80: FALSE
A81: 72 | B81: 72 | D81: =IF(A81<=$E$2,-PMT(C81/12,IF(C81=КАЛЬКУЛЯТОР!$C$21,$E$2,$E$2-$E$3),IF(C81=КАЛЬКУЛЯТОР!$C$21,$I$9,$I$9-SUMIF($A$10:$A$369,"<="&$E$3,$H$10:$H$369)),0,0),"") ->  | F81: =IFERROR(-IPMT(C81/12,B81,IF(C81=КАЛЬКУЛЯТОР!$C$21,$E$2,$E$2-$E$3),IF(C81=КАЛЬКУЛЯТОР!$C$21,$I$9,$I$9-SUMIF($A$10:$A$369,"<="&$E$3,$H$10:$H$369)),0,0),"") ->  | G81: =IFERROR(-IPMT((C81-$P$1)/12,B81,IF(C81=КАЛЬКУЛЯТОР!$C$21,$E$2,$E$2-$E$3),IF(C81=КАЛЬКУЛЯТОР!$C$21,$I$9,$I$9-SUMIF($A$10:$A$369,"<="&$E$3,$H$10:$H$369)),0,0),"") ->  | H81: =IFERROR((-PPMT(C81/12,B81,IF(C81=КАЛЬКУЛЯТОР!$C$21,$E$2,$E$2-$E$3),IF(C81=КАЛЬКУЛЯТОР!$C$21,$I$9,$I$9-SUMIF($A$10:$A$369,"<="&$E$3,$H$10:$H$369)),0,0)),"") ->  | P81: FALSE
A82: 73 | B82: 73 | D82: =IF(A82<=$E$2,-PMT(C82/12,IF(C82=КАЛЬКУЛЯТОР!$C$21,$E$2,$E$2-$E$3),IF(C82=КАЛЬКУЛЯТОР!$C$21,$I$9,$I$9-SUMIF($A$10:$A$369,"<="&$E$3,$H$10:$H$369)),0,0)+E82,"") ->  | E82: =IF($E$2>$A81,(I81+SUM(F82:F93))*($K$4+$K$5),0) -> 0.00 | F82: =IFERROR(-IPMT(C82/12,B82,IF(C82=КАЛЬКУЛЯТОР!$C$21,$E$2,$E$2-$E$3),IF(C82=КАЛЬКУЛЯТОР!$C$21,$I$9,$I$9-SUMIF($A$10:$A$369,"<="&$E$3,$H$10:$H$369)),0,0),"") ->  | G82: =IFERROR(-IPMT((C82-$P$1)/12,B82,IF(C82=КАЛЬКУЛЯТОР!$C$21,$E$2,$E$2-$E$3),IF(C82=КАЛЬКУЛЯТОР!$C$21,$I$9,$I$9-SUMIF($A$10:$A$369,"<="&$E$3,$H$10:$H$369)),0,0),"") ->  | H82: =IFERROR((-PPMT(C82/12,B82,IF(C82=КАЛЬКУЛЯТОР!$C$21,$E$2,$E$2-$E$3),IF(C82=КАЛЬКУЛЯТОР!$C$21,$I$9,$I$9-SUMIF($A$10:$A$369,"<="&$E$3,$H$10:$H$369)),0,0)),"") ->  | K82: =PV($E$5/12,A82-1,0,-E82) -> 0.00 | P82: FALSE
A83: 74 | B83: 74 | D83: =IF(A83<=$E$2,-PMT(C83/12,IF(C83=КАЛЬКУЛЯТОР!$C$21,$E$2,$E$2-$E$3),IF(C83=КАЛЬКУЛЯТОР!$C$21,$I$9,$I$9-SUMIF($A$10:$A$369,"<="&$E$3,$H$10:$H$369)),0,0),"") ->  | F83: =IFERROR(-IPMT(C83/12,B83,IF(C83=КАЛЬКУЛЯТОР!$C$21,$E$2,$E$2-$E$3),IF(C83=КАЛЬКУЛЯТОР!$C$21,$I$9,$I$9-SUMIF($A$10:$A$369,"<="&$E$3,$H$10:$H$369)),0,0),"") ->  | G83: =IFERROR(-IPMT((C83-$P$1)/12,B83,IF(C83=КАЛЬКУЛЯТОР!$C$21,$E$2,$E$2-$E$3),IF(C83=КАЛЬКУЛЯТОР!$C$21,$I$9,$I$9-SUMIF($A$10:$A$369,"<="&$E$3,$H$10:$H$369)),0,0),"") ->  | H83: =IFERROR((-PPMT(C83/12,B83,IF(C83=КАЛЬКУЛЯТОР!$C$21,$E$2,$E$2-$E$3),IF(C83=КАЛЬКУЛЯТОР!$C$21,$I$9,$I$9-SUMIF($A$10:$A$369,"<="&$E$3,$H$10:$H$369)),0,0)),"") ->  | P83: FALSE
A84: 75 | B84: 75 | D84: =IF(A84<=$E$2,-PMT(C84/12,IF(C84=КАЛЬКУЛЯТОР!$C$21,$E$2,$E$2-$E$3),IF(C84=КАЛЬКУЛЯТОР!$C$21,$I$9,$I$9-SUMIF($A$10:$A$369,"<="&$E$3,$H$10:$H$369)),0,0),"") ->  | F84: =IFERROR(-IPMT(C84/12,B84,IF(C84=КАЛЬКУЛЯТОР!$C$21,$E$2,$E$2-$E$3),IF(C84=КАЛЬКУЛЯТОР!$C$21,$I$9,$I$9-SUMIF($A$10:$A$369,"<="&$E$3,$H$10:$H$369)),0,0),"") ->  | G84: =IFERROR(-IPMT((C84-$P$1)/12,B84,IF(C84=КАЛЬКУЛЯТОР!$C$21,$E$2,$E$2-$E$3),IF(C84=КАЛЬКУЛЯТОР!$C$21,$I$9,$I$9-SUMIF($A$10:$A$369,"<="&$E$3,$H$10:$H$369)),0,0),"") ->  | H84: =IFERROR((-PPMT(C84/12,B84,IF(C84=КАЛЬКУЛЯТОР!$C$21,$E$2,$E$2-$E$3),IF(C84=КАЛЬКУЛЯТОР!$C$21,$I$9,$I$9-SUMIF($A$10:$A$369,"<="&$E$3,$H$10:$H$369)),0,0)),"") ->  | P84: FALSE
A85: 76 | B85: 76 | D85: =IF(A85<=$E$2,-PMT(C85/12,IF(C85=КАЛЬКУЛЯТОР!$C$21,$E$2,$E$2-$E$3),IF(C85=КАЛЬКУЛЯТОР!$C$21,$I$9,$I$9-SUMIF($A$10:$A$369,"<="&$E$3,$H$10:$H$369)),0,0),"") ->  | F85: =IFERROR(-IPMT(C85/12,B85,IF(C85=КАЛЬКУЛЯТОР!$C$21,$E$2,$E$2-$E$3),IF(C85=КАЛЬКУЛЯТОР!$C$21,$I$9,$I$9-SUMIF($A$10:$A$369,"<="&$E$3,$H$10:$H$369)),0,0),"") ->  | G85: =IFERROR(-IPMT((C85-$P$1)/12,B85,IF(C85=КАЛЬКУЛЯТОР!$C$21,$E$2,$E$2-$E$3),IF(C85=КАЛЬКУЛЯТОР!$C$21,$I$9,$I$9-SUMIF($A$10:$A$369,"<="&$E$3,$H$10:$H$369)),0,0),"") ->  | H85: =IFERROR((-PPMT(C85/12,B85,IF(C85=КАЛЬКУЛЯТОР!$C$21,$E$2,$E$2-$E$3),IF(C85=КАЛЬКУЛЯТОР!$C$21,$I$9,$I$9-SUMIF($A$10:$A$369,"<="&$E$3,$H$10:$H$369)),0,0)),"") ->  | P85: FALSE
A86: 77 | B86: 77 | D86: =IF(A86<=$E$2,-PMT(C86/12,IF(C86=КАЛЬКУЛЯТОР!$C$21,$E$2,$E$2-$E$3),IF(C86=КАЛЬКУЛЯТОР!$C$21,$I$9,$I$9-SUMIF($A$10:$A$369,"<="&$E$3,$H$10:$H$369)),0,0),"") ->  | F86: =IFERROR(-IPMT(C86/12,B86,IF(C86=КАЛЬКУЛЯТОР!$C$21,$E$2,$E$2-$E$3),IF(C86=КАЛЬКУЛЯТОР!$C$21,$I$9,$I$9-SUMIF($A$10:$A$369,"<="&$E$3,$H$10:$H$369)),0,0),"") ->  | G86: =IFERROR(-IPMT((C86-$P$1)/12,B86,IF(C86=КАЛЬКУЛЯТОР!$C$21,$E$2,$E$2-$E$3),IF(C86=КАЛЬКУЛЯТОР!$C$21,$I$9,$I$9-SUMIF($A$10:$A$369,"<="&$E$3,$H$10:$H$369)),0,0),"") ->  | H86: =IFERROR((-PPMT(C86/12,B86,IF(C86=КАЛЬКУЛЯТОР!$C$21,$E$2,$E$2-$E$3),IF(C86=КАЛЬКУЛЯТОР!$C$21,$I$9,$I$9-SUMIF($A$10:$A$369,"<="&$E$3,$H$10:$H$369)),0,0)),"") ->  | P86: FALSE
A87: 78 | B87: 78 | D87: =IF(A87<=$E$2,-PMT(C87/12,IF(C87=КАЛЬКУЛЯТОР!$C$21,$E$2,$E$2-$E$3),IF(C87=КАЛЬКУЛЯТОР!$C$21,$I$9,$I$9-SUMIF($A$10:$A$369,"<="&$E$3,$H$10:$H$369)),0,0),"") ->  | F87: =IFERROR(-IPMT(C87/12,B87,IF(C87=КАЛЬКУЛЯТОР!$C$21,$E$2,$E$2-$E$3),IF(C87=КАЛЬКУЛЯТОР!$C$21,$I$9,$I$9-SUMIF($A$10:$A$369,"<="&$E$3,$H$10:$H$369)),0,0),"") ->  | G87: =IFERROR(-IPMT((C87-$P$1)/12,B87,IF(C87=КАЛЬКУЛЯТОР!$C$21,$E$2,$E$2-$E$3),IF(C87=КАЛЬКУЛЯТОР!$C$21,$I$9,$I$9-SUMIF($A$10:$A$369,"<="&$E$3,$H$10:$H$369)),0,0),"") ->  | H87: =IFERROR((-PPMT(C87/12,B87,IF(C87=КАЛЬКУЛЯТОР!$C$21,$E$2,$E$2-$E$3),IF(C87=КАЛЬКУЛЯТОР!$C$21,$I$9,$I$9-SUMIF($A$10:$A$369,"<="&$E$3,$H$10:$H$369)),0,0)),"") ->  | P87: FALSE
A88: 79 | B88: 79 | D88: =IF(A88<=$E$2,-PMT(C88/12,IF(C88=КАЛЬКУЛЯТОР!$C$21,$E$2,$E$2-$E$3),IF(C88=КАЛЬКУЛЯТОР!$C$21,$I$9,$I$9-SUMIF($A$10:$A$369,"<="&$E$3,$H$10:$H$369)),0,0),"") ->  | F88: =IFERROR(-IPMT(C88/12,B88,IF(C88=КАЛЬКУЛЯТОР!$C$21,$E$2,$E$2-$E$3),IF(C88=КАЛЬКУЛЯТОР!$C$21,$I$9,$I$9-SUMIF($A$10:$A$369,"<="&$E$3,$H$10:$H$369)),0,0),"") ->  | G88: =IFERROR(-IPMT((C88-$P$1)/12,B88,IF(C88=КАЛЬКУЛЯТОР!$C$21,$E$2,$E$2-$E$3),IF(C88=КАЛЬКУЛЯТОР!$C$21,$I$9,$I$9-SUMIF($A$10:$A$369,"<="&$E$3,$H$10:$H$369)),0,0),"") ->  | H88: =IFERROR((-PPMT(C88/12,B88,IF(C88=КАЛЬКУЛЯТОР!$C$21,$E$2,$E$2-$E$3),IF(C88=КАЛЬКУЛЯТОР!$C$21,$I$9,$I$9-SUMIF($A$10:$A$369,"<="&$E$3,$H$10:$H$369)),0,0)),"") ->  | P88: FALSE
A89: 80 | B89: 80 | D89: =IF(A89<=$E$2,-PMT(C89/12,IF(C89=КАЛЬКУЛЯТОР!$C$21,$E$2,$E$2-$E$3),IF(C89=КАЛЬКУЛЯТОР!$C$21,$I$9,$I$9-SUMIF($A$10:$A$369,"<="&$E$3,$H$10:$H$369)),0,0),"") ->  | F89: =IFERROR(-IPMT(C89/12,B89,IF(C89=КАЛЬКУЛЯТОР!$C$21,$E$2,$E$2-$E$3),IF(C89=КАЛЬКУЛЯТОР!$C$21,$I$9,$I$9-SUMIF($A$10:$A$369,"<="&$E$3,$H$10:$H$369)),0,0),"") ->  | G89: =IFERROR(-IPMT((C89-$P$1)/12,B89,IF(C89=КАЛЬКУЛЯТОР!$C$21,$E$2,$E$2-$E$3),IF(C89=КАЛЬКУЛЯТОР!$C$21,$I$9,$I$9-SUMIF($A$10:$A$369,"<="&$E$3,$H$10:$H$369)),0,0),"") ->  | H89: =IFERROR((-PPMT(C89/12,B89,IF(C89=КАЛЬКУЛЯТОР!$C$21,$E$2,$E$2-$E$3),IF(C89=КАЛЬКУЛЯТОР!$C$21,$I$9,$I$9-SUMIF($A$10:$A$369,"<="&$E$3,$H$10:$H$369)),0,0)),"") ->  | P89: FALSE
A90: 81 | B90: 81 | D90: =IF(A90<=$E$2,-PMT(C90/12,IF(C90=КАЛЬКУЛЯТОР!$C$21,$E$2,$E$2-$E$3),IF(C90=КАЛЬКУЛЯТОР!$C$21,$I$9,$I$9-SUMIF($A$10:$A$369,"<="&$E$3,$H$10:$H$369)),0,0),"") ->  | F90: =IFERROR(-IPMT(C90/12,B90,IF(C90=КАЛЬКУЛЯТОР!$C$21,$E$2,$E$2-$E$3),IF(C90=КАЛЬКУЛЯТОР!$C$21,$I$9,$I$9-SUMIF($A$10:$A$369,"<="&$E$3,$H$10:$H$369)),0,0),"") ->  | G90: =IFERROR(-IPMT((C90-$P$1)/12,B90,IF(C90=КАЛЬКУЛЯТОР!$C$21,$E$2,$E$2-$E$3),IF(C90=КАЛЬКУЛЯТОР!$C$21,$I$9,$I$9-SUMIF($A$10:$A$369,"<="&$E$3,$H$10:$H$369)),0,0),"") ->  | H90: =IFERROR((-PPMT(C90/12,B90,IF(C90=КАЛЬКУЛЯТОР!$C$21,$E$2,$E$2-$E$3),IF(C90=КАЛЬКУЛЯТОР!$C$21,$I$9,$I$9-SUMIF($A$10:$A$369,"<="&$E$3,$H$10:$H$369)),0,0)),"") ->  | P90: FALSE
A91: 82 | B91: 82 | D91: =IF(A91<=$E$2,-PMT(C91/12,IF(C91=КАЛЬКУЛЯТОР!$C$21,$E$2,$E$2-$E$3),IF(C91=КАЛЬКУЛЯТОР!$C$21,$I$9,$I$9-SUMIF($A$10:$A$369,"<="&$E$3,$H$10:$H$369)),0,0),"") ->  | F91: =IFERROR(-IPMT(C91/12,B91,IF(C91=КАЛЬКУЛЯТОР!$C$21,$E$2,$E$2-$E$3),IF(C91=КАЛЬКУЛЯТОР!$C$21,$I$9,$I$9-SUMIF($A$10:$A$369,"<="&$E$3,$H$10:$H$369)),0,0),"") ->  | G91: =IFERROR(-IPMT((C91-$P$1)/12,B91,IF(C91=КАЛЬКУЛЯТОР!$C$21,$E$2,$E$2-$E$3),IF(C91=КАЛЬКУЛЯТОР!$C$21,$I$9,$I$9-SUMIF($A$10:$A$369,"<="&$E$3,$H$10:$H$369)),0,0),"") ->  | H91: =IFERROR((-PPMT(C91/12,B91,IF(C91=КАЛЬКУЛЯТОР!$C$21,$E$2,$E$2-$E$3),IF(C91=КАЛЬКУЛЯТОР!$C$21,$I$9,$I$9-SUMIF($A$10:$A$369,"<="&$E$3,$H$10:$H$369)),0,0)),"") ->  | P91: FALSE
A92: 83 | B92: 83 | D92: =IF(A92<=$E$2,-PMT(C92/12,IF(C92=КАЛЬКУЛЯТОР!$C$21,$E$2,$E$2-$E$3),IF(C92=КАЛЬКУЛЯТОР!$C$21,$I$9,$I$9-SUMIF($A$10:$A$369,"<="&$E$3,$H$10:$H$369)),0,0),"") ->  | F92: =IFERROR(-IPMT(C92/12,B92,IF(C92=КАЛЬКУЛЯТОР!$C$21,$E$2,$E$2-$E$3),IF(C92=КАЛЬКУЛЯТОР!$C$21,$I$9,$I$9-SUMIF($A$10:$A$369,"<="&$E$3,$H$10:$H$369)),0,0),"") ->  | G92: =IFERROR(-IPMT((C92-$P$1)/12,B92,IF(C92=КАЛЬКУЛЯТОР!$C$21,$E$2,$E$2-$E$3),IF(C92=КАЛЬКУЛЯТОР!$C$21,$I$9,$I$9-SUMIF($A$10:$A$369,"<="&$E$3,$H$10:$H$369)),0,0),"") ->  | H92: =IFERROR((-PPMT(C92/12,B92,IF(C92=КАЛЬКУЛЯТОР!$C$21,$E$2,$E$2-$E$3),IF(C92=КАЛЬКУЛЯТОР!$C$21,$I$9,$I$9-SUMIF($A$10:$A$369,"<="&$E$3,$H$10:$H$369)),0,0)),"") ->  | P92: FALSE
A93: 84 | B93: 84 | D93: =IF(A93<=$E$2,-PMT(C93/12,IF(C93=КАЛЬКУЛЯТОР!$C$21,$E$2,$E$2-$E$3),IF(C93=КАЛЬКУЛЯТОР!$C$21,$I$9,$I$9-SUMIF($A$10:$A$369,"<="&$E$3,$H$10:$H$369)),0,0),"") ->  | F93: =IFERROR(-IPMT(C93/12,B93,IF(C93=КАЛЬКУЛЯТОР!$C$21,$E$2,$E$2-$E$3),IF(C93=КАЛЬКУЛЯТОР!$C$21,$I$9,$I$9-SUMIF($A$10:$A$369,"<="&$E$3,$H$10:$H$369)),0,0),"") ->  | G93: =IFERROR(-IPMT((C93-$P$1)/12,B93,IF(C93=КАЛЬКУЛЯТОР!$C$21,$E$2,$E$2-$E$3),IF(C93=КАЛЬКУЛЯТОР!$C$21,$I$9,$I$9-SUMIF($A$10:$A$369,"<="&$E$3,$H$10:$H$369)),0,0),"") ->  | H93: =IFERROR((-PPMT(C93/12,B93,IF(C93=КАЛЬКУЛЯТОР!$C$21,$E$2,$E$2-$E$3),IF(C93=КАЛЬКУЛЯТОР!$C$21,$I$9,$I$9-SUMIF($A$10:$A$369,"<="&$E$3,$H$10:$H$369)),0,0)),"") ->  | P93: FALSE
A94: 85 | B94: 85 | D94: =IF(A94<=$E$2,-PMT(C94/12,IF(C94=КАЛЬКУЛЯТОР!$C$21,$E$2,$E$2-$E$3),IF(C94=КАЛЬКУЛЯТОР!$C$21,$I$9,$I$9-SUMIF($A$10:$A$369,"<="&$E$3,$H$10:$H$369)),0,0)+E94,"") ->  | E94: =IF($E$2>$A93,(I93+SUM(F94:F105))*($K$4+$K$5),0) -> 0.00 | F94: =IFERROR(-IPMT(C94/12,B94,IF(C94=КАЛЬКУЛЯТОР!$C$21,$E$2,$E$2-$E$3),IF(C94=КАЛЬКУЛЯТОР!$C$21,$I$9,$I$9-SUMIF($A$10:$A$369,"<="&$E$3,$H$10:$H$369)),0,0),"") ->  | G94: =IFERROR(-IPMT((C94-$P$1)/12,B94,IF(C94=КАЛЬКУЛЯТОР!$C$21,$E$2,$E$2-$E$3),IF(C94=КАЛЬКУЛЯТОР!$C$21,$I$9,$I$9-SUMIF($A$10:$A$369,"<="&$E$3,$H$10:$H$369)),0,0),"") ->  | H94: =IFERROR((-PPMT(C94/12,B94,IF(C94=КАЛЬКУЛЯТОР!$C$21,$E$2,$E$2-$E$3),IF(C94=КАЛЬКУЛЯТОР!$C$21,$I$9,$I$9-SUMIF($A$10:$A$369,"<="&$E$3,$H$10:$H$369)),0,0)),"") ->  | K94: =PV($E$5/12,A94-1,0,-E94) -> 0.00 | P94: FALSE
A95: 86 | B95: 86 | D95: =IF(A95<=$E$2,-PMT(C95/12,IF(C95=КАЛЬКУЛЯТОР!$C$21,$E$2,$E$2-$E$3),IF(C95=КАЛЬКУЛЯТОР!$C$21,$I$9,$I$9-SUMIF($A$10:$A$369,"<="&$E$3,$H$10:$H$369)),0,0),"") ->  | F95: =IFERROR(-IPMT(C95/12,B95,IF(C95=КАЛЬКУЛЯТОР!$C$21,$E$2,$E$2-$E$3),IF(C95=КАЛЬКУЛЯТОР!$C$21,$I$9,$I$9-SUMIF($A$10:$A$369,"<="&$E$3,$H$10:$H$369)),0,0),"") ->  | G95: =IFERROR(-IPMT((C95-$P$1)/12,B95,IF(C95=КАЛЬКУЛЯТОР!$C$21,$E$2,$E$2-$E$3),IF(C95=КАЛЬКУЛЯТОР!$C$21,$I$9,$I$9-SUMIF($A$10:$A$369,"<="&$E$3,$H$10:$H$369)),0,0),"") ->  | H95: =IFERROR((-PPMT(C95/12,B95,IF(C95=КАЛЬКУЛЯТОР!$C$21,$E$2,$E$2-$E$3),IF(C95=КАЛЬКУЛЯТОР!$C$21,$I$9,$I$9-SUMIF($A$10:$A$369,"<="&$E$3,$H$10:$H$369)),0,0)),"") ->  | P95: FALSE
A96: 87 | B96: 87 | D96: =IF(A96<=$E$2,-PMT(C96/12,IF(C96=КАЛЬКУЛЯТОР!$C$21,$E$2,$E$2-$E$3),IF(C96=КАЛЬКУЛЯТОР!$C$21,$I$9,$I$9-SUMIF($A$10:$A$369,"<="&$E$3,$H$10:$H$369)),0,0),"") ->  | F96: =IFERROR(-IPMT(C96/12,B96,IF(C96=КАЛЬКУЛЯТОР!$C$21,$E$2,$E$2-$E$3),IF(C96=КАЛЬКУЛЯТОР!$C$21,$I$9,$I$9-SUMIF($A$10:$A$369,"<="&$E$3,$H$10:$H$369)),0,0),"") ->  | G96: =IFERROR(-IPMT((C96-$P$1)/12,B96,IF(C96=КАЛЬКУЛЯТОР!$C$21,$E$2,$E$2-$E$3),IF(C96=КАЛЬКУЛЯТОР!$C$21,$I$9,$I$9-SUMIF($A$10:$A$369,"<="&$E$3,$H$10:$H$369)),0,0),"") ->  | H96: =IFERROR((-PPMT(C96/12,B96,IF(C96=КАЛЬКУЛЯТОР!$C$21,$E$2,$E$2-$E$3),IF(C96=КАЛЬКУЛЯТОР!$C$21,$I$9,$I$9-SUMIF($A$10:$A$369,"<="&$E$3,$H$10:$H$369)),0,0)),"") ->  | P96: FALSE
A97: 88 | B97: 88 | D97: =IF(A97<=$E$2,-PMT(C97/12,IF(C97=КАЛЬКУЛЯТОР!$C$21,$E$2,$E$2-$E$3),IF(C97=КАЛЬКУЛЯТОР!$C$21,$I$9,$I$9-SUMIF($A$10:$A$369,"<="&$E$3,$H$10:$H$369)),0,0),"") ->  | F97: =IFERROR(-IPMT(C97/12,B97,IF(C97=КАЛЬКУЛЯТОР!$C$21,$E$2,$E$2-$E$3),IF(C97=КАЛЬКУЛЯТОР!$C$21,$I$9,$I$9-SUMIF($A$10:$A$369,"<="&$E$3,$H$10:$H$369)),0,0),"") ->  | G97: =IFERROR(-IPMT((C97-$P$1)/12,B97,IF(C97=КАЛЬКУЛЯТОР!$C$21,$E$2,$E$2-$E$3),IF(C97=КАЛЬКУЛЯТОР!$C$21,$I$9,$I$9-SUMIF($A$10:$A$369,"<="&$E$3,$H$10:$H$369)),0,0),"") ->  | H97: =IFERROR((-PPMT(C97/12,B97,IF(C97=КАЛЬКУЛЯТОР!$C$21,$E$2,$E$2-$E$3),IF(C97=КАЛЬКУЛЯТОР!$C$21,$I$9,$I$9-SUMIF($A$10:$A$369,"<="&$E$3,$H$10:$H$369)),0,0)),"") ->  | P97: FALSE
A98: 89 | B98: 89 | D98: =IF(A98<=$E$2,-PMT(C98/12,IF(C98=КАЛЬКУЛЯТОР!$C$21,$E$2,$E$2-$E$3),IF(C98=КАЛЬКУЛЯТОР!$C$21,$I$9,$I$9-SUMIF($A$10:$A$369,"<="&$E$3,$H$10:$H$369)),0,0),"") ->  | F98: =IFERROR(-IPMT(C98/12,B98,IF(C98=КАЛЬКУЛЯТОР!$C$21,$E$2,$E$2-$E$3),IF(C98=КАЛЬКУЛЯТОР!$C$21,$I$9,$I$9-SUMIF($A$10:$A$369,"<="&$E$3,$H$10:$H$369)),0,0),"") ->  | G98: =IFERROR(-IPMT((C98-$P$1)/12,B98,IF(C98=КАЛЬКУЛЯТОР!$C$21,$E$2,$E$2-$E$3),IF(C98=КАЛЬКУЛЯТОР!$C$21,$I$9,$I$9-SUMIF($A$10:$A$369,"<="&$E$3,$H$10:$H$369)),0,0),"") ->  | H98: =IFERROR((-PPMT(C98/12,B98,IF(C98=КАЛЬКУЛЯТОР!$C$21,$E$2,$E$2-$E$3),IF(C98=КАЛЬКУЛЯТОР!$C$21,$I$9,$I$9-SUMIF($A$10:$A$369,"<="&$E$3,$H$10:$H$369)),0,0)),"") ->  | P98: FALSE
A99: 90 | B99: 90 | D99: =IF(A99<=$E$2,-PMT(C99/12,IF(C99=КАЛЬКУЛЯТОР!$C$21,$E$2,$E$2-$E$3),IF(C99=КАЛЬКУЛЯТОР!$C$21,$I$9,$I$9-SUMIF($A$10:$A$369,"<="&$E$3,$H$10:$H$369)),0,0),"") ->  | F99: =IFERROR(-IPMT(C99/12,B99,IF(C99=КАЛЬКУЛЯТОР!$C$21,$E$2,$E$2-$E$3),IF(C99=КАЛЬКУЛЯТОР!$C$21,$I$9,$I$9-SUMIF($A$10:$A$369,"<="&$E$3,$H$10:$H$369)),0,0),"") ->  | G99: =IFERROR(-IPMT((C99-$P$1)/12,B99,IF(C99=КАЛЬКУЛЯТОР!$C$21,$E$2,$E$2-$E$3),IF(C99=КАЛЬКУЛЯТОР!$C$21,$I$9,$I$9-SUMIF($A$10:$A$369,"<="&$E$3,$H$10:$H$369)),0,0),"") ->  | H99: =IFERROR((-PPMT(C99/12,B99,IF(C99=КАЛЬКУЛЯТОР!$C$21,$E$2,$E$2-$E$3),IF(C99=КАЛЬКУЛЯТОР!$C$21,$I$9,$I$9-SUMIF($A$10:$A$369,"<="&$E$3,$H$10:$H$369)),0,0)),"") ->  | P99: FALSE
A100: 91 | B100: 91 | D100: =IF(A100<=$E$2,-PMT(C100/12,IF(C100=КАЛЬКУЛЯТОР!$C$21,$E$2,$E$2-$E$3),IF(C100=КАЛЬКУЛЯТОР!$C$21,$I$9,$I$9-SUMIF($A$10:$A$369,"<="&$E$3,$H$10:$H$369)),0,0),"") ->  | F100: =IFERROR(-IPMT(C100/12,B100,IF(C100=КАЛЬКУЛЯТОР!$C$21,$E$2,$E$2-$E$3),IF(C100=КАЛЬКУЛЯТОР!$C$21,$I$9,$I$9-SUMIF($A$10:$A$369,"<="&$E$3,$H$10:$H$369)),0,0),"") ->  | G100: =IFERROR(-IPMT((C100-$P$1)/12,B100,IF(C100=КАЛЬКУЛЯТОР!$C$21,$E$2,$E$2-$E$3),IF(C100=КАЛЬКУЛЯТОР!$C$21,$I$9,$I$9-SUMIF($A$10:$A$369,"<="&$E$3,$H$10:$H$369)),0,0),"") ->  | H100: =IFERROR((-PPMT(C100/12,B100,IF(C100=КАЛЬКУЛЯТОР!$C$21,$E$2,$E$2-$E$3),IF(C100=КАЛЬКУЛЯТОР!$C$21,$I$9,$I$9-SUMIF($A$10:$A$369,"<="&$E$3,$H$10:$H$369)),0,0)),"") ->  | P100: FALSE
A101: 92 | B101: 92 | D101: =IF(A101<=$E$2,-PMT(C101/12,IF(C101=КАЛЬКУЛЯТОР!$C$21,$E$2,$E$2-$E$3),IF(C101=КАЛЬКУЛЯТОР!$C$21,$I$9,$I$9-SUMIF($A$10:$A$369,"<="&$E$3,$H$10:$H$369)),0,0),"") ->  | F101: =IFERROR(-IPMT(C101/12,B101,IF(C101=КАЛЬКУЛЯТОР!$C$21,$E$2,$E$2-$E$3),IF(C101=КАЛЬКУЛЯТОР!$C$21,$I$9,$I$9-SUMIF($A$10:$A$369,"<="&$E$3,$H$10:$H$369)),0,0),"") ->  | G101: =IFERROR(-IPMT((C101-$P$1)/12,B101,IF(C101=КАЛЬКУЛЯТОР!$C$21,$E$2,$E$2-$E$3),IF(C101=КАЛЬКУЛЯТОР!$C$21,$I$9,$I$9-SUMIF($A$10:$A$369,"<="&$E$3,$H$10:$H$369)),0,0),"") ->  | H101: =IFERROR((-PPMT(C101/12,B101,IF(C101=КАЛЬКУЛЯТОР!$C$21,$E$2,$E$2-$E$3),IF(C101=КАЛЬКУЛЯТОР!$C$21,$I$9,$I$9-SUMIF($A$10:$A$369,"<="&$E$3,$H$10:$H$369)),0,0)),"") ->  | P101: FALSE
A102: 93 | B102: 93 | D102: =IF(A102<=$E$2,-PMT(C102/12,IF(C102=КАЛЬКУЛЯТОР!$C$21,$E$2,$E$2-$E$3),IF(C102=КАЛЬКУЛЯТОР!$C$21,$I$9,$I$9-SUMIF($A$10:$A$369,"<="&$E$3,$H$10:$H$369)),0,0),"") ->  | F102: =IFERROR(-IPMT(C102/12,B102,IF(C102=КАЛЬКУЛЯТОР!$C$21,$E$2,$E$2-$E$3),IF(C102=КАЛЬКУЛЯТОР!$C$21,$I$9,$I$9-SUMIF($A$10:$A$369,"<="&$E$3,$H$10:$H$369)),0,0),"") ->  | G102: =IFERROR(-IPMT((C102-$P$1)/12,B102,IF(C102=КАЛЬКУЛЯТОР!$C$21,$E$2,$E$2-$E$3),IF(C102=КАЛЬКУЛЯТОР!$C$21,$I$9,$I$9-SUMIF($A$10:$A$369,"<="&$E$3,$H$10:$H$369)),0,0),"") ->  | H102: =IFERROR((-PPMT(C102/12,B102,IF(C102=КАЛЬКУЛЯТОР!$C$21,$E$2,$E$2-$E$3),IF(C102=КАЛЬКУЛЯТОР!$C$21,$I$9,$I$9-SUMIF($A$10:$A$369,"<="&$E$3,$H$10:$H$369)),0,0)),"") ->  | P102: FALSE
A103: 94 | B103: 94 | D103: =IF(A103<=$E$2,-PMT(C103/12,IF(C103=КАЛЬКУЛЯТОР!$C$21,$E$2,$E$2-$E$3),IF(C103=КАЛЬКУЛЯТОР!$C$21,$I$9,$I$9-SUMIF($A$10:$A$369,"<="&$E$3,$H$10:$H$369)),0,0),"") ->  | F103: =IFERROR(-IPMT(C103/12,B103,IF(C103=КАЛЬКУЛЯТОР!$C$21,$E$2,$E$2-$E$3),IF(C103=КАЛЬКУЛЯТОР!$C$21,$I$9,$I$9-SUMIF($A$10:$A$369,"<="&$E$3,$H$10:$H$369)),0,0),"") ->  | G103: =IFERROR(-IPMT((C103-$P$1)/12,B103,IF(C103=КАЛЬКУЛЯТОР!$C$21,$E$2,$E$2-$E$3),IF(C103=КАЛЬКУЛЯТОР!$C$21,$I$9,$I$9-SUMIF($A$10:$A$369,"<="&$E$3,$H$10:$H$369)),0,0),"") ->  | H103: =IFERROR((-PPMT(C103/12,B103,IF(C103=КАЛЬКУЛЯТОР!$C$21,$E$2,$E$2-$E$3),IF(C103=КАЛЬКУЛЯТОР!$C$21,$I$9,$I$9-SUMIF($A$10:$A$369,"<="&$E$3,$H$10:$H$369)),0,0)),"") ->  | P103: FALSE
A104: 95 | B104: 95 | D104: =IF(A104<=$E$2,-PMT(C104/12,IF(C104=КАЛЬКУЛЯТОР!$C$21,$E$2,$E$2-$E$3),IF(C104=КАЛЬКУЛЯТОР!$C$21,$I$9,$I$9-SUMIF($A$10:$A$369,"<="&$E$3,$H$10:$H$369)),0,0),"") ->  | F104: =IFERROR(-IPMT(C104/12,B104,IF(C104=КАЛЬКУЛЯТОР!$C$21,$E$2,$E$2-$E$3),IF(C104=КАЛЬКУЛЯТОР!$C$21,$I$9,$I$9-SUMIF($A$10:$A$369,"<="&$E$3,$H$10:$H$369)),0,0),"") ->  | G104: =IFERROR(-IPMT((C104-$P$1)/12,B104,IF(C104=КАЛЬКУЛЯТОР!$C$21,$E$2,$E$2-$E$3),IF(C104=КАЛЬКУЛЯТОР!$C$21,$I$9,$I$9-SUMIF($A$10:$A$369,"<="&$E$3,$H$10:$H$369)),0,0),"") ->  | H104: =IFERROR((-PPMT(C104/12,B104,IF(C104=КАЛЬКУЛЯТОР!$C$21,$E$2,$E$2-$E$3),IF(C104=КАЛЬКУЛЯТОР!$C$21,$I$9,$I$9-SUMIF($A$10:$A$369,"<="&$E$3,$H$10:$H$369)),0,0)),"") ->  | P104: FALSE
A105: 96 | B105: 96 | D105: =IF(A105<=$E$2,-PMT(C105/12,IF(C105=КАЛЬКУЛЯТОР!$C$21,$E$2,$E$2-$E$3),IF(C105=КАЛЬКУЛЯТОР!$C$21,$I$9,$I$9-SUMIF($A$10:$A$369,"<="&$E$3,$H$10:$H$369)),0,0),"") ->  | F105: =IFERROR(-IPMT(C105/12,B105,IF(C105=КАЛЬКУЛЯТОР!$C$21,$E$2,$E$2-$E$3),IF(C105=КАЛЬКУЛЯТОР!$C$21,$I$9,$I$9-SUMIF($A$10:$A$369,"<="&$E$3,$H$10:$H$369)),0,0),"") ->  | G105: =IFERROR(-IPMT((C105-$P$1)/12,B105,IF(C105=КАЛЬКУЛЯТОР!$C$21,$E$2,$E$2-$E$3),IF(C105=КАЛЬКУЛЯТОР!$C$21,$I$9,$I$9-SUMIF($A$10:$A$369,"<="&$E$3,$H$10:$H$369)),0,0),"") ->  | H105: =IFERROR((-PPMT(C105/12,B105,IF(C105=КАЛЬКУЛЯТОР!$C$21,$E$2,$E$2-$E$3),IF(C105=КАЛЬКУЛЯТОР!$C$21,$I$9,$I$9-SUMIF($A$10:$A$369,"<="&$E$3,$H$10:$H$369)),0,0)),"") ->  | P105: FALSE
A106: 97 | B106: 97 | D106: =IF(A106<=$E$2,-PMT(C106/12,IF(C106=КАЛЬКУЛЯТОР!$C$21,$E$2,$E$2-$E$3),IF(C106=КАЛЬКУЛЯТОР!$C$21,$I$9,$I$9-SUMIF($A$10:$A$369,"<="&$E$3,$H$10:$H$369)),0,0)+E106,"") ->  | E106: =IF($E$2>$A105,(I105+SUM(F106:F117))*($K$4+$K$5),0) -> 0.00 | F106: =IFERROR(-IPMT(C106/12,B106,IF(C106=КАЛЬКУЛЯТОР!$C$21,$E$2,$E$2-$E$3),IF(C106=КАЛЬКУЛЯТОР!$C$21,$I$9,$I$9-SUMIF($A$10:$A$369,"<="&$E$3,$H$10:$H$369)),0,0),"") ->  | G106: =IFERROR(-IPMT((C106-$P$1)/12,B106,IF(C106=КАЛЬКУЛЯТОР!$C$21,$E$2,$E$2-$E$3),IF(C106=КАЛЬКУЛЯТОР!$C$21,$I$9,$I$9-SUMIF($A$10:$A$369,"<="&$E$3,$H$10:$H$369)),0,0),"") ->  | H106: =IFERROR((-PPMT(C106/12,B106,IF(C106=КАЛЬКУЛЯТОР!$C$21,$E$2,$E$2-$E$3),IF(C106=КАЛЬКУЛЯТОР!$C$21,$I$9,$I$9-SUMIF($A$10:$A$369,"<="&$E$3,$H$10:$H$369)),0,0)),"") ->  | K106: =PV($E$5/12,A106-1,0,-E106) -> 0.00 | P106: FALSE
A107: 98 | B107: 98 | D107: =IF(A107<=$E$2,-PMT(C107/12,IF(C107=КАЛЬКУЛЯТОР!$C$21,$E$2,$E$2-$E$3),IF(C107=КАЛЬКУЛЯТОР!$C$21,$I$9,$I$9-SUMIF($A$10:$A$369,"<="&$E$3,$H$10:$H$369)),0,0),"") ->  | F107: =IFERROR(-IPMT(C107/12,B107,IF(C107=КАЛЬКУЛЯТОР!$C$21,$E$2,$E$2-$E$3),IF(C107=КАЛЬКУЛЯТОР!$C$21,$I$9,$I$9-SUMIF($A$10:$A$369,"<="&$E$3,$H$10:$H$369)),0,0),"") ->  | G107: =IFERROR(-IPMT((C107-$P$1)/12,B107,IF(C107=КАЛЬКУЛЯТОР!$C$21,$E$2,$E$2-$E$3),IF(C107=КАЛЬКУЛЯТОР!$C$21,$I$9,$I$9-SUMIF($A$10:$A$369,"<="&$E$3,$H$10:$H$369)),0,0),"") ->  | H107: =IFERROR((-PPMT(C107/12,B107,IF(C107=КАЛЬКУЛЯТОР!$C$21,$E$2,$E$2-$E$3),IF(C107=КАЛЬКУЛЯТОР!$C$21,$I$9,$I$9-SUMIF($A$10:$A$369,"<="&$E$3,$H$10:$H$369)),0,0)),"") ->  | P107: FALSE
A108: 99 | B108: 99 | D108: =IF(A108<=$E$2,-PMT(C108/12,IF(C108=КАЛЬКУЛЯТОР!$C$21,$E$2,$E$2-$E$3),IF(C108=КАЛЬКУЛЯТОР!$C$21,$I$9,$I$9-SUMIF($A$10:$A$369,"<="&$E$3,$H$10:$H$369)),0,0),"") ->  | F108: =IFERROR(-IPMT(C108/12,B108,IF(C108=КАЛЬКУЛЯТОР!$C$21,$E$2,$E$2-$E$3),IF(C108=КАЛЬКУЛЯТОР!$C$21,$I$9,$I$9-SUMIF($A$10:$A$369,"<="&$E$3,$H$10:$H$369)),0,0),"") ->  | G108: =IFERROR(-IPMT((C108-$P$1)/12,B108,IF(C108=КАЛЬКУЛЯТОР!$C$21,$E$2,$E$2-$E$3),IF(C108=КАЛЬКУЛЯТОР!$C$21,$I$9,$I$9-SUMIF($A$10:$A$369,"<="&$E$3,$H$10:$H$369)),0,0),"") ->  | H108: =IFERROR((-PPMT(C108/12,B108,IF(C108=КАЛЬКУЛЯТОР!$C$21,$E$2,$E$2-$E$3),IF(C108=КАЛЬКУЛЯТОР!$C$21,$I$9,$I$9-SUMIF($A$10:$A$369,"<="&$E$3,$H$10:$H$369)),0,0)),"") ->  | P108: FALSE
A109: 100 | B109: 100 | D109: =IF(A109<=$E$2,-PMT(C109/12,IF(C109=КАЛЬКУЛЯТОР!$C$21,$E$2,$E$2-$E$3),IF(C109=КАЛЬКУЛЯТОР!$C$21,$I$9,$I$9-SUMIF($A$10:$A$369,"<="&$E$3,$H$10:$H$369)),0,0),"") ->  | F109: =IFERROR(-IPMT(C109/12,B109,IF(C109=КАЛЬКУЛЯТОР!$C$21,$E$2,$E$2-$E$3),IF(C109=КАЛЬКУЛЯТОР!$C$21,$I$9,$I$9-SUMIF($A$10:$A$369,"<="&$E$3,$H$10:$H$369)),0,0),"") ->  | G109: =IFERROR(-IPMT((C109-$P$1)/12,B109,IF(C109=КАЛЬКУЛЯТОР!$C$21,$E$2,$E$2-$E$3),IF(C109=КАЛЬКУЛЯТОР!$C$21,$I$9,$I$9-SUMIF($A$10:$A$369,"<="&$E$3,$H$10:$H$369)),0,0),"") ->  | H109: =IFERROR((-PPMT(C109/12,B109,IF(C109=КАЛЬКУЛЯТОР!$C$21,$E$2,$E$2-$E$3),IF(C109=КАЛЬКУЛЯТОР!$C$21,$I$9,$I$9-SUMIF($A$10:$A$369,"<="&$E$3,$H$10:$H$369)),0,0)),"") ->  | P109: FALSE
A110: 101 | B110: 101 | D110: =IF(A110<=$E$2,-PMT(C110/12,IF(C110=КАЛЬКУЛЯТОР!$C$21,$E$2,$E$2-$E$3),IF(C110=КАЛЬКУЛЯТОР!$C$21,$I$9,$I$9-SUMIF($A$10:$A$369,"<="&$E$3,$H$10:$H$369)),0,0),"") ->  | F110: =IFERROR(-IPMT(C110/12,B110,IF(C110=КАЛЬКУЛЯТОР!$C$21,$E$2,$E$2-$E$3),IF(C110=КАЛЬКУЛЯТОР!$C$21,$I$9,$I$9-SUMIF($A$10:$A$369,"<="&$E$3,$H$10:$H$369)),0,0),"") ->  | G110: =IFERROR(-IPMT((C110-$P$1)/12,B110,IF(C110=КАЛЬКУЛЯТОР!$C$21,$E$2,$E$2-$E$3),IF(C110=КАЛЬКУЛЯТОР!$C$21,$I$9,$I$9-SUMIF($A$10:$A$369,"<="&$E$3,$H$10:$H$369)),0,0),"") ->  | H110: =IFERROR((-PPMT(C110/12,B110,IF(C110=КАЛЬКУЛЯТОР!$C$21,$E$2,$E$2-$E$3),IF(C110=КАЛЬКУЛЯТОР!$C$21,$I$9,$I$9-SUMIF($A$10:$A$369,"<="&$E$3,$H$10:$H$369)),0,0)),"") ->  | P110: FALSE
A111: 102 | B111: 102 | D111: =IF(A111<=$E$2,-PMT(C111/12,IF(C111=КАЛЬКУЛЯТОР!$C$21,$E$2,$E$2-$E$3),IF(C111=КАЛЬКУЛЯТОР!$C$21,$I$9,$I$9-SUMIF($A$10:$A$369,"<="&$E$3,$H$10:$H$369)),0,0),"") ->  | F111: =IFERROR(-IPMT(C111/12,B111,IF(C111=КАЛЬКУЛЯТОР!$C$21,$E$2,$E$2-$E$3),IF(C111=КАЛЬКУЛЯТОР!$C$21,$I$9,$I$9-SUMIF($A$10:$A$369,"<="&$E$3,$H$10:$H$369)),0,0),"") ->  | G111: =IFERROR(-IPMT((C111-$P$1)/12,B111,IF(C111=КАЛЬКУЛЯТОР!$C$21,$E$2,$E$2-$E$3),IF(C111=КАЛЬКУЛЯТОР!$C$21,$I$9,$I$9-SUMIF($A$10:$A$369,"<="&$E$3,$H$10:$H$369)),0,0),"") ->  | H111: =IFERROR((-PPMT(C111/12,B111,IF(C111=КАЛЬКУЛЯТОР!$C$21,$E$2,$E$2-$E$3),IF(C111=КАЛЬКУЛЯТОР!$C$21,$I$9,$I$9-SUMIF($A$10:$A$369,"<="&$E$3,$H$10:$H$369)),0,0)),"") ->  | P111: FALSE
A112: 103 | B112: 103 | D112: =IF(A112<=$E$2,-PMT(C112/12,IF(C112=КАЛЬКУЛЯТОР!$C$21,$E$2,$E$2-$E$3),IF(C112=КАЛЬКУЛЯТОР!$C$21,$I$9,$I$9-SUMIF($A$10:$A$369,"<="&$E$3,$H$10:$H$369)),0,0),"") ->  | F112: =IFERROR(-IPMT(C112/12,B112,IF(C112=КАЛЬКУЛЯТОР!$C$21,$E$2,$E$2-$E$3),IF(C112=КАЛЬКУЛЯТОР!$C$21,$I$9,$I$9-SUMIF($A$10:$A$369,"<="&$E$3,$H$10:$H$369)),0,0),"") ->  | G112: =IFERROR(-IPMT((C112-$P$1)/12,B112,IF(C112=КАЛЬКУЛЯТОР!$C$21,$E$2,$E$2-$E$3),IF(C112=КАЛЬКУЛЯТОР!$C$21,$I$9,$I$9-SUMIF($A$10:$A$369,"<="&$E$3,$H$10:$H$369)),0,0),"") ->  | H112: =IFERROR((-PPMT(C112/12,B112,IF(C112=КАЛЬКУЛЯТОР!$C$21,$E$2,$E$2-$E$3),IF(C112=КАЛЬКУЛЯТОР!$C$21,$I$9,$I$9-SUMIF($A$10:$A$369,"<="&$E$3,$H$10:$H$369)),0,0)),"") ->  | P112: FALSE
A113: 104 | B113: 104 | D113: =IF(A113<=$E$2,-PMT(C113/12,IF(C113=КАЛЬКУЛЯТОР!$C$21,$E$2,$E$2-$E$3),IF(C113=КАЛЬКУЛЯТОР!$C$21,$I$9,$I$9-SUMIF($A$10:$A$369,"<="&$E$3,$H$10:$H$369)),0,0),"") ->  | F113: =IFERROR(-IPMT(C113/12,B113,IF(C113=КАЛЬКУЛЯТОР!$C$21,$E$2,$E$2-$E$3),IF(C113=КАЛЬКУЛЯТОР!$C$21,$I$9,$I$9-SUMIF($A$10:$A$369,"<="&$E$3,$H$10:$H$369)),0,0),"") ->  | G113: =IFERROR(-IPMT((C113-$P$1)/12,B113,IF(C113=КАЛЬКУЛЯТОР!$C$21,$E$2,$E$2-$E$3),IF(C113=КАЛЬКУЛЯТОР!$C$21,$I$9,$I$9-SUMIF($A$10:$A$369,"<="&$E$3,$H$10:$H$369)),0,0),"") ->  | H113: =IFERROR((-PPMT(C113/12,B113,IF(C113=КАЛЬКУЛЯТОР!$C$21,$E$2,$E$2-$E$3),IF(C113=КАЛЬКУЛЯТОР!$C$21,$I$9,$I$9-SUMIF($A$10:$A$369,"<="&$E$3,$H$10:$H$369)),0,0)),"") ->  | P113: FALSE
A114: 105 | B114: 105 | D114: =IF(A114<=$E$2,-PMT(C114/12,IF(C114=КАЛЬКУЛЯТОР!$C$21,$E$2,$E$2-$E$3),IF(C114=КАЛЬКУЛЯТОР!$C$21,$I$9,$I$9-SUMIF($A$10:$A$369,"<="&$E$3,$H$10:$H$369)),0,0),"") ->  | F114: =IFERROR(-IPMT(C114/12,B114,IF(C114=КАЛЬКУЛЯТОР!$C$21,$E$2,$E$2-$E$3),IF(C114=КАЛЬКУЛЯТОР!$C$21,$I$9,$I$9-SUMIF($A$10:$A$369,"<="&$E$3,$H$10:$H$369)),0,0),"") ->  | G114: =IFERROR(-IPMT((C114-$P$1)/12,B114,IF(C114=КАЛЬКУЛЯТОР!$C$21,$E$2,$E$2-$E$3),IF(C114=КАЛЬКУЛЯТОР!$C$21,$I$9,$I$9-SUMIF($A$10:$A$369,"<="&$E$3,$H$10:$H$369)),0,0),"") ->  | H114: =IFERROR((-PPMT(C114/12,B114,IF(C114=КАЛЬКУЛЯТОР!$C$21,$E$2,$E$2-$E$3),IF(C114=КАЛЬКУЛЯТОР!$C$21,$I$9,$I$9-SUMIF($A$10:$A$369,"<="&$E$3,$H$10:$H$369)),0,0)),"") ->  | P114: FALSE
A115: 106 | B115: 106 | D115: =IF(A115<=$E$2,-PMT(C115/12,IF(C115=КАЛЬКУЛЯТОР!$C$21,$E$2,$E$2-$E$3),IF(C115=КАЛЬКУЛЯТОР!$C$21,$I$9,$I$9-SUMIF($A$10:$A$369,"<="&$E$3,$H$10:$H$369)),0,0),"") ->  | F115: =IFERROR(-IPMT(C115/12,B115,IF(C115=КАЛЬКУЛЯТОР!$C$21,$E$2,$E$2-$E$3),IF(C115=КАЛЬКУЛЯТОР!$C$21,$I$9,$I$9-SUMIF($A$10:$A$369,"<="&$E$3,$H$10:$H$369)),0,0),"") ->  | G115: =IFERROR(-IPMT((C115-$P$1)/12,B115,IF(C115=КАЛЬКУЛЯТОР!$C$21,$E$2,$E$2-$E$3),IF(C115=КАЛЬКУЛЯТОР!$C$21,$I$9,$I$9-SUMIF($A$10:$A$369,"<="&$E$3,$H$10:$H$369)),0,0),"") ->  | H115: =IFERROR((-PPMT(C115/12,B115,IF(C115=КАЛЬКУЛЯТОР!$C$21,$E$2,$E$2-$E$3),IF(C115=КАЛЬКУЛЯТОР!$C$21,$I$9,$I$9-SUMIF($A$10:$A$369,"<="&$E$3,$H$10:$H$369)),0,0)),"") ->  | P115: FALSE
A116: 107 | B116: 107 | D116: =IF(A116<=$E$2,-PMT(C116/12,IF(C116=КАЛЬКУЛЯТОР!$C$21,$E$2,$E$2-$E$3),IF(C116=КАЛЬКУЛЯТОР!$C$21,$I$9,$I$9-SUMIF($A$10:$A$369,"<="&$E$3,$H$10:$H$369)),0,0),"") ->  | F116: =IFERROR(-IPMT(C116/12,B116,IF(C116=КАЛЬКУЛЯТОР!$C$21,$E$2,$E$2-$E$3),IF(C116=КАЛЬКУЛЯТОР!$C$21,$I$9,$I$9-SUMIF($A$10:$A$369,"<="&$E$3,$H$10:$H$369)),0,0),"") ->  | G116: =IFERROR(-IPMT((C116-$P$1)/12,B116,IF(C116=КАЛЬКУЛЯТОР!$C$21,$E$2,$E$2-$E$3),IF(C116=КАЛЬКУЛЯТОР!$C$21,$I$9,$I$9-SUMIF($A$10:$A$369,"<="&$E$3,$H$10:$H$369)),0,0),"") ->  | H116: =IFERROR((-PPMT(C116/12,B116,IF(C116=КАЛЬКУЛЯТОР!$C$21,$E$2,$E$2-$E$3),IF(C116=КАЛЬКУЛЯТОР!$C$21,$I$9,$I$9-SUMIF($A$10:$A$369,"<="&$E$3,$H$10:$H$369)),0,0)),"") ->  | P116: FALSE
A117: 108 | B117: 108 | D117: =IF(A117<=$E$2,-PMT(C117/12,IF(C117=КАЛЬКУЛЯТОР!$C$21,$E$2,$E$2-$E$3),IF(C117=КАЛЬКУЛЯТОР!$C$21,$I$9,$I$9-SUMIF($A$10:$A$369,"<="&$E$3,$H$10:$H$369)),0,0),"") ->  | F117: =IFERROR(-IPMT(C117/12,B117,IF(C117=КАЛЬКУЛЯТОР!$C$21,$E$2,$E$2-$E$3),IF(C117=КАЛЬКУЛЯТОР!$C$21,$I$9,$I$9-SUMIF($A$10:$A$369,"<="&$E$3,$H$10:$H$369)),0,0),"") ->  | G117: =IFERROR(-IPMT((C117-$P$1)/12,B117,IF(C117=КАЛЬКУЛЯТОР!$C$21,$E$2,$E$2-$E$3),IF(C117=КАЛЬКУЛЯТОР!$C$21,$I$9,$I$9-SUMIF($A$10:$A$369,"<="&$E$3,$H$10:$H$369)),0,0),"") ->  | H117: =IFERROR((-PPMT(C117/12,B117,IF(C117=КАЛЬКУЛЯТОР!$C$21,$E$2,$E$2-$E$3),IF(C117=КАЛЬКУЛЯТОР!$C$21,$I$9,$I$9-SUMIF($A$10:$A$369,"<="&$E$3,$H$10:$H$369)),0,0)),"") ->  | P117: FALSE
A118: 109 | B118: 109 | D118: =IF(A118<=$E$2,-PMT(C118/12,IF(C118=КАЛЬКУЛЯТОР!$C$21,$E$2,$E$2-$E$3),IF(C118=КАЛЬКУЛЯТОР!$C$21,$I$9,$I$9-SUMIF($A$10:$A$369,"<="&$E$3,$H$10:$H$369)),0,0)+E118,"") ->  | E118: =IF($E$2>$A117,(I117+SUM(F118:F129))*($K$4+$K$5),0) -> 0.00 | F118: =IFERROR(-IPMT(C118/12,B118,IF(C118=КАЛЬКУЛЯТОР!$C$21,$E$2,$E$2-$E$3),IF(C118=КАЛЬКУЛЯТОР!$C$21,$I$9,$I$9-SUMIF($A$10:$A$369,"<="&$E$3,$H$10:$H$369)),0,0),"") ->  | G118: =IFERROR(-IPMT((C118-$P$1)/12,B118,IF(C118=КАЛЬКУЛЯТОР!$C$21,$E$2,$E$2-$E$3),IF(C118=КАЛЬКУЛЯТОР!$C$21,$I$9,$I$9-SUMIF($A$10:$A$369,"<="&$E$3,$H$10:$H$369)),0,0),"") ->  | H118: =IFERROR((-PPMT(C118/12,B118,IF(C118=КАЛЬКУЛЯТОР!$C$21,$E$2,$E$2-$E$3),IF(C118=КАЛЬКУЛЯТОР!$C$21,$I$9,$I$9-SUMIF($A$10:$A$369,"<="&$E$3,$H$10:$H$369)),0,0)),"") ->  | K118: =PV($E$5/12,A118-1,0,-E118) -> 0.00 | P118: FALSE
A119: 110 | B119: 110 | D119: =IF(A119<=$E$2,-PMT(C119/12,IF(C119=КАЛЬКУЛЯТОР!$C$21,$E$2,$E$2-$E$3),IF(C119=КАЛЬКУЛЯТОР!$C$21,$I$9,$I$9-SUMIF($A$10:$A$369,"<="&$E$3,$H$10:$H$369)),0,0),"") ->  | F119: =IFERROR(-IPMT(C119/12,B119,IF(C119=КАЛЬКУЛЯТОР!$C$21,$E$2,$E$2-$E$3),IF(C119=КАЛЬКУЛЯТОР!$C$21,$I$9,$I$9-SUMIF($A$10:$A$369,"<="&$E$3,$H$10:$H$369)),0,0),"") ->  | G119: =IFERROR(-IPMT((C119-$P$1)/12,B119,IF(C119=КАЛЬКУЛЯТОР!$C$21,$E$2,$E$2-$E$3),IF(C119=КАЛЬКУЛЯТОР!$C$21,$I$9,$I$9-SUMIF($A$10:$A$369,"<="&$E$3,$H$10:$H$369)),0,0),"") ->  | H119: =IFERROR((-PPMT(C119/12,B119,IF(C119=КАЛЬКУЛЯТОР!$C$21,$E$2,$E$2-$E$3),IF(C119=КАЛЬКУЛЯТОР!$C$21,$I$9,$I$9-SUMIF($A$10:$A$369,"<="&$E$3,$H$10:$H$369)),0,0)),"") ->  | P119: FALSE
A120: 111 | B120: 111 | D120: =IF(A120<=$E$2,-PMT(C120/12,IF(C120=КАЛЬКУЛЯТОР!$C$21,$E$2,$E$2-$E$3),IF(C120=КАЛЬКУЛЯТОР!$C$21,$I$9,$I$9-SUMIF($A$10:$A$369,"<="&$E$3,$H$10:$H$369)),0,0),"") ->  | F120: =IFERROR(-IPMT(C120/12,B120,IF(C120=КАЛЬКУЛЯТОР!$C$21,$E$2,$E$2-$E$3),IF(C120=КАЛЬКУЛЯТОР!$C$21,$I$9,$I$9-SUMIF($A$10:$A$369,"<="&$E$3,$H$10:$H$369)),0,0),"") ->  | G120: =IFERROR(-IPMT((C120-$P$1)/12,B120,IF(C120=КАЛЬКУЛЯТОР!$C$21,$E$2,$E$2-$E$3),IF(C120=КАЛЬКУЛЯТОР!$C$21,$I$9,$I$9-SUMIF($A$10:$A$369,"<="&$E$3,$H$10:$H$369)),0,0),"") ->  | H120: =IFERROR((-PPMT(C120/12,B120,IF(C120=КАЛЬКУЛЯТОР!$C$21,$E$2,$E$2-$E$3),IF(C120=КАЛЬКУЛЯТОР!$C$21,$I$9,$I$9-SUMIF($A$10:$A$369,"<="&$E$3,$H$10:$H$369)),0,0)),"") ->  | P120: FALSE
A121: 112 | B121: 112 | D121: =IF(A121<=$E$2,-PMT(C121/12,IF(C121=КАЛЬКУЛЯТОР!$C$21,$E$2,$E$2-$E$3),IF(C121=КАЛЬКУЛЯТОР!$C$21,$I$9,$I$9-SUMIF($A$10:$A$369,"<="&$E$3,$H$10:$H$369)),0,0),"") ->  | F121: =IFERROR(-IPMT(C121/12,B121,IF(C121=КАЛЬКУЛЯТОР!$C$21,$E$2,$E$2-$E$3),IF(C121=КАЛЬКУЛЯТОР!$C$21,$I$9,$I$9-SUMIF($A$10:$A$369,"<="&$E$3,$H$10:$H$369)),0,0),"") ->  | G121: =IFERROR(-IPMT((C121-$P$1)/12,B121,IF(C121=КАЛЬКУЛЯТОР!$C$21,$E$2,$E$2-$E$3),IF(C121=КАЛЬКУЛЯТОР!$C$21,$I$9,$I$9-SUMIF($A$10:$A$369,"<="&$E$3,$H$10:$H$369)),0,0),"") ->  | H121: =IFERROR((-PPMT(C121/12,B121,IF(C121=КАЛЬКУЛЯТОР!$C$21,$E$2,$E$2-$E$3),IF(C121=КАЛЬКУЛЯТОР!$C$21,$I$9,$I$9-SUMIF($A$10:$A$369,"<="&$E$3,$H$10:$H$369)),0,0)),"") ->  | P121: FALSE
A122: 113 | B122: 113 | D122: =IF(A122<=$E$2,-PMT(C122/12,IF(C122=КАЛЬКУЛЯТОР!$C$21,$E$2,$E$2-$E$3),IF(C122=КАЛЬКУЛЯТОР!$C$21,$I$9,$I$9-SUMIF($A$10:$A$369,"<="&$E$3,$H$10:$H$369)),0,0),"") ->  | F122: =IFERROR(-IPMT(C122/12,B122,IF(C122=КАЛЬКУЛЯТОР!$C$21,$E$2,$E$2-$E$3),IF(C122=КАЛЬКУЛЯТОР!$C$21,$I$9,$I$9-SUMIF($A$10:$A$369,"<="&$E$3,$H$10:$H$369)),0,0),"") ->  | G122: =IFERROR(-IPMT((C122-$P$1)/12,B122,IF(C122=КАЛЬКУЛЯТОР!$C$21,$E$2,$E$2-$E$3),IF(C122=КАЛЬКУЛЯТОР!$C$21,$I$9,$I$9-SUMIF($A$10:$A$369,"<="&$E$3,$H$10:$H$369)),0,0),"") ->  | H122: =IFERROR((-PPMT(C122/12,B122,IF(C122=КАЛЬКУЛЯТОР!$C$21,$E$2,$E$2-$E$3),IF(C122=КАЛЬКУЛЯТОР!$C$21,$I$9,$I$9-SUMIF($A$10:$A$369,"<="&$E$3,$H$10:$H$369)),0,0)),"") ->  | P122: FALSE
A123: 114 | B123: 114 | D123: =IF(A123<=$E$2,-PMT(C123/12,IF(C123=КАЛЬКУЛЯТОР!$C$21,$E$2,$E$2-$E$3),IF(C123=КАЛЬКУЛЯТОР!$C$21,$I$9,$I$9-SUMIF($A$10:$A$369,"<="&$E$3,$H$10:$H$369)),0,0),"") ->  | F123: =IFERROR(-IPMT(C123/12,B123,IF(C123=КАЛЬКУЛЯТОР!$C$21,$E$2,$E$2-$E$3),IF(C123=КАЛЬКУЛЯТОР!$C$21,$I$9,$I$9-SUMIF($A$10:$A$369,"<="&$E$3,$H$10:$H$369)),0,0),"") ->  | G123: =IFERROR(-IPMT((C123-$P$1)/12,B123,IF(C123=КАЛЬКУЛЯТОР!$C$21,$E$2,$E$2-$E$3),IF(C123=КАЛЬКУЛЯТОР!$C$21,$I$9,$I$9-SUMIF($A$10:$A$369,"<="&$E$3,$H$10:$H$369)),0,0),"") ->  | H123: =IFERROR((-PPMT(C123/12,B123,IF(C123=КАЛЬКУЛЯТОР!$C$21,$E$2,$E$2-$E$3),IF(C123=КАЛЬКУЛЯТОР!$C$21,$I$9,$I$9-SUMIF($A$10:$A$369,"<="&$E$3,$H$10:$H$369)),0,0)),"") ->  | P123: FALSE
A124: 115 | B124: 115 | D124: =IF(A124<=$E$2,-PMT(C124/12,IF(C124=КАЛЬКУЛЯТОР!$C$21,$E$2,$E$2-$E$3),IF(C124=КАЛЬКУЛЯТОР!$C$21,$I$9,$I$9-SUMIF($A$10:$A$369,"<="&$E$3,$H$10:$H$369)),0,0),"") ->  | F124: =IFERROR(-IPMT(C124/12,B124,IF(C124=КАЛЬКУЛЯТОР!$C$21,$E$2,$E$2-$E$3),IF(C124=КАЛЬКУЛЯТОР!$C$21,$I$9,$I$9-SUMIF($A$10:$A$369,"<="&$E$3,$H$10:$H$369)),0,0),"") ->  | G124: =IFERROR(-IPMT((C124-$P$1)/12,B124,IF(C124=КАЛЬКУЛЯТОР!$C$21,$E$2,$E$2-$E$3),IF(C124=КАЛЬКУЛЯТОР!$C$21,$I$9,$I$9-SUMIF($A$10:$A$369,"<="&$E$3,$H$10:$H$369)),0,0),"") ->  | H124: =IFERROR((-PPMT(C124/12,B124,IF(C124=КАЛЬКУЛЯТОР!$C$21,$E$2,$E$2-$E$3),IF(C124=КАЛЬКУЛЯТОР!$C$21,$I$9,$I$9-SUMIF($A$10:$A$369,"<="&$E$3,$H$10:$H$369)),0,0)),"") ->  | P124: FALSE
A125: 116 | B125: 116 | D125: =IF(A125<=$E$2,-PMT(C125/12,IF(C125=КАЛЬКУЛЯТОР!$C$21,$E$2,$E$2-$E$3),IF(C125=КАЛЬКУЛЯТОР!$C$21,$I$9,$I$9-SUMIF($A$10:$A$369,"<="&$E$3,$H$10:$H$369)),0,0),"") ->  | F125: =IFERROR(-IPMT(C125/12,B125,IF(C125=КАЛЬКУЛЯТОР!$C$21,$E$2,$E$2-$E$3),IF(C125=КАЛЬКУЛЯТОР!$C$21,$I$9,$I$9-SUMIF($A$10:$A$369,"<="&$E$3,$H$10:$H$369)),0,0),"") ->  | G125: =IFERROR(-IPMT((C125-$P$1)/12,B125,IF(C125=КАЛЬКУЛЯТОР!$C$21,$E$2,$E$2-$E$3),IF(C125=КАЛЬКУЛЯТОР!$C$21,$I$9,$I$9-SUMIF($A$10:$A$369,"<="&$E$3,$H$10:$H$369)),0,0),"") ->  | H125: =IFERROR((-PPMT(C125/12,B125,IF(C125=КАЛЬКУЛЯТОР!$C$21,$E$2,$E$2-$E$3),IF(C125=КАЛЬКУЛЯТОР!$C$21,$I$9,$I$9-SUMIF($A$10:$A$369,"<="&$E$3,$H$10:$H$369)),0,0)),"") ->  | P125: FALSE
A126: 117 | B126: 117 | D126: =IF(A126<=$E$2,-PMT(C126/12,IF(C126=КАЛЬКУЛЯТОР!$C$21,$E$2,$E$2-$E$3),IF(C126=КАЛЬКУЛЯТОР!$C$21,$I$9,$I$9-SUMIF($A$10:$A$369,"<="&$E$3,$H$10:$H$369)),0,0),"") ->  | F126: =IFERROR(-IPMT(C126/12,B126,IF(C126=КАЛЬКУЛЯТОР!$C$21,$E$2,$E$2-$E$3),IF(C126=КАЛЬКУЛЯТОР!$C$21,$I$9,$I$9-SUMIF($A$10:$A$369,"<="&$E$3,$H$10:$H$369)),0,0),"") ->  | G126: =IFERROR(-IPMT((C126-$P$1)/12,B126,IF(C126=КАЛЬКУЛЯТОР!$C$21,$E$2,$E$2-$E$3),IF(C126=КАЛЬКУЛЯТОР!$C$21,$I$9,$I$9-SUMIF($A$10:$A$369,"<="&$E$3,$H$10:$H$369)),0,0),"") ->  | H126: =IFERROR((-PPMT(C126/12,B126,IF(C126=КАЛЬКУЛЯТОР!$C$21,$E$2,$E$2-$E$3),IF(C126=КАЛЬКУЛЯТОР!$C$21,$I$9,$I$9-SUMIF($A$10:$A$369,"<="&$E$3,$H$10:$H$369)),0,0)),"") ->  | P126: FALSE
A127: 118 | B127: 118 | D127: =IF(A127<=$E$2,-PMT(C127/12,IF(C127=КАЛЬКУЛЯТОР!$C$21,$E$2,$E$2-$E$3),IF(C127=КАЛЬКУЛЯТОР!$C$21,$I$9,$I$9-SUMIF($A$10:$A$369,"<="&$E$3,$H$10:$H$369)),0,0),"") ->  | F127: =IFERROR(-IPMT(C127/12,B127,IF(C127=КАЛЬКУЛЯТОР!$C$21,$E$2,$E$2-$E$3),IF(C127=КАЛЬКУЛЯТОР!$C$21,$I$9,$I$9-SUMIF($A$10:$A$369,"<="&$E$3,$H$10:$H$369)),0,0),"") ->  | G127: =IFERROR(-IPMT((C127-$P$1)/12,B127,IF(C127=КАЛЬКУЛЯТОР!$C$21,$E$2,$E$2-$E$3),IF(C127=КАЛЬКУЛЯТОР!$C$21,$I$9,$I$9-SUMIF($A$10:$A$369,"<="&$E$3,$H$10:$H$369)),0,0),"") ->  | H127: =IFERROR((-PPMT(C127/12,B127,IF(C127=КАЛЬКУЛЯТОР!$C$21,$E$2,$E$2-$E$3),IF(C127=КАЛЬКУЛЯТОР!$C$21,$I$9,$I$9-SUMIF($A$10:$A$369,"<="&$E$3,$H$10:$H$369)),0,0)),"") ->  | P127: FALSE
A128: 119 | B128: 119 | D128: =IF(A128<=$E$2,-PMT(C128/12,IF(C128=КАЛЬКУЛЯТОР!$C$21,$E$2,$E$2-$E$3),IF(C128=КАЛЬКУЛЯТОР!$C$21,$I$9,$I$9-SUMIF($A$10:$A$369,"<="&$E$3,$H$10:$H$369)),0,0),"") ->  | F128: =IFERROR(-IPMT(C128/12,B128,IF(C128=КАЛЬКУЛЯТОР!$C$21,$E$2,$E$2-$E$3),IF(C128=КАЛЬКУЛЯТОР!$C$21,$I$9,$I$9-SUMIF($A$10:$A$369,"<="&$E$3,$H$10:$H$369)),0,0),"") ->  | G128: =IFERROR(-IPMT((C128-$P$1)/12,B128,IF(C128=КАЛЬКУЛЯТОР!$C$21,$E$2,$E$2-$E$3),IF(C128=КАЛЬКУЛЯТОР!$C$21,$I$9,$I$9-SUMIF($A$10:$A$369,"<="&$E$3,$H$10:$H$369)),0,0),"") ->  | H128: =IFERROR((-PPMT(C128/12,B128,IF(C128=КАЛЬКУЛЯТОР!$C$21,$E$2,$E$2-$E$3),IF(C128=КАЛЬКУЛЯТОР!$C$21,$I$9,$I$9-SUMIF($A$10:$A$369,"<="&$E$3,$H$10:$H$369)),0,0)),"") ->  | P128: FALSE
A129: 120 | B129: 120 | D129: =IF(A129<=$E$2,-PMT(C129/12,IF(C129=КАЛЬКУЛЯТОР!$C$21,$E$2,$E$2-$E$3),IF(C129=КАЛЬКУЛЯТОР!$C$21,$I$9,$I$9-SUMIF($A$10:$A$369,"<="&$E$3,$H$10:$H$369)),0,0),"") ->  | F129: =IFERROR(-IPMT(C129/12,B129,IF(C129=КАЛЬКУЛЯТОР!$C$21,$E$2,$E$2-$E$3),IF(C129=КАЛЬКУЛЯТОР!$C$21,$I$9,$I$9-SUMIF($A$10:$A$369,"<="&$E$3,$H$10:$H$369)),0,0),"") ->  | G129: =IFERROR(-IPMT((C129-$P$1)/12,B129,IF(C129=КАЛЬКУЛЯТОР!$C$21,$E$2,$E$2-$E$3),IF(C129=КАЛЬКУЛЯТОР!$C$21,$I$9,$I$9-SUMIF($A$10:$A$369,"<="&$E$3,$H$10:$H$369)),0,0),"") ->  | H129: =IFERROR((-PPMT(C129/12,B129,IF(C129=КАЛЬКУЛЯТОР!$C$21,$E$2,$E$2-$E$3),IF(C129=КАЛЬКУЛЯТОР!$C$21,$I$9,$I$9-SUMIF($A$10:$A$369,"<="&$E$3,$H$10:$H$369)),0,0)),"") ->  | P129: FALSE
A130: 121 | B130: 121 | D130: =IF(A130<=$E$2,-PMT(C130/12,IF(C130=КАЛЬКУЛЯТОР!$C$21,$E$2,$E$2-$E$3),IF(C130=КАЛЬКУЛЯТОР!$C$21,$I$9,$I$9-SUMIF($A$10:$A$369,"<="&$E$3,$H$10:$H$369)),0,0)+E130,"") ->  | E130: =IF($E$2>$A129,(I129+SUM(F130:F141))*($K$4+$K$5),0) -> 0.00 | F130: =IFERROR(-IPMT(C130/12,B130,IF(C130=КАЛЬКУЛЯТОР!$C$21,$E$2,$E$2-$E$3),IF(C130=КАЛЬКУЛЯТОР!$C$21,$I$9,$I$9-SUMIF($A$10:$A$369,"<="&$E$3,$H$10:$H$369)),0,0),"") ->  | G130: =IFERROR(-IPMT((C130-$P$1)/12,B130,IF(C130=КАЛЬКУЛЯТОР!$C$21,$E$2,$E$2-$E$3),IF(C130=КАЛЬКУЛЯТОР!$C$21,$I$9,$I$9-SUMIF($A$10:$A$369,"<="&$E$3,$H$10:$H$369)),0,0),"") ->  | H130: =IFERROR((-PPMT(C130/12,B130,IF(C130=КАЛЬКУЛЯТОР!$C$21,$E$2,$E$2-$E$3),IF(C130=КАЛЬКУЛЯТОР!$C$21,$I$9,$I$9-SUMIF($A$10:$A$369,"<="&$E$3,$H$10:$H$369)),0,0)),"") ->  | K130: =PV($E$5/12,A130-1,0,-E130) -> 0.00 | P130: FALSE
A131: 122 | B131: 122 | D131: =IF(A131<=$E$2,-PMT(C131/12,IF(C131=КАЛЬКУЛЯТОР!$C$21,$E$2,$E$2-$E$3),IF(C131=КАЛЬКУЛЯТОР!$C$21,$I$9,$I$9-SUMIF($A$10:$A$369,"<="&$E$3,$H$10:$H$369)),0,0),"") ->  | F131: =IFERROR(-IPMT(C131/12,B131,IF(C131=КАЛЬКУЛЯТОР!$C$21,$E$2,$E$2-$E$3),IF(C131=КАЛЬКУЛЯТОР!$C$21,$I$9,$I$9-SUMIF($A$10:$A$369,"<="&$E$3,$H$10:$H$369)),0,0),"") ->  | G131: =IFERROR(-IPMT((C131-$P$1)/12,B131,IF(C131=КАЛЬКУЛЯТОР!$C$21,$E$2,$E$2-$E$3),IF(C131=КАЛЬКУЛЯТОР!$C$21,$I$9,$I$9-SUMIF($A$10:$A$369,"<="&$E$3,$H$10:$H$369)),0,0),"") ->  | H131: =IFERROR((-PPMT(C131/12,B131,IF(C131=КАЛЬКУЛЯТОР!$C$21,$E$2,$E$2-$E$3),IF(C131=КАЛЬКУЛЯТОР!$C$21,$I$9,$I$9-SUMIF($A$10:$A$369,"<="&$E$3,$H$10:$H$369)),0,0)),"") ->  | P131: FALSE
A132: 123 | B132: 123 | D132: =IF(A132<=$E$2,-PMT(C132/12,IF(C132=КАЛЬКУЛЯТОР!$C$21,$E$2,$E$2-$E$3),IF(C132=КАЛЬКУЛЯТОР!$C$21,$I$9,$I$9-SUMIF($A$10:$A$369,"<="&$E$3,$H$10:$H$369)),0,0),"") ->  | F132: =IFERROR(-IPMT(C132/12,B132,IF(C132=КАЛЬКУЛЯТОР!$C$21,$E$2,$E$2-$E$3),IF(C132=КАЛЬКУЛЯТОР!$C$21,$I$9,$I$9-SUMIF($A$10:$A$369,"<="&$E$3,$H$10:$H$369)),0,0),"") ->  | G132: =IFERROR(-IPMT((C132-$P$1)/12,B132,IF(C132=КАЛЬКУЛЯТОР!$C$21,$E$2,$E$2-$E$3),IF(C132=КАЛЬКУЛЯТОР!$C$21,$I$9,$I$9-SUMIF($A$10:$A$369,"<="&$E$3,$H$10:$H$369)),0,0),"") ->  | H132: =IFERROR((-PPMT(C132/12,B132,IF(C132=КАЛЬКУЛЯТОР!$C$21,$E$2,$E$2-$E$3),IF(C132=КАЛЬКУЛЯТОР!$C$21,$I$9,$I$9-SUMIF($A$10:$A$369,"<="&$E$3,$H$10:$H$369)),0,0)),"") ->  | P132: FALSE
A133: 124 | B133: 124 | D133: =IF(A133<=$E$2,-PMT(C133/12,IF(C133=КАЛЬКУЛЯТОР!$C$21,$E$2,$E$2-$E$3),IF(C133=КАЛЬКУЛЯТОР!$C$21,$I$9,$I$9-SUMIF($A$10:$A$369,"<="&$E$3,$H$10:$H$369)),0,0),"") ->  | F133: =IFERROR(-IPMT(C133/12,B133,IF(C133=КАЛЬКУЛЯТОР!$C$21,$E$2,$E$2-$E$3),IF(C133=КАЛЬКУЛЯТОР!$C$21,$I$9,$I$9-SUMIF($A$10:$A$369,"<="&$E$3,$H$10:$H$369)),0,0),"") ->  | G133: =IFERROR(-IPMT((C133-$P$1)/12,B133,IF(C133=КАЛЬКУЛЯТОР!$C$21,$E$2,$E$2-$E$3),IF(C133=КАЛЬКУЛЯТОР!$C$21,$I$9,$I$9-SUMIF($A$10:$A$369,"<="&$E$3,$H$10:$H$369)),0,0),"") ->  | H133: =IFERROR((-PPMT(C133/12,B133,IF(C133=КАЛЬКУЛЯТОР!$C$21,$E$2,$E$2-$E$3),IF(C133=КАЛЬКУЛЯТОР!$C$21,$I$9,$I$9-SUMIF($A$10:$A$369,"<="&$E$3,$H$10:$H$369)),0,0)),"") ->  | P133: FALSE
A134: 125 | B134: 125 | D134: =IF(A134<=$E$2,-PMT(C134/12,IF(C134=КАЛЬКУЛЯТОР!$C$21,$E$2,$E$2-$E$3),IF(C134=КАЛЬКУЛЯТОР!$C$21,$I$9,$I$9-SUMIF($A$10:$A$369,"<="&$E$3,$H$10:$H$369)),0,0),"") ->  | F134: =IFERROR(-IPMT(C134/12,B134,IF(C134=КАЛЬКУЛЯТОР!$C$21,$E$2,$E$2-$E$3),IF(C134=КАЛЬКУЛЯТОР!$C$21,$I$9,$I$9-SUMIF($A$10:$A$369,"<="&$E$3,$H$10:$H$369)),0,0),"") ->  | G134: =IFERROR(-IPMT((C134-$P$1)/12,B134,IF(C134=КАЛЬКУЛЯТОР!$C$21,$E$2,$E$2-$E$3),IF(C134=КАЛЬКУЛЯТОР!$C$21,$I$9,$I$9-SUMIF($A$10:$A$369,"<="&$E$3,$H$10:$H$369)),0,0),"") ->  | H134: =IFERROR((-PPMT(C134/12,B134,IF(C134=КАЛЬКУЛЯТОР!$C$21,$E$2,$E$2-$E$3),IF(C134=КАЛЬКУЛЯТОР!$C$21,$I$9,$I$9-SUMIF($A$10:$A$369,"<="&$E$3,$H$10:$H$369)),0,0)),"") ->  | P134: FALSE
A135: 126 | B135: 126 | D135: =IF(A135<=$E$2,-PMT(C135/12,IF(C135=КАЛЬКУЛЯТОР!$C$21,$E$2,$E$2-$E$3),IF(C135=КАЛЬКУЛЯТОР!$C$21,$I$9,$I$9-SUMIF($A$10:$A$369,"<="&$E$3,$H$10:$H$369)),0,0),"") ->  | F135: =IFERROR(-IPMT(C135/12,B135,IF(C135=КАЛЬКУЛЯТОР!$C$21,$E$2,$E$2-$E$3),IF(C135=КАЛЬКУЛЯТОР!$C$21,$I$9,$I$9-SUMIF($A$10:$A$369,"<="&$E$3,$H$10:$H$369)),0,0),"") ->  | G135: =IFERROR(-IPMT((C135-$P$1)/12,B135,IF(C135=КАЛЬКУЛЯТОР!$C$21,$E$2,$E$2-$E$3),IF(C135=КАЛЬКУЛЯТОР!$C$21,$I$9,$I$9-SUMIF($A$10:$A$369,"<="&$E$3,$H$10:$H$369)),0,0),"") ->  | H135: =IFERROR((-PPMT(C135/12,B135,IF(C135=КАЛЬКУЛЯТОР!$C$21,$E$2,$E$2-$E$3),IF(C135=КАЛЬКУЛЯТОР!$C$21,$I$9,$I$9-SUMIF($A$10:$A$369,"<="&$E$3,$H$10:$H$369)),0,0)),"") ->  | P135: FALSE
A136: 127 | B136: 127 | D136: =IF(A136<=$E$2,-PMT(C136/12,IF(C136=КАЛЬКУЛЯТОР!$C$21,$E$2,$E$2-$E$3),IF(C136=КАЛЬКУЛЯТОР!$C$21,$I$9,$I$9-SUMIF($A$10:$A$369,"<="&$E$3,$H$10:$H$369)),0,0),"") ->  | F136: =IFERROR(-IPMT(C136/12,B136,IF(C136=КАЛЬКУЛЯТОР!$C$21,$E$2,$E$2-$E$3),IF(C136=КАЛЬКУЛЯТОР!$C$21,$I$9,$I$9-SUMIF($A$10:$A$369,"<="&$E$3,$H$10:$H$369)),0,0),"") ->  | G136: =IFERROR(-IPMT((C136-$P$1)/12,B136,IF(C136=КАЛЬКУЛЯТОР!$C$21,$E$2,$E$2-$E$3),IF(C136=КАЛЬКУЛЯТОР!$C$21,$I$9,$I$9-SUMIF($A$10:$A$369,"<="&$E$3,$H$10:$H$369)),0,0),"") ->  | H136: =IFERROR((-PPMT(C136/12,B136,IF(C136=КАЛЬКУЛЯТОР!$C$21,$E$2,$E$2-$E$3),IF(C136=КАЛЬКУЛЯТОР!$C$21,$I$9,$I$9-SUMIF($A$10:$A$369,"<="&$E$3,$H$10:$H$369)),0,0)),"") ->  | P136: FALSE
A137: 128 | B137: 128 | D137: =IF(A137<=$E$2,-PMT(C137/12,IF(C137=КАЛЬКУЛЯТОР!$C$21,$E$2,$E$2-$E$3),IF(C137=КАЛЬКУЛЯТОР!$C$21,$I$9,$I$9-SUMIF($A$10:$A$369,"<="&$E$3,$H$10:$H$369)),0,0),"") ->  | F137: =IFERROR(-IPMT(C137/12,B137,IF(C137=КАЛЬКУЛЯТОР!$C$21,$E$2,$E$2-$E$3),IF(C137=КАЛЬКУЛЯТОР!$C$21,$I$9,$I$9-SUMIF($A$10:$A$369,"<="&$E$3,$H$10:$H$369)),0,0),"") ->  | G137: =IFERROR(-IPMT((C137-$P$1)/12,B137,IF(C137=КАЛЬКУЛЯТОР!$C$21,$E$2,$E$2-$E$3),IF(C137=КАЛЬКУЛЯТОР!$C$21,$I$9,$I$9-SUMIF($A$10:$A$369,"<="&$E$3,$H$10:$H$369)),0,0),"") ->  | H137: =IFERROR((-PPMT(C137/12,B137,IF(C137=КАЛЬКУЛЯТОР!$C$21,$E$2,$E$2-$E$3),IF(C137=КАЛЬКУЛЯТОР!$C$21,$I$9,$I$9-SUMIF($A$10:$A$369,"<="&$E$3,$H$10:$H$369)),0,0)),"") ->  | P137: FALSE
A138: 129 | B138: 129 | D138: =IF(A138<=$E$2,-PMT(C138/12,IF(C138=КАЛЬКУЛЯТОР!$C$21,$E$2,$E$2-$E$3),IF(C138=КАЛЬКУЛЯТОР!$C$21,$I$9,$I$9-SUMIF($A$10:$A$369,"<="&$E$3,$H$10:$H$369)),0,0),"") ->  | F138: =IFERROR(-IPMT(C138/12,B138,IF(C138=КАЛЬКУЛЯТОР!$C$21,$E$2,$E$2-$E$3),IF(C138=КАЛЬКУЛЯТОР!$C$21,$I$9,$I$9-SUMIF($A$10:$A$369,"<="&$E$3,$H$10:$H$369)),0,0),"") ->  | G138: =IFERROR(-IPMT((C138-$P$1)/12,B138,IF(C138=КАЛЬКУЛЯТОР!$C$21,$E$2,$E$2-$E$3),IF(C138=КАЛЬКУЛЯТОР!$C$21,$I$9,$I$9-SUMIF($A$10:$A$369,"<="&$E$3,$H$10:$H$369)),0,0),"") ->  | H138: =IFERROR((-PPMT(C138/12,B138,IF(C138=КАЛЬКУЛЯТОР!$C$21,$E$2,$E$2-$E$3),IF(C138=КАЛЬКУЛЯТОР!$C$21,$I$9,$I$9-SUMIF($A$10:$A$369,"<="&$E$3,$H$10:$H$369)),0,0)),"") ->  | I138: =IFERROR(I137-H138,"") ->  | J138: =PV($E$5/12,A138-1,0,-D138) ->  | L138: =PV($E$5/12,A138-1,0,-F138) ->  | M138: =PV($E$5/12,A138-1,0,-G138) ->  | N138: =PV($E$5/12,A138-1,0,-H138) ->  | O138: =O137-N138 ->  | P138: =AND(A138<=$E$3) -> FALSE
A139: 130 | B139: =IF(P139=$P$10,B138+1,A139-$E$3) -> 130 | C139: =IF(A139<=$E$2,$E$4,"") ->  | D139: =IF(A139<=$E$2,-PMT(C139/12,IF(C139=КАЛЬКУЛЯТОР!$C$21,$E$2,$E$2-$E$3),IF(C139=КАЛЬКУЛЯТОР!$C$21,$I$9,$I$9-SUMIF($A$10:$A$369,"<="&$E$3,$H$10:$H$369)),0,0),"") ->  | F139: =IFERROR(-IPMT(C139/12,B139,IF(C139=КАЛЬКУЛЯТОР!$C$21,$E$2,$E$2-$E$3),IF(C139=КАЛЬКУЛЯТОР!$C$21,$I$9,$I$9-SUMIF($A$10:$A$369,"<="&$E$3,$H$10:$H$369)),0,0),"") ->  | G139: =IFERROR(-IPMT((C139-$P$1)/12,B139,IF(C139=КАЛЬКУЛЯТОР!$C$21,$E$2,$E$2-$E$3),IF(C139=КАЛЬКУЛЯТОР!$C$21,$I$9,$I$9-SUMIF($A$10:$A$369,"<="&$E$3,$H$10:$H$369)),0,0),"") ->  | H139: =IFERROR((-PPMT(C139/12,B139,IF(C139=КАЛЬКУЛЯТОР!$C$21,$E$2,$E$2-$E$3),IF(C139=КАЛЬКУЛЯТОР!$C$21,$I$9,$I$9-SUMIF($A$10:$A$369,"<="&$E$3,$H$10:$H$369)),0,0)),"") ->  | P139: FALSE
A140: 131 | B140: 131 | D140: =IF(A140<=$E$2,-PMT(C140/12,IF(C140=КАЛЬКУЛЯТОР!$C$21,$E$2,$E$2-$E$3),IF(C140=КАЛЬКУЛЯТОР!$C$21,$I$9,$I$9-SUMIF($A$10:$A$369,"<="&$E$3,$H$10:$H$369)),0,0),"") ->  | F140: =IFERROR(-IPMT(C140/12,B140,IF(C140=КАЛЬКУЛЯТОР!$C$21,$E$2,$E$2-$E$3),IF(C140=КАЛЬКУЛЯТОР!$C$21,$I$9,$I$9-SUMIF($A$10:$A$369,"<="&$E$3,$H$10:$H$369)),0,0),"") ->  | G140: =IFERROR(-IPMT((C140-$P$1)/12,B140,IF(C140=КАЛЬКУЛЯТОР!$C$21,$E$2,$E$2-$E$3),IF(C140=КАЛЬКУЛЯТОР!$C$21,$I$9,$I$9-SUMIF($A$10:$A$369,"<="&$E$3,$H$10:$H$369)),0,0),"") ->  | H140: =IFERROR((-PPMT(C140/12,B140,IF(C140=КАЛЬКУЛЯТОР!$C$21,$E$2,$E$2-$E$3),IF(C140=КАЛЬКУЛЯТОР!$C$21,$I$9,$I$9-SUMIF($A$10:$A$369,"<="&$E$3,$H$10:$H$369)),0,0)),"") ->  | P140: FALSE
A141: 132 | B141: 132 | D141: =IF(A141<=$E$2,-PMT(C141/12,IF(C141=КАЛЬКУЛЯТОР!$C$21,$E$2,$E$2-$E$3),IF(C141=КАЛЬКУЛЯТОР!$C$21,$I$9,$I$9-SUMIF($A$10:$A$369,"<="&$E$3,$H$10:$H$369)),0,0),"") ->  | F141: =IFERROR(-IPMT(C141/12,B141,IF(C141=КАЛЬКУЛЯТОР!$C$21,$E$2,$E$2-$E$3),IF(C141=КАЛЬКУЛЯТОР!$C$21,$I$9,$I$9-SUMIF($A$10:$A$369,"<="&$E$3,$H$10:$H$369)),0,0),"") ->  | G141: =IFERROR(-IPMT((C141-$P$1)/12,B141,IF(C141=КАЛЬКУЛЯТОР!$C$21,$E$2,$E$2-$E$3),IF(C141=КАЛЬКУЛЯТОР!$C$21,$I$9,$I$9-SUMIF($A$10:$A$369,"<="&$E$3,$H$10:$H$369)),0,0),"") ->  | H141: =IFERROR((-PPMT(C141/12,B141,IF(C141=КАЛЬКУЛЯТОР!$C$21,$E$2,$E$2-$E$3),IF(C141=КАЛЬКУЛЯТОР!$C$21,$I$9,$I$9-SUMIF($A$10:$A$369,"<="&$E$3,$H$10:$H$369)),0,0)),"") ->  | P141: FALSE
A142: 133 | B142: 133 | D142: =IF(A142<=$E$2,-PMT(C142/12,IF(C142=КАЛЬКУЛЯТОР!$C$21,$E$2,$E$2-$E$3),IF(C142=КАЛЬКУЛЯТОР!$C$21,$I$9,$I$9-SUMIF($A$10:$A$369,"<="&$E$3,$H$10:$H$369)),0,0)+E142,"") ->  | E142: =IF($E$2>$A141,(I141+SUM(F142:F153))*($K$4+$K$5),0) -> 0.00 | F142: =IFERROR(-IPMT(C142/12,B142,IF(C142=КАЛЬКУЛЯТОР!$C$21,$E$2,$E$2-$E$3),IF(C142=КАЛЬКУЛЯТОР!$C$21,$I$9,$I$9-SUMIF($A$10:$A$369,"<="&$E$3,$H$10:$H$369)),0,0),"") ->  | G142: =IFERROR(-IPMT((C142-$P$1)/12,B142,IF(C142=КАЛЬКУЛЯТОР!$C$21,$E$2,$E$2-$E$3),IF(C142=КАЛЬКУЛЯТОР!$C$21,$I$9,$I$9-SUMIF($A$10:$A$369,"<="&$E$3,$H$10:$H$369)),0,0),"") ->  | H142: =IFERROR((-PPMT(C142/12,B142,IF(C142=КАЛЬКУЛЯТОР!$C$21,$E$2,$E$2-$E$3),IF(C142=КАЛЬКУЛЯТОР!$C$21,$I$9,$I$9-SUMIF($A$10:$A$369,"<="&$E$3,$H$10:$H$369)),0,0)),"") ->  | K142: =PV($E$5/12,A142-1,0,-E142) -> 0.00 | P142: FALSE
A143: 134 | B143: 134 | D143: =IF(A143<=$E$2,-PMT(C143/12,IF(C143=КАЛЬКУЛЯТОР!$C$21,$E$2,$E$2-$E$3),IF(C143=КАЛЬКУЛЯТОР!$C$21,$I$9,$I$9-SUMIF($A$10:$A$369,"<="&$E$3,$H$10:$H$369)),0,0),"") ->  | F143: =IFERROR(-IPMT(C143/12,B143,IF(C143=КАЛЬКУЛЯТОР!$C$21,$E$2,$E$2-$E$3),IF(C143=КАЛЬКУЛЯТОР!$C$21,$I$9,$I$9-SUMIF($A$10:$A$369,"<="&$E$3,$H$10:$H$369)),0,0),"") ->  | G143: =IFERROR(-IPMT((C143-$P$1)/12,B143,IF(C143=КАЛЬКУЛЯТОР!$C$21,$E$2,$E$2-$E$3),IF(C143=КАЛЬКУЛЯТОР!$C$21,$I$9,$I$9-SUMIF($A$10:$A$369,"<="&$E$3,$H$10:$H$369)),0,0),"") ->  | H143: =IFERROR((-PPMT(C143/12,B143,IF(C143=КАЛЬКУЛЯТОР!$C$21,$E$2,$E$2-$E$3),IF(C143=КАЛЬКУЛЯТОР!$C$21,$I$9,$I$9-SUMIF($A$10:$A$369,"<="&$E$3,$H$10:$H$369)),0,0)),"") ->  | P143: FALSE
A144: 135 | B144: 135 | D144: =IF(A144<=$E$2,-PMT(C144/12,IF(C144=КАЛЬКУЛЯТОР!$C$21,$E$2,$E$2-$E$3),IF(C144=КАЛЬКУЛЯТОР!$C$21,$I$9,$I$9-SUMIF($A$10:$A$369,"<="&$E$3,$H$10:$H$369)),0,0),"") ->  | F144: =IFERROR(-IPMT(C144/12,B144,IF(C144=КАЛЬКУЛЯТОР!$C$21,$E$2,$E$2-$E$3),IF(C144=КАЛЬКУЛЯТОР!$C$21,$I$9,$I$9-SUMIF($A$10:$A$369,"<="&$E$3,$H$10:$H$369)),0,0),"") ->  | G144: =IFERROR(-IPMT((C144-$P$1)/12,B144,IF(C144=КАЛЬКУЛЯТОР!$C$21,$E$2,$E$2-$E$3),IF(C144=КАЛЬКУЛЯТОР!$C$21,$I$9,$I$9-SUMIF($A$10:$A$369,"<="&$E$3,$H$10:$H$369)),0,0),"") ->  | H144: =IFERROR((-PPMT(C144/12,B144,IF(C144=КАЛЬКУЛЯТОР!$C$21,$E$2,$E$2-$E$3),IF(C144=КАЛЬКУЛЯТОР!$C$21,$I$9,$I$9-SUMIF($A$10:$A$369,"<="&$E$3,$H$10:$H$369)),0,0)),"") ->  | P144: FALSE
A145: 136 | B145: 136 | D145: =IF(A145<=$E$2,-PMT(C145/12,IF(C145=КАЛЬКУЛЯТОР!$C$21,$E$2,$E$2-$E$3),IF(C145=КАЛЬКУЛЯТОР!$C$21,$I$9,$I$9-SUMIF($A$10:$A$369,"<="&$E$3,$H$10:$H$369)),0,0),"") ->  | F145: =IFERROR(-IPMT(C145/12,B145,IF(C145=КАЛЬКУЛЯТОР!$C$21,$E$2,$E$2-$E$3),IF(C145=КАЛЬКУЛЯТОР!$C$21,$I$9,$I$9-SUMIF($A$10:$A$369,"<="&$E$3,$H$10:$H$369)),0,0),"") ->  | G145: =IFERROR(-IPMT((C145-$P$1)/12,B145,IF(C145=КАЛЬКУЛЯТОР!$C$21,$E$2,$E$2-$E$3),IF(C145=КАЛЬКУЛЯТОР!$C$21,$I$9,$I$9-SUMIF($A$10:$A$369,"<="&$E$3,$H$10:$H$369)),0,0),"") ->  | H145: =IFERROR((-PPMT(C145/12,B145,IF(C145=КАЛЬКУЛЯТОР!$C$21,$E$2,$E$2-$E$3),IF(C145=КАЛЬКУЛЯТОР!$C$21,$I$9,$I$9-SUMIF($A$10:$A$369,"<="&$E$3,$H$10:$H$369)),0,0)),"") ->  | P145: FALSE
A146: 137 | B146: 137 | D146: =IF(A146<=$E$2,-PMT(C146/12,IF(C146=КАЛЬКУЛЯТОР!$C$21,$E$2,$E$2-$E$3),IF(C146=КАЛЬКУЛЯТОР!$C$21,$I$9,$I$9-SUMIF($A$10:$A$369,"<="&$E$3,$H$10:$H$369)),0,0),"") ->  | F146: =IFERROR(-IPMT(C146/12,B146,IF(C146=КАЛЬКУЛЯТОР!$C$21,$E$2,$E$2-$E$3),IF(C146=КАЛЬКУЛЯТОР!$C$21,$I$9,$I$9-SUMIF($A$10:$A$369,"<="&$E$3,$H$10:$H$369)),0,0),"") ->  | G146: =IFERROR(-IPMT((C146-$P$1)/12,B146,IF(C146=КАЛЬКУЛЯТОР!$C$21,$E$2,$E$2-$E$3),IF(C146=КАЛЬКУЛЯТОР!$C$21,$I$9,$I$9-SUMIF($A$10:$A$369,"<="&$E$3,$H$10:$H$369)),0,0),"") ->  | H146: =IFERROR((-PPMT(C146/12,B146,IF(C146=КАЛЬКУЛЯТОР!$C$21,$E$2,$E$2-$E$3),IF(C146=КАЛЬКУЛЯТОР!$C$21,$I$9,$I$9-SUMIF($A$10:$A$369,"<="&$E$3,$H$10:$H$369)),0,0)),"") ->  | P146: FALSE
A147: 138 | B147: 138 | D147: =IF(A147<=$E$2,-PMT(C147/12,IF(C147=КАЛЬКУЛЯТОР!$C$21,$E$2,$E$2-$E$3),IF(C147=КАЛЬКУЛЯТОР!$C$21,$I$9,$I$9-SUMIF($A$10:$A$369,"<="&$E$3,$H$10:$H$369)),0,0),"") ->  | F147: =IFERROR(-IPMT(C147/12,B147,IF(C147=КАЛЬКУЛЯТОР!$C$21,$E$2,$E$2-$E$3),IF(C147=КАЛЬКУЛЯТОР!$C$21,$I$9,$I$9-SUMIF($A$10:$A$369,"<="&$E$3,$H$10:$H$369)),0,0),"") ->  | G147: =IFERROR(-IPMT((C147-$P$1)/12,B147,IF(C147=КАЛЬКУЛЯТОР!$C$21,$E$2,$E$2-$E$3),IF(C147=КАЛЬКУЛЯТОР!$C$21,$I$9,$I$9-SUMIF($A$10:$A$369,"<="&$E$3,$H$10:$H$369)),0,0),"") ->  | H147: =IFERROR((-PPMT(C147/12,B147,IF(C147=КАЛЬКУЛЯТОР!$C$21,$E$2,$E$2-$E$3),IF(C147=КАЛЬКУЛЯТОР!$C$21,$I$9,$I$9-SUMIF($A$10:$A$369,"<="&$E$3,$H$10:$H$369)),0,0)),"") ->  | P147: FALSE
A148: 139 | B148: 139 | D148: =IF(A148<=$E$2,-PMT(C148/12,IF(C148=КАЛЬКУЛЯТОР!$C$21,$E$2,$E$2-$E$3),IF(C148=КАЛЬКУЛЯТОР!$C$21,$I$9,$I$9-SUMIF($A$10:$A$369,"<="&$E$3,$H$10:$H$369)),0,0),"") ->  | F148: =IFERROR(-IPMT(C148/12,B148,IF(C148=КАЛЬКУЛЯТОР!$C$21,$E$2,$E$2-$E$3),IF(C148=КАЛЬКУЛЯТОР!$C$21,$I$9,$I$9-SUMIF($A$10:$A$369,"<="&$E$3,$H$10:$H$369)),0,0),"") ->  | G148: =IFERROR(-IPMT((C148-$P$1)/12,B148,IF(C148=КАЛЬКУЛЯТОР!$C$21,$E$2,$E$2-$E$3),IF(C148=КАЛЬКУЛЯТОР!$C$21,$I$9,$I$9-SUMIF($A$10:$A$369,"<="&$E$3,$H$10:$H$369)),0,0),"") ->  | H148: =IFERROR((-PPMT(C148/12,B148,IF(C148=КАЛЬКУЛЯТОР!$C$21,$E$2,$E$2-$E$3),IF(C148=КАЛЬКУЛЯТОР!$C$21,$I$9,$I$9-SUMIF($A$10:$A$369,"<="&$E$3,$H$10:$H$369)),0,0)),"") ->  | P148: FALSE
A149: 140 | B149: 140 | D149: =IF(A149<=$E$2,-PMT(C149/12,IF(C149=КАЛЬКУЛЯТОР!$C$21,$E$2,$E$2-$E$3),IF(C149=КАЛЬКУЛЯТОР!$C$21,$I$9,$I$9-SUMIF($A$10:$A$369,"<="&$E$3,$H$10:$H$369)),0,0),"") ->  | F149: =IFERROR(-IPMT(C149/12,B149,IF(C149=КАЛЬКУЛЯТОР!$C$21,$E$2,$E$2-$E$3),IF(C149=КАЛЬКУЛЯТОР!$C$21,$I$9,$I$9-SUMIF($A$10:$A$369,"<="&$E$3,$H$10:$H$369)),0,0),"") ->  | G149: =IFERROR(-IPMT((C149-$P$1)/12,B149,IF(C149=КАЛЬКУЛЯТОР!$C$21,$E$2,$E$2-$E$3),IF(C149=КАЛЬКУЛЯТОР!$C$21,$I$9,$I$9-SUMIF($A$10:$A$369,"<="&$E$3,$H$10:$H$369)),0,0),"") ->  | H149: =IFERROR((-PPMT(C149/12,B149,IF(C149=КАЛЬКУЛЯТОР!$C$21,$E$2,$E$2-$E$3),IF(C149=КАЛЬКУЛЯТОР!$C$21,$I$9,$I$9-SUMIF($A$10:$A$369,"<="&$E$3,$H$10:$H$369)),0,0)),"") ->  | P149: FALSE
A150: 141 | B150: 141 | D150: =IF(A150<=$E$2,-PMT(C150/12,IF(C150=КАЛЬКУЛЯТОР!$C$21,$E$2,$E$2-$E$3),IF(C150=КАЛЬКУЛЯТОР!$C$21,$I$9,$I$9-SUMIF($A$10:$A$369,"<="&$E$3,$H$10:$H$369)),0,0),"") ->  | F150: =IFERROR(-IPMT(C150/12,B150,IF(C150=КАЛЬКУЛЯТОР!$C$21,$E$2,$E$2-$E$3),IF(C150=КАЛЬКУЛЯТОР!$C$21,$I$9,$I$9-SUMIF($A$10:$A$369,"<="&$E$3,$H$10:$H$369)),0,0),"") ->  | G150: =IFERROR(-IPMT((C150-$P$1)/12,B150,IF(C150=КАЛЬКУЛЯТОР!$C$21,$E$2,$E$2-$E$3),IF(C150=КАЛЬКУЛЯТОР!$C$21,$I$9,$I$9-SUMIF($A$10:$A$369,"<="&$E$3,$H$10:$H$369)),0,0),"") ->  | H150: =IFERROR((-PPMT(C150/12,B150,IF(C150=КАЛЬКУЛЯТОР!$C$21,$E$2,$E$2-$E$3),IF(C150=КАЛЬКУЛЯТОР!$C$21,$I$9,$I$9-SUMIF($A$10:$A$369,"<="&$E$3,$H$10:$H$369)),0,0)),"") ->  | P150: FALSE
A151: 142 | B151: 142 | D151: =IF(A151<=$E$2,-PMT(C151/12,IF(C151=КАЛЬКУЛЯТОР!$C$21,$E$2,$E$2-$E$3),IF(C151=КАЛЬКУЛЯТОР!$C$21,$I$9,$I$9-SUMIF($A$10:$A$369,"<="&$E$3,$H$10:$H$369)),0,0),"") ->  | F151: =IFERROR(-IPMT(C151/12,B151,IF(C151=КАЛЬКУЛЯТОР!$C$21,$E$2,$E$2-$E$3),IF(C151=КАЛЬКУЛЯТОР!$C$21,$I$9,$I$9-SUMIF($A$10:$A$369,"<="&$E$3,$H$10:$H$369)),0,0),"") ->  | G151: =IFERROR(-IPMT((C151-$P$1)/12,B151,IF(C151=КАЛЬКУЛЯТОР!$C$21,$E$2,$E$2-$E$3),IF(C151=КАЛЬКУЛЯТОР!$C$21,$I$9,$I$9-SUMIF($A$10:$A$369,"<="&$E$3,$H$10:$H$369)),0,0),"") ->  | H151: =IFERROR((-PPMT(C151/12,B151,IF(C151=КАЛЬКУЛЯТОР!$C$21,$E$2,$E$2-$E$3),IF(C151=КАЛЬКУЛЯТОР!$C$21,$I$9,$I$9-SUMIF($A$10:$A$369,"<="&$E$3,$H$10:$H$369)),0,0)),"") ->  | P151: FALSE
A152: 143 | B152: 143 | D152: =IF(A152<=$E$2,-PMT(C152/12,IF(C152=КАЛЬКУЛЯТОР!$C$21,$E$2,$E$2-$E$3),IF(C152=КАЛЬКУЛЯТОР!$C$21,$I$9,$I$9-SUMIF($A$10:$A$369,"<="&$E$3,$H$10:$H$369)),0,0),"") ->  | F152: =IFERROR(-IPMT(C152/12,B152,IF(C152=КАЛЬКУЛЯТОР!$C$21,$E$2,$E$2-$E$3),IF(C152=КАЛЬКУЛЯТОР!$C$21,$I$9,$I$9-SUMIF($A$10:$A$369,"<="&$E$3,$H$10:$H$369)),0,0),"") ->  | G152: =IFERROR(-IPMT((C152-$P$1)/12,B152,IF(C152=КАЛЬКУЛЯТОР!$C$21,$E$2,$E$2-$E$3),IF(C152=КАЛЬКУЛЯТОР!$C$21,$I$9,$I$9-SUMIF($A$10:$A$369,"<="&$E$3,$H$10:$H$369)),0,0),"") ->  | H152: =IFERROR((-PPMT(C152/12,B152,IF(C152=КАЛЬКУЛЯТОР!$C$21,$E$2,$E$2-$E$3),IF(C152=КАЛЬКУЛЯТОР!$C$21,$I$9,$I$9-SUMIF($A$10:$A$369,"<="&$E$3,$H$10:$H$369)),0,0)),"") ->  | P152: FALSE
A153: 144 | B153: 144 | D153: =IF(A153<=$E$2,-PMT(C153/12,IF(C153=КАЛЬКУЛЯТОР!$C$21,$E$2,$E$2-$E$3),IF(C153=КАЛЬКУЛЯТОР!$C$21,$I$9,$I$9-SUMIF($A$10:$A$369,"<="&$E$3,$H$10:$H$369)),0,0),"") ->  | F153: =IFERROR(-IPMT(C153/12,B153,IF(C153=КАЛЬКУЛЯТОР!$C$21,$E$2,$E$2-$E$3),IF(C153=КАЛЬКУЛЯТОР!$C$21,$I$9,$I$9-SUMIF($A$10:$A$369,"<="&$E$3,$H$10:$H$369)),0,0),"") ->  | G153: =IFERROR(-IPMT((C153-$P$1)/12,B153,IF(C153=КАЛЬКУЛЯТОР!$C$21,$E$2,$E$2-$E$3),IF(C153=КАЛЬКУЛЯТОР!$C$21,$I$9,$I$9-SUMIF($A$10:$A$369,"<="&$E$3,$H$10:$H$369)),0,0),"") ->  | H153: =IFERROR((-PPMT(C153/12,B153,IF(C153=КАЛЬКУЛЯТОР!$C$21,$E$2,$E$2-$E$3),IF(C153=КАЛЬКУЛЯТОР!$C$21,$I$9,$I$9-SUMIF($A$10:$A$369,"<="&$E$3,$H$10:$H$369)),0,0)),"") ->  | P153: FALSE
A154: 145 | B154: 145 | D154: =IF(A154<=$E$2,-PMT(C154/12,IF(C154=КАЛЬКУЛЯТОР!$C$21,$E$2,$E$2-$E$3),IF(C154=КАЛЬКУЛЯТОР!$C$21,$I$9,$I$9-SUMIF($A$10:$A$369,"<="&$E$3,$H$10:$H$369)),0,0)+E154,"") ->  | E154: =IF($E$2>$A153,(I153+SUM(F154:F165))*($K$4+$K$5),0) -> 0.00 | F154: =IFERROR(-IPMT(C154/12,B154,IF(C154=КАЛЬКУЛЯТОР!$C$21,$E$2,$E$2-$E$3),IF(C154=КАЛЬКУЛЯТОР!$C$21,$I$9,$I$9-SUMIF($A$10:$A$369,"<="&$E$3,$H$10:$H$369)),0,0),"") ->  | G154: =IFERROR(-IPMT((C154-$P$1)/12,B154,IF(C154=КАЛЬКУЛЯТОР!$C$21,$E$2,$E$2-$E$3),IF(C154=КАЛЬКУЛЯТОР!$C$21,$I$9,$I$9-SUMIF($A$10:$A$369,"<="&$E$3,$H$10:$H$369)),0,0),"") ->  | H154: =IFERROR((-PPMT(C154/12,B154,IF(C154=КАЛЬКУЛЯТОР!$C$21,$E$2,$E$2-$E$3),IF(C154=КАЛЬКУЛЯТОР!$C$21,$I$9,$I$9-SUMIF($A$10:$A$369,"<="&$E$3,$H$10:$H$369)),0,0)),"") ->  | K154: =PV($E$5/12,A154-1,0,-E154) -> 0.00 | P154: FALSE
A155: 146 | B155: 146 | D155: =IF(A155<=$E$2,-PMT(C155/12,IF(C155=КАЛЬКУЛЯТОР!$C$21,$E$2,$E$2-$E$3),IF(C155=КАЛЬКУЛЯТОР!$C$21,$I$9,$I$9-SUMIF($A$10:$A$369,"<="&$E$3,$H$10:$H$369)),0,0),"") ->  | F155: =IFERROR(-IPMT(C155/12,B155,IF(C155=КАЛЬКУЛЯТОР!$C$21,$E$2,$E$2-$E$3),IF(C155=КАЛЬКУЛЯТОР!$C$21,$I$9,$I$9-SUMIF($A$10:$A$369,"<="&$E$3,$H$10:$H$369)),0,0),"") ->  | G155: =IFERROR(-IPMT((C155-$P$1)/12,B155,IF(C155=КАЛЬКУЛЯТОР!$C$21,$E$2,$E$2-$E$3),IF(C155=КАЛЬКУЛЯТОР!$C$21,$I$9,$I$9-SUMIF($A$10:$A$369,"<="&$E$3,$H$10:$H$369)),0,0),"") ->  | H155: =IFERROR((-PPMT(C155/12,B155,IF(C155=КАЛЬКУЛЯТОР!$C$21,$E$2,$E$2-$E$3),IF(C155=КАЛЬКУЛЯТОР!$C$21,$I$9,$I$9-SUMIF($A$10:$A$369,"<="&$E$3,$H$10:$H$369)),0,0)),"") ->  | P155: FALSE
A156: 147 | B156: 147 | D156: =IF(A156<=$E$2,-PMT(C156/12,IF(C156=КАЛЬКУЛЯТОР!$C$21,$E$2,$E$2-$E$3),IF(C156=КАЛЬКУЛЯТОР!$C$21,$I$9,$I$9-SUMIF($A$10:$A$369,"<="&$E$3,$H$10:$H$369)),0,0),"") ->  | F156: =IFERROR(-IPMT(C156/12,B156,IF(C156=КАЛЬКУЛЯТОР!$C$21,$E$2,$E$2-$E$3),IF(C156=КАЛЬКУЛЯТОР!$C$21,$I$9,$I$9-SUMIF($A$10:$A$369,"<="&$E$3,$H$10:$H$369)),0,0),"") ->  | G156: =IFERROR(-IPMT((C156-$P$1)/12,B156,IF(C156=КАЛЬКУЛЯТОР!$C$21,$E$2,$E$2-$E$3),IF(C156=КАЛЬКУЛЯТОР!$C$21,$I$9,$I$9-SUMIF($A$10:$A$369,"<="&$E$3,$H$10:$H$369)),0,0),"") ->  | H156: =IFERROR((-PPMT(C156/12,B156,IF(C156=КАЛЬКУЛЯТОР!$C$21,$E$2,$E$2-$E$3),IF(C156=КАЛЬКУЛЯТОР!$C$21,$I$9,$I$9-SUMIF($A$10:$A$369,"<="&$E$3,$H$10:$H$369)),0,0)),"") ->  | P156: FALSE
A157: 148 | B157: 148 | D157: =IF(A157<=$E$2,-PMT(C157/12,IF(C157=КАЛЬКУЛЯТОР!$C$21,$E$2,$E$2-$E$3),IF(C157=КАЛЬКУЛЯТОР!$C$21,$I$9,$I$9-SUMIF($A$10:$A$369,"<="&$E$3,$H$10:$H$369)),0,0),"") ->  | F157: =IFERROR(-IPMT(C157/12,B157,IF(C157=КАЛЬКУЛЯТОР!$C$21,$E$2,$E$2-$E$3),IF(C157=КАЛЬКУЛЯТОР!$C$21,$I$9,$I$9-SUMIF($A$10:$A$369,"<="&$E$3,$H$10:$H$369)),0,0),"") ->  | G157: =IFERROR(-IPMT((C157-$P$1)/12,B157,IF(C157=КАЛЬКУЛЯТОР!$C$21,$E$2,$E$2-$E$3),IF(C157=КАЛЬКУЛЯТОР!$C$21,$I$9,$I$9-SUMIF($A$10:$A$369,"<="&$E$3,$H$10:$H$369)),0,0),"") ->  | H157: =IFERROR((-PPMT(C157/12,B157,IF(C157=КАЛЬКУЛЯТОР!$C$21,$E$2,$E$2-$E$3),IF(C157=КАЛЬКУЛЯТОР!$C$21,$I$9,$I$9-SUMIF($A$10:$A$369,"<="&$E$3,$H$10:$H$369)),0,0)),"") ->  | P157: FALSE
A158: 149 | B158: 149 | D158: =IF(A158<=$E$2,-PMT(C158/12,IF(C158=КАЛЬКУЛЯТОР!$C$21,$E$2,$E$2-$E$3),IF(C158=КАЛЬКУЛЯТОР!$C$21,$I$9,$I$9-SUMIF($A$10:$A$369,"<="&$E$3,$H$10:$H$369)),0,0),"") ->  | F158: =IFERROR(-IPMT(C158/12,B158,IF(C158=КАЛЬКУЛЯТОР!$C$21,$E$2,$E$2-$E$3),IF(C158=КАЛЬКУЛЯТОР!$C$21,$I$9,$I$9-SUMIF($A$10:$A$369,"<="&$E$3,$H$10:$H$369)),0,0),"") ->  | G158: =IFERROR(-IPMT((C158-$P$1)/12,B158,IF(C158=КАЛЬКУЛЯТОР!$C$21,$E$2,$E$2-$E$3),IF(C158=КАЛЬКУЛЯТОР!$C$21,$I$9,$I$9-SUMIF($A$10:$A$369,"<="&$E$3,$H$10:$H$369)),0,0),"") ->  | H158: =IFERROR((-PPMT(C158/12,B158,IF(C158=КАЛЬКУЛЯТОР!$C$21,$E$2,$E$2-$E$3),IF(C158=КАЛЬКУЛЯТОР!$C$21,$I$9,$I$9-SUMIF($A$10:$A$369,"<="&$E$3,$H$10:$H$369)),0,0)),"") ->  | P158: FALSE
A159: 150 | B159: 150 | D159: =IF(A159<=$E$2,-PMT(C159/12,IF(C159=КАЛЬКУЛЯТОР!$C$21,$E$2,$E$2-$E$3),IF(C159=КАЛЬКУЛЯТОР!$C$21,$I$9,$I$9-SUMIF($A$10:$A$369,"<="&$E$3,$H$10:$H$369)),0,0),"") ->  | F159: =IFERROR(-IPMT(C159/12,B159,IF(C159=КАЛЬКУЛЯТОР!$C$21,$E$2,$E$2-$E$3),IF(C159=КАЛЬКУЛЯТОР!$C$21,$I$9,$I$9-SUMIF($A$10:$A$369,"<="&$E$3,$H$10:$H$369)),0,0),"") ->  | G159: =IFERROR(-IPMT((C159-$P$1)/12,B159,IF(C159=КАЛЬКУЛЯТОР!$C$21,$E$2,$E$2-$E$3),IF(C159=КАЛЬКУЛЯТОР!$C$21,$I$9,$I$9-SUMIF($A$10:$A$369,"<="&$E$3,$H$10:$H$369)),0,0),"") ->  | H159: =IFERROR((-PPMT(C159/12,B159,IF(C159=КАЛЬКУЛЯТОР!$C$21,$E$2,$E$2-$E$3),IF(C159=КАЛЬКУЛЯТОР!$C$21,$I$9,$I$9-SUMIF($A$10:$A$369,"<="&$E$3,$H$10:$H$369)),0,0)),"") ->  | P159: FALSE
A160: 151 | B160: 151 | D160: =IF(A160<=$E$2,-PMT(C160/12,IF(C160=КАЛЬКУЛЯТОР!$C$21,$E$2,$E$2-$E$3),IF(C160=КАЛЬКУЛЯТОР!$C$21,$I$9,$I$9-SUMIF($A$10:$A$369,"<="&$E$3,$H$10:$H$369)),0,0),"") ->  | F160: =IFERROR(-IPMT(C160/12,B160,IF(C160=КАЛЬКУЛЯТОР!$C$21,$E$2,$E$2-$E$3),IF(C160=КАЛЬКУЛЯТОР!$C$21,$I$9,$I$9-SUMIF($A$10:$A$369,"<="&$E$3,$H$10:$H$369)),0,0),"") ->  | G160: =IFERROR(-IPMT((C160-$P$1)/12,B160,IF(C160=КАЛЬКУЛЯТОР!$C$21,$E$2,$E$2-$E$3),IF(C160=КАЛЬКУЛЯТОР!$C$21,$I$9,$I$9-SUMIF($A$10:$A$369,"<="&$E$3,$H$10:$H$369)),0,0),"") ->  | H160: =IFERROR((-PPMT(C160/12,B160,IF(C160=КАЛЬКУЛЯТОР!$C$21,$E$2,$E$2-$E$3),IF(C160=КАЛЬКУЛЯТОР!$C$21,$I$9,$I$9-SUMIF($A$10:$A$369,"<="&$E$3,$H$10:$H$369)),0,0)),"") ->  | P160: FALSE
A161: 152 | B161: 152 | D161: =IF(A161<=$E$2,-PMT(C161/12,IF(C161=КАЛЬКУЛЯТОР!$C$21,$E$2,$E$2-$E$3),IF(C161=КАЛЬКУЛЯТОР!$C$21,$I$9,$I$9-SUMIF($A$10:$A$369,"<="&$E$3,$H$10:$H$369)),0,0),"") ->  | F161: =IFERROR(-IPMT(C161/12,B161,IF(C161=КАЛЬКУЛЯТОР!$C$21,$E$2,$E$2-$E$3),IF(C161=КАЛЬКУЛЯТОР!$C$21,$I$9,$I$9-SUMIF($A$10:$A$369,"<="&$E$3,$H$10:$H$369)),0,0),"") ->  | G161: =IFERROR(-IPMT((C161-$P$1)/12,B161,IF(C161=КАЛЬКУЛЯТОР!$C$21,$E$2,$E$2-$E$3),IF(C161=КАЛЬКУЛЯТОР!$C$21,$I$9,$I$9-SUMIF($A$10:$A$369,"<="&$E$3,$H$10:$H$369)),0,0),"") ->  | H161: =IFERROR((-PPMT(C161/12,B161,IF(C161=КАЛЬКУЛЯТОР!$C$21,$E$2,$E$2-$E$3),IF(C161=КАЛЬКУЛЯТОР!$C$21,$I$9,$I$9-SUMIF($A$10:$A$369,"<="&$E$3,$H$10:$H$369)),0,0)),"") ->  | P161: FALSE
A162: 153 | B162: 153 | D162: =IF(A162<=$E$2,-PMT(C162/12,IF(C162=КАЛЬКУЛЯТОР!$C$21,$E$2,$E$2-$E$3),IF(C162=КАЛЬКУЛЯТОР!$C$21,$I$9,$I$9-SUMIF($A$10:$A$369,"<="&$E$3,$H$10:$H$369)),0,0),"") ->  | F162: =IFERROR(-IPMT(C162/12,B162,IF(C162=КАЛЬКУЛЯТОР!$C$21,$E$2,$E$2-$E$3),IF(C162=КАЛЬКУЛЯТОР!$C$21,$I$9,$I$9-SUMIF($A$10:$A$369,"<="&$E$3,$H$10:$H$369)),0,0),"") ->  | G162: =IFERROR(-IPMT((C162-$P$1)/12,B162,IF(C162=КАЛЬКУЛЯТОР!$C$21,$E$2,$E$2-$E$3),IF(C162=КАЛЬКУЛЯТОР!$C$21,$I$9,$I$9-SUMIF($A$10:$A$369,"<="&$E$3,$H$10:$H$369)),0,0),"") ->  | H162: =IFERROR((-PPMT(C162/12,B162,IF(C162=КАЛЬКУЛЯТОР!$C$21,$E$2,$E$2-$E$3),IF(C162=КАЛЬКУЛЯТОР!$C$21,$I$9,$I$9-SUMIF($A$10:$A$369,"<="&$E$3,$H$10:$H$369)),0,0)),"") ->  | P162: FALSE
A163: 154 | B163: 154 | D163: =IF(A163<=$E$2,-PMT(C163/12,IF(C163=КАЛЬКУЛЯТОР!$C$21,$E$2,$E$2-$E$3),IF(C163=КАЛЬКУЛЯТОР!$C$21,$I$9,$I$9-SUMIF($A$10:$A$369,"<="&$E$3,$H$10:$H$369)),0,0),"") ->  | F163: =IFERROR(-IPMT(C163/12,B163,IF(C163=КАЛЬКУЛЯТОР!$C$21,$E$2,$E$2-$E$3),IF(C163=КАЛЬКУЛЯТОР!$C$21,$I$9,$I$9-SUMIF($A$10:$A$369,"<="&$E$3,$H$10:$H$369)),0,0),"") ->  | G163: =IFERROR(-IPMT((C163-$P$1)/12,B163,IF(C163=КАЛЬКУЛЯТОР!$C$21,$E$2,$E$2-$E$3),IF(C163=КАЛЬКУЛЯТОР!$C$21,$I$9,$I$9-SUMIF($A$10:$A$369,"<="&$E$3,$H$10:$H$369)),0,0),"") ->  | H163: =IFERROR((-PPMT(C163/12,B163,IF(C163=КАЛЬКУЛЯТОР!$C$21,$E$2,$E$2-$E$3),IF(C163=КАЛЬКУЛЯТОР!$C$21,$I$9,$I$9-SUMIF($A$10:$A$369,"<="&$E$3,$H$10:$H$369)),0,0)),"") ->  | P163: FALSE
A164: 155 | B164: 155 | D164: =IF(A164<=$E$2,-PMT(C164/12,IF(C164=КАЛЬКУЛЯТОР!$C$21,$E$2,$E$2-$E$3),IF(C164=КАЛЬКУЛЯТОР!$C$21,$I$9,$I$9-SUMIF($A$10:$A$369,"<="&$E$3,$H$10:$H$369)),0,0),"") ->  | F164: =IFERROR(-IPMT(C164/12,B164,IF(C164=КАЛЬКУЛЯТОР!$C$21,$E$2,$E$2-$E$3),IF(C164=КАЛЬКУЛЯТОР!$C$21,$I$9,$I$9-SUMIF($A$10:$A$369,"<="&$E$3,$H$10:$H$369)),0,0),"") ->  | G164: =IFERROR(-IPMT((C164-$P$1)/12,B164,IF(C164=КАЛЬКУЛЯТОР!$C$21,$E$2,$E$2-$E$3),IF(C164=КАЛЬКУЛЯТОР!$C$21,$I$9,$I$9-SUMIF($A$10:$A$369,"<="&$E$3,$H$10:$H$369)),0,0),"") ->  | H164: =IFERROR((-PPMT(C164/12,B164,IF(C164=КАЛЬКУЛЯТОР!$C$21,$E$2,$E$2-$E$3),IF(C164=КАЛЬКУЛЯТОР!$C$21,$I$9,$I$9-SUMIF($A$10:$A$369,"<="&$E$3,$H$10:$H$369)),0,0)),"") ->  | P164: FALSE
A165: 156 | B165: 156 | D165: =IF(A165<=$E$2,-PMT(C165/12,IF(C165=КАЛЬКУЛЯТОР!$C$21,$E$2,$E$2-$E$3),IF(C165=КАЛЬКУЛЯТОР!$C$21,$I$9,$I$9-SUMIF($A$10:$A$369,"<="&$E$3,$H$10:$H$369)),0,0),"") ->  | F165: =IFERROR(-IPMT(C165/12,B165,IF(C165=КАЛЬКУЛЯТОР!$C$21,$E$2,$E$2-$E$3),IF(C165=КАЛЬКУЛЯТОР!$C$21,$I$9,$I$9-SUMIF($A$10:$A$369,"<="&$E$3,$H$10:$H$369)),0,0),"") ->  | G165: =IFERROR(-IPMT((C165-$P$1)/12,B165,IF(C165=КАЛЬКУЛЯТОР!$C$21,$E$2,$E$2-$E$3),IF(C165=КАЛЬКУЛЯТОР!$C$21,$I$9,$I$9-SUMIF($A$10:$A$369,"<="&$E$3,$H$10:$H$369)),0,0),"") ->  | H165: =IFERROR((-PPMT(C165/12,B165,IF(C165=КАЛЬКУЛЯТОР!$C$21,$E$2,$E$2-$E$3),IF(C165=КАЛЬКУЛЯТОР!$C$21,$I$9,$I$9-SUMIF($A$10:$A$369,"<="&$E$3,$H$10:$H$369)),0,0)),"") ->  | P165: FALSE
A166: 157 | B166: 157 | D166: =IF(A166<=$E$2,-PMT(C166/12,IF(C166=КАЛЬКУЛЯТОР!$C$21,$E$2,$E$2-$E$3),IF(C166=КАЛЬКУЛЯТОР!$C$21,$I$9,$I$9-SUMIF($A$10:$A$369,"<="&$E$3,$H$10:$H$369)),0,0)+E166,"") ->  | E166: =IF($E$2>$A165,(I165+SUM(F166:F177))*($K$4+$K$5),0) -> 0.00 | F166: =IFERROR(-IPMT(C166/12,B166,IF(C166=КАЛЬКУЛЯТОР!$C$21,$E$2,$E$2-$E$3),IF(C166=КАЛЬКУЛЯТОР!$C$21,$I$9,$I$9-SUMIF($A$10:$A$369,"<="&$E$3,$H$10:$H$369)),0,0),"") ->  | G166: =IFERROR(-IPMT((C166-$P$1)/12,B166,IF(C166=КАЛЬКУЛЯТОР!$C$21,$E$2,$E$2-$E$3),IF(C166=КАЛЬКУЛЯТОР!$C$21,$I$9,$I$9-SUMIF($A$10:$A$369,"<="&$E$3,$H$10:$H$369)),0,0),"") ->  | H166: =IFERROR((-PPMT(C166/12,B166,IF(C166=КАЛЬКУЛЯТОР!$C$21,$E$2,$E$2-$E$3),IF(C166=КАЛЬКУЛЯТОР!$C$21,$I$9,$I$9-SUMIF($A$10:$A$369,"<="&$E$3,$H$10:$H$369)),0,0)),"") ->  | K166: =PV($E$5/12,A166-1,0,-E166) -> 0.00 | P166: FALSE
A167: 158 | B167: 158 | D167: =IF(A167<=$E$2,-PMT(C167/12,IF(C167=КАЛЬКУЛЯТОР!$C$21,$E$2,$E$2-$E$3),IF(C167=КАЛЬКУЛЯТОР!$C$21,$I$9,$I$9-SUMIF($A$10:$A$369,"<="&$E$3,$H$10:$H$369)),0,0),"") ->  | F167: =IFERROR(-IPMT(C167/12,B167,IF(C167=КАЛЬКУЛЯТОР!$C$21,$E$2,$E$2-$E$3),IF(C167=КАЛЬКУЛЯТОР!$C$21,$I$9,$I$9-SUMIF($A$10:$A$369,"<="&$E$3,$H$10:$H$369)),0,0),"") ->  | G167: =IFERROR(-IPMT((C167-$P$1)/12,B167,IF(C167=КАЛЬКУЛЯТОР!$C$21,$E$2,$E$2-$E$3),IF(C167=КАЛЬКУЛЯТОР!$C$21,$I$9,$I$9-SUMIF($A$10:$A$369,"<="&$E$3,$H$10:$H$369)),0,0),"") ->  | H167: =IFERROR((-PPMT(C167/12,B167,IF(C167=КАЛЬКУЛЯТОР!$C$21,$E$2,$E$2-$E$3),IF(C167=КАЛЬКУЛЯТОР!$C$21,$I$9,$I$9-SUMIF($A$10:$A$369,"<="&$E$3,$H$10:$H$369)),0,0)),"") ->  | P167: FALSE
A168: 159 | B168: 159 | D168: =IF(A168<=$E$2,-PMT(C168/12,IF(C168=КАЛЬКУЛЯТОР!$C$21,$E$2,$E$2-$E$3),IF(C168=КАЛЬКУЛЯТОР!$C$21,$I$9,$I$9-SUMIF($A$10:$A$369,"<="&$E$3,$H$10:$H$369)),0,0),"") ->  | F168: =IFERROR(-IPMT(C168/12,B168,IF(C168=КАЛЬКУЛЯТОР!$C$21,$E$2,$E$2-$E$3),IF(C168=КАЛЬКУЛЯТОР!$C$21,$I$9,$I$9-SUMIF($A$10:$A$369,"<="&$E$3,$H$10:$H$369)),0,0),"") ->  | G168: =IFERROR(-IPMT((C168-$P$1)/12,B168,IF(C168=КАЛЬКУЛЯТОР!$C$21,$E$2,$E$2-$E$3),IF(C168=КАЛЬКУЛЯТОР!$C$21,$I$9,$I$9-SUMIF($A$10:$A$369,"<="&$E$3,$H$10:$H$369)),0,0),"") ->  | H168: =IFERROR((-PPMT(C168/12,B168,IF(C168=КАЛЬКУЛЯТОР!$C$21,$E$2,$E$2-$E$3),IF(C168=КАЛЬКУЛЯТОР!$C$21,$I$9,$I$9-SUMIF($A$10:$A$369,"<="&$E$3,$H$10:$H$369)),0,0)),"") ->  | P168: FALSE
A169: 160 | B169: 160 | D169: =IF(A169<=$E$2,-PMT(C169/12,IF(C169=КАЛЬКУЛЯТОР!$C$21,$E$2,$E$2-$E$3),IF(C169=КАЛЬКУЛЯТОР!$C$21,$I$9,$I$9-SUMIF($A$10:$A$369,"<="&$E$3,$H$10:$H$369)),0,0),"") ->  | F169: =IFERROR(-IPMT(C169/12,B169,IF(C169=КАЛЬКУЛЯТОР!$C$21,$E$2,$E$2-$E$3),IF(C169=КАЛЬКУЛЯТОР!$C$21,$I$9,$I$9-SUMIF($A$10:$A$369,"<="&$E$3,$H$10:$H$369)),0,0),"") ->  | G169: =IFERROR(-IPMT((C169-$P$1)/12,B169,IF(C169=КАЛЬКУЛЯТОР!$C$21,$E$2,$E$2-$E$3),IF(C169=КАЛЬКУЛЯТОР!$C$21,$I$9,$I$9-SUMIF($A$10:$A$369,"<="&$E$3,$H$10:$H$369)),0,0),"") ->  | H169: =IFERROR((-PPMT(C169/12,B169,IF(C169=КАЛЬКУЛЯТОР!$C$21,$E$2,$E$2-$E$3),IF(C169=КАЛЬКУЛЯТОР!$C$21,$I$9,$I$9-SUMIF($A$10:$A$369,"<="&$E$3,$H$10:$H$369)),0,0)),"") ->  | P169: FALSE
A170: 161 | B170: 161 | D170: =IF(A170<=$E$2,-PMT(C170/12,IF(C170=КАЛЬКУЛЯТОР!$C$21,$E$2,$E$2-$E$3),IF(C170=КАЛЬКУЛЯТОР!$C$21,$I$9,$I$9-SUMIF($A$10:$A$369,"<="&$E$3,$H$10:$H$369)),0,0),"") ->  | F170: =IFERROR(-IPMT(C170/12,B170,IF(C170=КАЛЬКУЛЯТОР!$C$21,$E$2,$E$2-$E$3),IF(C170=КАЛЬКУЛЯТОР!$C$21,$I$9,$I$9-SUMIF($A$10:$A$369,"<="&$E$3,$H$10:$H$369)),0,0),"") ->  | G170: =IFERROR(-IPMT((C170-$P$1)/12,B170,IF(C170=КАЛЬКУЛЯТОР!$C$21,$E$2,$E$2-$E$3),IF(C170=КАЛЬКУЛЯТОР!$C$21,$I$9,$I$9-SUMIF($A$10:$A$369,"<="&$E$3,$H$10:$H$369)),0,0),"") ->  | H170: =IFERROR((-PPMT(C170/12,B170,IF(C170=КАЛЬКУЛЯТОР!$C$21,$E$2,$E$2-$E$3),IF(C170=КАЛЬКУЛЯТОР!$C$21,$I$9,$I$9-SUMIF($A$10:$A$369,"<="&$E$3,$H$10:$H$369)),0,0)),"") ->  | P170: FALSE
A171: 162 | B171: 162 | D171: =IF(A171<=$E$2,-PMT(C171/12,IF(C171=КАЛЬКУЛЯТОР!$C$21,$E$2,$E$2-$E$3),IF(C171=КАЛЬКУЛЯТОР!$C$21,$I$9,$I$9-SUMIF($A$10:$A$369,"<="&$E$3,$H$10:$H$369)),0,0),"") ->  | F171: =IFERROR(-IPMT(C171/12,B171,IF(C171=КАЛЬКУЛЯТОР!$C$21,$E$2,$E$2-$E$3),IF(C171=КАЛЬКУЛЯТОР!$C$21,$I$9,$I$9-SUMIF($A$10:$A$369,"<="&$E$3,$H$10:$H$369)),0,0),"") ->  | G171: =IFERROR(-IPMT((C171-$P$1)/12,B171,IF(C171=КАЛЬКУЛЯТОР!$C$21,$E$2,$E$2-$E$3),IF(C171=КАЛЬКУЛЯТОР!$C$21,$I$9,$I$9-SUMIF($A$10:$A$369,"<="&$E$3,$H$10:$H$369)),0,0),"") ->  | H171: =IFERROR((-PPMT(C171/12,B171,IF(C171=КАЛЬКУЛЯТОР!$C$21,$E$2,$E$2-$E$3),IF(C171=КАЛЬКУЛЯТОР!$C$21,$I$9,$I$9-SUMIF($A$10:$A$369,"<="&$E$3,$H$10:$H$369)),0,0)),"") ->  | P171: FALSE
A172: 163 | B172: 163 | D172: =IF(A172<=$E$2,-PMT(C172/12,IF(C172=КАЛЬКУЛЯТОР!$C$21,$E$2,$E$2-$E$3),IF(C172=КАЛЬКУЛЯТОР!$C$21,$I$9,$I$9-SUMIF($A$10:$A$369,"<="&$E$3,$H$10:$H$369)),0,0),"") ->  | F172: =IFERROR(-IPMT(C172/12,B172,IF(C172=КАЛЬКУЛЯТОР!$C$21,$E$2,$E$2-$E$3),IF(C172=КАЛЬКУЛЯТОР!$C$21,$I$9,$I$9-SUMIF($A$10:$A$369,"<="&$E$3,$H$10:$H$369)),0,0),"") ->  | G172: =IFERROR(-IPMT((C172-$P$1)/12,B172,IF(C172=КАЛЬКУЛЯТОР!$C$21,$E$2,$E$2-$E$3),IF(C172=КАЛЬКУЛЯТОР!$C$21,$I$9,$I$9-SUMIF($A$10:$A$369,"<="&$E$3,$H$10:$H$369)),0,0),"") ->  | H172: =IFERROR((-PPMT(C172/12,B172,IF(C172=КАЛЬКУЛЯТОР!$C$21,$E$2,$E$2-$E$3),IF(C172=КАЛЬКУЛЯТОР!$C$21,$I$9,$I$9-SUMIF($A$10:$A$369,"<="&$E$3,$H$10:$H$369)),0,0)),"") ->  | P172: FALSE
A173: 164 | B173: 164 | D173: =IF(A173<=$E$2,-PMT(C173/12,IF(C173=КАЛЬКУЛЯТОР!$C$21,$E$2,$E$2-$E$3),IF(C173=КАЛЬКУЛЯТОР!$C$21,$I$9,$I$9-SUMIF($A$10:$A$369,"<="&$E$3,$H$10:$H$369)),0,0),"") ->  | F173: =IFERROR(-IPMT(C173/12,B173,IF(C173=КАЛЬКУЛЯТОР!$C$21,$E$2,$E$2-$E$3),IF(C173=КАЛЬКУЛЯТОР!$C$21,$I$9,$I$9-SUMIF($A$10:$A$369,"<="&$E$3,$H$10:$H$369)),0,0),"") ->  | G173: =IFERROR(-IPMT((C173-$P$1)/12,B173,IF(C173=КАЛЬКУЛЯТОР!$C$21,$E$2,$E$2-$E$3),IF(C173=КАЛЬКУЛЯТОР!$C$21,$I$9,$I$9-SUMIF($A$10:$A$369,"<="&$E$3,$H$10:$H$369)),0,0),"") ->  | H173: =IFERROR((-PPMT(C173/12,B173,IF(C173=КАЛЬКУЛЯТОР!$C$21,$E$2,$E$2-$E$3),IF(C173=КАЛЬКУЛЯТОР!$C$21,$I$9,$I$9-SUMIF($A$10:$A$369,"<="&$E$3,$H$10:$H$369)),0,0)),"") ->  | P173: FALSE
A174: 165 | B174: 165 | D174: =IF(A174<=$E$2,-PMT(C174/12,IF(C174=КАЛЬКУЛЯТОР!$C$21,$E$2,$E$2-$E$3),IF(C174=КАЛЬКУЛЯТОР!$C$21,$I$9,$I$9-SUMIF($A$10:$A$369,"<="&$E$3,$H$10:$H$369)),0,0),"") ->  | F174: =IFERROR(-IPMT(C174/12,B174,IF(C174=КАЛЬКУЛЯТОР!$C$21,$E$2,$E$2-$E$3),IF(C174=КАЛЬКУЛЯТОР!$C$21,$I$9,$I$9-SUMIF($A$10:$A$369,"<="&$E$3,$H$10:$H$369)),0,0),"") ->  | G174: =IFERROR(-IPMT((C174-$P$1)/12,B174,IF(C174=КАЛЬКУЛЯТОР!$C$21,$E$2,$E$2-$E$3),IF(C174=КАЛЬКУЛЯТОР!$C$21,$I$9,$I$9-SUMIF($A$10:$A$369,"<="&$E$3,$H$10:$H$369)),0,0),"") ->  | H174: =IFERROR((-PPMT(C174/12,B174,IF(C174=КАЛЬКУЛЯТОР!$C$21,$E$2,$E$2-$E$3),IF(C174=КАЛЬКУЛЯТОР!$C$21,$I$9,$I$9-SUMIF($A$10:$A$369,"<="&$E$3,$H$10:$H$369)),0,0)),"") ->  | P174: FALSE
A175: 166 | B175: 166 | D175: =IF(A175<=$E$2,-PMT(C175/12,IF(C175=КАЛЬКУЛЯТОР!$C$21,$E$2,$E$2-$E$3),IF(C175=КАЛЬКУЛЯТОР!$C$21,$I$9,$I$9-SUMIF($A$10:$A$369,"<="&$E$3,$H$10:$H$369)),0,0),"") ->  | F175: =IFERROR(-IPMT(C175/12,B175,IF(C175=КАЛЬКУЛЯТОР!$C$21,$E$2,$E$2-$E$3),IF(C175=КАЛЬКУЛЯТОР!$C$21,$I$9,$I$9-SUMIF($A$10:$A$369,"<="&$E$3,$H$10:$H$369)),0,0),"") ->  | G175: =IFERROR(-IPMT((C175-$P$1)/12,B175,IF(C175=КАЛЬКУЛЯТОР!$C$21,$E$2,$E$2-$E$3),IF(C175=КАЛЬКУЛЯТОР!$C$21,$I$9,$I$9-SUMIF($A$10:$A$369,"<="&$E$3,$H$10:$H$369)),0,0),"") ->  | H175: =IFERROR((-PPMT(C175/12,B175,IF(C175=КАЛЬКУЛЯТОР!$C$21,$E$2,$E$2-$E$3),IF(C175=КАЛЬКУЛЯТОР!$C$21,$I$9,$I$9-SUMIF($A$10:$A$369,"<="&$E$3,$H$10:$H$369)),0,0)),"") ->  | P175: FALSE
A176: 167 | B176: 167 | D176: =IF(A176<=$E$2,-PMT(C176/12,IF(C176=КАЛЬКУЛЯТОР!$C$21,$E$2,$E$2-$E$3),IF(C176=КАЛЬКУЛЯТОР!$C$21,$I$9,$I$9-SUMIF($A$10:$A$369,"<="&$E$3,$H$10:$H$369)),0,0),"") ->  | F176: =IFERROR(-IPMT(C176/12,B176,IF(C176=КАЛЬКУЛЯТОР!$C$21,$E$2,$E$2-$E$3),IF(C176=КАЛЬКУЛЯТОР!$C$21,$I$9,$I$9-SUMIF($A$10:$A$369,"<="&$E$3,$H$10:$H$369)),0,0),"") ->  | G176: =IFERROR(-IPMT((C176-$P$1)/12,B176,IF(C176=КАЛЬКУЛЯТОР!$C$21,$E$2,$E$2-$E$3),IF(C176=КАЛЬКУЛЯТОР!$C$21,$I$9,$I$9-SUMIF($A$10:$A$369,"<="&$E$3,$H$10:$H$369)),0,0),"") ->  | H176: =IFERROR((-PPMT(C176/12,B176,IF(C176=КАЛЬКУЛЯТОР!$C$21,$E$2,$E$2-$E$3),IF(C176=КАЛЬКУЛЯТОР!$C$21,$I$9,$I$9-SUMIF($A$10:$A$369,"<="&$E$3,$H$10:$H$369)),0,0)),"") ->  | P176: FALSE
A177: 168 | B177: 168 | D177: =IF(A177<=$E$2,-PMT(C177/12,IF(C177=КАЛЬКУЛЯТОР!$C$21,$E$2,$E$2-$E$3),IF(C177=КАЛЬКУЛЯТОР!$C$21,$I$9,$I$9-SUMIF($A$10:$A$369,"<="&$E$3,$H$10:$H$369)),0,0),"") ->  | F177: =IFERROR(-IPMT(C177/12,B177,IF(C177=КАЛЬКУЛЯТОР!$C$21,$E$2,$E$2-$E$3),IF(C177=КАЛЬКУЛЯТОР!$C$21,$I$9,$I$9-SUMIF($A$10:$A$369,"<="&$E$3,$H$10:$H$369)),0,0),"") ->  | G177: =IFERROR(-IPMT((C177-$P$1)/12,B177,IF(C177=КАЛЬКУЛЯТОР!$C$21,$E$2,$E$2-$E$3),IF(C177=КАЛЬКУЛЯТОР!$C$21,$I$9,$I$9-SUMIF($A$10:$A$369,"<="&$E$3,$H$10:$H$369)),0,0),"") ->  | H177: =IFERROR((-PPMT(C177/12,B177,IF(C177=КАЛЬКУЛЯТОР!$C$21,$E$2,$E$2-$E$3),IF(C177=КАЛЬКУЛЯТОР!$C$21,$I$9,$I$9-SUMIF($A$10:$A$369,"<="&$E$3,$H$10:$H$369)),0,0)),"") ->  | P177: FALSE
A178: 169 | B178: 169 | D178: =IF(A178<=$E$2,-PMT(C178/12,IF(C178=КАЛЬКУЛЯТОР!$C$21,$E$2,$E$2-$E$3),IF(C178=КАЛЬКУЛЯТОР!$C$21,$I$9,$I$9-SUMIF($A$10:$A$369,"<="&$E$3,$H$10:$H$369)),0,0)+E178,"") ->  | E178: =IF($E$2>$A177,(I177+SUM(F178:F189))*($K$4+$K$5),0) -> 0.00 | F178: =IFERROR(-IPMT(C178/12,B178,IF(C178=КАЛЬКУЛЯТОР!$C$21,$E$2,$E$2-$E$3),IF(C178=КАЛЬКУЛЯТОР!$C$21,$I$9,$I$9-SUMIF($A$10:$A$369,"<="&$E$3,$H$10:$H$369)),0,0),"") ->  | G178: =IFERROR(-IPMT((C178-$P$1)/12,B178,IF(C178=КАЛЬКУЛЯТОР!$C$21,$E$2,$E$2-$E$3),IF(C178=КАЛЬКУЛЯТОР!$C$21,$I$9,$I$9-SUMIF($A$10:$A$369,"<="&$E$3,$H$10:$H$369)),0,0),"") ->  | H178: =IFERROR((-PPMT(C178/12,B178,IF(C178=КАЛЬКУЛЯТОР!$C$21,$E$2,$E$2-$E$3),IF(C178=КАЛЬКУЛЯТОР!$C$21,$I$9,$I$9-SUMIF($A$10:$A$369,"<="&$E$3,$H$10:$H$369)),0,0)),"") ->  | K178: =PV($E$5/12,A178-1,0,-E178) -> 0.00 | P178: FALSE
A179: 170 | B179: 170 | D179: =IF(A179<=$E$2,-PMT(C179/12,IF(C179=КАЛЬКУЛЯТОР!$C$21,$E$2,$E$2-$E$3),IF(C179=КАЛЬКУЛЯТОР!$C$21,$I$9,$I$9-SUMIF($A$10:$A$369,"<="&$E$3,$H$10:$H$369)),0,0),"") ->  | F179: =IFERROR(-IPMT(C179/12,B179,IF(C179=КАЛЬКУЛЯТОР!$C$21,$E$2,$E$2-$E$3),IF(C179=КАЛЬКУЛЯТОР!$C$21,$I$9,$I$9-SUMIF($A$10:$A$369,"<="&$E$3,$H$10:$H$369)),0,0),"") ->  | G179: =IFERROR(-IPMT((C179-$P$1)/12,B179,IF(C179=КАЛЬКУЛЯТОР!$C$21,$E$2,$E$2-$E$3),IF(C179=КАЛЬКУЛЯТОР!$C$21,$I$9,$I$9-SUMIF($A$10:$A$369,"<="&$E$3,$H$10:$H$369)),0,0),"") ->  | H179: =IFERROR((-PPMT(C179/12,B179,IF(C179=КАЛЬКУЛЯТОР!$C$21,$E$2,$E$2-$E$3),IF(C179=КАЛЬКУЛЯТОР!$C$21,$I$9,$I$9-SUMIF($A$10:$A$369,"<="&$E$3,$H$10:$H$369)),0,0)),"") ->  | P179: FALSE
A180: 171 | B180: 171 | D180: =IF(A180<=$E$2,-PMT(C180/12,IF(C180=КАЛЬКУЛЯТОР!$C$21,$E$2,$E$2-$E$3),IF(C180=КАЛЬКУЛЯТОР!$C$21,$I$9,$I$9-SUMIF($A$10:$A$369,"<="&$E$3,$H$10:$H$369)),0,0),"") ->  | F180: =IFERROR(-IPMT(C180/12,B180,IF(C180=КАЛЬКУЛЯТОР!$C$21,$E$2,$E$2-$E$3),IF(C180=КАЛЬКУЛЯТОР!$C$21,$I$9,$I$9-SUMIF($A$10:$A$369,"<="&$E$3,$H$10:$H$369)),0,0),"") ->  | G180: =IFERROR(-IPMT((C180-$P$1)/12,B180,IF(C180=КАЛЬКУЛЯТОР!$C$21,$E$2,$E$2-$E$3),IF(C180=КАЛЬКУЛЯТОР!$C$21,$I$9,$I$9-SUMIF($A$10:$A$369,"<="&$E$3,$H$10:$H$369)),0,0),"") ->  | H180: =IFERROR((-PPMT(C180/12,B180,IF(C180=КАЛЬКУЛЯТОР!$C$21,$E$2,$E$2-$E$3),IF(C180=КАЛЬКУЛЯТОР!$C$21,$I$9,$I$9-SUMIF($A$10:$A$369,"<="&$E$3,$H$10:$H$369)),0,0)),"") ->  | P180: FALSE
A181: 172 | B181: 172 | D181: =IF(A181<=$E$2,-PMT(C181/12,IF(C181=КАЛЬКУЛЯТОР!$C$21,$E$2,$E$2-$E$3),IF(C181=КАЛЬКУЛЯТОР!$C$21,$I$9,$I$9-SUMIF($A$10:$A$369,"<="&$E$3,$H$10:$H$369)),0,0),"") ->  | F181: =IFERROR(-IPMT(C181/12,B181,IF(C181=КАЛЬКУЛЯТОР!$C$21,$E$2,$E$2-$E$3),IF(C181=КАЛЬКУЛЯТОР!$C$21,$I$9,$I$9-SUMIF($A$10:$A$369,"<="&$E$3,$H$10:$H$369)),0,0),"") ->  | G181: =IFERROR(-IPMT((C181-$P$1)/12,B181,IF(C181=КАЛЬКУЛЯТОР!$C$21,$E$2,$E$2-$E$3),IF(C181=КАЛЬКУЛЯТОР!$C$21,$I$9,$I$9-SUMIF($A$10:$A$369,"<="&$E$3,$H$10:$H$369)),0,0),"") ->  | H181: =IFERROR((-PPMT(C181/12,B181,IF(C181=КАЛЬКУЛЯТОР!$C$21,$E$2,$E$2-$E$3),IF(C181=КАЛЬКУЛЯТОР!$C$21,$I$9,$I$9-SUMIF($A$10:$A$369,"<="&$E$3,$H$10:$H$369)),0,0)),"") ->  | P181: FALSE
A182: 173 | B182: 173 | D182: =IF(A182<=$E$2,-PMT(C182/12,IF(C182=КАЛЬКУЛЯТОР!$C$21,$E$2,$E$2-$E$3),IF(C182=КАЛЬКУЛЯТОР!$C$21,$I$9,$I$9-SUMIF($A$10:$A$369,"<="&$E$3,$H$10:$H$369)),0,0),"") ->  | F182: =IFERROR(-IPMT(C182/12,B182,IF(C182=КАЛЬКУЛЯТОР!$C$21,$E$2,$E$2-$E$3),IF(C182=КАЛЬКУЛЯТОР!$C$21,$I$9,$I$9-SUMIF($A$10:$A$369,"<="&$E$3,$H$10:$H$369)),0,0),"") ->  | G182: =IFERROR(-IPMT((C182-$P$1)/12,B182,IF(C182=КАЛЬКУЛЯТОР!$C$21,$E$2,$E$2-$E$3),IF(C182=КАЛЬКУЛЯТОР!$C$21,$I$9,$I$9-SUMIF($A$10:$A$369,"<="&$E$3,$H$10:$H$369)),0,0),"") ->  | H182: =IFERROR((-PPMT(C182/12,B182,IF(C182=КАЛЬКУЛЯТОР!$C$21,$E$2,$E$2-$E$3),IF(C182=КАЛЬКУЛЯТОР!$C$21,$I$9,$I$9-SUMIF($A$10:$A$369,"<="&$E$3,$H$10:$H$369)),0,0)),"") ->  | P182: FALSE
A183: 174 | B183: 174 | D183: =IF(A183<=$E$2,-PMT(C183/12,IF(C183=КАЛЬКУЛЯТОР!$C$21,$E$2,$E$2-$E$3),IF(C183=КАЛЬКУЛЯТОР!$C$21,$I$9,$I$9-SUMIF($A$10:$A$369,"<="&$E$3,$H$10:$H$369)),0,0),"") ->  | F183: =IFERROR(-IPMT(C183/12,B183,IF(C183=КАЛЬКУЛЯТОР!$C$21,$E$2,$E$2-$E$3),IF(C183=КАЛЬКУЛЯТОР!$C$21,$I$9,$I$9-SUMIF($A$10:$A$369,"<="&$E$3,$H$10:$H$369)),0,0),"") ->  | G183: =IFERROR(-IPMT((C183-$P$1)/12,B183,IF(C183=КАЛЬКУЛЯТОР!$C$21,$E$2,$E$2-$E$3),IF(C183=КАЛЬКУЛЯТОР!$C$21,$I$9,$I$9-SUMIF($A$10:$A$369,"<="&$E$3,$H$10:$H$369)),0,0),"") ->  | H183: =IFERROR((-PPMT(C183/12,B183,IF(C183=КАЛЬКУЛЯТОР!$C$21,$E$2,$E$2-$E$3),IF(C183=КАЛЬКУЛЯТОР!$C$21,$I$9,$I$9-SUMIF($A$10:$A$369,"<="&$E$3,$H$10:$H$369)),0,0)),"") ->  | P183: FALSE
A184: 175 | B184: 175 | D184: =IF(A184<=$E$2,-PMT(C184/12,IF(C184=КАЛЬКУЛЯТОР!$C$21,$E$2,$E$2-$E$3),IF(C184=КАЛЬКУЛЯТОР!$C$21,$I$9,$I$9-SUMIF($A$10:$A$369,"<="&$E$3,$H$10:$H$369)),0,0),"") ->  | F184: =IFERROR(-IPMT(C184/12,B184,IF(C184=КАЛЬКУЛЯТОР!$C$21,$E$2,$E$2-$E$3),IF(C184=КАЛЬКУЛЯТОР!$C$21,$I$9,$I$9-SUMIF($A$10:$A$369,"<="&$E$3,$H$10:$H$369)),0,0),"") ->  | G184: =IFERROR(-IPMT((C184-$P$1)/12,B184,IF(C184=КАЛЬКУЛЯТОР!$C$21,$E$2,$E$2-$E$3),IF(C184=КАЛЬКУЛЯТОР!$C$21,$I$9,$I$9-SUMIF($A$10:$A$369,"<="&$E$3,$H$10:$H$369)),0,0),"") ->  | H184: =IFERROR((-PPMT(C184/12,B184,IF(C184=КАЛЬКУЛЯТОР!$C$21,$E$2,$E$2-$E$3),IF(C184=КАЛЬКУЛЯТОР!$C$21,$I$9,$I$9-SUMIF($A$10:$A$369,"<="&$E$3,$H$10:$H$369)),0,0)),"") ->  | P184: FALSE
A185: 176 | B185: 176 | D185: =IF(A185<=$E$2,-PMT(C185/12,IF(C185=КАЛЬКУЛЯТОР!$C$21,$E$2,$E$2-$E$3),IF(C185=КАЛЬКУЛЯТОР!$C$21,$I$9,$I$9-SUMIF($A$10:$A$369,"<="&$E$3,$H$10:$H$369)),0,0),"") ->  | F185: =IFERROR(-IPMT(C185/12,B185,IF(C185=КАЛЬКУЛЯТОР!$C$21,$E$2,$E$2-$E$3),IF(C185=КАЛЬКУЛЯТОР!$C$21,$I$9,$I$9-SUMIF($A$10:$A$369,"<="&$E$3,$H$10:$H$369)),0,0),"") ->  | G185: =IFERROR(-IPMT((C185-$P$1)/12,B185,IF(C185=КАЛЬКУЛЯТОР!$C$21,$E$2,$E$2-$E$3),IF(C185=КАЛЬКУЛЯТОР!$C$21,$I$9,$I$9-SUMIF($A$10:$A$369,"<="&$E$3,$H$10:$H$369)),0,0),"") ->  | H185: =IFERROR((-PPMT(C185/12,B185,IF(C185=КАЛЬКУЛЯТОР!$C$21,$E$2,$E$2-$E$3),IF(C185=КАЛЬКУЛЯТОР!$C$21,$I$9,$I$9-SUMIF($A$10:$A$369,"<="&$E$3,$H$10:$H$369)),0,0)),"") ->  | P185: FALSE
A186: 177 | B186: 177 | D186: =IF(A186<=$E$2,-PMT(C186/12,IF(C186=КАЛЬКУЛЯТОР!$C$21,$E$2,$E$2-$E$3),IF(C186=КАЛЬКУЛЯТОР!$C$21,$I$9,$I$9-SUMIF($A$10:$A$369,"<="&$E$3,$H$10:$H$369)),0,0),"") ->  | F186: =IFERROR(-IPMT(C186/12,B186,IF(C186=КАЛЬКУЛЯТОР!$C$21,$E$2,$E$2-$E$3),IF(C186=КАЛЬКУЛЯТОР!$C$21,$I$9,$I$9-SUMIF($A$10:$A$369,"<="&$E$3,$H$10:$H$369)),0,0),"") ->  | G186: =IFERROR(-IPMT((C186-$P$1)/12,B186,IF(C186=КАЛЬКУЛЯТОР!$C$21,$E$2,$E$2-$E$3),IF(C186=КАЛЬКУЛЯТОР!$C$21,$I$9,$I$9-SUMIF($A$10:$A$369,"<="&$E$3,$H$10:$H$369)),0,0),"") ->  | H186: =IFERROR((-PPMT(C186/12,B186,IF(C186=КАЛЬКУЛЯТОР!$C$21,$E$2,$E$2-$E$3),IF(C186=КАЛЬКУЛЯТОР!$C$21,$I$9,$I$9-SUMIF($A$10:$A$369,"<="&$E$3,$H$10:$H$369)),0,0)),"") ->  | P186: FALSE
A187: 178 | B187: 178 | D187: =IF(A187<=$E$2,-PMT(C187/12,IF(C187=КАЛЬКУЛЯТОР!$C$21,$E$2,$E$2-$E$3),IF(C187=КАЛЬКУЛЯТОР!$C$21,$I$9,$I$9-SUMIF($A$10:$A$369,"<="&$E$3,$H$10:$H$369)),0,0),"") ->  | F187: =IFERROR(-IPMT(C187/12,B187,IF(C187=КАЛЬКУЛЯТОР!$C$21,$E$2,$E$2-$E$3),IF(C187=КАЛЬКУЛЯТОР!$C$21,$I$9,$I$9-SUMIF($A$10:$A$369,"<="&$E$3,$H$10:$H$369)),0,0),"") ->  | G187: =IFERROR(-IPMT((C187-$P$1)/12,B187,IF(C187=КАЛЬКУЛЯТОР!$C$21,$E$2,$E$2-$E$3),IF(C187=КАЛЬКУЛЯТОР!$C$21,$I$9,$I$9-SUMIF($A$10:$A$369,"<="&$E$3,$H$10:$H$369)),0,0),"") ->  | H187: =IFERROR((-PPMT(C187/12,B187,IF(C187=КАЛЬКУЛЯТОР!$C$21,$E$2,$E$2-$E$3),IF(C187=КАЛЬКУЛЯТОР!$C$21,$I$9,$I$9-SUMIF($A$10:$A$369,"<="&$E$3,$H$10:$H$369)),0,0)),"") ->  | P187: FALSE
A188: 179 | B188: 179 | D188: =IF(A188<=$E$2,-PMT(C188/12,IF(C188=КАЛЬКУЛЯТОР!$C$21,$E$2,$E$2-$E$3),IF(C188=КАЛЬКУЛЯТОР!$C$21,$I$9,$I$9-SUMIF($A$10:$A$369,"<="&$E$3,$H$10:$H$369)),0,0),"") ->  | F188: =IFERROR(-IPMT(C188/12,B188,IF(C188=КАЛЬКУЛЯТОР!$C$21,$E$2,$E$2-$E$3),IF(C188=КАЛЬКУЛЯТОР!$C$21,$I$9,$I$9-SUMIF($A$10:$A$369,"<="&$E$3,$H$10:$H$369)),0,0),"") ->  | G188: =IFERROR(-IPMT((C188-$P$1)/12,B188,IF(C188=КАЛЬКУЛЯТОР!$C$21,$E$2,$E$2-$E$3),IF(C188=КАЛЬКУЛЯТОР!$C$21,$I$9,$I$9-SUMIF($A$10:$A$369,"<="&$E$3,$H$10:$H$369)),0,0),"") ->  | H188: =IFERROR((-PPMT(C188/12,B188,IF(C188=КАЛЬКУЛЯТОР!$C$21,$E$2,$E$2-$E$3),IF(C188=КАЛЬКУЛЯТОР!$C$21,$I$9,$I$9-SUMIF($A$10:$A$369,"<="&$E$3,$H$10:$H$369)),0,0)),"") ->  | P188: FALSE
A189: 180 | B189: 180 | D189: =IF(A189<=$E$2,-PMT(C189/12,IF(C189=КАЛЬКУЛЯТОР!$C$21,$E$2,$E$2-$E$3),IF(C189=КАЛЬКУЛЯТОР!$C$21,$I$9,$I$9-SUMIF($A$10:$A$369,"<="&$E$3,$H$10:$H$369)),0,0),"") ->  | F189: =IFERROR(-IPMT(C189/12,B189,IF(C189=КАЛЬКУЛЯТОР!$C$21,$E$2,$E$2-$E$3),IF(C189=КАЛЬКУЛЯТОР!$C$21,$I$9,$I$9-SUMIF($A$10:$A$369,"<="&$E$3,$H$10:$H$369)),0,0),"") ->  | G189: =IFERROR(-IPMT((C189-$P$1)/12,B189,IF(C189=КАЛЬКУЛЯТОР!$C$21,$E$2,$E$2-$E$3),IF(C189=КАЛЬКУЛЯТОР!$C$21,$I$9,$I$9-SUMIF($A$10:$A$369,"<="&$E$3,$H$10:$H$369)),0,0),"") ->  | H189: =IFERROR((-PPMT(C189/12,B189,IF(C189=КАЛЬКУЛЯТОР!$C$21,$E$2,$E$2-$E$3),IF(C189=КАЛЬКУЛЯТОР!$C$21,$I$9,$I$9-SUMIF($A$10:$A$369,"<="&$E$3,$H$10:$H$369)),0,0)),"") ->  | P189: FALSE
A190: 181 | B190: 181 | D190: =IF(A190<=$E$2,-PMT(C190/12,IF(C190=КАЛЬКУЛЯТОР!$C$21,$E$2,$E$2-$E$3),IF(C190=КАЛЬКУЛЯТОР!$C$21,$I$9,$I$9-SUMIF($A$10:$A$369,"<="&$E$3,$H$10:$H$369)),0,0)+E190,"") ->  | E190: =IF($E$2>$A189,(I189+SUM(F190:F201))*($K$4+$K$5),0) -> 0.00 | F190: =IFERROR(-IPMT(C190/12,B190,IF(C190=КАЛЬКУЛЯТОР!$C$21,$E$2,$E$2-$E$3),IF(C190=КАЛЬКУЛЯТОР!$C$21,$I$9,$I$9-SUMIF($A$10:$A$369,"<="&$E$3,$H$10:$H$369)),0,0),"") ->  | G190: =IFERROR(-IPMT((C190-$P$1)/12,B190,IF(C190=КАЛЬКУЛЯТОР!$C$21,$E$2,$E$2-$E$3),IF(C190=КАЛЬКУЛЯТОР!$C$21,$I$9,$I$9-SUMIF($A$10:$A$369,"<="&$E$3,$H$10:$H$369)),0,0),"") ->  | H190: =IFERROR((-PPMT(C190/12,B190,IF(C190=КАЛЬКУЛЯТОР!$C$21,$E$2,$E$2-$E$3),IF(C190=КАЛЬКУЛЯТОР!$C$21,$I$9,$I$9-SUMIF($A$10:$A$369,"<="&$E$3,$H$10:$H$369)),0,0)),"") ->  | K190: =PV($E$5/12,A190-1,0,-E190) -> 0.00 | P190: FALSE
A191: 182 | B191: 182 | D191: =IF(A191<=$E$2,-PMT(C191/12,IF(C191=КАЛЬКУЛЯТОР!$C$21,$E$2,$E$2-$E$3),IF(C191=КАЛЬКУЛЯТОР!$C$21,$I$9,$I$9-SUMIF($A$10:$A$369,"<="&$E$3,$H$10:$H$369)),0,0),"") ->  | F191: =IFERROR(-IPMT(C191/12,B191,IF(C191=КАЛЬКУЛЯТОР!$C$21,$E$2,$E$2-$E$3),IF(C191=КАЛЬКУЛЯТОР!$C$21,$I$9,$I$9-SUMIF($A$10:$A$369,"<="&$E$3,$H$10:$H$369)),0,0),"") ->  | G191: =IFERROR(-IPMT((C191-$P$1)/12,B191,IF(C191=КАЛЬКУЛЯТОР!$C$21,$E$2,$E$2-$E$3),IF(C191=КАЛЬКУЛЯТОР!$C$21,$I$9,$I$9-SUMIF($A$10:$A$369,"<="&$E$3,$H$10:$H$369)),0,0),"") ->  | H191: =IFERROR((-PPMT(C191/12,B191,IF(C191=КАЛЬКУЛЯТОР!$C$21,$E$2,$E$2-$E$3),IF(C191=КАЛЬКУЛЯТОР!$C$21,$I$9,$I$9-SUMIF($A$10:$A$369,"<="&$E$3,$H$10:$H$369)),0,0)),"") ->  | P191: FALSE
A192: 183 | B192: 183 | D192: =IF(A192<=$E$2,-PMT(C192/12,IF(C192=КАЛЬКУЛЯТОР!$C$21,$E$2,$E$2-$E$3),IF(C192=КАЛЬКУЛЯТОР!$C$21,$I$9,$I$9-SUMIF($A$10:$A$369,"<="&$E$3,$H$10:$H$369)),0,0),"") ->  | F192: =IFERROR(-IPMT(C192/12,B192,IF(C192=КАЛЬКУЛЯТОР!$C$21,$E$2,$E$2-$E$3),IF(C192=КАЛЬКУЛЯТОР!$C$21,$I$9,$I$9-SUMIF($A$10:$A$369,"<="&$E$3,$H$10:$H$369)),0,0),"") ->  | G192: =IFERROR(-IPMT((C192-$P$1)/12,B192,IF(C192=КАЛЬКУЛЯТОР!$C$21,$E$2,$E$2-$E$3),IF(C192=КАЛЬКУЛЯТОР!$C$21,$I$9,$I$9-SUMIF($A$10:$A$369,"<="&$E$3,$H$10:$H$369)),0,0),"") ->  | H192: =IFERROR((-PPMT(C192/12,B192,IF(C192=КАЛЬКУЛЯТОР!$C$21,$E$2,$E$2-$E$3),IF(C192=КАЛЬКУЛЯТОР!$C$21,$I$9,$I$9-SUMIF($A$10:$A$369,"<="&$E$3,$H$10:$H$369)),0,0)),"") ->  | P192: FALSE
A193: 184 | B193: 184 | D193: =IF(A193<=$E$2,-PMT(C193/12,IF(C193=КАЛЬКУЛЯТОР!$C$21,$E$2,$E$2-$E$3),IF(C193=КАЛЬКУЛЯТОР!$C$21,$I$9,$I$9-SUMIF($A$10:$A$369,"<="&$E$3,$H$10:$H$369)),0,0),"") ->  | F193: =IFERROR(-IPMT(C193/12,B193,IF(C193=КАЛЬКУЛЯТОР!$C$21,$E$2,$E$2-$E$3),IF(C193=КАЛЬКУЛЯТОР!$C$21,$I$9,$I$9-SUMIF($A$10:$A$369,"<="&$E$3,$H$10:$H$369)),0,0),"") ->  | G193: =IFERROR(-IPMT((C193-$P$1)/12,B193,IF(C193=КАЛЬКУЛЯТОР!$C$21,$E$2,$E$2-$E$3),IF(C193=КАЛЬКУЛЯТОР!$C$21,$I$9,$I$9-SUMIF($A$10:$A$369,"<="&$E$3,$H$10:$H$369)),0,0),"") ->  | H193: =IFERROR((-PPMT(C193/12,B193,IF(C193=КАЛЬКУЛЯТОР!$C$21,$E$2,$E$2-$E$3),IF(C193=КАЛЬКУЛЯТОР!$C$21,$I$9,$I$9-SUMIF($A$10:$A$369,"<="&$E$3,$H$10:$H$369)),0,0)),"") ->  | P193: FALSE
A194: 185 | B194: 185 | D194: =IF(A194<=$E$2,-PMT(C194/12,IF(C194=КАЛЬКУЛЯТОР!$C$21,$E$2,$E$2-$E$3),IF(C194=КАЛЬКУЛЯТОР!$C$21,$I$9,$I$9-SUMIF($A$10:$A$369,"<="&$E$3,$H$10:$H$369)),0,0),"") ->  | F194: =IFERROR(-IPMT(C194/12,B194,IF(C194=КАЛЬКУЛЯТОР!$C$21,$E$2,$E$2-$E$3),IF(C194=КАЛЬКУЛЯТОР!$C$21,$I$9,$I$9-SUMIF($A$10:$A$369,"<="&$E$3,$H$10:$H$369)),0,0),"") ->  | G194: =IFERROR(-IPMT((C194-$P$1)/12,B194,IF(C194=КАЛЬКУЛЯТОР!$C$21,$E$2,$E$2-$E$3),IF(C194=КАЛЬКУЛЯТОР!$C$21,$I$9,$I$9-SUMIF($A$10:$A$369,"<="&$E$3,$H$10:$H$369)),0,0),"") ->  | H194: =IFERROR((-PPMT(C194/12,B194,IF(C194=КАЛЬКУЛЯТОР!$C$21,$E$2,$E$2-$E$3),IF(C194=КАЛЬКУЛЯТОР!$C$21,$I$9,$I$9-SUMIF($A$10:$A$369,"<="&$E$3,$H$10:$H$369)),0,0)),"") ->  | P194: FALSE
A195: 186 | B195: 186 | D195: =IF(A195<=$E$2,-PMT(C195/12,IF(C195=КАЛЬКУЛЯТОР!$C$21,$E$2,$E$2-$E$3),IF(C195=КАЛЬКУЛЯТОР!$C$21,$I$9,$I$9-SUMIF($A$10:$A$369,"<="&$E$3,$H$10:$H$369)),0,0),"") ->  | F195: =IFERROR(-IPMT(C195/12,B195,IF(C195=КАЛЬКУЛЯТОР!$C$21,$E$2,$E$2-$E$3),IF(C195=КАЛЬКУЛЯТОР!$C$21,$I$9,$I$9-SUMIF($A$10:$A$369,"<="&$E$3,$H$10:$H$369)),0,0),"") ->  | G195: =IFERROR(-IPMT((C195-$P$1)/12,B195,IF(C195=КАЛЬКУЛЯТОР!$C$21,$E$2,$E$2-$E$3),IF(C195=КАЛЬКУЛЯТОР!$C$21,$I$9,$I$9-SUMIF($A$10:$A$369,"<="&$E$3,$H$10:$H$369)),0,0),"") ->  | H195: =IFERROR((-PPMT(C195/12,B195,IF(C195=КАЛЬКУЛЯТОР!$C$21,$E$2,$E$2-$E$3),IF(C195=КАЛЬКУЛЯТОР!$C$21,$I$9,$I$9-SUMIF($A$10:$A$369,"<="&$E$3,$H$10:$H$369)),0,0)),"") ->  | P195: FALSE
A196: 187 | B196: 187 | D196: =IF(A196<=$E$2,-PMT(C196/12,IF(C196=КАЛЬКУЛЯТОР!$C$21,$E$2,$E$2-$E$3),IF(C196=КАЛЬКУЛЯТОР!$C$21,$I$9,$I$9-SUMIF($A$10:$A$369,"<="&$E$3,$H$10:$H$369)),0,0),"") ->  | F196: =IFERROR(-IPMT(C196/12,B196,IF(C196=КАЛЬКУЛЯТОР!$C$21,$E$2,$E$2-$E$3),IF(C196=КАЛЬКУЛЯТОР!$C$21,$I$9,$I$9-SUMIF($A$10:$A$369,"<="&$E$3,$H$10:$H$369)),0,0),"") ->  | G196: =IFERROR(-IPMT((C196-$P$1)/12,B196,IF(C196=КАЛЬКУЛЯТОР!$C$21,$E$2,$E$2-$E$3),IF(C196=КАЛЬКУЛЯТОР!$C$21,$I$9,$I$9-SUMIF($A$10:$A$369,"<="&$E$3,$H$10:$H$369)),0,0),"") ->  | H196: =IFERROR((-PPMT(C196/12,B196,IF(C196=КАЛЬКУЛЯТОР!$C$21,$E$2,$E$2-$E$3),IF(C196=КАЛЬКУЛЯТОР!$C$21,$I$9,$I$9-SUMIF($A$10:$A$369,"<="&$E$3,$H$10:$H$369)),0,0)),"") ->  | P196: FALSE
A197: 188 | B197: 188 | D197: =IF(A197<=$E$2,-PMT(C197/12,IF(C197=КАЛЬКУЛЯТОР!$C$21,$E$2,$E$2-$E$3),IF(C197=КАЛЬКУЛЯТОР!$C$21,$I$9,$I$9-SUMIF($A$10:$A$369,"<="&$E$3,$H$10:$H$369)),0,0),"") ->  | F197: =IFERROR(-IPMT(C197/12,B197,IF(C197=КАЛЬКУЛЯТОР!$C$21,$E$2,$E$2-$E$3),IF(C197=КАЛЬКУЛЯТОР!$C$21,$I$9,$I$9-SUMIF($A$10:$A$369,"<="&$E$3,$H$10:$H$369)),0,0),"") ->  | G197: =IFERROR(-IPMT((C197-$P$1)/12,B197,IF(C197=КАЛЬКУЛЯТОР!$C$21,$E$2,$E$2-$E$3),IF(C197=КАЛЬКУЛЯТОР!$C$21,$I$9,$I$9-SUMIF($A$10:$A$369,"<="&$E$3,$H$10:$H$369)),0,0),"") ->  | H197: =IFERROR((-PPMT(C197/12,B197,IF(C197=КАЛЬКУЛЯТОР!$C$21,$E$2,$E$2-$E$3),IF(C197=КАЛЬКУЛЯТОР!$C$21,$I$9,$I$9-SUMIF($A$10:$A$369,"<="&$E$3,$H$10:$H$369)),0,0)),"") ->  | P197: FALSE
A198: 189 | B198: 189 | D198: =IF(A198<=$E$2,-PMT(C198/12,IF(C198=КАЛЬКУЛЯТОР!$C$21,$E$2,$E$2-$E$3),IF(C198=КАЛЬКУЛЯТОР!$C$21,$I$9,$I$9-SUMIF($A$10:$A$369,"<="&$E$3,$H$10:$H$369)),0,0),"") ->  | F198: =IFERROR(-IPMT(C198/12,B198,IF(C198=КАЛЬКУЛЯТОР!$C$21,$E$2,$E$2-$E$3),IF(C198=КАЛЬКУЛЯТОР!$C$21,$I$9,$I$9-SUMIF($A$10:$A$369,"<="&$E$3,$H$10:$H$369)),0,0),"") ->  | G198: =IFERROR(-IPMT((C198-$P$1)/12,B198,IF(C198=КАЛЬКУЛЯТОР!$C$21,$E$2,$E$2-$E$3),IF(C198=КАЛЬКУЛЯТОР!$C$21,$I$9,$I$9-SUMIF($A$10:$A$369,"<="&$E$3,$H$10:$H$369)),0,0),"") ->  | H198: =IFERROR((-PPMT(C198/12,B198,IF(C198=КАЛЬКУЛЯТОР!$C$21,$E$2,$E$2-$E$3),IF(C198=КАЛЬКУЛЯТОР!$C$21,$I$9,$I$9-SUMIF($A$10:$A$369,"<="&$E$3,$H$10:$H$369)),0,0)),"") ->  | P198: FALSE
A199: 190 | B199: 190 | D199: =IF(A199<=$E$2,-PMT(C199/12,IF(C199=КАЛЬКУЛЯТОР!$C$21,$E$2,$E$2-$E$3),IF(C199=КАЛЬКУЛЯТОР!$C$21,$I$9,$I$9-SUMIF($A$10:$A$369,"<="&$E$3,$H$10:$H$369)),0,0),"") ->  | F199: =IFERROR(-IPMT(C199/12,B199,IF(C199=КАЛЬКУЛЯТОР!$C$21,$E$2,$E$2-$E$3),IF(C199=КАЛЬКУЛЯТОР!$C$21,$I$9,$I$9-SUMIF($A$10:$A$369,"<="&$E$3,$H$10:$H$369)),0,0),"") ->  | G199: =IFERROR(-IPMT((C199-$P$1)/12,B199,IF(C199=КАЛЬКУЛЯТОР!$C$21,$E$2,$E$2-$E$3),IF(C199=КАЛЬКУЛЯТОР!$C$21,$I$9,$I$9-SUMIF($A$10:$A$369,"<="&$E$3,$H$10:$H$369)),0,0),"") ->  | H199: =IFERROR((-PPMT(C199/12,B199,IF(C199=КАЛЬКУЛЯТОР!$C$21,$E$2,$E$2-$E$3),IF(C199=КАЛЬКУЛЯТОР!$C$21,$I$9,$I$9-SUMIF($A$10:$A$369,"<="&$E$3,$H$10:$H$369)),0,0)),"") ->  | P199: FALSE
A200: 191 | B200: 191 | D200: =IF(A200<=$E$2,-PMT(C200/12,IF(C200=КАЛЬКУЛЯТОР!$C$21,$E$2,$E$2-$E$3),IF(C200=КАЛЬКУЛЯТОР!$C$21,$I$9,$I$9-SUMIF($A$10:$A$369,"<="&$E$3,$H$10:$H$369)),0,0),"") ->  | F200: =IFERROR(-IPMT(C200/12,B200,IF(C200=КАЛЬКУЛЯТОР!$C$21,$E$2,$E$2-$E$3),IF(C200=КАЛЬКУЛЯТОР!$C$21,$I$9,$I$9-SUMIF($A$10:$A$369,"<="&$E$3,$H$10:$H$369)),0,0),"") ->  | G200: =IFERROR(-IPMT((C200-$P$1)/12,B200,IF(C200=КАЛЬКУЛЯТОР!$C$21,$E$2,$E$2-$E$3),IF(C200=КАЛЬКУЛЯТОР!$C$21,$I$9,$I$9-SUMIF($A$10:$A$369,"<="&$E$3,$H$10:$H$369)),0,0),"") ->  | H200: =IFERROR((-PPMT(C200/12,B200,IF(C200=КАЛЬКУЛЯТОР!$C$21,$E$2,$E$2-$E$3),IF(C200=КАЛЬКУЛЯТОР!$C$21,$I$9,$I$9-SUMIF($A$10:$A$369,"<="&$E$3,$H$10:$H$369)),0,0)),"") ->  | P200: FALSE
... 169 more rows

Sheet КАЛЬКУЛЯТОР 1.1 (hidden)
A1: =КАЛЬКУЛЯТОР!A9 -> Сумма кредита (основной долг), руб.: | E1: =КАЛЬКУЛЯТОР!$C$9 -> 0 | H1: 1. КОМИССИЯ ЗА ОТКР. АККРЕДИТИВА | K1: ='КАЛЬКУЛЯТОР 1'!$K$1 -> 7,000.00 ₽
A2: Срок кредита по договору, в мес.: | E2: 120 | H2: 2. КОМИССИЯ ЗА ЭРС | K2: ='КАЛЬКУЛЯТОР 1'!$K$2 -> 8,300.00 ₽
A3: Срок льготного периода, в мес.: | E3: =IF(КАЛЬКУЛЯТОР!$C$19=КАЛЬКУЛЯТОР!$A$43,0,IF(КАЛЬКУЛЯТОР!$C$19=КАЛЬКУЛЯТОР!$A$44,КАЛЬКУЛЯТОР!$C$20,0)) -> 0 | H3: 3. ПЛАТА ЗА ОЦЕНКУ НЕДВ.ИМУЩЕСТВА | K3: ='КАЛЬКУЛЯТОР 1'!$K$3 -> 3,000.00 ₽
A4: =КАЛЬКУЛЯТОР!$A$17 -> ИТОГО размер процентной ставки по комбо-ипотеке, % годовых: | E4: =КАЛЬКУЛЯТОР!$C$17 ->  | H4: 4. СТРАХОВАНИЕ ЖИЗНИ | K4: ='КАЛЬКУЛЯТОР 1'!$K$4 -> 0.60%
A5: ИТОГО размер процентной ставки по комбо-ипотеке в ЛП: | E5: =$E$4+1.5% ->  | H5: 5. СТРАХОВАНИЕ ИМУЩЕСТВА | K5: ='КАЛЬКУЛЯТОР 1'!$K$5 -> 0.10%
A6: Инфляция IP, % годовых | E6: =КАЛЬКУЛЯТОР!$C$25 -> 9.00%
J7: С УЧЕТОМ ВЛИЯНИЯ ИНФЛЯЦИИ
A8: ИТОГО: | D8: =SUMIF(A11:A370,"<="&E2,D11:D370) ->  | E8: =SUMIF(A11:A370,"<="&E2,E11:E370) ->  | F8: =SUMIF($A$11:$A$370,"<="&$E$2,F11:F370) -> 0.00 | G8: =SUMIF($A$11:$A$370,"<="&$E$2,G11:G370) -> 0.00 | H8: =SUMIF(A11:A370,"<="&E2,H11:H370) -> 0.00 | J8: =SUMIF(A11:A370,"<="&E2,J11:J370) ->  | K8: =SUMIF(A11:A370,"<="&E2,K10:K370) ->  | L8: =SUMIF($A$11:$A$370,"<="&$E$2,L11:L370) ->  | M8: =SUMIF($A$11:$A$370,"<="&$E$2,M11:M370) ->  | N8: =SUMIF(A11:A370,"<="&E2,N11:N370) -> 
A9: Месяцы платежа | B9: Период платежа | C9: Процентная ставка | D9: Ежемесячный платеж | E9: Доп. платежи | F9: Процентные платежи | G9: ЧПД Банка | H9: Основной долг | I9: Остаток ссудной задолженности | J9: Ежемесячный платеж | K9: Доп. платежи | L9: Процентные платежи | M9: ЧПД Банка | N9: Основной долг | O9: Остаток ссудной задолженности
A10: 0 | D10: =-КАЛЬКУЛЯТОР!C9 -> 0.00 | I10: =$E$1 -> 0.00 | J10: =-КАЛЬКУЛЯТОР!C9 -> 0.00 | O10: =I10 -> 0.00
A11: 1 | B11: 1 | C11: =IF(AND($E$4<=$E$5,A11<=$E$3),$E$5,IF(AND(A11>$E$3,A11<=$E$2),$E$4,"")) ->  | D11: =IF(A11<=$E$2,-PMT(C11/12,IF(C11=КАЛЬКУЛЯТОР!$C$21,$E$2,$E$2-$E$3),IF(C11=КАЛЬКУЛЯТОР!$C$21,$I$10,$I$10-SUMIF($A$11:$A$370,"<="&$E$3,$H$11:$H$370)),0,0)+E11,"") ->  | E11: =K1+K2+K3+((I10+SUM(F11:F22))*($K$4+$K$5)) -> 18,300.00 | F11: =IFERROR(-IPMT(C11/12,B11,IF(C11=$E$5,$E$2,$E$2-$E$3),IF(C11=$E$5,$I$10,$I$10-SUMIF($A$11:$A$370,"<="&$E$3,$H$11:$H$370)),0,0),"") ->  | G11: =IFERROR(-IPMT((C11-'КАЛЬКУЛЯТОР 1'!$P$1)/12,B11,IF(C11=$E$5,$E$2,$E$2-$E$3),IF(C11=$E$5,$I$10,$I$10-SUMIF($A$11:$A$370,"<="&$E$3,$H$11:$H$370)),0,0),"") ->  | H11: =IFERROR((-PPMT(C11/12,B11,IF(C11=$E$5,$E$2,$E$2-$E$3),IF(C11=$E$5,$I$10,$I$10-SUMIF($A$11:$A$370,"<="&$E$3,$H$11:$H$370)),0,0)),"") ->  | I11: =IFERROR(I10-H11,"") ->  | J11: =PV($E$6/12,A11-1,0,-D11) ->  | K11: =PV($E$6/12,A11-1,0,-E11) -> 18,300.00 | L11: =PV($E$6/12,A11-1,0,-F11) ->  | M11: =PV($E$6/12,A11-1,0,-G11) ->  | N11: =PV($E$6/12,A11-1,0,-H11) ->  | O11: =O10-N11 ->  | P11: =AND(A11<=$E$3) -> FALSE
A12: 2 | B12: =IF(P12=$P$11,B11+1,A12-$E$3) -> 2 | C12: =IF(AND($E$4<=$E$5,A12<=$E$3),$E$5,IF(AND(A12>$E$3,A12<=$E$2),$E$4,"")) ->  | D12: =IF(A12<=$E$2,-PMT(C12/12,IF(C12=КАЛЬКУЛЯТОР!$C$21,$E$2,$E$2-$E$3),IF(C12=КАЛЬКУЛЯТОР!$C$21,$I$10,$I$10-SUMIF($A$11:$A$370,"<="&$E$3,$H$11:$H$370)),0,0),"") ->  | F12: =IFERROR(-IPMT(C12/12,B12,IF(C12=$E$5,$E$2,$E$2-$E$3),IF(C12=$E$5,$I$10,$I$10-SUMIF($A$11:$A$370,"<="&$E$3,$H$11:$H$370)),0,0),"") ->  | G12: =IFERROR(-IPMT((C12-'КАЛЬКУЛЯТОР 1'!$P$1)/12,B12,IF(C12=$E$5,$E$2,$E$2-$E$3),IF(C12=$E$5,$I$10,$I$10-SUMIF($A$11:$A$370,"<="&$E$3,$H$11:$H$370)),0,0),"") ->  | H12: =IFERROR((-PPMT(C12/12,B12,IF(C12=$E$5,$E$2,$E$2-$E$3),IF(C12=$E$5,$I$10,$I$10-SUMIF($A$11:$A$370,"<="&$E$3,$H$11:$H$370)),0,0)),"") ->  | I12: =IFERROR(I11-H12,"") ->  | P12: =AND(A12<=$E$3) -> FALSE
A13: 3 | B13: 3 | D13: =IF(A13<=$E$2,-PMT(C13/12,IF(C13=КАЛЬКУЛЯТОР!$C$21,$E$2,$E$2-$E$3),IF(C13=КАЛЬКУЛЯТОР!$C$21,$I$10,$I$10-SUMIF($A$11:$A$370,"<="&$E$3,$H$11:$H$370)),0,0),"") ->  | G13: =IFERROR(-IPMT((C13-'КАЛЬКУЛЯТОР 1'!$P$1)/12,B13,IF(C13=$E$5,$E$2,$E$2-$E$3),IF(C13=$E$5,$I$10,$I$10-SUMIF($A$11:$A$370,"<="&$E$3,$H$11:$H$370)),0,0),"") ->  | P13: FALSE
A14: 4 | B14: 4 | D14: =IF(A14<=$E$2,-PMT(C14/12,IF(C14=КАЛЬКУЛЯТОР!$C$21,$E$2,$E$2-$E$3),IF(C14=КАЛЬКУЛЯТОР!$C$21,$I$10,$I$10-SUMIF($A$11:$A$370,"<="&$E$3,$H$11:$H$370)),0,0),"") ->  | G14: =IFERROR(-IPMT((C14-'КАЛЬКУЛЯТОР 1'!$P$1)/12,B14,IF(C14=$E$5,$E$2,$E$2-$E$3),IF(C14=$E$5,$I$10,$I$10-SUMIF($A$11:$A$370,"<="&$E$3,$H$11:$H$370)),0,0),"") ->  | P14: FALSE
A15: 5 | B15: 5 | D15: =IF(A15<=$E$2,-PMT(C15/12,IF(C15=КАЛЬКУЛЯТОР!$C$21,$E$2,$E$2-$E$3),IF(C15=КАЛЬКУЛЯТОР!$C$21,$I$10,$I$10-SUMIF($A$11:$A$370,"<="&$E$3,$H$11:$H$370)),0,0),"") ->  | G15: =IFERROR(-IPMT((C15-'КАЛЬКУЛЯТОР 1'!$P$1)/12,B15,IF(C15=$E$5,$E$2,$E$2-$E$3),IF(C15=$E$5,$I$10,$I$10-SUMIF($A$11:$A$370,"<="&$E$3,$H$11:$H$370)),0,0),"") ->  | P15: FALSE
A16: 6 | B16: 6 | D16: =IF(A16<=$E$2,-PMT(C16/12,IF(C16=КАЛЬКУЛЯТОР!$C$21,$E$2,$E$2-$E$3),IF(C16=КАЛЬКУЛЯТОР!$C$21,$I$10,$I$10-SUMIF($A$11:$A$370,"<="&$E$3,$H$11:$H$370)),0,0),"") ->  | G16: =IFERROR(-IPMT((C16-'КАЛЬКУЛЯТОР 1'!$P$1)/12,B16,IF(C16=$E$5,$E$2,$E$2-$E$3),IF(C16=$E$5,$I$10,$I$10-SUMIF($A$11:$A$370,"<="&$E$3,$H$11:$H$370)),0,0),"") ->  | P16: FALSE
A17: 7 | B17: 7 | D17: =IF(A17<=$E$2,-PMT(C17/12,IF(C17=КАЛЬКУЛЯТОР!$C$21,$E$2,$E$2-$E$3),IF(C17=КАЛЬКУЛЯТОР!$C$21,$I$10,$I$10-SUMIF($A$11:$A$370,"<="&$E$3,$H$11:$H$370)),0,0),"") ->  | G17: =IFERROR(-IPMT((C17-'КАЛЬКУЛЯТОР 1'!$P$1)/12,B17,IF(C17=$E$5,$E$2,$E$2-$E$3),IF(C17=$E$5,$I$10,$I$10-SUMIF($A$11:$A$370,"<="&$E$3,$H$11:$H$370)),0,0),"") ->  | P17: FALSE
A18: 8 | B18: 8 | D18: =IF(A18<=$E$2,-PMT(C18/12,IF(C18=КАЛЬКУЛЯТОР!$C$21,$E$2,$E$2-$E$3),IF(C18=КАЛЬКУЛЯТОР!$C$21,$I$10,$I$10-SUMIF($A$11:$A$370,"<="&$E$3,$H$11:$H$370)),0,0),"") ->  | G18: =IFERROR(-IPMT((C18-'КАЛЬКУЛЯТОР 1'!$P$1)/12,B18,IF(C18=$E$5,$E$2,$E$2-$E$3),IF(C18=$E$5,$I$10,$I$10-SUMIF($A$11:$A$370,"<="&$E$3,$H$11:$H$370)),0,0),"") ->  | P18: FALSE
A19: 9 | B19: 9 | D19: =IF(A19<=$E$2,-PMT(C19/12,IF(C19=КАЛЬКУЛЯТОР!$C$21,$E$2,$E$2-$E$3),IF(C19=КАЛЬКУЛЯТОР!$C$21,$I$10,$I$10-SUMIF($A$11:$A$370,"<="&$E$3,$H$11:$H$370)),0,0),"") ->  | G19: =IFERROR(-IPMT((C19-'КАЛЬКУЛЯТОР 1'!$P$1)/12,B19,IF(C19=$E$5,$E$2,$E$2-$E$3),IF(C19=$E$5,$I$10,$I$10-SUMIF($A$11:$A$370,"<="&$E$3,$H$11:$H$370)),0,0),"") ->  | P19: FALSE
A20: 10 | B20: 10 | D20: =IF(A20<=$E$2,-PMT(C20/12,IF(C20=КАЛЬКУЛЯТОР!$C$21,$E$2,$E$2-$E$3),IF(C20=КАЛЬКУЛЯТОР!$C$21,$I$10,$I$10-SUMIF($A$11:$A$370,"<="&$E$3,$H$11:$H$370)),0,0),"") ->  | G20: =IFERROR(-IPMT((C20-'КАЛЬКУЛЯТОР 1'!$P$1)/12,B20,IF(C20=$E$5,$E$2,$E$2-$E$3),IF(C20=$E$5,$I$10,$I$10-SUMIF($A$11:$A$370,"<="&$E$3,$H$11:$H$370)),0,0),"") ->  | P20: FALSE
A21: 11 | B21: 11 | D21: =IF(A21<=$E$2,-PMT(C21/12,IF(C21=КАЛЬКУЛЯТОР!$C$21,$E$2,$E$2-$E$3),IF(C21=КАЛЬКУЛЯТОР!$C$21,$I$10,$I$10-SUMIF($A$11:$A$370,"<="&$E$3,$H$11:$H$370)),0,0),"") ->  | G21: =IFERROR(-IPMT((C21-'КАЛЬКУЛЯТОР 1'!$P$1)/12,B21,IF(C21=$E$5,$E$2,$E$2-$E$3),IF(C21=$E$5,$I$10,$I$10-SUMIF($A$11:$A$370,"<="&$E$3,$H$11:$H$370)),0,0),"") ->  | P21: FALSE
A22: 12 | B22: 12 | D22: =IF(A22<=$E$2,-PMT(C22/12,IF(C22=КАЛЬКУЛЯТОР!$C$21,$E$2,$E$2-$E$3),IF(C22=КАЛЬКУЛЯТОР!$C$21,$I$10,$I$10-SUMIF($A$11:$A$370,"<="&$E$3,$H$11:$H$370)),0,0),"") ->  | G22: =IFERROR(-IPMT((C22-'КАЛЬКУЛЯТОР 1'!$P$1)/12,B22,IF(C22=$E$5,$E$2,$E$2-$E$3),IF(C22=$E$5,$I$10,$I$10-SUMIF($A$11:$A$370,"<="&$E$3,$H$11:$H$370)),0,0),"") ->  | P22: FALSE
A23: 13 | B23: 13 | D23: =IF(A23<=$E$2,-PMT(C23/12,IF(C23=КАЛЬКУЛЯТОР!$C$21,$E$2,$E$2-$E$3),IF(C23=КАЛЬКУЛЯТОР!$C$21,$I$10,$I$10-SUMIF($A$11:$A$370,"<="&$E$3,$H$11:$H$370)),0,0)+E23,"") ->  | E23: =IF($E$2>$A22,(I22+SUM(F23:F34))*($K$4+$K$5),0) ->  | G23: =IFERROR(-IPMT((C23-'КАЛЬКУЛЯТОР 1'!$P$1)/12,B23,IF(C23=$E$5,$E$2,$E$2-$E$3),IF(C23=$E$5,$I$10,$I$10-SUMIF($A$11:$A$370,"<="&$E$3,$H$11:$H$370)),0,0),"") ->  | K23: =PV($E$6/12,A23-1,0,-E23) ->  | P23: FALSE
A24: 14 | B24: 14 | D24: =IF(A24<=$E$2,-PMT(C24/12,IF(C24=КАЛЬКУЛЯТОР!$C$21,$E$2,$E$2-$E$3),IF(C24=КАЛЬКУЛЯТОР!$C$21,$I$10,$I$10-SUMIF($A$11:$A$370,"<="&$E$3,$H$11:$H$370)),0,0),"") ->  | G24: =IFERROR(-IPMT((C24-'КАЛЬКУЛЯТОР 1'!$P$1)/12,B24,IF(C24=$E$5,$E$2,$E$2-$E$3),IF(C24=$E$5,$I$10,$I$10-SUMIF($A$11:$A$370,"<="&$E$3,$H$11:$H$370)),0,0),"") ->  | P24: FALSE
A25: 15 | B25: 15 | D25: =IF(A25<=$E$2,-PMT(C25/12,IF(C25=КАЛЬКУЛЯТОР!$C$21,$E$2,$E$2-$E$3),IF(C25=КАЛЬКУЛЯТОР!$C$21,$I$10,$I$10-SUMIF($A$11:$A$370,"<="&$E$3,$H$11:$H$370)),0,0),"") ->  | G25: =IFERROR(-IPMT((C25-'КАЛЬКУЛЯТОР 1'!$P$1)/12,B25,IF(C25=$E$5,$E$2,$E$2-$E$3),IF(C25=$E$5,$I$10,$I$10-SUMIF($A$11:$A$370,"<="&$E$3,$H$11:$H$370)),0,0),"") ->  | P25: FALSE
A26: 16 | B26: 16 | D26: =IF(A26<=$E$2,-PMT(C26/12,IF(C26=КАЛЬКУЛЯТОР!$C$21,$E$2,$E$2-$E$3),IF(C26=КАЛЬКУЛЯТОР!$C$21,$I$10,$I$10-SUMIF($A$11:$A$370,"<="&$E$3,$H$11:$H$370)),0,0),"") ->  | G26: =IFERROR(-IPMT((C26-'КАЛЬКУЛЯТОР 1'!$P$1)/12,B26,IF(C26=$E$5,$E$2,$E$2-$E$3),IF(C26=$E$5,$I$10,$I$10-SUMIF($A$11:$A$370,"<="&$E$3,$H$11:$H$370)),0,0),"") ->  | P26: FALSE
A27: 17 | B27: 17 | D27: =IF(A27<=$E$2,-PMT(C27/12,IF(C27=КАЛЬКУЛЯТОР!$C$21,$E$2,$E$2-$E$3),IF(C27=КАЛЬКУЛЯТОР!$C$21,$I$10,$I$10-SUMIF($A$11:$A$370,"<="&$E$3,$H$11:$H$370)),0,0),"") ->  | G27: =IFERROR(-IPMT((C27-'КАЛЬКУЛЯТОР 1'!$P$1)/12,B27,IF(C27=$E$5,$E$2,$E$2-$E$3),IF(C27=$E$5,$I$10,$I$10-SUMIF($A$11:$A$370,"<="&$E$3,$H$11:$H$370)),0,0),"") ->  | P27: FALSE
A28: 18 | B28: 18 | D28: =IF(A28<=$E$2,-PMT(C28/12,IF(C28=КАЛЬКУЛЯТОР!$C$21,$E$2,$E$2-$E$3),IF(C28=КАЛЬКУЛЯТОР!$C$21,$I$10,$I$10-SUMIF($A$11:$A$370,"<="&$E$3,$H$11:$H$370)),0,0),"") ->  | G28: =IFERROR(-IPMT((C28-'КАЛЬКУЛЯТОР 1'!$P$1)/12,B28,IF(C28=$E$5,$E$2,$E$2-$E$3),IF(C28=$E$5,$I$10,$I$10-SUMIF($A$11:$A$370,"<="&$E$3,$H$11:$H$370)),0,0),"") ->  | P28: FALSE
A29: 19 | B29: 19 | D29: =IF(A29<=$E$2,-PMT(C29/12,IF(C29=КАЛЬКУЛЯТОР!$C$21,$E$2,$E$2-$E$3),IF(C29=КАЛЬКУЛЯТОР!$C$21,$I$10,$I$10-SUMIF($A$11:$A$370,"<="&$E$3,$H$11:$H$370)),0,0),"") ->  | G29: =IFERROR(-IPMT((C29-'КАЛЬКУЛЯТОР 1'!$P$1)/12,B29,IF(C29=$E$5,$E$2,$E$2-$E$3),IF(C29=$E$5,$I$10,$I$10-SUMIF($A$11:$A$370,"<="&$E$3,$H$11:$H$370)),0,0),"") ->  | P29: FALSE
A30: 20 | B30: 20 | D30: =IF(A30<=$E$2,-PMT(C30/12,IF(C30=КАЛЬКУЛЯТОР!$C$21,$E$2,$E$2-$E$3),IF(C30=КАЛЬКУЛЯТОР!$C$21,$I$10,$I$10-SUMIF($A$11:$A$370,"<="&$E$3,$H$11:$H$370)),0,0),"") ->  | G30: =IFERROR(-IPMT((C30-'КАЛЬКУЛЯТОР 1'!$P$1)/12,B30,IF(C30=$E$5,$E$2,$E$2-$E$3),IF(C30=$E$5,$I$10,$I$10-SUMIF($A$11:$A$370,"<="&$E$3,$H$11:$H$370)),0,0),"") ->  | P30: FALSE
A31: 21 | B31: 21 | D31: =IF(A31<=$E$2,-PMT(C31/12,IF(C31=КАЛЬКУЛЯТОР!$C$21,$E$2,$E$2-$E$3),IF(C31=КАЛЬКУЛЯТОР!$C$21,$I$10,$I$10-SUMIF($A$11:$A$370,"<="&$E$3,$H$11:$H$370)),0,0),"") ->  | G31: =IFERROR(-IPMT((C31-'КАЛЬКУЛЯТОР 1'!$P$1)/12,B31,IF(C31=$E$5,$E$2,$E$2-$E$3),IF(C31=$E$5,$I$10,$I$10-SUMIF($A$11:$A$370,"<="&$E$3,$H$11:$H$370)),0,0),"") ->  | P31: FALSE
A32: 22 | B32: 22 | D32: =IF(A32<=$E$2,-PMT(C32/12,IF(C32=КАЛЬКУЛЯТОР!$C$21,$E$2,$E$2-$E$3),IF(C32=КАЛЬКУЛЯТОР!$C$21,$I$10,$I$10-SUMIF($A$11:$A$370,"<="&$E$3,$H$11:$H$370)),0,0),"") ->  | G32: =IFERROR(-IPMT((C32-'КАЛЬКУЛЯТОР 1'!$P$1)/12,B32,IF(C32=$E$5,$E$2,$E$2-$E$3),IF(C32=$E$5,$I$10,$I$10-SUMIF($A$11:$A$370,"<="&$E$3,$H$11:$H$370)),0,0),"") ->  | P32: FALSE
A33: 23 | B33: 23 | D33: =IF(A33<=$E$2,-PMT(C33/12,IF(C33=КАЛЬКУЛЯТОР!$C$21,$E$2,$E$2-$E$3),IF(C33=КАЛЬКУЛЯТОР!$C$21,$I$10,$I$10-SUMIF($A$11:$A$370,"<="&$E$3,$H$11:$H$370)),0,0),"") ->  | G33: =IFERROR(-IPMT((C33-'КАЛЬКУЛЯТОР 1'!$P$1)/12,B33,IF(C33=$E$5,$E$2,$E$2-$E$3),IF(C33=$E$5,$I$10,$I$10-SUMIF($A$11:$A$370,"<="&$E$3,$H$11:$H$370)),0,0),"") ->  | P33: FALSE
A34: 24 | B34: 24 | D34: =IF(A34<=$E$2,-PMT(C34/12,IF(C34=КАЛЬКУЛЯТОР!$C$21,$E$2,$E$2-$E$3),IF(C34=КАЛЬКУЛЯТОР!$C$21,$I$10,$I$10-SUMIF($A$11:$A$370,"<="&$E$3,$H$11:$H$370)),0,0),"") ->  | G34: =IFERROR(-IPMT((C34-'КАЛЬКУЛЯТОР 1'!$P$1)/12,B34,IF(C34=$E$5,$E$2,$E$2-$E$3),IF(C34=$E$5,$I$10,$I$10-SUMIF($A$11:$A$370,"<="&$E$3,$H$11:$H$370)),0,0),"") ->  | P34: FALSE
A35: 25 | B35: 25 | D35: =IF(A35<=$E$2,-PMT(C35/12,IF(C35=КАЛЬКУЛЯТОР!$C$21,$E$2,$E$2-$E$3),IF(C35=КАЛЬКУЛЯТОР!$C$21,$I$10,$I$10-SUMIF($A$11:$A$370,"<="&$E$3,$H$11:$H$370)),0,0)+E35,"") ->  | E35: =IF($E$2>$A34,(I34+SUM(F35:F46))*($K$4+$K$5),0) ->  | G35: =IFERROR(-IPMT((C35-'КАЛЬКУЛЯТОР 1'!$P$1)/12,B35,IF(C35=$E$5,$E$2,$E$2-$E$3),IF(C35=$E$5,$I$10,$I$10-SUMIF($A$11:$A$370,"<="&$E$3,$H$11:$H$370)),0,0),"") ->  | K35: =PV($E$6/12,A35-1,0,-E35) ->  | P35: FALSE
A36: 26 | B36: 26 | D36: =IF(A36<=$E$2,-PMT(C36/12,IF(C36=КАЛЬКУЛЯТОР!$C$21,$E$2,$E$2-$E$3),IF(C36=КАЛЬКУЛЯТОР!$C$21,$I$10,$I$10-SUMIF($A$11:$A$370,"<="&$E$3,$H$11:$H$370)),0,0),"") ->  | G36: =IFERROR(-IPMT((C36-'КАЛЬКУЛЯТОР 1'!$P$1)/12,B36,IF(C36=$E$5,$E$2,$E$2-$E$3),IF(C36=$E$5,$I$10,$I$10-SUMIF($A$11:$A$370,"<="&$E$3,$H$11:$H$370)),0,0),"") ->  | P36: FALSE
A37: 27 | B37: 27 | D37: =IF(A37<=$E$2,-PMT(C37/12,IF(C37=КАЛЬКУЛЯТОР!$C$21,$E$2,$E$2-$E$3),IF(C37=КАЛЬКУЛЯТОР!$C$21,$I$10,$I$10-SUMIF($A$11:$A$370,"<="&$E$3,$H$11:$H$370)),0,0),"") ->  | G37: =IFERROR(-IPMT((C37-'КАЛЬКУЛЯТОР 1'!$P$1)/12,B37,IF(C37=$E$5,$E$2,$E$2-$E$3),IF(C37=$E$5,$I$10,$I$10-SUMIF($A$11:$A$370,"<="&$E$3,$H$11:$H$370)),0,0),"") ->  | P37: FALSE
A38: 28 | B38: 28 | D38: =IF(A38<=$E$2,-PMT(C38/12,IF(C38=КАЛЬКУЛЯТОР!$C$21,$E$2,$E$2-$E$3),IF(C38=КАЛЬКУЛЯТОР!$C$21,$I$10,$I$10-SUMIF($A$11:$A$370,"<="&$E$3,$H$11:$H$370)),0,0),"") ->  | G38: =IFERROR(-IPMT((C38-'КАЛЬКУЛЯТОР 1'!$P$1)/12,B38,IF(C38=$E$5,$E$2,$E$2-$E$3),IF(C38=$E$5,$I$10,$I$10-SUMIF($A$11:$A$370,"<="&$E$3,$H$11:$H$370)),0,0),"") ->  | P38: FALSE
A39: 29 | B39: 29 | D39: =IF(A39<=$E$2,-PMT(C39/12,IF(C39=КАЛЬКУЛЯТОР!$C$21,$E$2,$E$2-$E$3),IF(C39=КАЛЬКУЛЯТОР!$C$21,$I$10,$I$10-SUMIF($A$11:$A$370,"<="&$E$3,$H$11:$H$370)),0,0),"") ->  | G39: =IFERROR(-IPMT((C39-'КАЛЬКУЛЯТОР 1'!$P$1)/12,B39,IF(C39=$E$5,$E$2,$E$2-$E$3),IF(C39=$E$5,$I$10,$I$10-SUMIF($A$11:$A$370,"<="&$E$3,$H$11:$H$370)),0,0),"") ->  | P39: FALSE
A40: 30 | B40: 30 | D40: =IF(A40<=$E$2,-PMT(C40/12,IF(C40=КАЛЬКУЛЯТОР!$C$21,$E$2,$E$2-$E$3),IF(C40=КАЛЬКУЛЯТОР!$C$21,$I$10,$I$10-SUMIF($A$11:$A$370,"<="&$E$3,$H$11:$H$370)),0,0),"") ->  | G40: =IFERROR(-IPMT((C40-'КАЛЬКУЛЯТОР 1'!$P$1)/12,B40,IF(C40=$E$5,$E$2,$E$2-$E$3),IF(C40=$E$5,$I$10,$I$10-SUMIF($A$11:$A$370,"<="&$E$3,$H$11:$H$370)),0,0),"") ->  | P40: FALSE
A41: 31 | B41: 31 | D41: =IF(A41<=$E$2,-PMT(C41/12,IF(C41=КАЛЬКУЛЯТОР!$C$21,$E$2,$E$2-$E$3),IF(C41=КАЛЬКУЛЯТОР!$C$21,$I$10,$I$10-SUMIF($A$11:$A$370,"<="&$E$3,$H$11:$H$370)),0,0),"") ->  | G41: =IFERROR(-IPMT((C41-'КАЛЬКУЛЯТОР 1'!$P$1)/12,B41,IF(C41=$E$5,$E$2,$E$2-$E$3),IF(C41=$E$5,$I$10,$I$10-SUMIF($A$11:$A$370,"<="&$E$3,$H$11:$H$370)),0,0),"") ->  | P41: FALSE
A42: 32 | B42: 32 | D42: =IF(A42<=$E$2,-PMT(C42/12,IF(C42=КАЛЬКУЛЯТОР!$C$21,$E$2,$E$2-$E$3),IF(C42=КАЛЬКУЛЯТОР!$C$21,$I$10,$I$10-SUMIF($A$11:$A$370,"<="&$E$3,$H$11:$H$370)),0,0),"") ->  | G42: =IFERROR(-IPMT((C42-'КАЛЬКУЛЯТОР 1'!$P$1)/12,B42,IF(C42=$E$5,$E$2,$E$2-$E$3),IF(C42=$E$5,$I$10,$I$10-SUMIF($A$11:$A$370,"<="&$E$3,$H$11:$H$370)),0,0),"") ->  | P42: FALSE
A43: 33 | B43: 33 | D43: =IF(A43<=$E$2,-PMT(C43/12,IF(C43=КАЛЬКУЛЯТОР!$C$21,$E$2,$E$2-$E$3),IF(C43=КАЛЬКУЛЯТОР!$C$21,$I$10,$I$10-SUMIF($A$11:$A$370,"<="&$E$3,$H$11:$H$370)),0,0),"") ->  | G43: =IFERROR(-IPMT((C43-'КАЛЬКУЛЯТОР 1'!$P$1)/12,B43,IF(C43=$E$5,$E$2,$E$2-$E$3),IF(C43=$E$5,$I$10,$I$10-SUMIF($A$11:$A$370,"<="&$E$3,$H$11:$H$370)),0,0),"") ->  | P43: FALSE
A44: 34 | B44: 34 | D44: =IF(A44<=$E$2,-PMT(C44/12,IF(C44=КАЛЬКУЛЯТОР!$C$21,$E$2,$E$2-$E$3),IF(C44=КАЛЬКУЛЯТОР!$C$21,$I$10,$I$10-SUMIF($A$11:$A$370,"<="&$E$3,$H$11:$H$370)),0,0),"") ->  | G44: =IFERROR(-IPMT((C44-'КАЛЬКУЛЯТОР 1'!$P$1)/12,B44,IF(C44=$E$5,$E$2,$E$2-$E$3),IF(C44=$E$5,$I$10,$I$10-SUMIF($A$11:$A$370,"<="&$E$3,$H$11:$H$370)),0,0),"") ->  | P44: FALSE
A45: 35 | B45: 35 | D45: =IF(A45<=$E$2,-PMT(C45/12,IF(C45=КАЛЬКУЛЯТОР!$C$21,$E$2,$E$2-$E$3),IF(C45=КАЛЬКУЛЯТОР!$C$21,$I$10,$I$10-SUMIF($A$11:$A$370,"<="&$E$3,$H$11:$H$370)),0,0),"") ->  | G45: =IFERROR(-IPMT((C45-'КАЛЬКУЛЯТОР 1'!$P$1)/12,B45,IF(C45=$E$5,$E$2,$E$2-$E$3),IF(C45=$E$5,$I$10,$I$10-SUMIF($A$11:$A$370,"<="&$E$3,$H$11:$H$370)),0,0),"") ->  | P45: FALSE
A46: 36 | B46: 36 | D46: =IF(A46<=$E$2,-PMT(C46/12,IF(C46=КАЛЬКУЛЯТОР!$C$21,$E$2,$E$2-$E$3),IF(C46=КАЛЬКУЛЯТОР!$C$21,$I$10,$I$10-SUMIF($A$11:$A$370,"<="&$E$3,$H$11:$H$370)),0,0),"") ->  | G46: =IFERROR(-IPMT((C46-'КАЛЬКУЛЯТОР 1'!$P$1)/12,B46,IF(C46=$E$5,$E$2,$E$2-$E$3),IF(C46=$E$5,$I$10,$I$10-SUMIF($A$11:$A$370,"<="&$E$3,$H$11:$H$370)),0,0),"") ->  | P46: FALSE
A47: 37 | B47: 37 | D47: =IF(A47<=$E$2,-PMT(C47/12,IF(C47=КАЛЬКУЛЯТОР!$C$21,$E$2,$E$2-$E$3),IF(C47=КАЛЬКУЛЯТОР!$C$21,$I$10,$I$10-SUMIF($A$11:$A$370,"<="&$E$3,$H$11:$H$370)),0,0)+E47,"") ->  | E47: =IF($E$2>$A46,(I46+SUM(F47:F58))*($K$4+$K$5),0) ->  | G47: =IFERROR(-IPMT((C47-'КАЛЬКУЛЯТОР 1'!$P$1)/12,B47,IF(C47=$E$5,$E$2,$E$2-$E$3),IF(C47=$E$5,$I$10,$I$10-SUMIF($A$11:$A$370,"<="&$E$3,$H$11:$H$370)),0,0),"") ->  | K47: =PV($E$6/12,A47-1,0,-E47) ->  | P47: FALSE
A48: 38 | B48: 38 | D48: =IF(A48<=$E$2,-PMT(C48/12,IF(C48=КАЛЬКУЛЯТОР!$C$21,$E$2,$E$2-$E$3),IF(C48=КАЛЬКУЛЯТОР!$C$21,$I$10,$I$10-SUMIF($A$11:$A$370,"<="&$E$3,$H$11:$H$370)),0,0),"") ->  | G48: =IFERROR(-IPMT((C48-'КАЛЬКУЛЯТОР 1'!$P$1)/12,B48,IF(C48=$E$5,$E$2,$E$2-$E$3),IF(C48=$E$5,$I$10,$I$10-SUMIF($A$11:$A$370,"<="&$E$3,$H$11:$H$370)),0,0),"") ->  | P48: FALSE
A49: 39 | B49: 39 | D49: =IF(A49<=$E$2,-PMT(C49/12,IF(C49=КАЛЬКУЛЯТОР!$C$21,$E$2,$E$2-$E$3),IF(C49=КАЛЬКУЛЯТОР!$C$21,$I$10,$I$10-SUMIF($A$11:$A$370,"<="&$E$3,$H$11:$H$370)),0,0),"") ->  | G49: =IFERROR(-IPMT((C49-'КАЛЬКУЛЯТОР 1'!$P$1)/12,B49,IF(C49=$E$5,$E$2,$E$2-$E$3),IF(C49=$E$5,$I$10,$I$10-SUMIF($A$11:$A$370,"<="&$E$3,$H$11:$H$370)),0,0),"") ->  | P49: FALSE
A50: 40 | B50: 40 | D50: =IF(A50<=$E$2,-PMT(C50/12,IF(C50=КАЛЬКУЛЯТОР!$C$21,$E$2,$E$2-$E$3),IF(C50=КАЛЬКУЛЯТОР!$C$21,$I$10,$I$10-SUMIF($A$11:$A$370,"<="&$E$3,$H$11:$H$370)),0,0),"") ->  | G50: =IFERROR(-IPMT((C50-'КАЛЬКУЛЯТОР 1'!$P$1)/12,B50,IF(C50=$E$5,$E$2,$E$2-$E$3),IF(C50=$E$5,$I$10,$I$10-SUMIF($A$11:$A$370,"<="&$E$3,$H$11:$H$370)),0,0),"") ->  | P50: FALSE
A51: 41 | B51: 41 | D51: =IF(A51<=$E$2,-PMT(C51/12,IF(C51=КАЛЬКУЛЯТОР!$C$21,$E$2,$E$2-$E$3),IF(C51=КАЛЬКУЛЯТОР!$C$21,$I$10,$I$10-SUMIF($A$11:$A$370,"<="&$E$3,$H$11:$H$370)),0,0),"") ->  | G51: =IFERROR(-IPMT((C51-'КАЛЬКУЛЯТОР 1'!$P$1)/12,B51,IF(C51=$E$5,$E$2,$E$2-$E$3),IF(C51=$E$5,$I$10,$I$10-SUMIF($A$11:$A$370,"<="&$E$3,$H$11:$H$370)),0,0),"") ->  | P51: FALSE
A52: 42 | B52: 42 | D52: =IF(A52<=$E$2,-PMT(C52/12,IF(C52=КАЛЬКУЛЯТОР!$C$21,$E$2,$E$2-$E$3),IF(C52=КАЛЬКУЛЯТОР!$C$21,$I$10,$I$10-SUMIF($A$11:$A$370,"<="&$E$3,$H$11:$H$370)),0,0),"") ->  | G52: =IFERROR(-IPMT((C52-'КАЛЬКУЛЯТОР 1'!$P$1)/12,B52,IF(C52=$E$5,$E$2,$E$2-$E$3),IF(C52=$E$5,$I$10,$I$10-SUMIF($A$11:$A$370,"<="&$E$3,$H$11:$H$370)),0,0),"") ->  | P52: FALSE
A53: 43 | B53: 43 | D53: =IF(A53<=$E$2,-PMT(C53/12,IF(C53=КАЛЬКУЛЯТОР!$C$21,$E$2,$E$2-$E$3),IF(C53=КАЛЬКУЛЯТОР!$C$21,$I$10,$I$10-SUMIF($A$11:$A$370,"<="&$E$3,$H$11:$H$370)),0,0),"") ->  | G53: =IFERROR(-IPMT((C53-'КАЛЬКУЛЯТОР 1'!$P$1)/12,B53,IF(C53=$E$5,$E$2,$E$2-$E$3),IF(C53=$E$5,$I$10,$I$10-SUMIF($A$11:$A$370,"<="&$E$3,$H$11:$H$370)),0,0),"") ->  | P53: FALSE
A54: 44 | B54: 44 | D54: =IF(A54<=$E$2,-PMT(C54/12,IF(C54=КАЛЬКУЛЯТОР!$C$21,$E$2,$E$2-$E$3),IF(C54=КАЛЬКУЛЯТОР!$C$21,$I$10,$I$10-SUMIF($A$11:$A$370,"<="&$E$3,$H$11:$H$370)),0,0),"") ->  | G54: =IFERROR(-IPMT((C54-'КАЛЬКУЛЯТОР 1'!$P$1)/12,B54,IF(C54=$E$5,$E$2,$E$2-$E$3),IF(C54=$E$5,$I$10,$I$10-SUMIF($A$11:$A$370,"<="&$E$3,$H$11:$H$370)),0,0),"") ->  | P54: FALSE
A55: 45 | B55: 45 | D55: =IF(A55<=$E$2,-PMT(C55/12,IF(C55=КАЛЬКУЛЯТОР!$C$21,$E$2,$E$2-$E$3),IF(C55=КАЛЬКУЛЯТОР!$C$21,$I$10,$I$10-SUMIF($A$11:$A$370,"<="&$E$3,$H$11:$H$370)),0,0),"") ->  | G55: =IFERROR(-IPMT((C55-'КАЛЬКУЛЯТОР 1'!$P$1)/12,B55,IF(C55=$E$5,$E$2,$E$2-$E$3),IF(C55=$E$5,$I$10,$I$10-SUMIF($A$11:$A$370,"<="&$E$3,$H$11:$H$370)),0,0),"") ->  | P55: FALSE
A56: 46 | B56: 46 | D56: =IF(A56<=$E$2,-PMT(C56/12,IF(C56=КАЛЬКУЛЯТОР!$C$21,$E$2,$E$2-$E$3),IF(C56=КАЛЬКУЛЯТОР!$C$21,$I$10,$I$10-SUMIF($A$11:$A$370,"<="&$E$3,$H$11:$H$370)),0,0),"") ->  | G56: =IFERROR(-IPMT((C56-'КАЛЬКУЛЯТОР 1'!$P$1)/12,B56,IF(C56=$E$5,$E$2,$E$2-$E$3),IF(C56=$E$5,$I$10,$I$10-SUMIF($A$11:$A$370,"<="&$E$3,$H$11:$H$370)),0,0),"") ->  | P56: FALSE
A57: 47 | B57: 47 | D57: =IF(A57<=$E$2,-PMT(C57/12,IF(C57=КАЛЬКУЛЯТОР!$C$21,$E$2,$E$2-$E$3),IF(C57=КАЛЬКУЛЯТОР!$C$21,$I$10,$I$10-SUMIF($A$11:$A$370,"<="&$E$3,$H$11:$H$370)),0,0),"") ->  | G57: =IFERROR(-IPMT((C57-'КАЛЬКУЛЯТОР 1'!$P$1)/12,B57,IF(C57=$E$5,$E$2,$E$2-$E$3),IF(C57=$E$5,$I$10,$I$10-SUMIF($A$11:$A$370,"<="&$E$3,$H$11:$H$370)),0,0),"") ->  | P57: FALSE
A58: 48 | B58: 48 | D58: =IF(A58<=$E$2,-PMT(C58/12,IF(C58=КАЛЬКУЛЯТОР!$C$21,$E$2,$E$2-$E$3),IF(C58=КАЛЬКУЛЯТОР!$C$21,$I$10,$I$10-SUMIF($A$11:$A$370,"<="&$E$3,$H$11:$H$370)),0,0),"") ->  | G58: =IFERROR(-IPMT((C58-'КАЛЬКУЛЯТОР 1'!$P$1)/12,B58,IF(C58=$E$5,$E$2,$E$2-$E$3),IF(C58=$E$5,$I$10,$I$10-SUMIF($A$11:$A$370,"<="&$E$3,$H$11:$H$370)),0,0),"") ->  | P58: FALSE
A59: 49 | B59: 49 | D59: =IF(A59<=$E$2,-PMT(C59/12,IF(C59=КАЛЬКУЛЯТОР!$C$21,$E$2,$E$2-$E$3),IF(C59=КАЛЬКУЛЯТОР!$C$21,$I$10,$I$10-SUMIF($A$11:$A$370,"<="&$E$3,$H$11:$H$370)),0,0)+E59,"") ->  | E59: =IF($E$2>$A58,(I58+SUM(F59:F70))*($K$4+$K$5),0) ->  | G59: =IFERROR(-IPMT((C59-'КАЛЬКУЛЯТОР 1'!$P$1)/12,B59,IF(C59=$E$5,$E$2,$E$2-$E$3),IF(C59=$E$5,$I$10,$I$10-SUMIF($A$11:$A$370,"<="&$E$3,$H$11:$H$370)),0,0),"") ->  | K59: =PV($E$6/12,A59-1,0,-E59) ->  | P59: FALSE
A60: 50 | B60: 50 | D60: =IF(A60<=$E$2,-PMT(C60/12,IF(C60=КАЛЬКУЛЯТОР!$C$21,$E$2,$E$2-$E$3),IF(C60=КАЛЬКУЛЯТОР!$C$21,$I$10,$I$10-SUMIF($A$11:$A$370,"<="&$E$3,$H$11:$H$370)),0,0),"") ->  | G60: =IFERROR(-IPMT((C60-'КАЛЬКУЛЯТОР 1'!$P$1)/12,B60,IF(C60=$E$5,$E$2,$E$2-$E$3),IF(C60=$E$5,$I$10,$I$10-SUMIF($A$11:$A$370,"<="&$E$3,$H$11:$H$370)),0,0),"") ->  | P60: FALSE
A61: 51 | B61: 51 | D61: =IF(A61<=$E$2,-PMT(C61/12,IF(C61=КАЛЬКУЛЯТОР!$C$21,$E$2,$E$2-$E$3),IF(C61=КАЛЬКУЛЯТОР!$C$21,$I$10,$I$10-SUMIF($A$11:$A$370,"<="&$E$3,$H$11:$H$370)),0,0),"") ->  | G61: =IFERROR(-IPMT((C61-'КАЛЬКУЛЯТОР 1'!$P$1)/12,B61,IF(C61=$E$5,$E$2,$E$2-$E$3),IF(C61=$E$5,$I$10,$I$10-SUMIF($A$11:$A$370,"<="&$E$3,$H$11:$H$370)),0,0),"") ->  | P61: FALSE
A62: 52 | B62: 52 | D62: =IF(A62<=$E$2,-PMT(C62/12,IF(C62=КАЛЬКУЛЯТОР!$C$21,$E$2,$E$2-$E$3),IF(C62=КАЛЬКУЛЯТОР!$C$21,$I$10,$I$10-SUMIF($A$11:$A$370,"<="&$E$3,$H$11:$H$370)),0,0),"") ->  | G62: =IFERROR(-IPMT((C62-'КАЛЬКУЛЯТОР 1'!$P$1)/12,B62,IF(C62=$E$5,$E$2,$E$2-$E$3),IF(C62=$E$5,$I$10,$I$10-SUMIF($A$11:$A$370,"<="&$E$3,$H$11:$H$370)),0,0),"") ->  | P62: FALSE
A63: 53 | B63: 53 | D63: =IF(A63<=$E$2,-PMT(C63/12,IF(C63=КАЛЬКУЛЯТОР!$C$21,$E$2,$E$2-$E$3),IF(C63=КАЛЬКУЛЯТОР!$C$21,$I$10,$I$10-SUMIF($A$11:$A$370,"<="&$E$3,$H$11:$H$370)),0,0),"") ->  | G63: =IFERROR(-IPMT((C63-'КАЛЬКУЛЯТОР 1'!$P$1)/12,B63,IF(C63=$E$5,$E$2,$E$2-$E$3),IF(C63=$E$5,$I$10,$I$10-SUMIF($A$11:$A$370,"<="&$E$3,$H$11:$H$370)),0,0),"") ->  | P63: FALSE
A64: 54 | B64: 54 | D64: =IF(A64<=$E$2,-PMT(C64/12,IF(C64=КАЛЬКУЛЯТОР!$C$21,$E$2,$E$2-$E$3),IF(C64=КАЛЬКУЛЯТОР!$C$21,$I$10,$I$10-SUMIF($A$11:$A$370,"<="&$E$3,$H$11:$H$370)),0,0),"") ->  | G64: =IFERROR(-IPMT((C64-'КАЛЬКУЛЯТОР 1'!$P$1)/12,B64,IF(C64=$E$5,$E$2,$E$2-$E$3),IF(C64=$E$5,$I$10,$I$10-SUMIF($A$11:$A$370,"<="&$E$3,$H$11:$H$370)),0,0),"") ->  | P64: FALSE
A65: 55 | B65: 55 | D65: =IF(A65<=$E$2,-PMT(C65/12,IF(C65=КАЛЬКУЛЯТОР!$C$21,$E$2,$E$2-$E$3),IF(C65=КАЛЬКУЛЯТОР!$C$21,$I$10,$I$10-SUMIF($A$11:$A$370,"<="&$E$3,$H$11:$H$370)),0,0),"") ->  | G65: =IFERROR(-IPMT((C65-'КАЛЬКУЛЯТОР 1'!$P$1)/12,B65,IF(C65=$E$5,$E$2,$E$2-$E$3),IF(C65=$E$5,$I$10,$I$10-SUMIF($A$11:$A$370,"<="&$E$3,$H$11:$H$370)),0,0),"") ->  | P65: FALSE
A66: 56 | B66: 56 | D66: =IF(A66<=$E$2,-PMT(C66/12,IF(C66=КАЛЬКУЛЯТОР!$C$21,$E$2,$E$2-$E$3),IF(C66=КАЛЬКУЛЯТОР!$C$21,$I$10,$I$10-SUMIF($A$11:$A$370,"<="&$E$3,$H$11:$H$370)),0,0),"") ->  | G66: =IFERROR(-IPMT((C66-'КАЛЬКУЛЯТОР 1'!$P$1)/12,B66,IF(C66=$E$5,$E$2,$E$2-$E$3),IF(C66=$E$5,$I$10,$I$10-SUMIF($A$11:$A$370,"<="&$E$3,$H$11:$H$370)),0,0),"") ->  | P66: FALSE
A67: 57 | B67: 57 | D67: =IF(A67<=$E$2,-PMT(C67/12,IF(C67=КАЛЬКУЛЯТОР!$C$21,$E$2,$E$2-$E$3),IF(C67=КАЛЬКУЛЯТОР!$C$21,$I$10,$I$10-SUMIF($A$11:$A$370,"<="&$E$3,$H$11:$H$370)),0,0),"") ->  | G67: =IFERROR(-IPMT((C67-'КАЛЬКУЛЯТОР 1'!$P$1)/12,B67,IF(C67=$E$5,$E$2,$E$2-$E$3),IF(C67=$E$5,$I$10,$I$10-SUMIF($A$11:$A$370,"<="&$E$3,$H$11:$H$370)),0,0),"") ->  | P67: FALSE
A68: 58 | B68: 58 | D68: =IF(A68<=$E$2,-PMT(C68/12,IF(C68=КАЛЬКУЛЯТОР!$C$21,$E$2,$E$2-$E$3),IF(C68=КАЛЬКУЛЯТОР!$C$21,$I$10,$I$10-SUMIF($A$11:$A$370,"<="&$E$3,$H$11:$H$370)),0,0),"") ->  | G68: =IFERROR(-IPMT((C68-'КАЛЬКУЛЯТОР 1'!$P$1)/12,B68,IF(C68=$E$5,$E$2,$E$2-$E$3),IF(C68=$E$5,$I$10,$I$10-SUMIF($A$11:$A$370,"<="&$E$3,$H$11:$H$370)),0,0),"") ->  | P68: FALSE
A69: 59 | B69: 59 | D69: =IF(A69<=$E$2,-PMT(C69/12,IF(C69=КАЛЬКУЛЯТОР!$C$21,$E$2,$E$2-$E$3),IF(C69=КАЛЬКУЛЯТОР!$C$21,$I$10,$I$10-SUMIF($A$11:$A$370,"<="&$E$3,$H$11:$H$370)),0,0),"") ->  | G69: =IFERROR(-IPMT((C69-'КАЛЬКУЛЯТОР 1'!$P$1)/12,B69,IF(C69=$E$5,$E$2,$E$2-$E$3),IF(C69=$E$5,$I$10,$I$10-SUMIF($A$11:$A$370,"<="&$E$3,$H$11:$H$370)),0,0),"") ->  | P69: FALSE
A70: 60 | B70: 60 | D70: =IF(A70<=$E$2,-PMT(C70/12,IF(C70=КАЛЬКУЛЯТОР!$C$21,$E$2,$E$2-$E$3),IF(C70=КАЛЬКУЛЯТОР!$C$21,$I$10,$I$10-SUMIF($A$11:$A$370,"<="&$E$3,$H$11:$H$370)),0,0),"") ->  | G70: =IFERROR(-IPMT((C70-'КАЛЬКУЛЯТОР 1'!$P$1)/12,B70,IF(C70=$E$5,$E$2,$E$2-$E$3),IF(C70=$E$5,$I$10,$I$10-SUMIF($A$11:$A$370,"<="&$E$3,$H$11:$H$370)),0,0),"") ->  | P70: FALSE
A71: 61 | B71: 61 | D71: =IF(A71<=$E$2,-PMT(C71/12,IF(C71=КАЛЬКУЛЯТОР!$C$21,$E$2,$E$2-$E$3),IF(C71=КАЛЬКУЛЯТОР!$C$21,$I$10,$I$10-SUMIF($A$11:$A$370,"<="&$E$3,$H$11:$H$370)),0,0)+E71,"") ->  | E71: =IF($E$2>$A70,(I70+SUM(F71:F82))*($K$4+$K$5),0) ->  | G71: =IFERROR(-IPMT((C71-'КАЛЬКУЛЯТОР 1'!$P$1)/12,B71,IF(C71=$E$5,$E$2,$E$2-$E$3),IF(C71=$E$5,$I$10,$I$10-SUMIF($A$11:$A$370,"<="&$E$3,$H$11:$H$370)),0,0),"") ->  | K71: =PV($E$6/12,A71-1,0,-E71) ->  | P71: FALSE
A72: 62 | B72: 62 | D72: =IF(A72<=$E$2,-PMT(C72/12,IF(C72=КАЛЬКУЛЯТОР!$C$21,$E$2,$E$2-$E$3),IF(C72=КАЛЬКУЛЯТОР!$C$21,$I$10,$I$10-SUMIF($A$11:$A$370,"<="&$E$3,$H$11:$H$370)),0,0),"") ->  | G72: =IFERROR(-IPMT((C72-'КАЛЬКУЛЯТОР 1'!$P$1)/12,B72,IF(C72=$E$5,$E$2,$E$2-$E$3),IF(C72=$E$5,$I$10,$I$10-SUMIF($A$11:$A$370,"<="&$E$3,$H$11:$H$370)),0,0),"") ->  | P72: FALSE
A73: 63 | B73: 63 | D73: =IF(A73<=$E$2,-PMT(C73/12,IF(C73=КАЛЬКУЛЯТОР!$C$21,$E$2,$E$2-$E$3),IF(C73=КАЛЬКУЛЯТОР!$C$21,$I$10,$I$10-SUMIF($A$11:$A$370,"<="&$E$3,$H$11:$H$370)),0,0),"") ->  | G73: =IFERROR(-IPMT((C73-'КАЛЬКУЛЯТОР 1'!$P$1)/12,B73,IF(C73=$E$5,$E$2,$E$2-$E$3),IF(C73=$E$5,$I$10,$I$10-SUMIF($A$11:$A$370,"<="&$E$3,$H$11:$H$370)),0,0),"") ->  | P73: FALSE
A74: 64 | B74: 64 | D74: =IF(A74<=$E$2,-PMT(C74/12,IF(C74=КАЛЬКУЛЯТОР!$C$21,$E$2,$E$2-$E$3),IF(C74=КАЛЬКУЛЯТОР!$C$21,$I$10,$I$10-SUMIF($A$11:$A$370,"<="&$E$3,$H$11:$H$370)),0,0),"") ->  | G74: =IFERROR(-IPMT((C74-'КАЛЬКУЛЯТОР 1'!$P$1)/12,B74,IF(C74=$E$5,$E$2,$E$2-$E$3),IF(C74=$E$5,$I$10,$I$10-SUMIF($A$11:$A$370,"<="&$E$3,$H$11:$H$370)),0,0),"") ->  | P74: FALSE
A75: 65 | B75: 65 | D75: =IF(A75<=$E$2,-PMT(C75/12,IF(C75=КАЛЬКУЛЯТОР!$C$21,$E$2,$E$2-$E$3),IF(C75=КАЛЬКУЛЯТОР!$C$21,$I$10,$I$10-SUMIF($A$11:$A$370,"<="&$E$3,$H$11:$H$370)),0,0),"") ->  | G75: =IFERROR(-IPMT((C75-'КАЛЬКУЛЯТОР 1'!$P$1)/12,B75,IF(C75=$E$5,$E$2,$E$2-$E$3),IF(C75=$E$5,$I$10,$I$10-SUMIF($A$11:$A$370,"<="&$E$3,$H$11:$H$370)),0,0),"") ->  | I75: =IFERROR(I74-H75,"") ->  | J75: =PV($E$6/12,A75-1,0,-D75) ->  | L75: =PV($E$6/12,A75-1,0,-F75) ->  | M75: =PV($E$6/12,A75-1,0,-G75) ->  | N75: =PV($E$6/12,A75-1,0,-H75) ->  | O75: =O74-N75 ->  | P75: FALSE
A76: 66 | B76: =IF(P76=$P$11,B75+1,A76-$E$3) -> 66 | C76: =IF(AND($E$4<=$E$5,A76<=$E$3),$E$5,IF(AND(A76>$E$3,A76<=$E$2),$E$4,"")) ->  | D76: =IF(A76<=$E$2,-PMT(C76/12,IF(C76=КАЛЬКУЛЯТОР!$C$21,$E$2,$E$2-$E$3),IF(C76=КАЛЬКУЛЯТОР!$C$21,$I$10,$I$10-SUMIF($A$11:$A$370,"<="&$E$3,$H$11:$H$370)),0,0),"") ->  | F76: =IFERROR(-IPMT(C76/12,B76,IF(C76=$E$5,$E$2,$E$2-$E$3),IF(C76=$E$5,$I$10,$I$10-SUMIF($A$11:$A$370,"<="&$E$3,$H$11:$H$370)),0,0),"") ->  | G76: =IFERROR(-IPMT((C76-'КАЛЬКУЛЯТОР 1'!$P$1)/12,B76,IF(C76=$E$5,$E$2,$E$2-$E$3),IF(C76=$E$5,$I$10,$I$10-SUMIF($A$11:$A$370,"<="&$E$3,$H$11:$H$370)),0,0),"") ->  | H76: =IFERROR((-PPMT(C76/12,B76,IF(C76=$E$5,$E$2,$E$2-$E$3),IF(C76=$E$5,$I$10,$I$10-SUMIF($A$11:$A$370,"<="&$E$3,$H$11:$H$370)),0,0)),"") ->  | P76: =AND(A76<=$E$3) -> FALSE
A77: 67 | B77: 67 | D77: =IF(A77<=$E$2,-PMT(C77/12,IF(C77=КАЛЬКУЛЯТОР!$C$21,$E$2,$E$2-$E$3),IF(C77=КАЛЬКУЛЯТОР!$C$21,$I$10,$I$10-SUMIF($A$11:$A$370,"<="&$E$3,$H$11:$H$370)),0,0),"") ->  | G77: =IFERROR(-IPMT((C77-'КАЛЬКУЛЯТОР 1'!$P$1)/12,B77,IF(C77=$E$5,$E$2,$E$2-$E$3),IF(C77=$E$5,$I$10,$I$10-SUMIF($A$11:$A$370,"<="&$E$3,$H$11:$H$370)),0,0),"") ->  | P77: FALSE
A78: 68 | B78: 68 | D78: =IF(A78<=$E$2,-PMT(C78/12,IF(C78=КАЛЬКУЛЯТОР!$C$21,$E$2,$E$2-$E$3),IF(C78=КАЛЬКУЛЯТОР!$C$21,$I$10,$I$10-SUMIF($A$11:$A$370,"<="&$E$3,$H$11:$H$370)),0,0),"") ->  | G78: =IFERROR(-IPMT((C78-'КАЛЬКУЛЯТОР 1'!$P$1)/12,B78,IF(C78=$E$5,$E$2,$E$2-$E$3),IF(C78=$E$5,$I$10,$I$10-SUMIF($A$11:$A$370,"<="&$E$3,$H$11:$H$370)),0,0),"") ->  | P78: FALSE
A79: 69 | B79: 69 | D79: =IF(A79<=$E$2,-PMT(C79/12,IF(C79=КАЛЬКУЛЯТОР!$C$21,$E$2,$E$2-$E$3),IF(C79=КАЛЬКУЛЯТОР!$C$21,$I$10,$I$10-SUMIF($A$11:$A$370,"<="&$E$3,$H$11:$H$370)),0,0),"") ->  | G79: =IFERROR(-IPMT((C79-'КАЛЬКУЛЯТОР 1'!$P$1)/12,B79,IF(C79=$E$5,$E$2,$E$2-$E$3),IF(C79=$E$5,$I$10,$I$10-SUMIF($A$11:$A$370,"<="&$E$3,$H$11:$H$370)),0,0),"") ->  | P79: FALSE
A80: 70 | B80: 70 | D80: =IF(A80<=$E$2,-PMT(C80/12,IF(C80=КАЛЬКУЛЯТОР!$C$21,$E$2,$E$2-$E$3),IF(C80=КАЛЬКУЛЯТОР!$C$21,$I$10,$I$10-SUMIF($A$11:$A$370,"<="&$E$3,$H$11:$H$370)),0,0),"") ->  | G80: =IFERROR(-IPMT((C80-'КАЛЬКУЛЯТОР 1'!$P$1)/12,B80,IF(C80=$E$5,$E$2,$E$2-$E$3),IF(C80=$E$5,$I$10,$I$10-SUMIF($A$11:$A$370,"<="&$E$3,$H$11:$H$370)),0,0),"") ->  | P80: FALSE
A81: 71 | B81: 71 | D81: =IF(A81<=$E$2,-PMT(C81/12,IF(C81=КАЛЬКУЛЯТОР!$C$21,$E$2,$E$2-$E$3),IF(C81=КАЛЬКУЛЯТОР!$C$21,$I$10,$I$10-SUMIF($A$11:$A$370,"<="&$E$3,$H$11:$H$370)),0,0),"") ->  | G81: =IFERROR(-IPMT((C81-'КАЛЬКУЛЯТОР 1'!$P$1)/12,B81,IF(C81=$E$5,$E$2,$E$2-$E$3),IF(C81=$E$5,$I$10,$I$10-SUMIF($A$11:$A$370,"<="&$E$3,$H$11:$H$370)),0,0),"") ->  | P81: FALSE
A82: 72 | B82: 72 | D82: =IF(A82<=$E$2,-PMT(C82/12,IF(C82=КАЛЬКУЛЯТОР!$C$21,$E$2,$E$2-$E$3),IF(C82=КАЛЬКУЛЯТОР!$C$21,$I$10,$I$10-SUMIF($A$11:$A$370,"<="&$E$3,$H$11:$H$370)),0,0),"") ->  | G82: =IFERROR(-IPMT((C82-'КАЛЬКУЛЯТОР 1'!$P$1)/12,B82,IF(C82=$E$5,$E$2,$E$2-$E$3),IF(C82=$E$5,$I$10,$I$10-SUMIF($A$11:$A$370,"<="&$E$3,$H$11:$H$370)),0,0),"") ->  | P82: FALSE
A83: 73 | B83: 73 | D83: =IF(A83<=$E$2,-PMT(C83/12,IF(C83=КАЛЬКУЛЯТОР!$C$21,$E$2,$E$2-$E$3),IF(C83=КАЛЬКУЛЯТОР!$C$21,$I$10,$I$10-SUMIF($A$11:$A$370,"<="&$E$3,$H$11:$H$370)),0,0)+E83,"") ->  | E83: =IF($E$2>$A82,(I82+SUM(F83:F94))*($K$4+$K$5),0) ->  | G83: =IFERROR(-IPMT((C83-'КАЛЬКУЛЯТОР 1'!$P$1)/12,B83,IF(C83=$E$5,$E$2,$E$2-$E$3),IF(C83=$E$5,$I$10,$I$10-SUMIF($A$11:$A$370,"<="&$E$3,$H$11:$H$370)),0,0),"") ->  | K83: =PV($E$6/12,A83-1,0,-E83) ->  | P83: FALSE
A84: 74 | B84: 74 | D84: =IF(A84<=$E$2,-PMT(C84/12,IF(C84=КАЛЬКУЛЯТОР!$C$21,$E$2,$E$2-$E$3),IF(C84=КАЛЬКУЛЯТОР!$C$21,$I$10,$I$10-SUMIF($A$11:$A$370,"<="&$E$3,$H$11:$H$370)),0,0),"") ->  | G84: =IFERROR(-IPMT((C84-'КАЛЬКУЛЯТОР 1'!$P$1)/12,B84,IF(C84=$E$5,$E$2,$E$2-$E$3),IF(C84=$E$5,$I$10,$I$10-SUMIF($A$11:$A$370,"<="&$E$3,$H$11:$H$370)),0,0),"") ->  | P84: FALSE
A85: 75 | B85: 75 | D85: =IF(A85<=$E$2,-PMT(C85/12,IF(C85=КАЛЬКУЛЯТОР!$C$21,$E$2,$E$2-$E$3),IF(C85=КАЛЬКУЛЯТОР!$C$21,$I$10,$I$10-SUMIF($A$11:$A$370,"<="&$E$3,$H$11:$H$370)),0,0),"") ->  | G85: =IFERROR(-IPMT((C85-'КАЛЬКУЛЯТОР 1'!$P$1)/12,B85,IF(C85=$E$5,$E$2,$E$2-$E$3),IF(C85=$E$5,$I$10,$I$10-SUMIF($A$11:$A$370,"<="&$E$3,$H$11:$H$370)),0,0),"") ->  | P85: FALSE
A86: 76 | B86: 76 | D86: =IF(A86<=$E$2,-PMT(C86/12,IF(C86=КАЛЬКУЛЯТОР!$C$21,$E$2,$E$2-$E$3),IF(C86=КАЛЬКУЛЯТОР!$C$21,$I$10,$I$10-SUMIF($A$11:$A$370,"<="&$E$3,$H$11:$H$370)),0,0),"") ->  | G86: =IFERROR(-IPMT((C86-'КАЛЬКУЛЯТОР 1'!$P$1)/12,B86,IF(C86=$E$5,$E$2,$E$2-$E$3),IF(C86=$E$5,$I$10,$I$10-SUMIF($A$11:$A$370,"<="&$E$3,$H$11:$H$370)),0,0),"") ->  | P86: FALSE
A87: 77 | B87: 77 | D87: =IF(A87<=$E$2,-PMT(C87/12,IF(C87=КАЛЬКУЛЯТОР!$C$21,$E$2,$E$2-$E$3),IF(C87=КАЛЬКУЛЯТОР!$C$21,$I$10,$I$10-SUMIF($A$11:$A$370,"<="&$E$3,$H$11:$H$370)),0,0),"") ->  | G87: =IFERROR(-IPMT((C87-'КАЛЬКУЛЯТОР 1'!$P$1)/12,B87,IF(C87=$E$5,$E$2,$E$2-$E$3),IF(C87=$E$5,$I$10,$I$10-SUMIF($A$11:$A$370,"<="&$E$3,$H$11:$H$370)),0,0),"") ->  | P87: FALSE
A88: 78 | B88: 78 | D88: =IF(A88<=$E$2,-PMT(C88/12,IF(C88=КАЛЬКУЛЯТОР!$C$21,$E$2,$E$2-$E$3),IF(C88=КАЛЬКУЛЯТОР!$C$21,$I$10,$I$10-SUMIF($A$11:$A$370,"<="&$E$3,$H$11:$H$370)),0,0),"") ->  | G88: =IFERROR(-IPMT((C88-'КАЛЬКУЛЯТОР 1'!$P$1)/12,B88,IF(C88=$E$5,$E$2,$E$2-$E$3),IF(C88=$E$5,$I$10,$I$10-SUMIF($A$11:$A$370,"<="&$E$3,$H$11:$H$370)),0,0),"") ->  | P88: FALSE
A89: 79 | B89: 79 | D89: =IF(A89<=$E$2,-PMT(C89/12,IF(C89=КАЛЬКУЛЯТОР!$C$21,$E$2,$E$2-$E$3),IF(C89=КАЛЬКУЛЯТОР!$C$21,$I$10,$I$10-SUMIF($A$11:$A$370,"<="&$E$3,$H$11:$H$370)),0,0),"") ->  | G89: =IFERROR(-IPMT((C89-'КАЛЬКУЛЯТОР 1'!$P$1)/12,B89,IF(C89=$E$5,$E$2,$E$2-$E$3),IF(C89=$E$5,$I$10,$I$10-SUMIF($A$11:$A$370,"<="&$E$3,$H$11:$H$370)),0,0),"") ->  | P89: FALSE
A90: 80 | B90: 80 | D90: =IF(A90<=$E$2,-PMT(C90/12,IF(C90=КАЛЬКУЛЯТОР!$C$21,$E$2,$E$2-$E$3),IF(C90=КАЛЬКУЛЯТОР!$C$21,$I$10,$I$10-SUMIF($A$11:$A$370,"<="&$E$3,$H$11:$H$370)),0,0),"") ->  | G90: =IFERROR(-IPMT((C90-'КАЛЬКУЛЯТОР 1'!$P$1)/12,B90,IF(C90=$E$5,$E$2,$E$2-$E$3),IF(C90=$E$5,$I$10,$I$10-SUMIF($A$11:$A$370,"<="&$E$3,$H$11:$H$370)),0,0),"") ->  | P90: FALSE
A91: 81 | B91: 81 | D91: =IF(A91<=$E$2,-PMT(C91/12,IF(C91=КАЛЬКУЛЯТОР!$C$21,$E$2,$E$2-$E$3),IF(C91=КАЛЬКУЛЯТОР!$C$21,$I$10,$I$10-SUMIF($A$11:$A$370,"<="&$E$3,$H$11:$H$370)),0,0),"") ->  | G91: =IFERROR(-IPMT((C91-'КАЛЬКУЛЯТОР 1'!$P$1)/12,B91,IF(C91=$E$5,$E$2,$E$2-$E$3),IF(C91=$E$5,$I$10,$I$10-SUMIF($A$11:$A$370,"<="&$E$3,$H$11:$H$370)),0,0),"") ->  | P91: FALSE
A92: 82 | B92: 82 | D92: =IF(A92<=$E$2,-PMT(C92/12,IF(C92=КАЛЬКУЛЯТОР!$C$21,$E$2,$E$2-$E$3),IF(C92=КАЛЬКУЛЯТОР!$C$21,$I$10,$I$10-SUMIF($A$11:$A$370,"<="&$E$3,$H$11:$H$370)),0,0),"") ->  | G92: =IFERROR(-IPMT((C92-'КАЛЬКУЛЯТОР 1'!$P$1)/12,B92,IF(C92=$E$5,$E$2,$E$2-$E$3),IF(C92=$E$5,$I$10,$I$10-SUMIF($A$11:$A$370,"<="&$E$3,$H$11:$H$370)),0,0),"") ->  | P92: FALSE
A93: 83 | B93: 83 | D93: =IF(A93<=$E$2,-PMT(C93/12,IF(C93=КАЛЬКУЛЯТОР!$C$21,$E$2,$E$2-$E$3),IF(C93=КАЛЬКУЛЯТОР!$C$21,$I$10,$I$10-SUMIF($A$11:$A$370,"<="&$E$3,$H$11:$H$370)),0,0),"") ->  | G93: =IFERROR(-IPMT((C93-'КАЛЬКУЛЯТОР 1'!$P$1)/12,B93,IF(C93=$E$5,$E$2,$E$2-$E$3),IF(C93=$E$5,$I$10,$I$10-SUMIF($A$11:$A$370,"<="&$E$3,$H$11:$H$370)),0,0),"") ->  | P93: FALSE
A94: 84 | B94: 84 | D94: =IF(A94<=$E$2,-PMT(C94/12,IF(C94=КАЛЬКУЛЯТОР!$C$21,$E$2,$E$2-$E$3),IF(C94=КАЛЬКУЛЯТОР!$C$21,$I$10,$I$10-SUMIF($A$11:$A$370,"<="&$E$3,$H$11:$H$370)),0,0),"") ->  | G94: =IFERROR(-IPMT((C94-'КАЛЬКУЛЯТОР 1'!$P$1)/12,B94,IF(C94=$E$5,$E$2,$E$2-$E$3),IF(C94=$E$5,$I$10,$I$10-SUMIF($A$11:$A$370,"<="&$E$3,$H$11:$H$370)),0,0),"") ->  | P94: FALSE
A95: 85 | B95: 85 | D95: =IF(A95<=$E$2,-PMT(C95/12,IF(C95=КАЛЬКУЛЯТОР!$C$21,$E$2,$E$2-$E$3),IF(C95=КАЛЬКУЛЯТОР!$C$21,$I$10,$I$10-SUMIF($A$11:$A$370,"<="&$E$3,$H$11:$H$370)),0,0)+E95,"") ->  | E95: =IF($E$2>$A94,(I94+SUM(F95:F106))*($K$4+$K$5),0) ->  | G95: =IFERROR(-IPMT((C95-'КАЛЬКУЛЯТОР 1'!$P$1)/12,B95,IF(C95=$E$5,$E$2,$E$2-$E$3),IF(C95=$E$5,$I$10,$I$10-SUMIF($A$11:$A$370,"<="&$E$3,$H$11:$H$370)),0,0),"") ->  | K95: =PV($E$6/12,A95-1,0,-E95) ->  | P95: FALSE
A96: 86 | B96: 86 | D96: =IF(A96<=$E$2,-PMT(C96/12,IF(C96=КАЛЬКУЛЯТОР!$C$21,$E$2,$E$2-$E$3),IF(C96=КАЛЬКУЛЯТОР!$C$21,$I$10,$I$10-SUMIF($A$11:$A$370,"<="&$E$3,$H$11:$H$370)),0,0),"") ->  | G96: =IFERROR(-IPMT((C96-'КАЛЬКУЛЯТОР 1'!$P$1)/12,B96,IF(C96=$E$5,$E$2,$E$2-$E$3),IF(C96=$E$5,$I$10,$I$10-SUMIF($A$11:$A$370,"<="&$E$3,$H$11:$H$370)),0,0),"") ->  | P96: FALSE
A97: 87 | B97: 87 | D97: =IF(A97<=$E$2,-PMT(C97/12,IF(C97=КАЛЬКУЛЯТОР!$C$21,$E$2,$E$2-$E$3),IF(C97=КАЛЬКУЛЯТОР!$C$21,$I$10,$I$10-SUMIF($A$11:$A$370,"<="&$E$3,$H$11:$H$370)),0,0),"") ->  | G97: =IFERROR(-IPMT((C97-'КАЛЬКУЛЯТОР 1'!$P$1)/12,B97,IF(C97=$E$5,$E$2,$E$2-$E$3),IF(C97=$E$5,$I$10,$I$10-SUMIF($A$11:$A$370,"<="&$E$3,$H$11:$H$370)),0,0),"") ->  | P97: FALSE
A98: 88 | B98: 88 | D98: =IF(A98<=$E$2,-PMT(C98/12,IF(C98=КАЛЬКУЛЯТОР!$C$21,$E$2,$E$2-$E$3),IF(C98=КАЛЬКУЛЯТОР!$C$21,$I$10,$I$10-SUMIF($A$11:$A$370,"<="&$E$3,$H$11:$H$370)),0,0),"") ->  | G98: =IFERROR(-IPMT((C98-'КАЛЬКУЛЯТОР 1'!$P$1)/12,B98,IF(C98=$E$5,$E$2,$E$2-$E$3),IF(C98=$E$5,$I$10,$I$10-SUMIF($A$11:$A$370,"<="&$E$3,$H$11:$H$370)),0,0),"") ->  | P98: FALSE
A99: 89 | B99: 89 | D99: =IF(A99<=$E$2,-PMT(C99/12,IF(C99=КАЛЬКУЛЯТОР!$C$21,$E$2,$E$2-$E$3),IF(C99=КАЛЬКУЛЯТОР!$C$21,$I$10,$I$10-SUMIF($A$11:$A$370,"<="&$E$3,$H$11:$H$370)),0,0),"") ->  | G99: =IFERROR(-IPMT((C99-'КАЛЬКУЛЯТОР 1'!$P$1)/12,B99,IF(C99=$E$5,$E$2,$E$2-$E$3),IF(C99=$E$5,$I$10,$I$10-SUMIF($A$11:$A$370,"<="&$E$3,$H$11:$H$370)),0,0),"") ->  | P99: FALSE
A100: 90 | B100: 90 | D100: =IF(A100<=$E$2,-PMT(C100/12,IF(C100=КАЛЬКУЛЯТОР!$C$21,$E$2,$E$2-$E$3),IF(C100=КАЛЬКУЛЯТОР!$C$21,$I$10,$I$10-SUMIF($A$11:$A$370,"<="&$E$3,$H$11:$H$370)),0,0),"") ->  | G100: =IFERROR(-IPMT((C100-'КАЛЬКУЛЯТОР 1'!$P$1)/12,B100,IF(C100=$E$5,$E$2,$E$2-$E$3),IF(C100=$E$5,$I$10,$I$10-SUMIF($A$11:$A$370,"<="&$E$3,$H$11:$H$370)),0,0),"") ->  | P100: FALSE
A101: 91 | B101: 91 | D101: =IF(A101<=$E$2,-PMT(C101/12,IF(C101=КАЛЬКУЛЯТОР!$C$21,$E$2,$E$2-$E$3),IF(C101=КАЛЬКУЛЯТОР!$C$21,$I$10,$I$10-SUMIF($A$11:$A$370,"<="&$E$3,$H$11:$H$370)),0,0),"") ->  | G101: =IFERROR(-IPMT((C101-'КАЛЬКУЛЯТОР 1'!$P$1)/12,B101,IF(C101=$E$5,$E$2,$E$2-$E$3),IF(C101=$E$5,$I$10,$I$10-SUMIF($A$11:$A$370,"<="&$E$3,$H$11:$H$370)),0,0),"") ->  | P101: FALSE
A102: 92 | B102: 92 | D102: =IF(A102<=$E$2,-PMT(C102/12,IF(C102=КАЛЬКУЛЯТОР!$C$21,$E$2,$E$2-$E$3),IF(C102=КАЛЬКУЛЯТОР!$C$21,$I$10,$I$10-SUMIF($A$11:$A$370,"<="&$E$3,$H$11:$H$370)),0,0),"") ->  | G102: =IFERROR(-IPMT((C102-'КАЛЬКУЛЯТОР 1'!$P$1)/12,B102,IF(C102=$E$5,$E$2,$E$2-$E$3),IF(C102=$E$5,$I$10,$I$10-SUMIF($A$11:$A$370,"<="&$E$3,$H$11:$H$370)),0,0),"") ->  | P102: FALSE
A103: 93 | B103: 93 | D103: =IF(A103<=$E$2,-PMT(C103/12,IF(C103=КАЛЬКУЛЯТОР!$C$21,$E$2,$E$2-$E$3),IF(C103=КАЛЬКУЛЯТОР!$C$21,$I$10,$I$10-SUMIF($A$11:$A$370,"<="&$E$3,$H$11:$H$370)),0,0),"") ->  | G103: =IFERROR(-IPMT((C103-'КАЛЬКУЛЯТОР 1'!$P$1)/12,B103,IF(C103=$E$5,$E$2,$E$2-$E$3),IF(C103=$E$5,$I$10,$I$10-SUMIF($A$11:$A$370,"<="&$E$3,$H$11:$H$370)),0,0),"") ->  | P103: FALSE
A104: 94 | B104: 94 | D104: =IF(A104<=$E$2,-PMT(C104/12,IF(C104=КАЛЬКУЛЯТОР!$C$21,$E$2,$E$2-$E$3),IF(C104=КАЛЬКУЛЯТОР!$C$21,$I$10,$I$10-SUMIF($A$11:$A$370,"<="&$E$3,$H$11:$H$370)),0,0),"") ->  | G104: =IFERROR(-IPMT((C104-'КАЛЬКУЛЯТОР 1'!$P$1)/12,B104,IF(C104=$E$5,$E$2,$E$2-$E$3),IF(C104=$E$5,$I$10,$I$10-SUMIF($A$11:$A$370,"<="&$E$3,$H$11:$H$370)),0,0),"") ->  | P104: FALSE
A105: 95 | B105: 95 | D105: =IF(A105<=$E$2,-PMT(C105/12,IF(C105=КАЛЬКУЛЯТОР!$C$21,$E$2,$E$2-$E$3),IF(C105=КАЛЬКУЛЯТОР!$C$21,$I$10,$I$10-SUMIF($A$11:$A$370,"<="&$E$3,$H$11:$H$370)),0,0),"") ->  | G105: =IFERROR(-IPMT((C105-'КАЛЬКУЛЯТОР 1'!$P$1)/12,B105,IF(C105=$E$5,$E$2,$E$2-$E$3),IF(C105=$E$5,$I$10,$I$10-SUMIF($A$11:$A$370,"<="&$E$3,$H$11:$H$370)),0,0),"") ->  | P105: FALSE
A106: 96 | B106: 96 | D106: =IF(A106<=$E$2,-PMT(C106/12,IF(C106=КАЛЬКУЛЯТОР!$C$21,$E$2,$E$2-$E$3),IF(C106=КАЛЬКУЛЯТОР!$C$21,$I$10,$I$10-SUMIF($A$11:$A$370,"<="&$E$3,$H$11:$H$370)),0,0),"") ->  | G106: =IFERROR(-IPMT((C106-'КАЛЬКУЛЯТОР 1'!$P$1)/12,B106,IF(C106=$E$5,$E$2,$E$2-$E$3),IF(C106=$E$5,$I$10,$I$10-SUMIF($A$11:$A$370,"<="&$E$3,$H$11:$H$370)),0,0),"") ->  | P106: FALSE
A107: 97 | B107: 97 | D107: =IF(A107<=$E$2,-PMT(C107/12,IF(C107=КАЛЬКУЛЯТОР!$C$21,$E$2,$E$2-$E$3),IF(C107=КАЛЬКУЛЯТОР!$C$21,$I$10,$I$10-SUMIF($A$11:$A$370,"<="&$E$3,$H$11:$H$370)),0,0)+E107,"") ->  | E107: =IF($E$2>$A106,(I106+SUM(F107:F118))*($K$4+$K$5),0) ->  | G107: =IFERROR(-IPMT((C107-'КАЛЬКУЛЯТОР 1'!$P$1)/12,B107,IF(C107=$E$5,$E$2,$E$2-$E$3),IF(C107=$E$5,$I$10,$I$10-SUMIF($A$11:$A$370,"<="&$E$3,$H$11:$H$370)),0,0),"") ->  | K107: =PV($E$6/12,A107-1,0,-E107) ->  | P107: FALSE
A108: 98 | B108: 98 | D108: =IF(A108<=$E$2,-PMT(C108/12,IF(C108=КАЛЬКУЛЯТОР!$C$21,$E$2,$E$2-$E$3),IF(C108=КАЛЬКУЛЯТОР!$C$21,$I$10,$I$10-SUMIF($A$11:$A$370,"<="&$E$3,$H$11:$H$370)),0,0),"") ->  | G108: =IFERROR(-IPMT((C108-'КАЛЬКУЛЯТОР 1'!$P$1)/12,B108,IF(C108=$E$5,$E$2,$E$2-$E$3),IF(C108=$E$5,$I$10,$I$10-SUMIF($A$11:$A$370,"<="&$E$3,$H$11:$H$370)),0,0),"") ->  | P108: FALSE
A109: 99 | B109: 99 | D109: =IF(A109<=$E$2,-PMT(C109/12,IF(C109=КАЛЬКУЛЯТОР!$C$21,$E$2,$E$2-$E$3),IF(C109=КАЛЬКУЛЯТОР!$C$21,$I$10,$I$10-SUMIF($A$11:$A$370,"<="&$E$3,$H$11:$H$370)),0,0),"") ->  | G109: =IFERROR(-IPMT((C109-'КАЛЬКУЛЯТОР 1'!$P$1)/12,B109,IF(C109=$E$5,$E$2,$E$2-$E$3),IF(C109=$E$5,$I$10,$I$10-SUMIF($A$11:$A$370,"<="&$E$3,$H$11:$H$370)),0,0),"") ->  | P109: FALSE
A110: 100 | B110: 100 | D110: =IF(A110<=$E$2,-PMT(C110/12,IF(C110=КАЛЬКУЛЯТОР!$C$21,$E$2,$E$2-$E$3),IF(C110=КАЛЬКУЛЯТОР!$C$21,$I$10,$I$10-SUMIF($A$11:$A$370,"<="&$E$3,$H$11:$H$370)),0,0),"") ->  | G110: =IFERROR(-IPMT((C110-'КАЛЬКУЛЯТОР 1'!$P$1)/12,B110,IF(C110=$E$5,$E$2,$E$2-$E$3),IF(C110=$E$5,$I$10,$I$10-SUMIF($A$11:$A$370,"<="&$E$3,$H$11:$H$370)),0,0),"") ->  | P110: FALSE
A111: 101 | B111: 101 | D111: =IF(A111<=$E$2,-PMT(C111/12,IF(C111=КАЛЬКУЛЯТОР!$C$21,$E$2,$E$2-$E$3),IF(C111=КАЛЬКУЛЯТОР!$C$21,$I$10,$I$10-SUMIF($A$11:$A$370,"<="&$E$3,$H$11:$H$370)),0,0),"") ->  | G111: =IFERROR(-IPMT((C111-'КАЛЬКУЛЯТОР 1'!$P$1)/12,B111,IF(C111=$E$5,$E$2,$E$2-$E$3),IF(C111=$E$5,$I$10,$I$10-SUMIF($A$11:$A$370,"<="&$E$3,$H$11:$H$370)),0,0),"") ->  | P111: FALSE
A112: 102 | B112: 102 | D112: =IF(A112<=$E$2,-PMT(C112/12,IF(C112=КАЛЬКУЛЯТОР!$C$21,$E$2,$E$2-$E$3),IF(C112=КАЛЬКУЛЯТОР!$C$21,$I$10,$I$10-SUMIF($A$11:$A$370,"<="&$E$3,$H$11:$H$370)),0,0),"") ->  | G112: =IFERROR(-IPMT((C112-'КАЛЬКУЛЯТОР 1'!$P$1)/12,B112,IF(C112=$E$5,$E$2,$E$2-$E$3),IF(C112=$E$5,$I$10,$I$10-SUMIF($A$11:$A$370,"<="&$E$3,$H$11:$H$370)),0,0),"") ->  | P112: FALSE
A113: 103 | B113: 103 | D113: =IF(A113<=$E$2,-PMT(C113/12,IF(C113=КАЛЬКУЛЯТОР!$C$21,$E$2,$E$2-$E$3),IF(C113=КАЛЬКУЛЯТОР!$C$21,$I$10,$I$10-SUMIF($A$11:$A$370,"<="&$E$3,$H$11:$H$370)),0,0),"") ->  | G113: =IFERROR(-IPMT((C113-'КАЛЬКУЛЯТОР 1'!$P$1)/12,B113,IF(C113=$E$5,$E$2,$E$2-$E$3),IF(C113=$E$5,$I$10,$I$10-SUMIF($A$11:$A$370,"<="&$E$3,$H$11:$H$370)),0,0),"") ->  | P113: FALSE
A114: 104 | B114: 104 | D114: =IF(A114<=$E$2,-PMT(C114/12,IF(C114=КАЛЬКУЛЯТОР!$C$21,$E$2,$E$2-$E$3),IF(C114=КАЛЬКУЛЯТОР!$C$21,$I$10,$I$10-SUMIF($A$11:$A$370,"<="&$E$3,$H$11:$H$370)),0,0),"") ->  | G114: =IFERROR(-IPMT((C114-'КАЛЬКУЛЯТОР 1'!$P$1)/12,B114,IF(C114=$E$5,$E$2,$E$2-$E$3),IF(C114=$E$5,$I$10,$I$10-SUMIF($A$11:$A$370,"<="&$E$3,$H$11:$H$370)),0,0),"") ->  | P114: FALSE
A115: 105 | B115: 105 | D115: =IF(A115<=$E$2,-PMT(C115/12,IF(C115=КАЛЬКУЛЯТОР!$C$21,$E$2,$E$2-$E$3),IF(C115=КАЛЬКУЛЯТОР!$C$21,$I$10,$I$10-SUMIF($A$11:$A$370,"<="&$E$3,$H$11:$H$370)),0,0),"") ->  | G115: =IFERROR(-IPMT((C115-'КАЛЬКУЛЯТОР 1'!$P$1)/12,B115,IF(C115=$E$5,$E$2,$E$2-$E$3),IF(C115=$E$5,$I$10,$I$10-SUMIF($A$11:$A$370,"<="&$E$3,$H$11:$H$370)),0,0),"") ->  | P115: FALSE
A116: 106 | B116: 106 | D116: =IF(A116<=$E$2,-PMT(C116/12,IF(C116=КАЛЬКУЛЯТОР!$C$21,$E$2,$E$2-$E$3),IF(C116=КАЛЬКУЛЯТОР!$C$21,$I$10,$I$10-SUMIF($A$11:$A$370,"<="&$E$3,$H$11:$H$370)),0,0),"") ->  | G116: =IFERROR(-IPMT((C116-'КАЛЬКУЛЯТОР 1'!$P$1)/12,B116,IF(C116=$E$5,$E$2,$E$2-$E$3),IF(C116=$E$5,$I$10,$I$10-SUMIF($A$11:$A$370,"<="&$E$3,$H$11:$H$370)),0,0),"") ->  | P116: FALSE
A117: 107 | B117: 107 | D117: =IF(A117<=$E$2,-PMT(C117/12,IF(C117=КАЛЬКУЛЯТОР!$C$21,$E$2,$E$2-$E$3),IF(C117=КАЛЬКУЛЯТОР!$C$21,$I$10,$I$10-SUMIF($A$11:$A$370,"<="&$E$3,$H$11:$H$370)),0,0),"") ->  | G117: =IFERROR(-IPMT((C117-'КАЛЬКУЛЯТОР 1'!$P$1)/12,B117,IF(C117=$E$5,$E$2,$E$2-$E$3),IF(C117=$E$5,$I$10,$I$10-SUMIF($A$11:$A$370,"<="&$E$3,$H$11:$H$370)),0,0),"") ->  | P117: FALSE
A118: 108 | B118: 108 | D118: =IF(A118<=$E$2,-PMT(C118/12,IF(C118=КАЛЬКУЛЯТОР!$C$21,$E$2,$E$2-$E$3),IF(C118=КАЛЬКУЛЯТОР!$C$21,$I$10,$I$10-SUMIF($A$11:$A$370,"<="&$E$3,$H$11:$H$370)),0,0),"") ->  | G118: =IFERROR(-IPMT((C118-'КАЛЬКУЛЯТОР 1'!$P$1)/12,B118,IF(C118=$E$5,$E$2,$E$2-$E$3),IF(C118=$E$5,$I$10,$I$10-SUMIF($A$11:$A$370,"<="&$E$3,$H$11:$H$370)),0,0),"") ->  | P118: FALSE
A119: 109 | B119: 109 | D119: =IF(A119<=$E$2,-PMT(C119/12,IF(C119=КАЛЬКУЛЯТОР!$C$21,$E$2,$E$2-$E$3),IF(C119=КАЛЬКУЛЯТОР!$C$21,$I$10,$I$10-SUMIF($A$11:$A$370,"<="&$E$3,$H$11:$H$370)),0,0)+E119,"") ->  | E119: =IF($E$2>$A118,(I118+SUM(F119:F130))*($K$4+$K$5),0) ->  | G119: =IFERROR(-IPMT((C119-'КАЛЬКУЛЯТОР 1'!$P$1)/12,B119,IF(C119=$E$5,$E$2,$E$2-$E$3),IF(C119=$E$5,$I$10,$I$10-SUMIF($A$11:$A$370,"<="&$E$3,$H$11:$H$370)),0,0),"") ->  | K119: =PV($E$6/12,A119-1,0,-E119) ->  | P119: FALSE
A120: 110 | B120: 110 | D120: =IF(A120<=$E$2,-PMT(C120/12,IF(C120=КАЛЬКУЛЯТОР!$C$21,$E$2,$E$2-$E$3),IF(C120=КАЛЬКУЛЯТОР!$C$21,$I$10,$I$10-SUMIF($A$11:$A$370,"<="&$E$3,$H$11:$H$370)),0,0),"") ->  | G120: =IFERROR(-IPMT((C120-'КАЛЬКУЛЯТОР 1'!$P$1)/12,B120,IF(C120=$E$5,$E$2,$E$2-$E$3),IF(C120=$E$5,$I$10,$I$10-SUMIF($A$11:$A$370,"<="&$E$3,$H$11:$H$370)),0,0),"") ->  | P120: FALSE
A121: 111 | B121: 111 | D121: =IF(A121<=$E$2,-PMT(C121/12,IF(C121=КАЛЬКУЛЯТОР!$C$21,$E$2,$E$2-$E$3),IF(C121=КАЛЬКУЛЯТОР!$C$21,$I$10,$I$10-SUMIF($A$11:$A$370,"<="&$E$3,$H$11:$H$370)),0,0),"") ->  | G121: =IFERROR(-IPMT((C121-'КАЛЬКУЛЯТОР 1'!$P$1)/12,B121,IF(C121=$E$5,$E$2,$E$2-$E$3),IF(C121=$E$5,$I$10,$I$10-SUMIF($A$11:$A$370,"<="&$E$3,$H$11:$H$370)),0,0),"") ->  | P121: FALSE
A122: 112 | B122: 112 | D122: =IF(A122<=$E$2,-PMT(C122/12,IF(C122=КАЛЬКУЛЯТОР!$C$21,$E$2,$E$2-$E$3),IF(C122=КАЛЬКУЛЯТОР!$C$21,$I$10,$I$10-SUMIF($A$11:$A$370,"<="&$E$3,$H$11:$H$370)),0,0),"") ->  | G122: =IFERROR(-IPMT((C122-'КАЛЬКУЛЯТОР 1'!$P$1)/12,B122,IF(C122=$E$5,$E$2,$E$2-$E$3),IF(C122=$E$5,$I$10,$I$10-SUMIF($A$11:$A$370,"<="&$E$3,$H$11:$H$370)),0,0),"") ->  | P122: FALSE
A123: 113 | B123: 113 | D123: =IF(A123<=$E$2,-PMT(C123/12,IF(C123=КАЛЬКУЛЯТОР!$C$21,$E$2,$E$2-$E$3),IF(C123=КАЛЬКУЛЯТОР!$C$21,$I$10,$I$10-SUMIF($A$11:$A$370,"<="&$E$3,$H$11:$H$370)),0,0),"") ->  | G123: =IFERROR(-IPMT((C123-'КАЛЬКУЛЯТОР 1'!$P$1)/12,B123,IF(C123=$E$5,$E$2,$E$2-$E$3),IF(C123=$E$5,$I$10,$I$10-SUMIF($A$11:$A$370,"<="&$E$3,$H$11:$H$370)),0,0),"") ->  | P123: FALSE
A124: 114 | B124: 114 | D124: =IF(A124<=$E$2,-PMT(C124/12,IF(C124=КАЛЬКУЛЯТОР!$C$21,$E$2,$E$2-$E$3),IF(C124=КАЛЬКУЛЯТОР!$C$21,$I$10,$I$10-SUMIF($A$11:$A$370,"<="&$E$3,$H$11:$H$370)),0,0),"") ->  | G124: =IFERROR(-IPMT((C124-'КАЛЬКУЛЯТОР 1'!$P$1)/12,B124,IF(C124=$E$5,$E$2,$E$2-$E$3),IF(C124=$E$5,$I$10,$I$10-SUMIF($A$11:$A$370,"<="&$E$3,$H$11:$H$370)),0,0),"") ->  | P124: FALSE
A125: 115 | B125: 115 | D125: =IF(A125<=$E$2,-PMT(C125/12,IF(C125=КАЛЬКУЛЯТОР!$C$21,$E$2,$E$2-$E$3),IF(C125=КАЛЬКУЛЯТОР!$C$21,$I$10,$I$10-SUMIF($A$11:$A$370,"<="&$E$3,$H$11:$H$370)),0,0),"") ->  | G125: =IFERROR(-IPMT((C125-'КАЛЬКУЛЯТОР 1'!$P$1)/12,B125,IF(C125=$E$5,$E$2,$E$2-$E$3),IF(C125=$E$5,$I$10,$I$10-SUMIF($A$11:$A$370,"<="&$E$3,$H$11:$H$370)),0,0),"") ->  | P125: FALSE
A126: 116 | B126: 116 | D126: =IF(A126<=$E$2,-PMT(C126/12,IF(C126=КАЛЬКУЛЯТОР!$C$21,$E$2,$E$2-$E$3),IF(C126=КАЛЬКУЛЯТОР!$C$21,$I$10,$I$10-SUMIF($A$11:$A$370,"<="&$E$3,$H$11:$H$370)),0,0),"") ->  | G126: =IFERROR(-IPMT((C126-'КАЛЬКУЛЯТОР 1'!$P$1)/12,B126,IF(C126=$E$5,$E$2,$E$2-$E$3),IF(C126=$E$5,$I$10,$I$10-SUMIF($A$11:$A$370,"<="&$E$3,$H$11:$H$370)),0,0),"") ->  | P126: FALSE
A127: 117 | B127: 117 | D127: =IF(A127<=$E$2,-PMT(C127/12,IF(C127=КАЛЬКУЛЯТОР!$C$21,$E$2,$E$2-$E$3),IF(C127=КАЛЬКУЛЯТОР!$C$21,$I$10,$I$10-SUMIF($A$11:$A$370,"<="&$E$3,$H$11:$H$370)),0,0),"") ->  | G127: =IFERROR(-IPMT((C127-'КАЛЬКУЛЯТОР 1'!$P$1)/12,B127,IF(C127=$E$5,$E$2,$E$2-$E$3),IF(C127=$E$5,$I$10,$I$10-SUMIF($A$11:$A$370,"<="&$E$3,$H$11:$H$370)),0,0),"") ->  | P127: FALSE
A128: 118 | B128: 118 | D128: =IF(A128<=$E$2,-PMT(C128/12,IF(C128=КАЛЬКУЛЯТОР!$C$21,$E$2,$E$2-$E$3),IF(C128=КАЛЬКУЛЯТОР!$C$21,$I$10,$I$10-SUMIF($A$11:$A$370,"<="&$E$3,$H$11:$H$370)),0,0),"") ->  | G128: =IFERROR(-IPMT((C128-'КАЛЬКУЛЯТОР 1'!$P$1)/12,B128,IF(C128=$E$5,$E$2,$E$2-$E$3),IF(C128=$E$5,$I$10,$I$10-SUMIF($A$11:$A$370,"<="&$E$3,$H$11:$H$370)),0,0),"") ->  | P128: FALSE
A129: 119 | B129: 119 | D129: =IF(A129<=$E$2,-PMT(C129/12,IF(C129=КАЛЬКУЛЯТОР!$C$21,$E$2,$E$2-$E$3),IF(C129=КАЛЬКУЛЯТОР!$C$21,$I$10,$I$10-SUMIF($A$11:$A$370,"<="&$E$3,$H$11:$H$370)),0,0),"") ->  | G129: =IFERROR(-IPMT((C129-'КАЛЬКУЛЯТОР 1'!$P$1)/12,B129,IF(C129=$E$5,$E$2,$E$2-$E$3),IF(C129=$E$5,$I$10,$I$10-SUMIF($A$11:$A$370,"<="&$E$3,$H$11:$H$370)),0,0),"") ->  | P129: FALSE
A130: 120 | B130: 120 | D130: =IF(A130<=$E$2,-PMT(C130/12,IF(C130=КАЛЬКУЛЯТОР!$C$21,$E$2,$E$2-$E$3),IF(C130=КАЛЬКУЛЯТОР!$C$21,$I$10,$I$10-SUMIF($A$11:$A$370,"<="&$E$3,$H$11:$H$370)),0,0),"") ->  | G130: =IFERROR(-IPMT((C130-'КАЛЬКУЛЯТОР 1'!$P$1)/12,B130,IF(C130=$E$5,$E$2,$E$2-$E$3),IF(C130=$E$5,$I$10,$I$10-SUMIF($A$11:$A$370,"<="&$E$3,$H$11:$H$370)),0,0),"") ->  | P130: FALSE
A131: 121 | B131: 121 | D131: =IF(A131<=$E$2,-PMT(C131/12,IF(C131=КАЛЬКУЛЯТОР!$C$21,$E$2,$E$2-$E$3),IF(C131=КАЛЬКУЛЯТОР!$C$21,$I$10,$I$10-SUMIF($A$11:$A$370,"<="&$E$3,$H$11:$H$370)),0,0)+E131,"") ->  | E131: =IF($E$2>$A130,(I130+SUM(F131:F142))*($K$4+$K$5),0) -> 0.00 | G131: =IFERROR(-IPMT((C131-'КАЛЬКУЛЯТОР 1'!$P$1)/12,B131,IF(C131=$E$5,$E$2,$E$2-$E$3),IF(C131=$E$5,$I$10,$I$10-SUMIF($A$11:$A$370,"<="&$E$3,$H$11:$H$370)),0,0),"") ->  | K131: =PV($E$6/12,A131-1,0,-E131) -> 0.00 | P131: FALSE
A132: 122 | B132: 122 | D132: =IF(A132<=$E$2,-PMT(C132/12,IF(C132=КАЛЬКУЛЯТОР!$C$21,$E$2,$E$2-$E$3),IF(C132=КАЛЬКУЛЯТОР!$C$21,$I$10,$I$10-SUMIF($A$11:$A$370,"<="&$E$3,$H$11:$H$370)),0,0),"") ->  | G132: =IFERROR(-IPMT((C132-'КАЛЬКУЛЯТОР 1'!$P$1)/12,B132,IF(C132=$E$5,$E$2,$E$2-$E$3),IF(C132=$E$5,$I$10,$I$10-SUMIF($A$11:$A$370,"<="&$E$3,$H$11:$H$370)),0,0),"") ->  | P132: FALSE
A133: 123 | B133: 123 | D133: =IF(A133<=$E$2,-PMT(C133/12,IF(C133=КАЛЬКУЛЯТОР!$C$21,$E$2,$E$2-$E$3),IF(C133=КАЛЬКУЛЯТОР!$C$21,$I$10,$I$10-SUMIF($A$11:$A$370,"<="&$E$3,$H$11:$H$370)),0,0),"") ->  | G133: =IFERROR(-IPMT((C133-'КАЛЬКУЛЯТОР 1'!$P$1)/12,B133,IF(C133=$E$5,$E$2,$E$2-$E$3),IF(C133=$E$5,$I$10,$I$10-SUMIF($A$11:$A$370,"<="&$E$3,$H$11:$H$370)),0,0),"") ->  | P133: FALSE
A134: 124 | B134: 124 | D134: =IF(A134<=$E$2,-PMT(C134/12,IF(C134=КАЛЬКУЛЯТОР!$C$21,$E$2,$E$2-$E$3),IF(C134=КАЛЬКУЛЯТОР!$C$21,$I$10,$I$10-SUMIF($A$11:$A$370,"<="&$E$3,$H$11:$H$370)),0,0),"") ->  | G134: =IFERROR(-IPMT((C134-'КАЛЬКУЛЯТОР 1'!$P$1)/12,B134,IF(C134=$E$5,$E$2,$E$2-$E$3),IF(C134=$E$5,$I$10,$I$10-SUMIF($A$11:$A$370,"<="&$E$3,$H$11:$H$370)),0,0),"") ->  | P134: FALSE
A135: 125 | B135: 125 | D135: =IF(A135<=$E$2,-PMT(C135/12,IF(C135=КАЛЬКУЛЯТОР!$C$21,$E$2,$E$2-$E$3),IF(C135=КАЛЬКУЛЯТОР!$C$21,$I$10,$I$10-SUMIF($A$11:$A$370,"<="&$E$3,$H$11:$H$370)),0,0),"") ->  | G135: =IFERROR(-IPMT((C135-'КАЛЬКУЛЯТОР 1'!$P$1)/12,B135,IF(C135=$E$5,$E$2,$E$2-$E$3),IF(C135=$E$5,$I$10,$I$10-SUMIF($A$11:$A$370,"<="&$E$3,$H$11:$H$370)),0,0),"") ->  | P135: FALSE
A136: 126 | B136: 126 | D136: =IF(A136<=$E$2,-PMT(C136/12,IF(C136=КАЛЬКУЛЯТОР!$C$21,$E$2,$E$2-$E$3),IF(C136=КАЛЬКУЛЯТОР!$C$21,$I$10,$I$10-SUMIF($A$11:$A$370,"<="&$E$3,$H$11:$H$370)),0,0),"") ->  | G136: =IFERROR(-IPMT((C136-'КАЛЬКУЛЯТОР 1'!$P$1)/12,B136,IF(C136=$E$5,$E$2,$E$2-$E$3),IF(C136=$E$5,$I$10,$I$10-SUMIF($A$11:$A$370,"<="&$E$3,$H$11:$H$370)),0,0),"") ->  | P136: FALSE
A137: 127 | B137: 127 | D137: =IF(A137<=$E$2,-PMT(C137/12,IF(C137=КАЛЬКУЛЯТОР!$C$21,$E$2,$E$2-$E$3),IF(C137=КАЛЬКУЛЯТОР!$C$21,$I$10,$I$10-SUMIF($A$11:$A$370,"<="&$E$3,$H$11:$H$370)),0,0),"") ->  | G137: =IFERROR(-IPMT((C137-'КАЛЬКУЛЯТОР 1'!$P$1)/12,B137,IF(C137=$E$5,$E$2,$E$2-$E$3),IF(C137=$E$5,$I$10,$I$10-SUMIF($A$11:$A$370,"<="&$E$3,$H$11:$H$370)),0,0),"") ->  | P137: FALSE
A138: 128 | B138: 128 | D138: =IF(A138<=$E$2,-PMT(C138/12,IF(C138=КАЛЬКУЛЯТОР!$C$21,$E$2,$E$2-$E$3),IF(C138=КАЛЬКУЛЯТОР!$C$21,$I$10,$I$10-SUMIF($A$11:$A$370,"<="&$E$3,$H$11:$H$370)),0,0),"") ->  | G138: =IFERROR(-IPMT((C138-'КАЛЬКУЛЯТОР 1'!$P$1)/12,B138,IF(C138=$E$5,$E$2,$E$2-$E$3),IF(C138=$E$5,$I$10,$I$10-SUMIF($A$11:$A$370,"<="&$E$3,$H$11:$H$370)),0,0),"") ->  | P138: FALSE
A139: 129 | B139: 129 | D139: =IF(A139<=$E$2,-PMT(C139/12,IF(C139=КАЛЬКУЛЯТОР!$C$21,$E$2,$E$2-$E$3),IF(C139=КАЛЬКУЛЯТОР!$C$21,$I$10,$I$10-SUMIF($A$11:$A$370,"<="&$E$3,$H$11:$H$370)),0,0),"") ->  | G139: =IFERROR(-IPMT((C139-'КАЛЬКУЛЯТОР 1'!$P$1)/12,B139,IF(C139=$E$5,$E$2,$E$2-$E$3),IF(C139=$E$5,$I$10,$I$10-SUMIF($A$11:$A$370,"<="&$E$3,$H$11:$H$370)),0,0),"") ->  | I139: =IFERROR(I138-H139,"") ->  | J139: =PV($E$6/12,A139-1,0,-D139) ->  | L139: =PV($E$6/12,A139-1,0,-F139) ->  | M139: =PV($E$6/12,A139-1,0,-G139) ->  | N139: =PV($E$6/12,A139-1,0,-H139) ->  | O139: =O138-N139 ->  | P139: FALSE
A140: 130 | B140: =IF(P140=$P$11,B139+1,A140-$E$3) -> 130 | C140: =IF(AND($E$4<=$E$5,A140<=$E$3),$E$5,IF(AND(A140>$E$3,A140<=$E$2),$E$4,"")) ->  | D140: =IF(A140<=$E$2,-PMT(C140/12,IF(C140=КАЛЬКУЛЯТОР!$C$21,$E$2,$E$2-$E$3),IF(C140=КАЛЬКУЛЯТОР!$C$21,$I$10,$I$10-SUMIF($A$11:$A$370,"<="&$E$3,$H$11:$H$370)),0,0),"") ->  | F140: =IFERROR(-IPMT(C140/12,B140,IF(C140=$E$5,$E$2,$E$2-$E$3),IF(C140=$E$5,$I$10,$I$10-SUMIF($A$11:$A$370,"<="&$E$3,$H$11:$H$370)),0,0),"") ->  | G140: =IFERROR(-IPMT((C140-'КАЛЬКУЛЯТОР 1'!$P$1)/12,B140,IF(C140=$E$5,$E$2,$E$2-$E$3),IF(C140=$E$5,$I$10,$I$10-SUMIF($A$11:$A$370,"<="&$E$3,$H$11:$H$370)),0,0),"") ->  | H140: =IFERROR((-PPMT(C140/12,B140,IF(C140=$E$5,$E$2,$E$2-$E$3),IF(C140=$E$5,$I$10,$I$10-SUMIF($A$11:$A$370,"<="&$E$3,$H$11:$H$370)),0,0)),"") ->  | P140: =AND(A140<=$E$3) -> FALSE
A141: 131 | B141: 131 | D141: =IF(A141<=$E$2,-PMT(C141/12,IF(C141=КАЛЬКУЛЯТОР!$C$21,$E$2,$E$2-$E$3),IF(C141=КАЛЬКУЛЯТОР!$C$21,$I$10,$I$10-SUMIF($A$11:$A$370,"<="&$E$3,$H$11:$H$370)),0,0),"") ->  | G141: =IFERROR(-IPMT((C141-'КАЛЬКУЛЯТОР 1'!$P$1)/12,B141,IF(C141=$E$5,$E$2,$E$2-$E$3),IF(C141=$E$5,$I$10,$I$10-SUMIF($A$11:$A$370,"<="&$E$3,$H$11:$H$370)),0,0),"") ->  | P141: FALSE
A142: 132 | B142: 132 | D142: =IF(A142<=$E$2,-PMT(C142/12,IF(C142=КАЛЬКУЛЯТОР!$C$21,$E$2,$E$2-$E$3),IF(C142=КАЛЬКУЛЯТОР!$C$21,$I$10,$I$10-SUMIF($A$11:$A$370,"<="&$E$3,$H$11:$H$370)),0,0),"") ->  | G142: =IFERROR(-IPMT((C142-'КАЛЬКУЛЯТОР 1'!$P$1)/12,B142,IF(C142=$E$5,$E$2,$E$2-$E$3),IF(C142=$E$5,$I$10,$I$10-SUMIF($A$11:$A$370,"<="&$E$3,$H$11:$H$370)),0,0),"") ->  | P142: FALSE
A143: 133 | B143: 133 | D143: =IF(A143<=$E$2,-PMT(C143/12,IF(C143=КАЛЬКУЛЯТОР!$C$21,$E$2,$E$2-$E$3),IF(C143=КАЛЬКУЛЯТОР!$C$21,$I$10,$I$10-SUMIF($A$11:$A$370,"<="&$E$3,$H$11:$H$370)),0,0)+E143,"") ->  | E143: =IF($E$2>$A142,(I142+SUM(F143:F154))*($K$4+$K$5),0) -> 0.00 | G143: =IFERROR(-IPMT((C143-'КАЛЬКУЛЯТОР 1'!$P$1)/12,B143,IF(C143=$E$5,$E$2,$E$2-$E$3),IF(C143=$E$5,$I$10,$I$10-SUMIF($A$11:$A$370,"<="&$E$3,$H$11:$H$370)),0,0),"") ->  | K143: =PV($E$6/12,A143-1,0,-E143) -> 0.00 | P143: FALSE
A144: 134 | B144: 134 | D144: =IF(A144<=$E$2,-PMT(C144/12,IF(C144=КАЛЬКУЛЯТОР!$C$21,$E$2,$E$2-$E$3),IF(C144=КАЛЬКУЛЯТОР!$C$21,$I$10,$I$10-SUMIF($A$11:$A$370,"<="&$E$3,$H$11:$H$370)),0,0),"") ->  | G144: =IFERROR(-IPMT((C144-'КАЛЬКУЛЯТОР 1'!$P$1)/12,B144,IF(C144=$E$5,$E$2,$E$2-$E$3),IF(C144=$E$5,$I$10,$I$10-SUMIF($A$11:$A$370,"<="&$E$3,$H$11:$H$370)),0,0),"") ->  | P144: FALSE
A145: 135 | B145: 135 | D145: =IF(A145<=$E$2,-PMT(C145/12,IF(C145=КАЛЬКУЛЯТОР!$C$21,$E$2,$E$2-$E$3),IF(C145=КАЛЬКУЛЯТОР!$C$21,$I$10,$I$10-SUMIF($A$11:$A$370,"<="&$E$3,$H$11:$H$370)),0,0),"") ->  | G145: =IFERROR(-IPMT((C145-'КАЛЬКУЛЯТОР 1'!$P$1)/12,B145,IF(C145=$E$5,$E$2,$E$2-$E$3),IF(C145=$E$5,$I$10,$I$10-SUMIF($A$11:$A$370,"<="&$E$3,$H$11:$H$370)),0,0),"") ->  | P145: FALSE
A146: 136 | B146: 136 | D146: =IF(A146<=$E$2,-PMT(C146/12,IF(C146=КАЛЬКУЛЯТОР!$C$21,$E$2,$E$2-$E$3),IF(C146=КАЛЬКУЛЯТОР!$C$21,$I$10,$I$10-SUMIF($A$11:$A$370,"<="&$E$3,$H$11:$H$370)),0,0),"") ->  | G146: =IFERROR(-IPMT((C146-'КАЛЬКУЛЯТОР 1'!$P$1)/12,B146,IF(C146=$E$5,$E$2,$E$2-$E$3),IF(C146=$E$5,$I$10,$I$10-SUMIF($A$11:$A$370,"<="&$E$3,$H$11:$H$370)),0,0),"") ->  | P146: FALSE
A147: 137 | B147: 137 | D147: =IF(A147<=$E$2,-PMT(C147/12,IF(C147=КАЛЬКУЛЯТОР!$C$21,$E$2,$E$2-$E$3),IF(C147=КАЛЬКУЛЯТОР!$C$21,$I$10,$I$10-SUMIF($A$11:$A$370,"<="&$E$3,$H$11:$H$370)),0,0),"") ->  | G147: =IFERROR(-IPMT((C147-'КАЛЬКУЛЯТОР 1'!$P$1)/12,B147,IF(C147=$E$5,$E$2,$E$2-$E$3),IF(C147=$E$5,$I$10,$I$10-SUMIF($A$11:$A$370,"<="&$E$3,$H$11:$H$370)),0,0),"") ->  | P147: FALSE
A148: 138 | B148: 138 | D148: =IF(A148<=$E$2,-PMT(C148/12,IF(C148=КАЛЬКУЛЯТОР!$C$21,$E$2,$E$2-$E$3),IF(C148=КАЛЬКУЛЯТОР!$C$21,$I$10,$I$10-SUMIF($A$11:$A$370,"<="&$E$3,$H$11:$H$370)),0,0),"") ->  | G148: =IFERROR(-IPMT((C148-'КАЛЬКУЛЯТОР 1'!$P$1)/12,B148,IF(C148=$E$5,$E$2,$E$2-$E$3),IF(C148=$E$5,$I$10,$I$10-SUMIF($A$11:$A$370,"<="&$E$3,$H$11:$H$370)),0,0),"") ->  | P148: FALSE
A149: 139 | B149: 139 | D149: =IF(A149<=$E$2,-PMT(C149/12,IF(C149=КАЛЬКУЛЯТОР!$C$21,$E$2,$E$2-$E$3),IF(C149=КАЛЬКУЛЯТОР!$C$21,$I$10,$I$10-SUMIF($A$11:$A$370,"<="&$E$3,$H$11:$H$370)),0,0),"") ->  | G149: =IFERROR(-IPMT((C149-'КАЛЬКУЛЯТОР 1'!$P$1)/12,B149,IF(C149=$E$5,$E$2,$E$2-$E$3),IF(C149=$E$5,$I$10,$I$10-SUMIF($A$11:$A$370,"<="&$E$3,$H$11:$H$370)),0,0),"") ->  | P149: FALSE
A150: 140 | B150: 140 | D150: =IF(A150<=$E$2,-PMT(C150/12,IF(C150=КАЛЬКУЛЯТОР!$C$21,$E$2,$E$2-$E$3),IF(C150=КАЛЬКУЛЯТОР!$C$21,$I$10,$I$10-SUMIF($A$11:$A$370,"<="&$E$3,$H$11:$H$370)),0,0),"") ->  | G150: =IFERROR(-IPMT((C150-'КАЛЬКУЛЯТОР 1'!$P$1)/12,B150,IF(C150=$E$5,$E$2,$E$2-$E$3),IF(C150=$E$5,$I$10,$I$10-SUMIF($A$11:$A$370,"<="&$E$3,$H$11:$H$370)),0,0),"") ->  | P150: FALSE
A151: 141 | B151: 141 | D151: =IF(A151<=$E$2,-PMT(C151/12,IF(C151=КАЛЬКУЛЯТОР!$C$21,$E$2,$E$2-$E$3),IF(C151=КАЛЬКУЛЯТОР!$C$21,$I$10,$I$10-SUMIF($A$11:$A$370,"<="&$E$3,$H$11:$H$370)),0,0),"") ->  | G151: =IFERROR(-IPMT((C151-'КАЛЬКУЛЯТОР 1'!$P$1)/12,B151,IF(C151=$E$5,$E$2,$E$2-$E$3),IF(C151=$E$5,$I$10,$I$10-SUMIF($A$11:$A$370,"<="&$E$3,$H$11:$H$370)),0,0),"") ->  | P151: FALSE
A152: 142 | B152: 142 | D152: =IF(A152<=$E$2,-PMT(C152/12,IF(C152=КАЛЬКУЛЯТОР!$C$21,$E$2,$E$2-$E$3),IF(C152=КАЛЬКУЛЯТОР!$C$21,$I$10,$I$10-SUMIF($A$11:$A$370,"<="&$E$3,$H$11:$H$370)),0,0),"") ->  | G152: =IFERROR(-IPMT((C152-'КАЛЬКУЛЯТОР 1'!$P$1)/12,B152,IF(C152=$E$5,$E$2,$E$2-$E$3),IF(C152=$E$5,$I$10,$I$10-SUMIF($A$11:$A$370,"<="&$E$3,$H$11:$H$370)),0,0),"") ->  | P152: FALSE
A153: 143 | B153: 143 | D153: =IF(A153<=$E$2,-PMT(C153/12,IF(C153=КАЛЬКУЛЯТОР!$C$21,$E$2,$E$2-$E$3),IF(C153=КАЛЬКУЛЯТОР!$C$21,$I$10,$I$10-SUMIF($A$11:$A$370,"<="&$E$3,$H$11:$H$370)),0,0),"") ->  | G153: =IFERROR(-IPMT((C153-'КАЛЬКУЛЯТОР 1'!$P$1)/12,B153,IF(C153=$E$5,$E$2,$E$2-$E$3),IF(C153=$E$5,$I$10,$I$10-SUMIF($A$11:$A$370,"<="&$E$3,$H$11:$H$370)),0,0),"") ->  | P153: FALSE
A154: 144 | B154: 144 | D154: =IF(A154<=$E$2,-PMT(C154/12,IF(C154=КАЛЬКУЛЯТОР!$C$21,$E$2,$E$2-$E$3),IF(C154=КАЛЬКУЛЯТОР!$C$21,$I$10,$I$10-SUMIF($A$11:$A$370,"<="&$E$3,$H$11:$H$370)),0,0),"") ->  | G154: =IFERROR(-IPMT((C154-'КАЛЬКУЛЯТОР 1'!$P$1)/12,B154,IF(C154=$E$5,$E$2,$E$2-$E$3),IF(C154=$E$5,$I$10,$I$10-SUMIF($A$11:$A$370,"<="&$E$3,$H$11:$H$370)),0,0),"") ->  | P154: FALSE
A155: 145 | B155: 145 | D155: =IF(A155<=$E$2,-PMT(C155/12,IF(C155=КАЛЬКУЛЯТОР!$C$21,$E$2,$E$2-$E$3),IF(C155=КАЛЬКУЛЯТОР!$C$21,$I$10,$I$10-SUMIF($A$11:$A$370,"<="&$E$3,$H$11:$H$370)),0,0)+E155,"") ->  | E155: =IF($E$2>$A154,(I154+SUM(F155:F166))*($K$4+$K$5),0) -> 0.00 | G155: =IFERROR(-IPMT((C155-'КАЛЬКУЛЯТОР 1'!$P$1)/12,B155,IF(C155=$E$5,$E$2,$E$2-$E$3),IF(C155=$E$5,$I$10,$I$10-SUMIF($A$11:$A$370,"<="&$E$3,$H$11:$H$370)),0,0),"") ->  | K155: =PV($E$6/12,A155-1,0,-E155) -> 0.00 | P155: FALSE
A156: 146 | B156: 146 | D156: =IF(A156<=$E$2,-PMT(C156/12,IF(C156=КАЛЬКУЛЯТОР!$C$21,$E$2,$E$2-$E$3),IF(C156=КАЛЬКУЛЯТОР!$C$21,$I$10,$I$10-SUMIF($A$11:$A$370,"<="&$E$3,$H$11:$H$370)),0,0),"") ->  | G156: =IFERROR(-IPMT((C156-'КАЛЬКУЛЯТОР 1'!$P$1)/12,B156,IF(C156=$E$5,$E$2,$E$2-$E$3),IF(C156=$E$5,$I$10,$I$10-SUMIF($A$11:$A$370,"<="&$E$3,$H$11:$H$370)),0,0),"") ->  | P156: FALSE
A157: 147 | B157: 147 | D157: =IF(A157<=$E$2,-PMT(C157/12,IF(C157=КАЛЬКУЛЯТОР!$C$21,$E$2,$E$2-$E$3),IF(C157=КАЛЬКУЛЯТОР!$C$21,$I$10,$I$10-SUMIF($A$11:$A$370,"<="&$E$3,$H$11:$H$370)),0,0),"") ->  | G157: =IFERROR(-IPMT((C157-'КАЛЬКУЛЯТОР 1'!$P$1)/12,B157,IF(C157=$E$5,$E$2,$E$2-$E$3),IF(C157=$E$5,$I$10,$I$10-SUMIF($A$11:$A$370,"<="&$E$3,$H$11:$H$370)),0,0),"") ->  | P157: FALSE
A158: 148 | B158: 148 | D158: =IF(A158<=$E$2,-PMT(C158/12,IF(C158=КАЛЬКУЛЯТОР!$C$21,$E$2,$E$2-$E$3),IF(C158=КАЛЬКУЛЯТОР!$C$21,$I$10,$I$10-SUMIF($A$11:$A$370,"<="&$E$3,$H$11:$H$370)),0,0),"") ->  | G158: =IFERROR(-IPMT((C158-'КАЛЬКУЛЯТОР 1'!$P$1)/12,B158,IF(C158=$E$5,$E$2,$E$2-$E$3),IF(C158=$E$5,$I$10,$I$10-SUMIF($A$11:$A$370,"<="&$E$3,$H$11:$H$370)),0,0),"") ->  | P158: FALSE
A159: 149 | B159: 149 | D159: =IF(A159<=$E$2,-PMT(C159/12,IF(C159=КАЛЬКУЛЯТОР!$C$21,$E$2,$E$2-$E$3),IF(C159=КАЛЬКУЛЯТОР!$C$21,$I$10,$I$10-SUMIF($A$11:$A$370,"<="&$E$3,$H$11:$H$370)),0,0),"") ->  | G159: =IFERROR(-IPMT((C159-'КАЛЬКУЛЯТОР 1'!$P$1)/12,B159,IF(C159=$E$5,$E$2,$E$2-$E$3),IF(C159=$E$5,$I$10,$I$10-SUMIF($A$11:$A$370,"<="&$E$3,$H$11:$H$370)),0,0),"") ->  | P159: FALSE
A160: 150 | B160: 150 | D160: =IF(A160<=$E$2,-PMT(C160/12,IF(C160=КАЛЬКУЛЯТОР!$C$21,$E$2,$E$2-$E$3),IF(C160=КАЛЬКУЛЯТОР!$C$21,$I$10,$I$10-SUMIF($A$11:$A$370,"<="&$E$3,$H$11:$H$370)),0,0),"") ->  | G160: =IFERROR(-IPMT((C160-'КАЛЬКУЛЯТОР 1'!$P$1)/12,B160,IF(C160=$E$5,$E$2,$E$2-$E$3),IF(C160=$E$5,$I$10,$I$10-SUMIF($A$11:$A$370,"<="&$E$3,$H$11:$H$370)),0,0),"") ->  | P160: FALSE
A161: 151 | B161: 151 | D161: =IF(A161<=$E$2,-PMT(C161/12,IF(C161=КАЛЬКУЛЯТОР!$C$21,$E$2,$E$2-$E$3),IF(C161=КАЛЬКУЛЯТОР!$C$21,$I$10,$I$10-SUMIF($A$11:$A$370,"<="&$E$3,$H$11:$H$370)),0,0),"") ->  | G161: =IFERROR(-IPMT((C161-'КАЛЬКУЛЯТОР 1'!$P$1)/12,B161,IF(C161=$E$5,$E$2,$E$2-$E$3),IF(C161=$E$5,$I$10,$I$10-SUMIF($A$11:$A$370,"<="&$E$3,$H$11:$H$370)),0,0),"") ->  | P161: FALSE
A162: 152 | B162: 152 | D162: =IF(A162<=$E$2,-PMT(C162/12,IF(C162=КАЛЬКУЛЯТОР!$C$21,$E$2,$E$2-$E$3),IF(C162=КАЛЬКУЛЯТОР!$C$21,$I$10,$I$10-SUMIF($A$11:$A$370,"<="&$E$3,$H$11:$H$370)),0,0),"") ->  | G162: =IFERROR(-IPMT((C162-'КАЛЬКУЛЯТОР 1'!$P$1)/12,B162,IF(C162=$E$5,$E$2,$E$2-$E$3),IF(C162=$E$5,$I$10,$I$10-SUMIF($A$11:$A$370,"<="&$E$3,$H$11:$H$370)),0,0),"") ->  | P162: FALSE
A163: 153 | B163: 153 | D163: =IF(A163<=$E$2,-PMT(C163/12,IF(C163=КАЛЬКУЛЯТОР!$C$21,$E$2,$E$2-$E$3),IF(C163=КАЛЬКУЛЯТОР!$C$21,$I$10,$I$10-SUMIF($A$11:$A$370,"<="&$E$3,$H$11:$H$370)),0,0),"") ->  | G163: =IFERROR(-IPMT((C163-'КАЛЬКУЛЯТОР 1'!$P$1)/12,B163,IF(C163=$E$5,$E$2,$E$2-$E$3),IF(C163=$E$5,$I$10,$I$10-SUMIF($A$11:$A$370,"<="&$E$3,$H$11:$H$370)),0,0),"") ->  | P163: FALSE
A164: 154 | B164: 154 | D164: =IF(A164<=$E$2,-PMT(C164/12,IF(C164=КАЛЬКУЛЯТОР!$C$21,$E$2,$E$2-$E$3),IF(C164=КАЛЬКУЛЯТОР!$C$21,$I$10,$I$10-SUMIF($A$11:$A$370,"<="&$E$3,$H$11:$H$370)),0,0),"") ->  | G164: =IFERROR(-IPMT((C164-'КАЛЬКУЛЯТОР 1'!$P$1)/12,B164,IF(C164=$E$5,$E$2,$E$2-$E$3),IF(C164=$E$5,$I$10,$I$10-SUMIF($A$11:$A$370,"<="&$E$3,$H$11:$H$370)),0,0),"") ->  | P164: FALSE
A165: 155 | B165: 155 | D165: =IF(A165<=$E$2,-PMT(C165/12,IF(C165=КАЛЬКУЛЯТОР!$C$21,$E$2,$E$2-$E$3),IF(C165=КАЛЬКУЛЯТОР!$C$21,$I$10,$I$10-SUMIF($A$11:$A$370,"<="&$E$3,$H$11:$H$370)),0,0),"") ->  | G165: =IFERROR(-IPMT((C165-'КАЛЬКУЛЯТОР 1'!$P$1)/12,B165,IF(C165=$E$5,$E$2,$E$2-$E$3),IF(C165=$E$5,$I$10,$I$10-SUMIF($A$11:$A$370,"<="&$E$3,$H$11:$H$370)),0,0),"") ->  | P165: FALSE
A166: 156 | B166: 156 | D166: =IF(A166<=$E$2,-PMT(C166/12,IF(C166=КАЛЬКУЛЯТОР!$C$21,$E$2,$E$2-$E$3),IF(C166=КАЛЬКУЛЯТОР!$C$21,$I$10,$I$10-SUMIF($A$11:$A$370,"<="&$E$3,$H$11:$H$370)),0,0),"") ->  | G166: =IFERROR(-IPMT((C166-'КАЛЬКУЛЯТОР 1'!$P$1)/12,B166,IF(C166=$E$5,$E$2,$E$2-$E$3),IF(C166=$E$5,$I$10,$I$10-SUMIF($A$11:$A$370,"<="&$E$3,$H$11:$H$370)),0,0),"") ->  | P166: FALSE
A167: 157 | B167: 157 | D167: =IF(A167<=$E$2,-PMT(C167/12,IF(C167=КАЛЬКУЛЯТОР!$C$21,$E$2,$E$2-$E$3),IF(C167=КАЛЬКУЛЯТОР!$C$21,$I$10,$I$10-SUMIF($A$11:$A$370,"<="&$E$3,$H$11:$H$370)),0,0)+E167,"") ->  | E167: =IF($E$2>$A166,(I166+SUM(F167:F178))*($K$4+$K$5),0) -> 0.00 | G167: =IFERROR(-IPMT((C167-'КАЛЬКУЛЯТОР 1'!$P$1)/12,B167,IF(C167=$E$5,$E$2,$E$2-$E$3),IF(C167=$E$5,$I$10,$I$10-SUMIF($A$11:$A$370,"<="&$E$3,$H$11:$H$370)),0,0),"") ->  | K167: =PV($E$6/12,A167-1,0,-E167) -> 0.00 | P167: FALSE
A168: 158 | B168: 158 | D168: =IF(A168<=$E$2,-PMT(C168/12,IF(C168=КАЛЬКУЛЯТОР!$C$21,$E$2,$E$2-$E$3),IF(C168=КАЛЬКУЛЯТОР!$C$21,$I$10,$I$10-SUMIF($A$11:$A$370,"<="&$E$3,$H$11:$H$370)),0,0),"") ->  | G168: =IFERROR(-IPMT((C168-'КАЛЬКУЛЯТОР 1'!$P$1)/12,B168,IF(C168=$E$5,$E$2,$E$2-$E$3),IF(C168=$E$5,$I$10,$I$10-SUMIF($A$11:$A$370,"<="&$E$3,$H$11:$H$370)),0,0),"") ->  | P168: FALSE
A169: 159 | B169: 159 | D169: =IF(A169<=$E$2,-PMT(C169/12,IF(C169=КАЛЬКУЛЯТОР!$C$21,$E$2,$E$2-$E$3),IF(C169=КАЛЬКУЛЯТОР!$C$21,$I$10,$I$10-SUMIF($A$11:$A$370,"<="&$E$3,$H$11:$H$370)),0,0),"") ->  | G169: =IFERROR(-IPMT((C169-'КАЛЬКУЛЯТОР 1'!$P$1)/12,B169,IF(C169=$E$5,$E$2,$E$2-$E$3),IF(C169=$E$5,$I$10,$I$10-SUMIF($A$11:$A$370,"<="&$E$3,$H$11:$H$370)),0,0),"") ->  | P169: FALSE
A170: 160 | B170: 160 | D170: =IF(A170<=$E$2,-PMT(C170/12,IF(C170=КАЛЬКУЛЯТОР!$C$21,$E$2,$E$2-$E$3),IF(C170=КАЛЬКУЛЯТОР!$C$21,$I$10,$I$10-SUMIF($A$11:$A$370,"<="&$E$3,$H$11:$H$370)),0,0),"") ->  | G170: =IFERROR(-IPMT((C170-'КАЛЬКУЛЯТОР 1'!$P$1)/12,B170,IF(C170=$E$5,$E$2,$E$2-$E$3),IF(C170=$E$5,$I$10,$I$10-SUMIF($A$11:$A$370,"<="&$E$3,$H$11:$H$370)),0,0),"") ->  | P170: FALSE
A171: 161 | B171: 161 | D171: =IF(A171<=$E$2,-PMT(C171/12,IF(C171=КАЛЬКУЛЯТОР!$C$21,$E$2,$E$2-$E$3),IF(C171=КАЛЬКУЛЯТОР!$C$21,$I$10,$I$10-SUMIF($A$11:$A$370,"<="&$E$3,$H$11:$H$370)),0,0),"") ->  | G171: =IFERROR(-IPMT((C171-'КАЛЬКУЛЯТОР 1'!$P$1)/12,B171,IF(C171=$E$5,$E$2,$E$2-$E$3),IF(C171=$E$5,$I$10,$I$10-SUMIF($A$11:$A$370,"<="&$E$3,$H$11:$H$370)),0,0),"") ->  | P171: FALSE
A172: 162 | B172: 162 | D172: =IF(A172<=$E$2,-PMT(C172/12,IF(C172=КАЛЬКУЛЯТОР!$C$21,$E$2,$E$2-$E$3),IF(C172=КАЛЬКУЛЯТОР!$C$21,$I$10,$I$10-SUMIF($A$11:$A$370,"<="&$E$3,$H$11:$H$370)),0,0),"") ->  | G172: =IFERROR(-IPMT((C172-'КАЛЬКУЛЯТОР 1'!$P$1)/12,B172,IF(C172=$E$5,$E$2,$E$2-$E$3),IF(C172=$E$5,$I$10,$I$10-SUMIF($A$11:$A$370,"<="&$E$3,$H$11:$H$370)),0,0),"") ->  | P172: FALSE
A173: 163 | B173: 163 | D173: =IF(A173<=$E$2,-PMT(C173/12,IF(C173=КАЛЬКУЛЯТОР!$C$21,$E$2,$E$2-$E$3),IF(C173=КАЛЬКУЛЯТОР!$C$21,$I$10,$I$10-SUMIF($A$11:$A$370,"<="&$E$3,$H$11:$H$370)),0,0),"") ->  | G173: =IFERROR(-IPMT((C173-'КАЛЬКУЛЯТОР 1'!$P$1)/12,B173,IF(C173=$E$5,$E$2,$E$2-$E$3),IF(C173=$E$5,$I$10,$I$10-SUMIF($A$11:$A$370,"<="&$E$3,$H$11:$H$370)),0,0),"") ->  | P173: FALSE
A174: 164 | B174: 164 | D174: =IF(A174<=$E$2,-PMT(C174/12,IF(C174=КАЛЬКУЛЯТОР!$C$21,$E$2,$E$2-$E$3),IF(C174=КАЛЬКУЛЯТОР!$C$21,$I$10,$I$10-SUMIF($A$11:$A$370,"<="&$E$3,$H$11:$H$370)),0,0),"") ->  | G174: =IFERROR(-IPMT((C174-'КАЛЬКУЛЯТОР 1'!$P$1)/12,B174,IF(C174=$E$5,$E$2,$E$2-$E$3),IF(C174=$E$5,$I$10,$I$10-SUMIF($A$11:$A$370,"<="&$E$3,$H$11:$H$370)),0,0),"") ->  | P174: FALSE
A175: 165 | B175: 165 | D175: =IF(A175<=$E$2,-PMT(C175/12,IF(C175=КАЛЬКУЛЯТОР!$C$21,$E$2,$E$2-$E$3),IF(C175=КАЛЬКУЛЯТОР!$C$21,$I$10,$I$10-SUMIF($A$11:$A$370,"<="&$E$3,$H$11:$H$370)),0,0),"") ->  | G175: =IFERROR(-IPMT((C175-'КАЛЬКУЛЯТОР 1'!$P$1)/12,B175,IF(C175=$E$5,$E$2,$E$2-$E$3),IF(C175=$E$5,$I$10,$I$10-SUMIF($A$11:$A$370,"<="&$E$3,$H$11:$H$370)),0,0),"") ->  | P175: FALSE
A176: 166 | B176: 166 | D176: =IF(A176<=$E$2,-PMT(C176/12,IF(C176=КАЛЬКУЛЯТОР!$C$21,$E$2,$E$2-$E$3),IF(C176=КАЛЬКУЛЯТОР!$C$21,$I$10,$I$10-SUMIF($A$11:$A$370,"<="&$E$3,$H$11:$H$370)),0,0),"") ->  | G176: =IFERROR(-IPMT((C176-'КАЛЬКУЛЯТОР 1'!$P$1)/12,B176,IF(C176=$E$5,$E$2,$E$2-$E$3),IF(C176=$E$5,$I$10,$I$10-SUMIF($A$11:$A$370,"<="&$E$3,$H$11:$H$370)),0,0),"") ->  | P176: FALSE
A177: 167 | B177: 167 | D177: =IF(A177<=$E$2,-PMT(C177/12,IF(C177=КАЛЬКУЛЯТОР!$C$21,$E$2,$E$2-$E$3),IF(C177=КАЛЬКУЛЯТОР!$C$21,$I$10,$I$10-SUMIF($A$11:$A$370,"<="&$E$3,$H$11:$H$370)),0,0),"") ->  | G177: =IFERROR(-IPMT((C177-'КАЛЬКУЛЯТОР 1'!$P$1)/12,B177,IF(C177=$E$5,$E$2,$E$2-$E$3),IF(C177=$E$5,$I$10,$I$10-SUMIF($A$11:$A$370,"<="&$E$3,$H$11:$H$370)),0,0),"") ->  | P177: FALSE
A178: 168 | B178: 168 | D178: =IF(A178<=$E$2,-PMT(C178/12,IF(C178=КАЛЬКУЛЯТОР!$C$21,$E$2,$E$2-$E$3),IF(C178=КАЛЬКУЛЯТОР!$C$21,$I$10,$I$10-SUMIF($A$11:$A$370,"<="&$E$3,$H$11:$H$370)),0,0),"") ->  | G178: =IFERROR(-IPMT((C178-'КАЛЬКУЛЯТОР 1'!$P$1)/12,B178,IF(C178=$E$5,$E$2,$E$2-$E$3),IF(C178=$E$5,$I$10,$I$10-SUMIF($A$11:$A$370,"<="&$E$3,$H$11:$H$370)),0,0),"") ->  | P178: FALSE
A179: 169 | B179: 169 | D179: =IF(A179<=$E$2,-PMT(C179/12,IF(C179=КАЛЬКУЛЯТОР!$C$21,$E$2,$E$2-$E$3),IF(C179=КАЛЬКУЛЯТОР!$C$21,$I$10,$I$10-SUMIF($A$11:$A$370,"<="&$E$3,$H$11:$H$370)),0,0)+E179,"") ->  | E179: =IF($E$2>$A178,(I178+SUM(F179:F190))*($K$4+$K$5),0) -> 0.00 | G179: =IFERROR(-IPMT((C179-'КАЛЬКУЛЯТОР 1'!$P$1)/12,B179,IF(C179=$E$5,$E$2,$E$2-$E$3),IF(C179=$E$5,$I$10,$I$10-SUMIF($A$11:$A$370,"<="&$E$3,$H$11:$H$370)),0,0),"") ->  | K179: =PV($E$6/12,A179-1,0,-E179) -> 0.00 | P179: FALSE
A180: 170 | B180: 170 | D180: =IF(A180<=$E$2,-PMT(C180/12,IF(C180=КАЛЬКУЛЯТОР!$C$21,$E$2,$E$2-$E$3),IF(C180=КАЛЬКУЛЯТОР!$C$21,$I$10,$I$10-SUMIF($A$11:$A$370,"<="&$E$3,$H$11:$H$370)),0,0),"") ->  | G180: =IFERROR(-IPMT((C180-'КАЛЬКУЛЯТОР 1'!$P$1)/12,B180,IF(C180=$E$5,$E$2,$E$2-$E$3),IF(C180=$E$5,$I$10,$I$10-SUMIF($A$11:$A$370,"<="&$E$3,$H$11:$H$370)),0,0),"") ->  | P180: FALSE
A181: 171 | B181: 171 | D181: =IF(A181<=$E$2,-PMT(C181/12,IF(C181=КАЛЬКУЛЯТОР!$C$21,$E$2,$E$2-$E$3),IF(C181=КАЛЬКУЛЯТОР!$C$21,$I$10,$I$10-SUMIF($A$11:$A$370,"<="&$E$3,$H$11:$H$370)),0,0),"") ->  | G181: =IFERROR(-IPMT((C181-'КАЛЬКУЛЯТОР 1'!$P$1)/12,B181,IF(C181=$E$5,$E$2,$E$2-$E$3),IF(C181=$E$5,$I$10,$I$10-SUMIF($A$11:$A$370,"<="&$E$3,$H$11:$H$370)),0,0),"") ->  | P181: FALSE
A182: 172 | B182: 172 | D182: =IF(A182<=$E$2,-PMT(C182/12,IF(C182=КАЛЬКУЛЯТОР!$C$21,$E$2,$E$2-$E$3),IF(C182=КАЛЬКУЛЯТОР!$C$21,$I$10,$I$10-SUMIF($A$11:$A$370,"<="&$E$3,$H$11:$H$370)),0,0),"") ->  | G182: =IFERROR(-IPMT((C182-'КАЛЬКУЛЯТОР 1'!$P$1)/12,B182,IF(C182=$E$5,$E$2,$E$2-$E$3),IF(C182=$E$5,$I$10,$I$10-SUMIF($A$11:$A$370,"<="&$E$3,$H$11:$H$370)),0,0),"") ->  | P182: FALSE
A183: 173 | B183: 173 | D183: =IF(A183<=$E$2,-PMT(C183/12,IF(C183=КАЛЬКУЛЯТОР!$C$21,$E$2,$E$2-$E$3),IF(C183=КАЛЬКУЛЯТОР!$C$21,$I$10,$I$10-SUMIF($A$11:$A$370,"<="&$E$3,$H$11:$H$370)),0,0),"") ->  | G183: =IFERROR(-IPMT((C183-'КАЛЬКУЛЯТОР 1'!$P$1)/12,B183,IF(C183=$E$5,$E$2,$E$2-$E$3),IF(C183=$E$5,$I$10,$I$10-SUMIF($A$11:$A$370,"<="&$E$3,$H$11:$H$370)),0,0),"") ->  | P183: FALSE
A184: 174 | B184: 174 | D184: =IF(A184<=$E$2,-PMT(C184/12,IF(C184=КАЛЬКУЛЯТОР!$C$21,$E$2,$E$2-$E$3),IF(C184=КАЛЬКУЛЯТОР!$C$21,$I$10,$I$10-SUMIF($A$11:$A$370,"<="&$E$3,$H$11:$H$370)),0,0),"") ->  | G184: =IFERROR(-IPMT((C184-'КАЛЬКУЛЯТОР 1'!$P$1)/12,B184,IF(C184=$E$5,$E$2,$E$2-$E$3),IF(C184=$E$5,$I$10,$I$10-SUMIF($A$11:$A$370,"<="&$E$3,$H$11:$H$370)),0,0),"") ->  | P184: FALSE
A185: 175 | B185: 175 | D185: =IF(A185<=$E$2,-PMT(C185/12,IF(C185=КАЛЬКУЛЯТОР!$C$21,$E$2,$E$2-$E$3),IF(C185=КАЛЬКУЛЯТОР!$C$21,$I$10,$I$10-SUMIF($A$11:$A$370,"<="&$E$3,$H$11:$H$370)),0,0),"") ->  | G185: =IFERROR(-IPMT((C185-'КАЛЬКУЛЯТОР 1'!$P$1)/12,B185,IF(C185=$E$5,$E$2,$E$2-$E$3),IF(C185=$E$5,$I$10,$I$10-SUMIF($A$11:$A$370,"<="&$E$3,$H$11:$H$370)),0,0),"") ->  | P185: FALSE
A186: 176 | B186: 176 | D186: =IF(A186<=$E$2,-PMT(C186/12,IF(C186=КАЛЬКУЛЯТОР!$C$21,$E$2,$E$2-$E$3),IF(C186=КАЛЬКУЛЯТОР!$C$21,$I$10,$I$10-SUMIF($A$11:$A$370,"<="&$E$3,$H$11:$H$370)),0,0),"") ->  | G186: =IFERROR(-IPMT((C186-'КАЛЬКУЛЯТОР 1'!$P$1)/12,B186,IF(C186=$E$5,$E$2,$E$2-$E$3),IF(C186=$E$5,$I$10,$I$10-SUMIF($A$11:$A$370,"<="&$E$3,$H$11:$H$370)),0,0),"") ->  | P186: FALSE
A187: 177 | B187: 177 | D187: =IF(A187<=$E$2,-PMT(C187/12,IF(C187=КАЛЬКУЛЯТОР!$C$21,$E$2,$E$2-$E$3),IF(C187=КАЛЬКУЛЯТОР!$C$21,$I$10,$I$10-SUMIF($A$11:$A$370,"<="&$E$3,$H$11:$H$370)),0,0),"") ->  | G187: =IFERROR(-IPMT((C187-'КАЛЬКУЛЯТОР 1'!$P$1)/12,B187,IF(C187=$E$5,$E$2,$E$2-$E$3),IF(C187=$E$5,$I$10,$I$10-SUMIF($A$11:$A$370,"<="&$E$3,$H$11:$H$370)),0,0),"") ->  | P187: FALSE
A188: 178 | B188: 178 | D188: =IF(A188<=$E$2,-PMT(C188/12,IF(C188=КАЛЬКУЛЯТОР!$C$21,$E$2,$E$2-$E$3),IF(C188=КАЛЬКУЛЯТОР!$C$21,$I$10,$I$10-SUMIF($A$11:$A$370,"<="&$E$3,$H$11:$H$370)),0,0),"") ->  | G188: =IFERROR(-IPMT((C188-'КАЛЬКУЛЯТОР 1'!$P$1)/12,B188,IF(C188=$E$5,$E$2,$E$2-$E$3),IF(C188=$E$5,$I$10,$I$10-SUMIF($A$11:$A$370,"<="&$E$3,$H$11:$H$370)),0,0),"") ->  | P188: FALSE
A189: 179 | B189: 179 | D189: =IF(A189<=$E$2,-PMT(C189/12,IF(C189=КАЛЬКУЛЯТОР!$C$21,$E$2,$E$2-$E$3),IF(C189=КАЛЬКУЛЯТОР!$C$21,$I$10,$I$10-SUMIF($A$11:$A$370,"<="&$E$3,$H$11:$H$370)),0,0),"") ->  | G189: =IFERROR(-IPMT((C189-'КАЛЬКУЛЯТОР 1'!$P$1)/12,B189,IF(C189=$E$5,$E$2,$E$2-$E$3),IF(C189=$E$5,$I$10,$I$10-SUMIF($A$11:$A$370,"<="&$E$3,$H$11:$H$370)),0,0),"") ->  | P189: FALSE
A190: 180 | B190: 180 | D190: =IF(A190<=$E$2,-PMT(C190/12,IF(C190=КАЛЬКУЛЯТОР!$C$21,$E$2,$E$2-$E$3),IF(C190=КАЛЬКУЛЯТОР!$C$21,$I$10,$I$10-SUMIF($A$11:$A$370,"<="&$E$3,$H$11:$H$370)),0,0),"") ->  | G190: =IFERROR(-IPMT((C190-'КАЛЬКУЛЯТОР 1'!$P$1)/12,B190,IF(C190=$E$5,$E$2,$E$2-$E$3),IF(C190=$E$5,$I$10,$I$10-SUMIF($A$11:$A$370,"<="&$E$3,$H$11:$H$370)),0,0),"") ->  | P190: FALSE
A191: 181 | B191: 181 | D191: =IF(A191<=$E$2,-PMT(C191/12,IF(C191=КАЛЬКУЛЯТОР!$C$21,$E$2,$E$2-$E$3),IF(C191=КАЛЬКУЛЯТОР!$C$21,$I$10,$I$10-SUMIF($A$11:$A$370,"<="&$E$3,$H$11:$H$370)),0,0)+E191,"") ->  | E191: =IF($E$2>$A190,(I190+SUM(F191:F202))*($K$4+$K$5),0) -> 0.00 | G191: =IFERROR(-IPMT((C191-'КАЛЬКУЛЯТОР 1'!$P$1)/12,B191,IF(C191=$E$5,$E$2,$E$2-$E$3),IF(C191=$E$5,$I$10,$I$10-SUMIF($A$11:$A$370,"<="&$E$3,$H$11:$H$370)),0,0),"") ->  | K191: =PV($E$6/12,A191-1,0,-E191) -> 0.00 | P191: FALSE
A192: 182 | B192: 182 | D192: =IF(A192<=$E$2,-PMT(C192/12,IF(C192=КАЛЬКУЛЯТОР!$C$21,$E$2,$E$2-$E$3),IF(C192=КАЛЬКУЛЯТОР!$C$21,$I$10,$I$10-SUMIF($A$11:$A$370,"<="&$E$3,$H$11:$H$370)),0,0),"") ->  | G192: =IFERROR(-IPMT((C192-'КАЛЬКУЛЯТОР 1'!$P$1)/12,B192,IF(C192=$E$5,$E$2,$E$2-$E$3),IF(C192=$E$5,$I$10,$I$10-SUMIF($A$11:$A$370,"<="&$E$3,$H$11:$H$370)),0,0),"") ->  | P192: FALSE
A193: 183 | B193: 183 | D193: =IF(A193<=$E$2,-PMT(C193/12,IF(C193=КАЛЬКУЛЯТОР!$C$21,$E$2,$E$2-$E$3),IF(C193=КАЛЬКУЛЯТОР!$C$21,$I$10,$I$10-SUMIF($A$11:$A$370,"<="&$E$3,$H$11:$H$370)),0,0),"") ->  | G193: =IFERROR(-IPMT((C193-'КАЛЬКУЛЯТОР 1'!$P$1)/12,B193,IF(C193=$E$5,$E$2,$E$2-$E$3),IF(C193=$E$5,$I$10,$I$10-SUMIF($A$11:$A$370,"<="&$E$3,$H$11:$H$370)),0,0),"") ->  | P193: FALSE
A194: 184 | B194: 184 | D194: =IF(A194<=$E$2,-PMT(C194/12,IF(C194=КАЛЬКУЛЯТОР!$C$21,$E$2,$E$2-$E$3),IF(C194=КАЛЬКУЛЯТОР!$C$21,$I$10,$I$10-SUMIF($A$11:$A$370,"<="&$E$3,$H$11:$H$370)),0,0),"") ->  | G194: =IFERROR(-IPMT((C194-'КАЛЬКУЛЯТОР 1'!$P$1)/12,B194,IF(C194=$E$5,$E$2,$E$2-$E$3),IF(C194=$E$5,$I$10,$I$10-SUMIF($A$11:$A$370,"<="&$E$3,$H$11:$H$370)),0,0),"") ->  | P194: FALSE
A195: 185 | B195: 185 | D195: =IF(A195<=$E$2,-PMT(C195/12,IF(C195=КАЛЬКУЛЯТОР!$C$21,$E$2,$E$2-$E$3),IF(C195=КАЛЬКУЛЯТОР!$C$21,$I$10,$I$10-SUMIF($A$11:$A$370,"<="&$E$3,$H$11:$H$370)),0,0),"") ->  | G195: =IFERROR(-IPMT((C195-'КАЛЬКУЛЯТОР 1'!$P$1)/12,B195,IF(C195=$E$5,$E$2,$E$2-$E$3),IF(C195=$E$5,$I$10,$I$10-SUMIF($A$11:$A$370,"<="&$E$3,$H$11:$H$370)),0,0),"") ->  | P195: FALSE
A196: 186 | B196: 186 | D196: =IF(A196<=$E$2,-PMT(C196/12,IF(C196=КАЛЬКУЛЯТОР!$C$21,$E$2,$E$2-$E$3),IF(C196=КАЛЬКУЛЯТОР!$C$21,$I$10,$I$10-SUMIF($A$11:$A$370,"<="&$E$3,$H$11:$H$370)),0,0),"") ->  | G196: =IFERROR(-IPMT((C196-'КАЛЬКУЛЯТОР 1'!$P$1)/12,B196,IF(C196=$E$5,$E$2,$E$2-$E$3),IF(C196=$E$5,$I$10,$I$10-SUMIF($A$11:$A$370,"<="&$E$3,$H$11:$H$370)),0,0),"") ->  | P196: FALSE
A197: 187 | B197: 187 | D197: =IF(A197<=$E$2,-PMT(C197/12,IF(C197=КАЛЬКУЛЯТОР!$C$21,$E$2,$E$2-$E$3),IF(C197=КАЛЬКУЛЯТОР!$C$21,$I$10,$I$10-SUMIF($A$11:$A$370,"<="&$E$3,$H$11:$H$370)),0,0),"") ->  | G197: =IFERROR(-IPMT((C197-'КАЛЬКУЛЯТОР 1'!$P$1)/12,B197,IF(C197=$E$5,$E$2,$E$2-$E$3),IF(C197=$E$5,$I$10,$I$10-SUMIF($A$11:$A$370,"<="&$E$3,$H$11:$H$370)),0,0),"") ->  | P197: FALSE
A198: 188 | B198: 188 | D198: =IF(A198<=$E$2,-PMT(C198/12,IF(C198=КАЛЬКУЛЯТОР!$C$21,$E$2,$E$2-$E$3),IF(C198=КАЛЬКУЛЯТОР!$C$21,$I$10,$I$10-SUMIF($A$11:$A$370,"<="&$E$3,$H$11:$H$370)),0,0),"") ->  | G198: =IFERROR(-IPMT((C198-'КАЛЬКУЛЯТОР 1'!$P$1)/12,B198,IF(C198=$E$5,$E$2,$E$2-$E$3),IF(C198=$E$5,$I$10,$I$10-SUMIF($A$11:$A$370,"<="&$E$3,$H$11:$H$370)),0,0),"") ->  | P198: FALSE
A199: 189 | B199: 189 | D199: =IF(A199<=$E$2,-PMT(C199/12,IF(C199=КАЛЬКУЛЯТОР!$C$21,$E$2,$E$2-$E$3),IF(C199=КАЛЬКУЛЯТОР!$C$21,$I$10,$I$10-SUMIF($A$11:$A$370,"<="&$E$3,$H$11:$H$370)),0,0),"") ->  | G199: =IFERROR(-IPMT((C199-'КАЛЬКУЛЯТОР 1'!$P$1)/12,B199,IF(C199=$E$5,$E$2,$E$2-$E$3),IF(C199=$E$5,$I$10,$I$10-SUMIF($A$11:$A$370,"<="&$E$3,$H$11:$H$370)),0,0),"") ->  | P199: FALSE
A200: 190 | B200: 190 | D200: =IF(A200<=$E$2,-PMT(C200/12,IF(C200=КАЛЬКУЛЯТОР!$C$21,$E$2,$E$2-$E$3),IF(C200=КАЛЬКУЛЯТОР!$C$21,$I$10,$I$10-SUMIF($A$11:$A$370,"<="&$E$3,$H$11:$H$370)),0,0),"") ->  | G200: =IFERROR(-IPMT((C200-'КАЛЬКУЛЯТОР 1'!$P$1)/12,B200,IF(C200=$E$5,$E$2,$E$2-$E$3),IF(C200=$E$5,$I$10,$I$10-SUMIF($A$11:$A$370,"<="&$E$3,$H$11:$H$370)),0,0),"") ->  | P200: FALSE
... 170 more rows

Sheet КАЛЬКУЛЯТОР 2 (hidden)
A1: =КАЛЬКУЛЯТОР!A9 -> Сумма кредита (основной долг), руб.: | E1: =КАЛЬКУЛЯТОР!$C$9 -> 0 | H1: 1. КОМИССИЯ ЗА ОТКР. АККРЕДИТИВА | K1: ='КАЛЬКУЛЯТОР 1'!$K$1 -> 7,000.00 ₽
A2: Срок кредита по договору, в мес.: | E2: =КАЛЬКУЛЯТОР!$C$12 -> 0 | H2: 2. КОМИССИЯ ЗА ЭРС | K2: ='КАЛЬКУЛЯТОР 1'!$K$2 -> 8,300.00 ₽
A3: Срок льготного периода, в мес.: | E3: =IF(КАЛЬКУЛЯТОР!$C$19="Весь срок кредитования",КАЛЬКУЛЯТОР!$C$12,КАЛЬКУЛЯТОР!$C$20) -> 0 | H3: 3. ПЛАТА ЗА ОЦЕНКУ НЕДВ.ИМУЩЕСТВА | K3: ='КАЛЬКУЛЯТОР 1'!$K$3 -> 3,000.00 ₽
A4: =КАЛЬКУЛЯТОР!$A$17 -> ИТОГО размер процентной ставки по комбо-ипотеке, % годовых: | E4: =КАЛЬКУЛЯТОР!$C$24 ->  | H4: 4. СТРАХОВАНИЕ ЖИЗНИ | K4: ='КАЛЬКУЛЯТОР 1'!$K$4 -> 0.60%
A5: Инфляция IP, % годовых | E5: =КАЛЬКУЛЯТОР!$C$25 -> 9.00% | H5: 5. СТРАХОВАНИЕ ИМУЩЕСТВА | K5: ='КАЛЬКУЛЯТОР 1'!$K$5 -> 0.10%
A6: Доходность операций БФР, % годовых | E6: 16.33%
A7: Доход Банка от реинвестирования субсидии, руб./год | E7: =(КАЛЬКУЛЯТОР!$C$9*КАЛЬКУЛЯТОР!$C$26)*$E$6*(100%-КАЛЬКУЛЯТОР!$C$25) -> 
J8: С УЧЕТОМ ВЛИЯНИЯ ИНФЛЯЦИИ
A9: ИТОГО: | D9: =SUMIF(A12:A371,"<="&E2,D12:D371) -> 0.00 | F9: =SUMIF($A$12:$A$371,"<="&$E$2,F12:F371) -> 0.00 | G9: =SUMIF($A$12:$A$371,"<="&$E$2,G12:G371) -> 0.00 | H9: =SUMIF(A12:A371,"<="&E2,H12:H371) -> 0.00 | J9: =SUMIF(A12:A371,"<="&E2,J12:J371) -> 0.00 | K9: =SUMIF(A12:A371,"<="&E2,K11:K371) -> 0.00 | L9: =SUMIF($A$12:$A$371,"<="&$E$2,L12:L371) -> 0.00 | M9: =SUMIF($A$12:$A$371,"<="&$E$2,M12:M371) -> 0.00 | N9: =SUMIF(A12:A371,"<="&E2,N12:N371) -> 0.00
A10: Месяцы платежа | B10: Период платежа | C10: Процентная ставка | D10: Ежемесячный платеж | E10: Доп. платежи | F10: Процентные платежи | G10: ЧПД Банка | H10: Основной долг | I10: Остаток ссудной задолженности | J10: Ежемесячный платеж | K10: Доп. платежи | L10: Процентные платежи | M10: ЧПД Банка | N10: Основной долг | O10: Остаток ссудной задолженности
A11: 0 | D11: =-КАЛЬКУЛЯТОР!C9 -> 0.00 | I11: =$E$1 -> 0.00 | J11: =-КАЛЬКУЛЯТОР!C9 -> 0.00 | O11: =I11 -> 0.00
A12: 1 | B12: 1 | C12: =IF(A12<=$E$3,КАЛЬКУЛЯТОР!$C$21,IF(AND(A12>$E$3,A12<=$E$2),$E$4,"")) ->  | D12: =IF(A12<=$E$2,-PMT(C12/12,IF(C12=КАЛЬКУЛЯТОР!$C$21,$E$2,$E$2-$E$3),IF(C12=КАЛЬКУЛЯТОР!$C$21,$I$11,$I$11-SUMIF($A$12:$A$371,"<="&$E$3,$H$12:$H$371)),0,0)+E12,"") ->  | E12: =K1+K2+K3+((I11+SUM(F12:F23))*($K$4+$K$5)) -> 18,300.00 | F12: =IFERROR((-IPMT(C12/12,B12,IF(C12=КАЛЬКУЛЯТОР!$C$21,$E$2,$E$2-$E$3),IF(C12=КАЛЬКУЛЯТОР!$C$21,$I$11,$I$11-SUMIF($A$12:$A$371,"<="&$E$3,$H$12:$H$371)),0,0)),"") ->  | G12: =IFERROR((-IPMT((C12-'КАЛЬКУЛЯТОР 1'!$P$1)/12,B12,IF(C12=КАЛЬКУЛЯТОР!$C$21,$E$2,$E$2-$E$3),IF(C12=КАЛЬКУЛЯТОР!$C$21,$I$11,$I$11-SUMIF($A$12:$A$371,"<="&$E$3,$H$12:$H$371)),0,0)),"") ->  | H12: =IFERROR((-PPMT(C12/12,B12,IF(C12=КАЛЬКУЛЯТОР!$C$21,$E$2,$E$2-$E$3),IF(C12=КАЛЬКУЛЯТОР!$C$21,$I$11,$I$11-SUMIF($A$12:$A$371,"<="&$E$3,$H$12:$H$371)),0,0)),"") ->  | I12: =IFERROR(I11-H12,"") ->  | J12: =PV($E$5/12,A12-1,0,-D12) ->  | K12: =PV($E$5/12,A12-1,0,-E12) -> 18,300.00 | L12: =PV($E$5/12,A12-1,0,-F12) ->  | M12: =PV($E$5/12,A12-1,0,-G12) ->  | N12: =PV($E$5/12,A12-1,0,-H12) ->  | O12: =O11-N12 ->  | P12: =AND(A12<=$E$3) -> FALSE
A13: 2 | B13: =ROUND(IF(P13=$P$12,B12+1,A13-$E$3),0) -> 2 | C13: =IF(A13<=$E$3,КАЛЬКУЛЯТОР!$C$21,IF(AND(A13>$E$3,A13<=$E$2),$E$4,"")) ->  | D13: =IF(A13<=$E$2,-PMT(C13/12,IF(C13=КАЛЬКУЛЯТОР!$C$21,$E$2,$E$2-$E$3),IF(C13=КАЛЬКУЛЯТОР!$C$21,$I$11,$I$11-SUMIF($A$12:$A$371,"<="&$E$3,$H$12:$H$371)),0,0),"") ->  | F13: =IFERROR((-IPMT(C13/12,B13,IF(C13=КАЛЬКУЛЯТОР!$C$21,$E$2,$E$2-$E$3),IF(C13=КАЛЬКУЛЯТОР!$C$21,$I$11,$I$11-SUMIF($A$12:$A$371,"<="&$E$3,$H$12:$H$371)),0,0)),"") ->  | G13: =IFERROR((-IPMT((C13-'КАЛЬКУЛЯТОР 1'!$P$1)/12,B13,IF(C13=КАЛЬКУЛЯТОР!$C$21,$E$2,$E$2-$E$3),IF(C13=КАЛЬКУЛЯТОР!$C$21,$I$11,$I$11-SUMIF($A$12:$A$371,"<="&$E$3,$H$12:$H$371)),0,0)),"") ->  | H13: =IFERROR((-PPMT(C13/12,B13,IF(C13=КАЛЬКУЛЯТОР!$C$21,$E$2,$E$2-$E$3),IF(C13=КАЛЬКУЛЯТОР!$C$21,$I$11,$I$11-SUMIF($A$12:$A$371,"<="&$E$3,$H$12:$H$371)),0,0)),"") ->  | J13: =PV($E$5/12,A13-1,0,-D13) ->  | L13: =PV($E$5/12,A13-1,0,-F13) ->  | M13: =PV($E$5/12,A13-1,0,-G13) ->  | P13: FALSE
A14: 3 | B14: 3 | C14: =IF(A14<=$E$3,КАЛЬКУЛЯТОР!$C$21,IF(AND(A14>$E$3,A14<=$E$2),$E$4,"")) ->  | D14: =IF(A14<=$E$2,-PMT(C14/12,IF(C14=КАЛЬКУЛЯТОР!$C$21,$E$2,$E$2-$E$3),IF(C14=КАЛЬКУЛЯТОР!$C$21,$I$11,$I$11-SUMIF($A$12:$A$371,"<="&$E$3,$H$12:$H$371)),0,0),"") ->  | F14: =IFERROR((-IPMT(C14/12,B14,IF(C14=КАЛЬКУЛЯТОР!$C$21,$E$2,$E$2-$E$3),IF(C14=КАЛЬКУЛЯТОР!$C$21,$I$11,$I$11-SUMIF($A$12:$A$371,"<="&$E$3,$H$12:$H$371)),0,0)),"") ->  | G14: =IFERROR((-IPMT((C14-'КАЛЬКУЛЯТОР 1'!$P$1)/12,B14,IF(C14=КАЛЬКУЛЯТОР!$C$21,$E$2,$E$2-$E$3),IF(C14=КАЛЬКУЛЯТОР!$C$21,$I$11,$I$11-SUMIF($A$12:$A$371,"<="&$E$3,$H$12:$H$371)),0,0)),"") ->  | H14: =IFERROR((-PPMT(C14/12,B14,IF(C14=КАЛЬКУЛЯТОР!$C$21,$E$2,$E$2-$E$3),IF(C14=КАЛЬКУЛЯТОР!$C$21,$I$11,$I$11-SUMIF($A$12:$A$371,"<="&$E$3,$H$12:$H$371)),0,0)),"") ->  | P14: FALSE
A15: 4 | B15: 4 | C15: =IF(A15<=$E$3,КАЛЬКУЛЯТОР!$C$21,IF(AND(A15>$E$3,A15<=$E$2),$E$4,"")) ->  | D15: =IF(A15<=$E$2,-PMT(C15/12,IF(C15=КАЛЬКУЛЯТОР!$C$21,$E$2,$E$2-$E$3),IF(C15=КАЛЬКУЛЯТОР!$C$21,$I$11,$I$11-SUMIF($A$12:$A$371,"<="&$E$3,$H$12:$H$371)),0,0),"") ->  | F15: =IFERROR((-IPMT(C15/12,B15,IF(C15=КАЛЬКУЛЯТОР!$C$21,$E$2,$E$2-$E$3),IF(C15=КАЛЬКУЛЯТОР!$C$21,$I$11,$I$11-SUMIF($A$12:$A$371,"<="&$E$3,$H$12:$H$371)),0,0)),"") ->  | G15: =IFERROR((-IPMT((C15-'КАЛЬКУЛЯТОР 1'!$P$1)/12,B15,IF(C15=КАЛЬКУЛЯТОР!$C$21,$E$2,$E$2-$E$3),IF(C15=КАЛЬКУЛЯТОР!$C$21,$I$11,$I$11-SUMIF($A$12:$A$371,"<="&$E$3,$H$12:$H$371)),0,0)),"") ->  | H15: =IFERROR((-PPMT(C15/12,B15,IF(C15=КАЛЬКУЛЯТОР!$C$21,$E$2,$E$2-$E$3),IF(C15=КАЛЬКУЛЯТОР!$C$21,$I$11,$I$11-SUMIF($A$12:$A$371,"<="&$E$3,$H$12:$H$371)),0,0)),"") ->  | P15: FALSE
A16: 5 | B16: 5 | C16: =IF(A16<=$E$3,КАЛЬКУЛЯТОР!$C$21,IF(AND(A16>$E$3,A16<=$E$2),$E$4,"")) ->  | D16: =IF(A16<=$E$2,-PMT(C16/12,IF(C16=КАЛЬКУЛЯТОР!$C$21,$E$2,$E$2-$E$3),IF(C16=КАЛЬКУЛЯТОР!$C$21,$I$11,$I$11-SUMIF($A$12:$A$371,"<="&$E$3,$H$12:$H$371)),0,0),"") ->  | F16: =IFERROR((-IPMT(C16/12,B16,IF(C16=КАЛЬКУЛЯТОР!$C$21,$E$2,$E$2-$E$3),IF(C16=КАЛЬКУЛЯТОР!$C$21,$I$11,$I$11-SUMIF($A$12:$A$371,"<="&$E$3,$H$12:$H$371)),0,0)),"") ->  | G16: =IFERROR((-IPMT((C16-'КАЛЬКУЛЯТОР 1'!$P$1)/12,B16,IF(C16=КАЛЬКУЛЯТОР!$C$21,$E$2,$E$2-$E$3),IF(C16=КАЛЬКУЛЯТОР!$C$21,$I$11,$I$11-SUMIF($A$12:$A$371,"<="&$E$3,$H$12:$H$371)),0,0)),"") ->  | H16: =IFERROR((-PPMT(C16/12,B16,IF(C16=КАЛЬКУЛЯТОР!$C$21,$E$2,$E$2-$E$3),IF(C16=КАЛЬКУЛЯТОР!$C$21,$I$11,$I$11-SUMIF($A$12:$A$371,"<="&$E$3,$H$12:$H$371)),0,0)),"") ->  | P16: FALSE
A17: 6 | B17: 6 | C17: =IF(A17<=$E$3,КАЛЬКУЛЯТОР!$C$21,IF(AND(A17>$E$3,A17<=$E$2),$E$4,"")) ->  | D17: =IF(A17<=$E$2,-PMT(C17/12,IF(C17=КАЛЬКУЛЯТОР!$C$21,$E$2,$E$2-$E$3),IF(C17=КАЛЬКУЛЯТОР!$C$21,$I$11,$I$11-SUMIF($A$12:$A$371,"<="&$E$3,$H$12:$H$371)),0,0),"") ->  | F17: =IFERROR((-IPMT(C17/12,B17,IF(C17=КАЛЬКУЛЯТОР!$C$21,$E$2,$E$2-$E$3),IF(C17=КАЛЬКУЛЯТОР!$C$21,$I$11,$I$11-SUMIF($A$12:$A$371,"<="&$E$3,$H$12:$H$371)),0,0)),"") ->  | G17: =IFERROR((-IPMT((C17-'КАЛЬКУЛЯТОР 1'!$P$1)/12,B17,IF(C17=КАЛЬКУЛЯТОР!$C$21,$E$2,$E$2-$E$3),IF(C17=КАЛЬКУЛЯТОР!$C$21,$I$11,$I$11-SUMIF($A$12:$A$371,"<="&$E$3,$H$12:$H$371)),0,0)),"") ->  | H17: =IFERROR((-PPMT(C17/12,B17,IF(C17=КАЛЬКУЛЯТОР!$C$21,$E$2,$E$2-$E$3),IF(C17=КАЛЬКУЛЯТОР!$C$21,$I$11,$I$11-SUMIF($A$12:$A$371,"<="&$E$3,$H$12:$H$371)),0,0)),"") ->  | P17: FALSE
A18: 7 | B18: 7 | C18: =IF(A18<=$E$3,КАЛЬКУЛЯТОР!$C$21,IF(AND(A18>$E$3,A18<=$E$2),$E$4,"")) ->  | D18: =IF(A18<=$E$2,-PMT(C18/12,IF(C18=КАЛЬКУЛЯТОР!$C$21,$E$2,$E$2-$E$3),IF(C18=КАЛЬКУЛЯТОР!$C$21,$I$11,$I$11-SUMIF($A$12:$A$371,"<="&$E$3,$H$12:$H$371)),0,0),"") ->  | F18: =IFERROR((-IPMT(C18/12,B18,IF(C18=КАЛЬКУЛЯТОР!$C$21,$E$2,$E$2-$E$3),IF(C18=КАЛЬКУЛЯТОР!$C$21,$I$11,$I$11-SUMIF($A$12:$A$371,"<="&$E$3,$H$12:$H$371)),0,0)),"") ->  | G18: =IFERROR((-IPMT((C18-'КАЛЬКУЛЯТОР 1'!$P$1)/12,B18,IF(C18=КАЛЬКУЛЯТОР!$C$21,$E$2,$E$2-$E$3),IF(C18=КАЛЬКУЛЯТОР!$C$21,$I$11,$I$11-SUMIF($A$12:$A$371,"<="&$E$3,$H$12:$H$371)),0,0)),"") ->  | H18: =IFERROR((-PPMT(C18/12,B18,IF(C18=КАЛЬКУЛЯТОР!$C$21,$E$2,$E$2-$E$3),IF(C18=КАЛЬКУЛЯТОР!$C$21,$I$11,$I$11-SUMIF($A$12:$A$371,"<="&$E$3,$H$12:$H$371)),0,0)),"") ->  | P18: FALSE
A19: 8 | B19: 8 | C19: =IF(A19<=$E$3,КАЛЬКУЛЯТОР!$C$21,IF(AND(A19>$E$3,A19<=$E$2),$E$4,"")) ->  | D19: =IF(A19<=$E$2,-PMT(C19/12,IF(C19=КАЛЬКУЛЯТОР!$C$21,$E$2,$E$2-$E$3),IF(C19=КАЛЬКУЛЯТОР!$C$21,$I$11,$I$11-SUMIF($A$12:$A$371,"<="&$E$3,$H$12:$H$371)),0,0),"") ->  | F19: =IFERROR((-IPMT(C19/12,B19,IF(C19=КАЛЬКУЛЯТОР!$C$21,$E$2,$E$2-$E$3),IF(C19=КАЛЬКУЛЯТОР!$C$21,$I$11,$I$11-SUMIF($A$12:$A$371,"<="&$E$3,$H$12:$H$371)),0,0)),"") ->  | G19: =IFERROR((-IPMT((C19-'КАЛЬКУЛЯТОР 1'!$P$1)/12,B19,IF(C19=КАЛЬКУЛЯТОР!$C$21,$E$2,$E$2-$E$3),IF(C19=КАЛЬКУЛЯТОР!$C$21,$I$11,$I$11-SUMIF($A$12:$A$371,"<="&$E$3,$H$12:$H$371)),0,0)),"") ->  | H19: =IFERROR((-PPMT(C19/12,B19,IF(C19=КАЛЬКУЛЯТОР!$C$21,$E$2,$E$2-$E$3),IF(C19=КАЛЬКУЛЯТОР!$C$21,$I$11,$I$11-SUMIF($A$12:$A$371,"<="&$E$3,$H$12:$H$371)),0,0)),"") ->  | P19: FALSE
A20: 9 | B20: 9 | C20: =IF(A20<=$E$3,КАЛЬКУЛЯТОР!$C$21,IF(AND(A20>$E$3,A20<=$E$2),$E$4,"")) ->  | D20: =IF(A20<=$E$2,-PMT(C20/12,IF(C20=КАЛЬКУЛЯТОР!$C$21,$E$2,$E$2-$E$3),IF(C20=КАЛЬКУЛЯТОР!$C$21,$I$11,$I$11-SUMIF($A$12:$A$371,"<="&$E$3,$H$12:$H$371)),0,0),"") ->  | F20: =IFERROR((-IPMT(C20/12,B20,IF(C20=КАЛЬКУЛЯТОР!$C$21,$E$2,$E$2-$E$3),IF(C20=КАЛЬКУЛЯТОР!$C$21,$I$11,$I$11-SUMIF($A$12:$A$371,"<="&$E$3,$H$12:$H$371)),0,0)),"") ->  | G20: =IFERROR((-IPMT((C20-'КАЛЬКУЛЯТОР 1'!$P$1)/12,B20,IF(C20=КАЛЬКУЛЯТОР!$C$21,$E$2,$E$2-$E$3),IF(C20=КАЛЬКУЛЯТОР!$C$21,$I$11,$I$11-SUMIF($A$12:$A$371,"<="&$E$3,$H$12:$H$371)),0,0)),"") ->  | H20: =IFERROR((-PPMT(C20/12,B20,IF(C20=КАЛЬКУЛЯТОР!$C$21,$E$2,$E$2-$E$3),IF(C20=КАЛЬКУЛЯТОР!$C$21,$I$11,$I$11-SUMIF($A$12:$A$371,"<="&$E$3,$H$12:$H$371)),0,0)),"") ->  | P20: FALSE
A21: 10 | B21: 10 | C21: =IF(A21<=$E$3,КАЛЬКУЛЯТОР!$C$21,IF(AND(A21>$E$3,A21<=$E$2),$E$4,"")) ->  | D21: =IF(A21<=$E$2,-PMT(C21/12,IF(C21=КАЛЬКУЛЯТОР!$C$21,$E$2,$E$2-$E$3),IF(C21=КАЛЬКУЛЯТОР!$C$21,$I$11,$I$11-SUMIF($A$12:$A$371,"<="&$E$3,$H$12:$H$371)),0,0),"") ->  | F21: =IFERROR((-IPMT(C21/12,B21,IF(C21=КАЛЬКУЛЯТОР!$C$21,$E$2,$E$2-$E$3),IF(C21=КАЛЬКУЛЯТОР!$C$21,$I$11,$I$11-SUMIF($A$12:$A$371,"<="&$E$3,$H$12:$H$371)),0,0)),"") ->  | G21: =IFERROR((-IPMT((C21-'КАЛЬКУЛЯТОР 1'!$P$1)/12,B21,IF(C21=КАЛЬКУЛЯТОР!$C$21,$E$2,$E$2-$E$3),IF(C21=КАЛЬКУЛЯТОР!$C$21,$I$11,$I$11-SUMIF($A$12:$A$371,"<="&$E$3,$H$12:$H$371)),0,0)),"") ->  | H21: =IFERROR((-PPMT(C21/12,B21,IF(C21=КАЛЬКУЛЯТОР!$C$21,$E$2,$E$2-$E$3),IF(C21=КАЛЬКУЛЯТОР!$C$21,$I$11,$I$11-SUMIF($A$12:$A$371,"<="&$E$3,$H$12:$H$371)),0,0)),"") ->  | P21: FALSE
A22: 11 | B22: 11 | C22: =IF(A22<=$E$3,КАЛЬКУЛЯТОР!$C$21,IF(AND(A22>$E$3,A22<=$E$2),$E$4,"")) ->  | D22: =IF(A22<=$E$2,-PMT(C22/12,IF(C22=КАЛЬКУЛЯТОР!$C$21,$E$2,$E$2-$E$3),IF(C22=КАЛЬКУЛЯТОР!$C$21,$I$11,$I$11-SUMIF($A$12:$A$371,"<="&$E$3,$H$12:$H$371)),0,0),"") ->  | F22: =IFERROR((-IPMT(C22/12,B22,IF(C22=КАЛЬКУЛЯТОР!$C$21,$E$2,$E$2-$E$3),IF(C22=КАЛЬКУЛЯТОР!$C$21,$I$11,$I$11-SUMIF($A$12:$A$371,"<="&$E$3,$H$12:$H$371)),0,0)),"") ->  | G22: =IFERROR((-IPMT((C22-'КАЛЬКУЛЯТОР 1'!$P$1)/12,B22,IF(C22=КАЛЬКУЛЯТОР!$C$21,$E$2,$E$2-$E$3),IF(C22=КАЛЬКУЛЯТОР!$C$21,$I$11,$I$11-SUMIF($A$12:$A$371,"<="&$E$3,$H$12:$H$371)),0,0)),"") ->  | H22: =IFERROR((-PPMT(C22/12,B22,IF(C22=КАЛЬКУЛЯТОР!$C$21,$E$2,$E$2-$E$3),IF(C22=КАЛЬКУЛЯТОР!$C$21,$I$11,$I$11-SUMIF($A$12:$A$371,"<="&$E$3,$H$12:$H$371)),0,0)),"") ->  | P22: FALSE
A23: 12 | B23: 12 | C23: =IF(A23<=$E$3,КАЛЬКУЛЯТОР!$C$21,IF(AND(A23>$E$3,A23<=$E$2),$E$4,"")) ->  | D23: =IF(A23<=$E$2,-PMT(C23/12,IF(C23=КАЛЬКУЛЯТОР!$C$21,$E$2,$E$2-$E$3),IF(C23=КАЛЬКУЛЯТОР!$C$21,$I$11,$I$11-SUMIF($A$12:$A$371,"<="&$E$3,$H$12:$H$371)),0,0),"") ->  | F23: =IFERROR((-IPMT(C23/12,B23,IF(C23=КАЛЬКУЛЯТОР!$C$21,$E$2,$E$2-$E$3),IF(C23=КАЛЬКУЛЯТОР!$C$21,$I$11,$I$11-SUMIF($A$12:$A$371,"<="&$E$3,$H$12:$H$371)),0,0)),"") ->  | G23: =IFERROR((-IPMT((C23-'КАЛЬКУЛЯТОР 1'!$P$1)/12,B23,IF(C23=КАЛЬКУЛЯТОР!$C$21,$E$2,$E$2-$E$3),IF(C23=КАЛЬКУЛЯТОР!$C$21,$I$11,$I$11-SUMIF($A$12:$A$371,"<="&$E$3,$H$12:$H$371)),0,0)),"") ->  | H23: =IFERROR((-PPMT(C23/12,B23,IF(C23=КАЛЬКУЛЯТОР!$C$21,$E$2,$E$2-$E$3),IF(C23=КАЛЬКУЛЯТОР!$C$21,$I$11,$I$11-SUMIF($A$12:$A$371,"<="&$E$3,$H$12:$H$371)),0,0)),"") ->  | P23: FALSE
A24: 13 | B24: 13 | C24: =IF(A24<=$E$3,КАЛЬКУЛЯТОР!$C$21,IF(AND(A24>$E$3,A24<=$E$2),$E$4,"")) ->  | D24: =IF(A24<=$E$2,-PMT(C24/12,IF(C24=КАЛЬКУЛЯТОР!$C$21,$E$2,$E$2-$E$3),IF(C24=КАЛЬКУЛЯТОР!$C$21,$I$11,$I$11-SUMIF($A$12:$A$371,"<="&$E$3,$H$12:$H$371)),0,0)+E24,"") ->  | E24: =IF($E$2>$A23,(I23+SUM(F24:F35))*($K$4+$K$5),0) -> 0.00 | F24: =IFERROR((-IPMT(C24/12,B24,IF(C24=КАЛЬКУЛЯТОР!$C$21,$E$2,$E$2-$E$3),IF(C24=КАЛЬКУЛЯТОР!$C$21,$I$11,$I$11-SUMIF($A$12:$A$371,"<="&$E$3,$H$12:$H$371)),0,0)),"") ->  | G24: =IFERROR((-IPMT((C24-'КАЛЬКУЛЯТОР 1'!$P$1)/12,B24,IF(C24=КАЛЬКУЛЯТОР!$C$21,$E$2,$E$2-$E$3),IF(C24=КАЛЬКУЛЯТОР!$C$21,$I$11,$I$11-SUMIF($A$12:$A$371,"<="&$E$3,$H$12:$H$371)),0,0)),"") ->  | H24: =IFERROR((-PPMT(C24/12,B24,IF(C24=КАЛЬКУЛЯТОР!$C$21,$E$2,$E$2-$E$3),IF(C24=КАЛЬКУЛЯТОР!$C$21,$I$11,$I$11-SUMIF($A$12:$A$371,"<="&$E$3,$H$12:$H$371)),0,0)),"") ->  | K24: =PV($E$5/12,A24-1,0,-E24) -> 0.00 | P24: FALSE
A25: 14 | B25: 14 | C25: =IF(A25<=$E$3,КАЛЬКУЛЯТОР!$C$21,IF(AND(A25>$E$3,A25<=$E$2),$E$4,"")) ->  | D25: =IF(A25<=$E$2,-PMT(C25/12,IF(C25=КАЛЬКУЛЯТОР!$C$21,$E$2,$E$2-$E$3),IF(C25=КАЛЬКУЛЯТОР!$C$21,$I$11,$I$11-SUMIF($A$12:$A$371,"<="&$E$3,$H$12:$H$371)),0,0),"") ->  | F25: =IFERROR((-IPMT(C25/12,B25,IF(C25=КАЛЬКУЛЯТОР!$C$21,$E$2,$E$2-$E$3),IF(C25=КАЛЬКУЛЯТОР!$C$21,$I$11,$I$11-SUMIF($A$12:$A$371,"<="&$E$3,$H$12:$H$371)),0,0)),"") ->  | G25: =IFERROR((-IPMT((C25-'КАЛЬКУЛЯТОР 1'!$P$1)/12,B25,IF(C25=КАЛЬКУЛЯТОР!$C$21,$E$2,$E$2-$E$3),IF(C25=КАЛЬКУЛЯТОР!$C$21,$I$11,$I$11-SUMIF($A$12:$A$371,"<="&$E$3,$H$12:$H$371)),0,0)),"") ->  | H25: =IFERROR((-PPMT(C25/12,B25,IF(C25=КАЛЬКУЛЯТОР!$C$21,$E$2,$E$2-$E$3),IF(C25=КАЛЬКУЛЯТОР!$C$21,$I$11,$I$11-SUMIF($A$12:$A$371,"<="&$E$3,$H$12:$H$371)),0,0)),"") ->  | P25: FALSE
A26: 15 | B26: 15 | C26: =IF(A26<=$E$3,КАЛЬКУЛЯТОР!$C$21,IF(AND(A26>$E$3,A26<=$E$2),$E$4,"")) ->  | D26: =IF(A26<=$E$2,-PMT(C26/12,IF(C26=КАЛЬКУЛЯТОР!$C$21,$E$2,$E$2-$E$3),IF(C26=КАЛЬКУЛЯТОР!$C$21,$I$11,$I$11-SUMIF($A$12:$A$371,"<="&$E$3,$H$12:$H$371)),0,0),"") ->  | F26: =IFERROR((-IPMT(C26/12,B26,IF(C26=КАЛЬКУЛЯТОР!$C$21,$E$2,$E$2-$E$3),IF(C26=КАЛЬКУЛЯТОР!$C$21,$I$11,$I$11-SUMIF($A$12:$A$371,"<="&$E$3,$H$12:$H$371)),0,0)),"") ->  | G26: =IFERROR((-IPMT((C26-'КАЛЬКУЛЯТОР 1'!$P$1)/12,B26,IF(C26=КАЛЬКУЛЯТОР!$C$21,$E$2,$E$2-$E$3),IF(C26=КАЛЬКУЛЯТОР!$C$21,$I$11,$I$11-SUMIF($A$12:$A$371,"<="&$E$3,$H$12:$H$371)),0,0)),"") ->  | H26: =IFERROR((-PPMT(C26/12,B26,IF(C26=КАЛЬКУЛЯТОР!$C$21,$E$2,$E$2-$E$3),IF(C26=КАЛЬКУЛЯТОР!$C$21,$I$11,$I$11-SUMIF($A$12:$A$371,"<="&$E$3,$H$12:$H$371)),0,0)),"") ->  | P26: FALSE
A27: 16 | B27: 16 | C27: =IF(A27<=$E$3,КАЛЬКУЛЯТОР!$C$21,IF(AND(A27>$E$3,A27<=$E$2),$E$4,"")) ->  | D27: =IF(A27<=$E$2,-PMT(C27/12,IF(C27=КАЛЬКУЛЯТОР!$C$21,$E$2,$E$2-$E$3),IF(C27=КАЛЬКУЛЯТОР!$C$21,$I$11,$I$11-SUMIF($A$12:$A$371,"<="&$E$3,$H$12:$H$371)),0,0),"") ->  | F27: =IFERROR((-IPMT(C27/12,B27,IF(C27=КАЛЬКУЛЯТОР!$C$21,$E$2,$E$2-$E$3),IF(C27=КАЛЬКУЛЯТОР!$C$21,$I$11,$I$11-SUMIF($A$12:$A$371,"<="&$E$3,$H$12:$H$371)),0,0)),"") ->  | G27: =IFERROR((-IPMT((C27-'КАЛЬКУЛЯТОР 1'!$P$1)/12,B27,IF(C27=КАЛЬКУЛЯТОР!$C$21,$E$2,$E$2-$E$3),IF(C27=КАЛЬКУЛЯТОР!$C$21,$I$11,$I$11-SUMIF($A$12:$A$371,"<="&$E$3,$H$12:$H$371)),0,0)),"") ->  | H27: =IFERROR((-PPMT(C27/12,B27,IF(C27=КАЛЬКУЛЯТОР!$C$21,$E$2,$E$2-$E$3),IF(C27=КАЛЬКУЛЯТОР!$C$21,$I$11,$I$11-SUMIF($A$12:$A$371,"<="&$E$3,$H$12:$H$371)),0,0)),"") ->  | P27: FALSE
A28: 17 | B28: 17 | C28: =IF(A28<=$E$3,КАЛЬКУЛЯТОР!$C$21,IF(AND(A28>$E$3,A28<=$E$2),$E$4,"")) ->  | D28: =IF(A28<=$E$2,-PMT(C28/12,IF(C28=КАЛЬКУЛЯТОР!$C$21,$E$2,$E$2-$E$3),IF(C28=КАЛЬКУЛЯТОР!$C$21,$I$11,$I$11-SUMIF($A$12:$A$371,"<="&$E$3,$H$12:$H$371)),0,0),"") ->  | F28: =IFERROR((-IPMT(C28/12,B28,IF(C28=КАЛЬКУЛЯТОР!$C$21,$E$2,$E$2-$E$3),IF(C28=КАЛЬКУЛЯТОР!$C$21,$I$11,$I$11-SUMIF($A$12:$A$371,"<="&$E$3,$H$12:$H$371)),0,0)),"") ->  | G28: =IFERROR((-IPMT((C28-'КАЛЬКУЛЯТОР 1'!$P$1)/12,B28,IF(C28=КАЛЬКУЛЯТОР!$C$21,$E$2,$E$2-$E$3),IF(C28=КАЛЬКУЛЯТОР!$C$21,$I$11,$I$11-SUMIF($A$12:$A$371,"<="&$E$3,$H$12:$H$371)),0,0)),"") ->  | H28: =IFERROR((-PPMT(C28/12,B28,IF(C28=КАЛЬКУЛЯТОР!$C$21,$E$2,$E$2-$E$3),IF(C28=КАЛЬКУЛЯТОР!$C$21,$I$11,$I$11-SUMIF($A$12:$A$371,"<="&$E$3,$H$12:$H$371)),0,0)),"") ->  | P28: FALSE
A29: 18 | B29: 18 | C29: =IF(A29<=$E$3,КАЛЬКУЛЯТОР!$C$21,IF(AND(A29>$E$3,A29<=$E$2),$E$4,"")) ->  | D29: =IF(A29<=$E$2,-PMT(C29/12,IF(C29=КАЛЬКУЛЯТОР!$C$21,$E$2,$E$2-$E$3),IF(C29=КАЛЬКУЛЯТОР!$C$21,$I$11,$I$11-SUMIF($A$12:$A$371,"<="&$E$3,$H$12:$H$371)),0,0),"") ->  | F29: =IFERROR((-IPMT(C29/12,B29,IF(C29=КАЛЬКУЛЯТОР!$C$21,$E$2,$E$2-$E$3),IF(C29=КАЛЬКУЛЯТОР!$C$21,$I$11,$I$11-SUMIF($A$12:$A$371,"<="&$E$3,$H$12:$H$371)),0,0)),"") ->  | G29: =IFERROR((-IPMT((C29-'КАЛЬКУЛЯТОР 1'!$P$1)/12,B29,IF(C29=КАЛЬКУЛЯТОР!$C$21,$E$2,$E$2-$E$3),IF(C29=КАЛЬКУЛЯТОР!$C$21,$I$11,$I$11-SUMIF($A$12:$A$371,"<="&$E$3,$H$12:$H$371)),0,0)),"") ->  | H29: =IFERROR((-PPMT(C29/12,B29,IF(C29=КАЛЬКУЛЯТОР!$C$21,$E$2,$E$2-$E$3),IF(C29=КАЛЬКУЛЯТОР!$C$21,$I$11,$I$11-SUMIF($A$12:$A$371,"<="&$E$3,$H$12:$H$371)),0,0)),"") ->  | P29: FALSE
A30: 19 | B30: 19 | C30: =IF(A30<=$E$3,КАЛЬКУЛЯТОР!$C$21,IF(AND(A30>$E$3,A30<=$E$2),$E$4,"")) ->  | D30: =IF(A30<=$E$2,-PMT(C30/12,IF(C30=КАЛЬКУЛЯТОР!$C$21,$E$2,$E$2-$E$3),IF(C30=КАЛЬКУЛЯТОР!$C$21,$I$11,$I$11-SUMIF($A$12:$A$371,"<="&$E$3,$H$12:$H$371)),0,0),"") ->  | F30: =IFERROR((-IPMT(C30/12,B30,IF(C30=КАЛЬКУЛЯТОР!$C$21,$E$2,$E$2-$E$3),IF(C30=КАЛЬКУЛЯТОР!$C$21,$I$11,$I$11-SUMIF($A$12:$A$371,"<="&$E$3,$H$12:$H$371)),0,0)),"") ->  | G30: =IFERROR((-IPMT((C30-'КАЛЬКУЛЯТОР 1'!$P$1)/12,B30,IF(C30=КАЛЬКУЛЯТОР!$C$21,$E$2,$E$2-$E$3),IF(C30=КАЛЬКУЛЯТОР!$C$21,$I$11,$I$11-SUMIF($A$12:$A$371,"<="&$E$3,$H$12:$H$371)),0,0)),"") ->  | H30: =IFERROR((-PPMT(C30/12,B30,IF(C30=КАЛЬКУЛЯТОР!$C$21,$E$2,$E$2-$E$3),IF(C30=КАЛЬКУЛЯТОР!$C$21,$I$11,$I$11-SUMIF($A$12:$A$371,"<="&$E$3,$H$12:$H$371)),0,0)),"") ->  | P30: FALSE
A31: 20 | B31: 20 | C31: =IF(A31<=$E$3,КАЛЬКУЛЯТОР!$C$21,IF(AND(A31>$E$3,A31<=$E$2),$E$4,"")) ->  | D31: =IF(A31<=$E$2,-PMT(C31/12,IF(C31=КАЛЬКУЛЯТОР!$C$21,$E$2,$E$2-$E$3),IF(C31=КАЛЬКУЛЯТОР!$C$21,$I$11,$I$11-SUMIF($A$12:$A$371,"<="&$E$3,$H$12:$H$371)),0,0),"") ->  | F31: =IFERROR((-IPMT(C31/12,B31,IF(C31=КАЛЬКУЛЯТОР!$C$21,$E$2,$E$2-$E$3),IF(C31=КАЛЬКУЛЯТОР!$C$21,$I$11,$I$11-SUMIF($A$12:$A$371,"<="&$E$3,$H$12:$H$371)),0,0)),"") ->  | G31: =IFERROR((-IPMT((C31-'КАЛЬКУЛЯТОР 1'!$P$1)/12,B31,IF(C31=КАЛЬКУЛЯТОР!$C$21,$E$2,$E$2-$E$3),IF(C31=КАЛЬКУЛЯТОР!$C$21,$I$11,$I$11-SUMIF($A$12:$A$371,"<="&$E$3,$H$12:$H$371)),0,0)),"") ->  | H31: =IFERROR((-PPMT(C31/12,B31,IF(C31=КАЛЬКУЛЯТОР!$C$21,$E$2,$E$2-$E$3),IF(C31=КАЛЬКУЛЯТОР!$C$21,$I$11,$I$11-SUMIF($A$12:$A$371,"<="&$E$3,$H$12:$H$371)),0,0)),"") ->  | P31: FALSE
A32: 21 | B32: 21 | C32: =IF(A32<=$E$3,КАЛЬКУЛЯТОР!$C$21,IF(AND(A32>$E$3,A32<=$E$2),$E$4,"")) ->  | D32: =IF(A32<=$E$2,-PMT(C32/12,IF(C32=КАЛЬКУЛЯТОР!$C$21,$E$2,$E$2-$E$3),IF(C32=КАЛЬКУЛЯТОР!$C$21,$I$11,$I$11-SUMIF($A$12:$A$371,"<="&$E$3,$H$12:$H$371)),0,0),"") ->  | F32: =IFERROR((-IPMT(C32/12,B32,IF(C32=КАЛЬКУЛЯТОР!$C$21,$E$2,$E$2-$E$3),IF(C32=КАЛЬКУЛЯТОР!$C$21,$I$11,$I$11-SUMIF($A$12:$A$371,"<="&$E$3,$H$12:$H$371)),0,0)),"") ->  | G32: =IFERROR((-IPMT((C32-'КАЛЬКУЛЯТОР 1'!$P$1)/12,B32,IF(C32=КАЛЬКУЛЯТОР!$C$21,$E$2,$E$2-$E$3),IF(C32=КАЛЬКУЛЯТОР!$C$21,$I$11,$I$11-SUMIF($A$12:$A$371,"<="&$E$3,$H$12:$H$371)),0,0)),"") ->  | H32: =IFERROR((-PPMT(C32/12,B32,IF(C32=КАЛЬКУЛЯТОР!$C$21,$E$2,$E$2-$E$3),IF(C32=КАЛЬКУЛЯТОР!$C$21,$I$11,$I$11-SUMIF($A$12:$A$371,"<="&$E$3,$H$12:$H$371)),0,0)),"") ->  | P32: FALSE
A33: 22 | B33: 22 | C33: =IF(A33<=$E$3,КАЛЬКУЛЯТОР!$C$21,IF(AND(A33>$E$3,A33<=$E$2),$E$4,"")) ->  | D33: =IF(A33<=$E$2,-PMT(C33/12,IF(C33=КАЛЬКУЛЯТОР!$C$21,$E$2,$E$2-$E$3),IF(C33=КАЛЬКУЛЯТОР!$C$21,$I$11,$I$11-SUMIF($A$12:$A$371,"<="&$E$3,$H$12:$H$371)),0,0),"") ->  | F33: =IFERROR((-IPMT(C33/12,B33,IF(C33=КАЛЬКУЛЯТОР!$C$21,$E$2,$E$2-$E$3),IF(C33=КАЛЬКУЛЯТОР!$C$21,$I$11,$I$11-SUMIF($A$12:$A$371,"<="&$E$3,$H$12:$H$371)),0,0)),"") ->  | G33: =IFERROR((-IPMT((C33-'КАЛЬКУЛЯТОР 1'!$P$1)/12,B33,IF(C33=КАЛЬКУЛЯТОР!$C$21,$E$2,$E$2-$E$3),IF(C33=КАЛЬКУЛЯТОР!$C$21,$I$11,$I$11-SUMIF($A$12:$A$371,"<="&$E$3,$H$12:$H$371)),0,0)),"") ->  | H33: =IFERROR((-PPMT(C33/12,B33,IF(C33=КАЛЬКУЛЯТОР!$C$21,$E$2,$E$2-$E$3),IF(C33=КАЛЬКУЛЯТОР!$C$21,$I$11,$I$11-SUMIF($A$12:$A$371,"<="&$E$3,$H$12:$H$371)),0,0)),"") ->  | P33: FALSE
A34: 23 | B34: 23 | C34: =IF(A34<=$E$3,КАЛЬКУЛЯТОР!$C$21,IF(AND(A34>$E$3,A34<=$E$2),$E$4,"")) ->  | D34: =IF(A34<=$E$2,-PMT(C34/12,IF(C34=КАЛЬКУЛЯТОР!$C$21,$E$2,$E$2-$E$3),IF(C34=КАЛЬКУЛЯТОР!$C$21,$I$11,$I$11-SUMIF($A$12:$A$371,"<="&$E$3,$H$12:$H$371)),0,0),"") ->  | F34: =IFERROR((-IPMT(C34/12,B34,IF(C34=КАЛЬКУЛЯТОР!$C$21,$E$2,$E$2-$E$3),IF(C34=КАЛЬКУЛЯТОР!$C$21,$I$11,$I$11-SUMIF($A$12:$A$371,"<="&$E$3,$H$12:$H$371)),0,0)),"") ->  | G34: =IFERROR((-IPMT((C34-'КАЛЬКУЛЯТОР 1'!$P$1)/12,B34,IF(C34=КАЛЬКУЛЯТОР!$C$21,$E$2,$E$2-$E$3),IF(C34=КАЛЬКУЛЯТОР!$C$21,$I$11,$I$11-SUMIF($A$12:$A$371,"<="&$E$3,$H$12:$H$371)),0,0)),"") ->  | H34: =IFERROR((-PPMT(C34/12,B34,IF(C34=КАЛЬКУЛЯТОР!$C$21,$E$2,$E$2-$E$3),IF(C34=КАЛЬКУЛЯТОР!$C$21,$I$11,$I$11-SUMIF($A$12:$A$371,"<="&$E$3,$H$12:$H$371)),0,0)),"") ->  | P34: FALSE
A35: 24 | B35: 24 | C35: =IF(A35<=$E$3,КАЛЬКУЛЯТОР!$C$21,IF(AND(A35>$E$3,A35<=$E$2),$E$4,"")) ->  | D35: =IF(A35<=$E$2,-PMT(C35/12,IF(C35=КАЛЬКУЛЯТОР!$C$21,$E$2,$E$2-$E$3),IF(C35=КАЛЬКУЛЯТОР!$C$21,$I$11,$I$11-SUMIF($A$12:$A$371,"<="&$E$3,$H$12:$H$371)),0,0),"") ->  | F35: =IFERROR((-IPMT(C35/12,B35,IF(C35=КАЛЬКУЛЯТОР!$C$21,$E$2,$E$2-$E$3),IF(C35=КАЛЬКУЛЯТОР!$C$21,$I$11,$I$11-SUMIF($A$12:$A$371,"<="&$E$3,$H$12:$H$371)),0,0)),"") ->  | G35: =IFERROR((-IPMT((C35-'КАЛЬКУЛЯТОР 1'!$P$1)/12,B35,IF(C35=КАЛЬКУЛЯТОР!$C$21,$E$2,$E$2-$E$3),IF(C35=КАЛЬКУЛЯТОР!$C$21,$I$11,$I$11-SUMIF($A$12:$A$371,"<="&$E$3,$H$12:$H$371)),0,0)),"") ->  | H35: =IFERROR((-PPMT(C35/12,B35,IF(C35=КАЛЬКУЛЯТОР!$C$21,$E$2,$E$2-$E$3),IF(C35=КАЛЬКУЛЯТОР!$C$21,$I$11,$I$11-SUMIF($A$12:$A$371,"<="&$E$3,$H$12:$H$371)),0,0)),"") ->  | P35: FALSE
A36: 25 | B36: 25 | C36: =IF(A36<=$E$3,КАЛЬКУЛЯТОР!$C$21,IF(AND(A36>$E$3,A36<=$E$2),$E$4,"")) ->  | D36: =IF(A36<=$E$2,-PMT(C36/12,IF(C36=КАЛЬКУЛЯТОР!$C$21,$E$2,$E$2-$E$3),IF(C36=КАЛЬКУЛЯТОР!$C$21,$I$11,$I$11-SUMIF($A$12:$A$371,"<="&$E$3,$H$12:$H$371)),0,0)+E36,"") ->  | E36: =IF($E$2>$A35,(I35+SUM(F36:F47))*($K$4+$K$5),0) -> 0.00 | F36: =IFERROR((-IPMT(C36/12,B36,IF(C36=КАЛЬКУЛЯТОР!$C$21,$E$2,$E$2-$E$3),IF(C36=КАЛЬКУЛЯТОР!$C$21,$I$11,$I$11-SUMIF($A$12:$A$371,"<="&$E$3,$H$12:$H$371)),0,0)),"") ->  | G36: =IFERROR((-IPMT((C36-'КАЛЬКУЛЯТОР 1'!$P$1)/12,B36,IF(C36=КАЛЬКУЛЯТОР!$C$21,$E$2,$E$2-$E$3),IF(C36=КАЛЬКУЛЯТОР!$C$21,$I$11,$I$11-SUMIF($A$12:$A$371,"<="&$E$3,$H$12:$H$371)),0,0)),"") ->  | H36: =IFERROR((-PPMT(C36/12,B36,IF(C36=КАЛЬКУЛЯТОР!$C$21,$E$2,$E$2-$E$3),IF(C36=КАЛЬКУЛЯТОР!$C$21,$I$11,$I$11-SUMIF($A$12:$A$371,"<="&$E$3,$H$12:$H$371)),0,0)),"") ->  | K36: =PV($E$5/12,A36-1,0,-E36) -> 0.00 | P36: FALSE
A37: 26 | B37: 26 | C37: =IF(A37<=$E$3,КАЛЬКУЛЯТОР!$C$21,IF(AND(A37>$E$3,A37<=$E$2),$E$4,"")) ->  | D37: =IF(A37<=$E$2,-PMT(C37/12,IF(C37=КАЛЬКУЛЯТОР!$C$21,$E$2,$E$2-$E$3),IF(C37=КАЛЬКУЛЯТОР!$C$21,$I$11,$I$11-SUMIF($A$12:$A$371,"<="&$E$3,$H$12:$H$371)),0,0),"") ->  | F37: =IFERROR((-IPMT(C37/12,B37,IF(C37=КАЛЬКУЛЯТОР!$C$21,$E$2,$E$2-$E$3),IF(C37=КАЛЬКУЛЯТОР!$C$21,$I$11,$I$11-SUMIF($A$12:$A$371,"<="&$E$3,$H$12:$H$371)),0,0)),"") ->  | G37: =IFERROR((-IPMT((C37-'КАЛЬКУЛЯТОР 1'!$P$1)/12,B37,IF(C37=КАЛЬКУЛЯТОР!$C$21,$E$2,$E$2-$E$3),IF(C37=КАЛЬКУЛЯТОР!$C$21,$I$11,$I$11-SUMIF($A$12:$A$371,"<="&$E$3,$H$12:$H$371)),0,0)),"") ->  | H37: =IFERROR((-PPMT(C37/12,B37,IF(C37=КАЛЬКУЛЯТОР!$C$21,$E$2,$E$2-$E$3),IF(C37=КАЛЬКУЛЯТОР!$C$21,$I$11,$I$11-SUMIF($A$12:$A$371,"<="&$E$3,$H$12:$H$371)),0,0)),"") ->  | P37: FALSE
A38: 27 | B38: 27 | C38: =IF(A38<=$E$3,КАЛЬКУЛЯТОР!$C$21,IF(AND(A38>$E$3,A38<=$E$2),$E$4,"")) ->  | D38: =IF(A38<=$E$2,-PMT(C38/12,IF(C38=КАЛЬКУЛЯТОР!$C$21,$E$2,$E$2-$E$3),IF(C38=КАЛЬКУЛЯТОР!$C$21,$I$11,$I$11-SUMIF($A$12:$A$371,"<="&$E$3,$H$12:$H$371)),0,0),"") ->  | F38: =IFERROR((-IPMT(C38/12,B38,IF(C38=КАЛЬКУЛЯТОР!$C$21,$E$2,$E$2-$E$3),IF(C38=КАЛЬКУЛЯТОР!$C$21,$I$11,$I$11-SUMIF($A$12:$A$371,"<="&$E$3,$H$12:$H$371)),0,0)),"") ->  | G38: =IFERROR((-IPMT((C38-'КАЛЬКУЛЯТОР 1'!$P$1)/12,B38,IF(C38=КАЛЬКУЛЯТОР!$C$21,$E$2,$E$2-$E$3),IF(C38=КАЛЬКУЛЯТОР!$C$21,$I$11,$I$11-SUMIF($A$12:$A$371,"<="&$E$3,$H$12:$H$371)),0,0)),"") ->  | H38: =IFERROR((-PPMT(C38/12,B38,IF(C38=КАЛЬКУЛЯТОР!$C$21,$E$2,$E$2-$E$3),IF(C38=КАЛЬКУЛЯТОР!$C$21,$I$11,$I$11-SUMIF($A$12:$A$371,"<="&$E$3,$H$12:$H$371)),0,0)),"") ->  | P38: FALSE
A39: 28 | B39: 28 | C39: =IF(A39<=$E$3,КАЛЬКУЛЯТОР!$C$21,IF(AND(A39>$E$3,A39<=$E$2),$E$4,"")) ->  | D39: =IF(A39<=$E$2,-PMT(C39/12,IF(C39=КАЛЬКУЛЯТОР!$C$21,$E$2,$E$2-$E$3),IF(C39=КАЛЬКУЛЯТОР!$C$21,$I$11,$I$11-SUMIF($A$12:$A$371,"<="&$E$3,$H$12:$H$371)),0,0),"") ->  | F39: =IFERROR((-IPMT(C39/12,B39,IF(C39=КАЛЬКУЛЯТОР!$C$21,$E$2,$E$2-$E$3),IF(C39=КАЛЬКУЛЯТОР!$C$21,$I$11,$I$11-SUMIF($A$12:$A$371,"<="&$E$3,$H$12:$H$371)),0,0)),"") ->  | G39: =IFERROR((-IPMT((C39-'КАЛЬКУЛЯТОР 1'!$P$1)/12,B39,IF(C39=КАЛЬКУЛЯТОР!$C$21,$E$2,$E$2-$E$3),IF(C39=КАЛЬКУЛЯТОР!$C$21,$I$11,$I$11-SUMIF($A$12:$A$371,"<="&$E$3,$H$12:$H$371)),0,0)),"") ->  | H39: =IFERROR((-PPMT(C39/12,B39,IF(C39=КАЛЬКУЛЯТОР!$C$21,$E$2,$E$2-$E$3),IF(C39=КАЛЬКУЛЯТОР!$C$21,$I$11,$I$11-SUMIF($A$12:$A$371,"<="&$E$3,$H$12:$H$371)),0,0)),"") ->  | P39: FALSE
A40: 29 | B40: 29 | C40: =IF(A40<=$E$3,КАЛЬКУЛЯТОР!$C$21,IF(AND(A40>$E$3,A40<=$E$2),$E$4,"")) ->  | D40: =IF(A40<=$E$2,-PMT(C40/12,IF(C40=КАЛЬКУЛЯТОР!$C$21,$E$2,$E$2-$E$3),IF(C40=КАЛЬКУЛЯТОР!$C$21,$I$11,$I$11-SUMIF($A$12:$A$371,"<="&$E$3,$H$12:$H$371)),0,0),"") ->  | F40: =IFERROR((-IPMT(C40/12,B40,IF(C40=КАЛЬКУЛЯТОР!$C$21,$E$2,$E$2-$E$3),IF(C40=КАЛЬКУЛЯТОР!$C$21,$I$11,$I$11-SUMIF($A$12:$A$371,"<="&$E$3,$H$12:$H$371)),0,0)),"") ->  | G40: =IFERROR((-IPMT((C40-'КАЛЬКУЛЯТОР 1'!$P$1)/12,B40,IF(C40=КАЛЬКУЛЯТОР!$C$21,$E$2,$E$2-$E$3),IF(C40=КАЛЬКУЛЯТОР!$C$21,$I$11,$I$11-SUMIF($A$12:$A$371,"<="&$E$3,$H$12:$H$371)),0,0)),"") ->  | H40: =IFERROR((-PPMT(C40/12,B40,IF(C40=КАЛЬКУЛЯТОР!$C$21,$E$2,$E$2-$E$3),IF(C40=КАЛЬКУЛЯТОР!$C$21,$I$11,$I$11-SUMIF($A$12:$A$371,"<="&$E$3,$H$12:$H$371)),0,0)),"") ->  | P40: FALSE
A41: 30 | B41: 30 | C41: =IF(A41<=$E$3,КАЛЬКУЛЯТОР!$C$21,IF(AND(A41>$E$3,A41<=$E$2),$E$4,"")) ->  | D41: =IF(A41<=$E$2,-PMT(C41/12,IF(C41=КАЛЬКУЛЯТОР!$C$21,$E$2,$E$2-$E$3),IF(C41=КАЛЬКУЛЯТОР!$C$21,$I$11,$I$11-SUMIF($A$12:$A$371,"<="&$E$3,$H$12:$H$371)),0,0),"") ->  | F41: =IFERROR((-IPMT(C41/12,B41,IF(C41=КАЛЬКУЛЯТОР!$C$21,$E$2,$E$2-$E$3),IF(C41=КАЛЬКУЛЯТОР!$C$21,$I$11,$I$11-SUMIF($A$12:$A$371,"<="&$E$3,$H$12:$H$371)),0,0)),"") ->  | G41: =IFERROR((-IPMT((C41-'КАЛЬКУЛЯТОР 1'!$P$1)/12,B41,IF(C41=КАЛЬКУЛЯТОР!$C$21,$E$2,$E$2-$E$3),IF(C41=КАЛЬКУЛЯТОР!$C$21,$I$11,$I$11-SUMIF($A$12:$A$371,"<="&$E$3,$H$12:$H$371)),0,0)),"") ->  | H41: =IFERROR((-PPMT(C41/12,B41,IF(C41=КАЛЬКУЛЯТОР!$C$21,$E$2,$E$2-$E$3),IF(C41=КАЛЬКУЛЯТОР!$C$21,$I$11,$I$11-SUMIF($A$12:$A$371,"<="&$E$3,$H$12:$H$371)),0,0)),"") ->  | P41: FALSE
A42: 31 | B42: 31 | C42: =IF(A42<=$E$3,КАЛЬКУЛЯТОР!$C$21,IF(AND(A42>$E$3,A42<=$E$2),$E$4,"")) ->  | D42: =IF(A42<=$E$2,-PMT(C42/12,IF(C42=КАЛЬКУЛЯТОР!$C$21,$E$2,$E$2-$E$3),IF(C42=КАЛЬКУЛЯТОР!$C$21,$I$11,$I$11-SUMIF($A$12:$A$371,"<="&$E$3,$H$12:$H$371)),0,0),"") ->  | F42: =IFERROR((-IPMT(C42/12,B42,IF(C42=КАЛЬКУЛЯТОР!$C$21,$E$2,$E$2-$E$3),IF(C42=КАЛЬКУЛЯТОР!$C$21,$I$11,$I$11-SUMIF($A$12:$A$371,"<="&$E$3,$H$12:$H$371)),0,0)),"") ->  | G42: =IFERROR((-IPMT((C42-'КАЛЬКУЛЯТОР 1'!$P$1)/12,B42,IF(C42=КАЛЬКУЛЯТОР!$C$21,$E$2,$E$2-$E$3),IF(C42=КАЛЬКУЛЯТОР!$C$21,$I$11,$I$11-SUMIF($A$12:$A$371,"<="&$E$3,$H$12:$H$371)),0,0)),"") ->  | H42: =IFERROR((-PPMT(C42/12,B42,IF(C42=КАЛЬКУЛЯТОР!$C$21,$E$2,$E$2-$E$3),IF(C42=КАЛЬКУЛЯТОР!$C$21,$I$11,$I$11-SUMIF($A$12:$A$371,"<="&$E$3,$H$12:$H$371)),0,0)),"") ->  | P42: FALSE
A43: 32 | B43: 32 | C43: =IF(A43<=$E$3,КАЛЬКУЛЯТОР!$C$21,IF(AND(A43>$E$3,A43<=$E$2),$E$4,"")) ->  | D43: =IF(A43<=$E$2,-PMT(C43/12,IF(C43=КАЛЬКУЛЯТОР!$C$21,$E$2,$E$2-$E$3),IF(C43=КАЛЬКУЛЯТОР!$C$21,$I$11,$I$11-SUMIF($A$12:$A$371,"<="&$E$3,$H$12:$H$371)),0,0),"") ->  | F43: =IFERROR((-IPMT(C43/12,B43,IF(C43=КАЛЬКУЛЯТОР!$C$21,$E$2,$E$2-$E$3),IF(C43=КАЛЬКУЛЯТОР!$C$21,$I$11,$I$11-SUMIF($A$12:$A$371,"<="&$E$3,$H$12:$H$371)),0,0)),"") ->  | G43: =IFERROR((-IPMT((C43-'КАЛЬКУЛЯТОР 1'!$P$1)/12,B43,IF(C43=КАЛЬКУЛЯТОР!$C$21,$E$2,$E$2-$E$3),IF(C43=КАЛЬКУЛЯТОР!$C$21,$I$11,$I$11-SUMIF($A$12:$A$371,"<="&$E$3,$H$12:$H$371)),0,0)),"") ->  | H43: =IFERROR((-PPMT(C43/12,B43,IF(C43=КАЛЬКУЛЯТОР!$C$21,$E$2,$E$2-$E$3),IF(C43=КАЛЬКУЛЯТОР!$C$21,$I$11,$I$11-SUMIF($A$12:$A$371,"<="&$E$3,$H$12:$H$371)),0,0)),"") ->  | P43: FALSE
A44: 33 | B44: 33 | C44: =IF(A44<=$E$3,КАЛЬКУЛЯТОР!$C$21,IF(AND(A44>$E$3,A44<=$E$2),$E$4,"")) ->  | D44: =IF(A44<=$E$2,-PMT(C44/12,IF(C44=КАЛЬКУЛЯТОР!$C$21,$E$2,$E$2-$E$3),IF(C44=КАЛЬКУЛЯТОР!$C$21,$I$11,$I$11-SUMIF($A$12:$A$371,"<="&$E$3,$H$12:$H$371)),0,0),"") ->  | F44: =IFERROR((-IPMT(C44/12,B44,IF(C44=КАЛЬКУЛЯТОР!$C$21,$E$2,$E$2-$E$3),IF(C44=КАЛЬКУЛЯТОР!$C$21,$I$11,$I$11-SUMIF($A$12:$A$371,"<="&$E$3,$H$12:$H$371)),0,0)),"") ->  | G44: =IFERROR((-IPMT((C44-'КАЛЬКУЛЯТОР 1'!$P$1)/12,B44,IF(C44=КАЛЬКУЛЯТОР!$C$21,$E$2,$E$2-$E$3),IF(C44=КАЛЬКУЛЯТОР!$C$21,$I$11,$I$11-SUMIF($A$12:$A$371,"<="&$E$3,$H$12:$H$371)),0,0)),"") ->  | H44: =IFERROR((-PPMT(C44/12,B44,IF(C44=КАЛЬКУЛЯТОР!$C$21,$E$2,$E$2-$E$3),IF(C44=КАЛЬКУЛЯТОР!$C$21,$I$11,$I$11-SUMIF($A$12:$A$371,"<="&$E$3,$H$12:$H$371)),0,0)),"") ->  | P44: FALSE
A45: 34 | B45: 34 | C45: =IF(A45<=$E$3,КАЛЬКУЛЯТОР!$C$21,IF(AND(A45>$E$3,A45<=$E$2),$E$4,"")) ->  | D45: =IF(A45<=$E$2,-PMT(C45/12,IF(C45=КАЛЬКУЛЯТОР!$C$21,$E$2,$E$2-$E$3),IF(C45=КАЛЬКУЛЯТОР!$C$21,$I$11,$I$11-SUMIF($A$12:$A$371,"<="&$E$3,$H$12:$H$371)),0,0),"") ->  | F45: =IFERROR((-IPMT(C45/12,B45,IF(C45=КАЛЬКУЛЯТОР!$C$21,$E$2,$E$2-$E$3),IF(C45=КАЛЬКУЛЯТОР!$C$21,$I$11,$I$11-SUMIF($A$12:$A$371,"<="&$E$3,$H$12:$H$371)),0,0)),"") ->  | G45: =IFERROR((-IPMT((C45-'КАЛЬКУЛЯТОР 1'!$P$1)/12,B45,IF(C45=КАЛЬКУЛЯТОР!$C$21,$E$2,$E$2-$E$3),IF(C45=КАЛЬКУЛЯТОР!$C$21,$I$11,$I$11-SUMIF($A$12:$A$371,"<="&$E$3,$H$12:$H$371)),0,0)),"") ->  | H45: =IFERROR((-PPMT(C45/12,B45,IF(C45=КАЛЬКУЛЯТОР!$C$21,$E$2,$E$2-$E$3),IF(C45=КАЛЬКУЛЯТОР!$C$21,$I$11,$I$11-SUMIF($A$12:$A$371,"<="&$E$3,$H$12:$H$371)),0,0)),"") ->  | P45: FALSE
A46: 35 | B46: 35 | C46: =IF(A46<=$E$3,КАЛЬКУЛЯТОР!$C$21,IF(AND(A46>$E$3,A46<=$E$2),$E$4,"")) ->  | D46: =IF(A46<=$E$2,-PMT(C46/12,IF(C46=КАЛЬКУЛЯТОР!$C$21,$E$2,$E$2-$E$3),IF(C46=КАЛЬКУЛЯТОР!$C$21,$I$11,$I$11-SUMIF($A$12:$A$371,"<="&$E$3,$H$12:$H$371)),0,0),"") ->  | F46: =IFERROR((-IPMT(C46/12,B46,IF(C46=КАЛЬКУЛЯТОР!$C$21,$E$2,$E$2-$E$3),IF(C46=КАЛЬКУЛЯТОР!$C$21,$I$11,$I$11-SUMIF($A$12:$A$371,"<="&$E$3,$H$12:$H$371)),0,0)),"") ->  | G46: =IFERROR((-IPMT((C46-'КАЛЬКУЛЯТОР 1'!$P$1)/12,B46,IF(C46=КАЛЬКУЛЯТОР!$C$21,$E$2,$E$2-$E$3),IF(C46=КАЛЬКУЛЯТОР!$C$21,$I$11,$I$11-SUMIF($A$12:$A$371,"<="&$E$3,$H$12:$H$371)),0,0)),"") ->  | H46: =IFERROR((-PPMT(C46/12,B46,IF(C46=КАЛЬКУЛЯТОР!$C$21,$E$2,$E$2-$E$3),IF(C46=КАЛЬКУЛЯТОР!$C$21,$I$11,$I$11-SUMIF($A$12:$A$371,"<="&$E$3,$H$12:$H$371)),0,0)),"") ->  | P46: FALSE
A47: 36 | B47: 36 | C47: =IF(A47<=$E$3,КАЛЬКУЛЯТОР!$C$21,IF(AND(A47>$E$3,A47<=$E$2),$E$4,"")) ->  | D47: =IF(A47<=$E$2,-PMT(C47/12,IF(C47=КАЛЬКУЛЯТОР!$C$21,$E$2,$E$2-$E$3),IF(C47=КАЛЬКУЛЯТОР!$C$21,$I$11,$I$11-SUMIF($A$12:$A$371,"<="&$E$3,$H$12:$H$371)),0,0),"") ->  | F47: =IFERROR((-IPMT(C47/12,B47,IF(C47=КАЛЬКУЛЯТОР!$C$21,$E$2,$E$2-$E$3),IF(C47=КАЛЬКУЛЯТОР!$C$21,$I$11,$I$11-SUMIF($A$12:$A$371,"<="&$E$3,$H$12:$H$371)),0,0)),"") ->  | G47: =IFERROR((-IPMT((C47-'КАЛЬКУЛЯТОР 1'!$P$1)/12,B47,IF(C47=КАЛЬКУЛЯТОР!$C$21,$E$2,$E$2-$E$3),IF(C47=КАЛЬКУЛЯТОР!$C$21,$I$11,$I$11-SUMIF($A$12:$A$371,"<="&$E$3,$H$12:$H$371)),0,0)),"") ->  | H47: =IFERROR((-PPMT(C47/12,B47,IF(C47=КАЛЬКУЛЯТОР!$C$21,$E$2,$E$2-$E$3),IF(C47=КАЛЬКУЛЯТОР!$C$21,$I$11,$I$11-SUMIF($A$12:$A$371,"<="&$E$3,$H$12:$H$371)),0,0)),"") ->  | P47: FALSE
A48: 37 | B48: 37 | C48: =IF(A48<=$E$3,КАЛЬКУЛЯТОР!$C$21,IF(AND(A48>$E$3,A48<=$E$2),$E$4,"")) ->  | D48: =IF(A48<=$E$2,-PMT(C48/12,IF(C48=КАЛЬКУЛЯТОР!$C$21,$E$2,$E$2-$E$3),IF(C48=КАЛЬКУЛЯТОР!$C$21,$I$11,$I$11-SUMIF($A$12:$A$371,"<="&$E$3,$H$12:$H$371)),0,0)+E48,"") ->  | E48: =IF($E$2>$A47,(I47+SUM(F48:F59))*($K$4+$K$5),0) -> 0.00 | F48: =IFERROR((-IPMT(C48/12,B48,IF(C48=КАЛЬКУЛЯТОР!$C$21,$E$2,$E$2-$E$3),IF(C48=КАЛЬКУЛЯТОР!$C$21,$I$11,$I$11-SUMIF($A$12:$A$371,"<="&$E$3,$H$12:$H$371)),0,0)),"") ->  | G48: =IFERROR((-IPMT((C48-'КАЛЬКУЛЯТОР 1'!$P$1)/12,B48,IF(C48=КАЛЬКУЛЯТОР!$C$21,$E$2,$E$2-$E$3),IF(C48=КАЛЬКУЛЯТОР!$C$21,$I$11,$I$11-SUMIF($A$12:$A$371,"<="&$E$3,$H$12:$H$371)),0,0)),"") ->  | H48: =IFERROR((-PPMT(C48/12,B48,IF(C48=КАЛЬКУЛЯТОР!$C$21,$E$2,$E$2-$E$3),IF(C48=КАЛЬКУЛЯТОР!$C$21,$I$11,$I$11-SUMIF($A$12:$A$371,"<="&$E$3,$H$12:$H$371)),0,0)),"") ->  | K48: =PV($E$5/12,A48-1,0,-E48) -> 0.00 | P48: FALSE
A49: 38 | B49: 38 | C49: =IF(A49<=$E$3,КАЛЬКУЛЯТОР!$C$21,IF(AND(A49>$E$3,A49<=$E$2),$E$4,"")) ->  | D49: =IF(A49<=$E$2,-PMT(C49/12,IF(C49=КАЛЬКУЛЯТОР!$C$21,$E$2,$E$2-$E$3),IF(C49=КАЛЬКУЛЯТОР!$C$21,$I$11,$I$11-SUMIF($A$12:$A$371,"<="&$E$3,$H$12:$H$371)),0,0),"") ->  | F49: =IFERROR((-IPMT(C49/12,B49,IF(C49=КАЛЬКУЛЯТОР!$C$21,$E$2,$E$2-$E$3),IF(C49=КАЛЬКУЛЯТОР!$C$21,$I$11,$I$11-SUMIF($A$12:$A$371,"<="&$E$3,$H$12:$H$371)),0,0)),"") ->  | G49: =IFERROR((-IPMT((C49-'КАЛЬКУЛЯТОР 1'!$P$1)/12,B49,IF(C49=КАЛЬКУЛЯТОР!$C$21,$E$2,$E$2-$E$3),IF(C49=КАЛЬКУЛЯТОР!$C$21,$I$11,$I$11-SUMIF($A$12:$A$371,"<="&$E$3,$H$12:$H$371)),0,0)),"") ->  | H49: =IFERROR((-PPMT(C49/12,B49,IF(C49=КАЛЬКУЛЯТОР!$C$21,$E$2,$E$2-$E$3),IF(C49=КАЛЬКУЛЯТОР!$C$21,$I$11,$I$11-SUMIF($A$12:$A$371,"<="&$E$3,$H$12:$H$371)),0,0)),"") ->  | P49: FALSE
A50: 39 | B50: 39 | C50: =IF(A50<=$E$3,КАЛЬКУЛЯТОР!$C$21,IF(AND(A50>$E$3,A50<=$E$2),$E$4,"")) ->  | D50: =IF(A50<=$E$2,-PMT(C50/12,IF(C50=КАЛЬКУЛЯТОР!$C$21,$E$2,$E$2-$E$3),IF(C50=КАЛЬКУЛЯТОР!$C$21,$I$11,$I$11-SUMIF($A$12:$A$371,"<="&$E$3,$H$12:$H$371)),0,0),"") ->  | F50: =IFERROR((-IPMT(C50/12,B50,IF(C50=КАЛЬКУЛЯТОР!$C$21,$E$2,$E$2-$E$3),IF(C50=КАЛЬКУЛЯТОР!$C$21,$I$11,$I$11-SUMIF($A$12:$A$371,"<="&$E$3,$H$12:$H$371)),0,0)),"") ->  | G50: =IFERROR((-IPMT((C50-'КАЛЬКУЛЯТОР 1'!$P$1)/12,B50,IF(C50=КАЛЬКУЛЯТОР!$C$21,$E$2,$E$2-$E$3),IF(C50=КАЛЬКУЛЯТОР!$C$21,$I$11,$I$11-SUMIF($A$12:$A$371,"<="&$E$3,$H$12:$H$371)),0,0)),"") ->  | H50: =IFERROR((-PPMT(C50/12,B50,IF(C50=КАЛЬКУЛЯТОР!$C$21,$E$2,$E$2-$E$3),IF(C50=КАЛЬКУЛЯТОР!$C$21,$I$11,$I$11-SUMIF($A$12:$A$371,"<="&$E$3,$H$12:$H$371)),0,0)),"") ->  | P50: FALSE
A51: 40 | B51: 40 | C51: =IF(A51<=$E$3,КАЛЬКУЛЯТОР!$C$21,IF(AND(A51>$E$3,A51<=$E$2),$E$4,"")) ->  | D51: =IF(A51<=$E$2,-PMT(C51/12,IF(C51=КАЛЬКУЛЯТОР!$C$21,$E$2,$E$2-$E$3),IF(C51=КАЛЬКУЛЯТОР!$C$21,$I$11,$I$11-SUMIF($A$12:$A$371,"<="&$E$3,$H$12:$H$371)),0,0),"") ->  | F51: =IFERROR((-IPMT(C51/12,B51,IF(C51=КАЛЬКУЛЯТОР!$C$21,$E$2,$E$2-$E$3),IF(C51=КАЛЬКУЛЯТОР!$C$21,$I$11,$I$11-SUMIF($A$12:$A$371,"<="&$E$3,$H$12:$H$371)),0,0)),"") ->  | G51: =IFERROR((-IPMT((C51-'КАЛЬКУЛЯТОР 1'!$P$1)/12,B51,IF(C51=КАЛЬКУЛЯТОР!$C$21,$E$2,$E$2-$E$3),IF(C51=КАЛЬКУЛЯТОР!$C$21,$I$11,$I$11-SUMIF($A$12:$A$371,"<="&$E$3,$H$12:$H$371)),0,0)),"") ->  | H51: =IFERROR((-PPMT(C51/12,B51,IF(C51=КАЛЬКУЛЯТОР!$C$21,$E$2,$E$2-$E$3),IF(C51=КАЛЬКУЛЯТОР!$C$21,$I$11,$I$11-SUMIF($A$12:$A$371,"<="&$E$3,$H$12:$H$371)),0,0)),"") ->  | P51: FALSE
A52: 41 | B52: 41 | C52: =IF(A52<=$E$3,КАЛЬКУЛЯТОР!$C$21,IF(AND(A52>$E$3,A52<=$E$2),$E$4,"")) ->  | D52: =IF(A52<=$E$2,-PMT(C52/12,IF(C52=КАЛЬКУЛЯТОР!$C$21,$E$2,$E$2-$E$3),IF(C52=КАЛЬКУЛЯТОР!$C$21,$I$11,$I$11-SUMIF($A$12:$A$371,"<="&$E$3,$H$12:$H$371)),0,0),"") ->  | F52: =IFERROR((-IPMT(C52/12,B52,IF(C52=КАЛЬКУЛЯТОР!$C$21,$E$2,$E$2-$E$3),IF(C52=КАЛЬКУЛЯТОР!$C$21,$I$11,$I$11-SUMIF($A$12:$A$371,"<="&$E$3,$H$12:$H$371)),0,0)),"") ->  | G52: =IFERROR((-IPMT((C52-'КАЛЬКУЛЯТОР 1'!$P$1)/12,B52,IF(C52=КАЛЬКУЛЯТОР!$C$21,$E$2,$E$2-$E$3),IF(C52=КАЛЬКУЛЯТОР!$C$21,$I$11,$I$11-SUMIF($A$12:$A$371,"<="&$E$3,$H$12:$H$371)),0,0)),"") ->  | H52: =IFERROR((-PPMT(C52/12,B52,IF(C52=КАЛЬКУЛЯТОР!$C$21,$E$2,$E$2-$E$3),IF(C52=КАЛЬКУЛЯТОР!$C$21,$I$11,$I$11-SUMIF($A$12:$A$371,"<="&$E$3,$H$12:$H$371)),0,0)),"") ->  | P52: FALSE
A53: 42 | B53: 42 | C53: =IF(A53<=$E$3,КАЛЬКУЛЯТОР!$C$21,IF(AND(A53>$E$3,A53<=$E$2),$E$4,"")) ->  | D53: =IF(A53<=$E$2,-PMT(C53/12,IF(C53=КАЛЬКУЛЯТОР!$C$21,$E$2,$E$2-$E$3),IF(C53=КАЛЬКУЛЯТОР!$C$21,$I$11,$I$11-SUMIF($A$12:$A$371,"<="&$E$3,$H$12:$H$371)),0,0),"") ->  | F53: =IFERROR((-IPMT(C53/12,B53,IF(C53=КАЛЬКУЛЯТОР!$C$21,$E$2,$E$2-$E$3),IF(C53=КАЛЬКУЛЯТОР!$C$21,$I$11,$I$11-SUMIF($A$12:$A$371,"<="&$E$3,$H$12:$H$371)),0,0)),"") ->  | G53: =IFERROR((-IPMT((C53-'КАЛЬКУЛЯТОР 1'!$P$1)/12,B53,IF(C53=КАЛЬКУЛЯТОР!$C$21,$E$2,$E$2-$E$3),IF(C53=КАЛЬКУЛЯТОР!$C$21,$I$11,$I$11-SUMIF($A$12:$A$371,"<="&$E$3,$H$12:$H$371)),0,0)),"") ->  | H53: =IFERROR((-PPMT(C53/12,B53,IF(C53=КАЛЬКУЛЯТОР!$C$21,$E$2,$E$2-$E$3),IF(C53=КАЛЬКУЛЯТОР!$C$21,$I$11,$I$11-SUMIF($A$12:$A$371,"<="&$E$3,$H$12:$H$371)),0,0)),"") ->  | P53: FALSE
A54: 43 | B54: 43 | C54: =IF(A54<=$E$3,КАЛЬКУЛЯТОР!$C$21,IF(AND(A54>$E$3,A54<=$E$2),$E$4,"")) ->  | D54: =IF(A54<=$E$2,-PMT(C54/12,IF(C54=КАЛЬКУЛЯТОР!$C$21,$E$2,$E$2-$E$3),IF(C54=КАЛЬКУЛЯТОР!$C$21,$I$11,$I$11-SUMIF($A$12:$A$371,"<="&$E$3,$H$12:$H$371)),0,0),"") ->  | F54: =IFERROR((-IPMT(C54/12,B54,IF(C54=КАЛЬКУЛЯТОР!$C$21,$E$2,$E$2-$E$3),IF(C54=КАЛЬКУЛЯТОР!$C$21,$I$11,$I$11-SUMIF($A$12:$A$371,"<="&$E$3,$H$12:$H$371)),0,0)),"") ->  | G54: =IFERROR((-IPMT((C54-'КАЛЬКУЛЯТОР 1'!$P$1)/12,B54,IF(C54=КАЛЬКУЛЯТОР!$C$21,$E$2,$E$2-$E$3),IF(C54=КАЛЬКУЛЯТОР!$C$21,$I$11,$I$11-SUMIF($A$12:$A$371,"<="&$E$3,$H$12:$H$371)),0,0)),"") ->  | H54: =IFERROR((-PPMT(C54/12,B54,IF(C54=КАЛЬКУЛЯТОР!$C$21,$E$2,$E$2-$E$3),IF(C54=КАЛЬКУЛЯТОР!$C$21,$I$11,$I$11-SUMIF($A$12:$A$371,"<="&$E$3,$H$12:$H$371)),0,0)),"") ->  | P54: FALSE
A55: 44 | B55: 44 | C55: =IF(A55<=$E$3,КАЛЬКУЛЯТОР!$C$21,IF(AND(A55>$E$3,A55<=$E$2),$E$4,"")) ->  | D55: =IF(A55<=$E$2,-PMT(C55/12,IF(C55=КАЛЬКУЛЯТОР!$C$21,$E$2,$E$2-$E$3),IF(C55=КАЛЬКУЛЯТОР!$C$21,$I$11,$I$11-SUMIF($A$12:$A$371,"<="&$E$3,$H$12:$H$371)),0,0),"") ->  | F55: =IFERROR((-IPMT(C55/12,B55,IF(C55=КАЛЬКУЛЯТОР!$C$21,$E$2,$E$2-$E$3),IF(C55=КАЛЬКУЛЯТОР!$C$21,$I$11,$I$11-SUMIF($A$12:$A$371,"<="&$E$3,$H$12:$H$371)),0,0)),"") ->  | G55: =IFERROR((-IPMT((C55-'КАЛЬКУЛЯТОР 1'!$P$1)/12,B55,IF(C55=КАЛЬКУЛЯТОР!$C$21,$E$2,$E$2-$E$3),IF(C55=КАЛЬКУЛЯТОР!$C$21,$I$11,$I$11-SUMIF($A$12:$A$371,"<="&$E$3,$H$12:$H$371)),0,0)),"") ->  | H55: =IFERROR((-PPMT(C55/12,B55,IF(C55=КАЛЬКУЛЯТОР!$C$21,$E$2,$E$2-$E$3),IF(C55=КАЛЬКУЛЯТОР!$C$21,$I$11,$I$11-SUMIF($A$12:$A$371,"<="&$E$3,$H$12:$H$371)),0,0)),"") ->  | P55: FALSE
A56: 45 | B56: 45 | C56: =IF(A56<=$E$3,КАЛЬКУЛЯТОР!$C$21,IF(AND(A56>$E$3,A56<=$E$2),$E$4,"")) ->  | D56: =IF(A56<=$E$2,-PMT(C56/12,IF(C56=КАЛЬКУЛЯТОР!$C$21,$E$2,$E$2-$E$3),IF(C56=КАЛЬКУЛЯТОР!$C$21,$I$11,$I$11-SUMIF($A$12:$A$371,"<="&$E$3,$H$12:$H$371)),0,0),"") ->  | F56: =IFERROR((-IPMT(C56/12,B56,IF(C56=КАЛЬКУЛЯТОР!$C$21,$E$2,$E$2-$E$3),IF(C56=КАЛЬКУЛЯТОР!$C$21,$I$11,$I$11-SUMIF($A$12:$A$371,"<="&$E$3,$H$12:$H$371)),0,0)),"") ->  | G56: =IFERROR((-IPMT((C56-'КАЛЬКУЛЯТОР 1'!$P$1)/12,B56,IF(C56=КАЛЬКУЛЯТОР!$C$21,$E$2,$E$2-$E$3),IF(C56=КАЛЬКУЛЯТОР!$C$21,$I$11,$I$11-SUMIF($A$12:$A$371,"<="&$E$3,$H$12:$H$371)),0,0)),"") ->  | H56: =IFERROR((-PPMT(C56/12,B56,IF(C56=КАЛЬКУЛЯТОР!$C$21,$E$2,$E$2-$E$3),IF(C56=КАЛЬКУЛЯТОР!$C$21,$I$11,$I$11-SUMIF($A$12:$A$371,"<="&$E$3,$H$12:$H$371)),0,0)),"") ->  | P56: FALSE
A57: 46 | B57: 46 | C57: =IF(A57<=$E$3,КАЛЬКУЛЯТОР!$C$21,IF(AND(A57>$E$3,A57<=$E$2),$E$4,"")) ->  | D57: =IF(A57<=$E$2,-PMT(C57/12,IF(C57=КАЛЬКУЛЯТОР!$C$21,$E$2,$E$2-$E$3),IF(C57=КАЛЬКУЛЯТОР!$C$21,$I$11,$I$11-SUMIF($A$12:$A$371,"<="&$E$3,$H$12:$H$371)),0,0),"") ->  | F57: =IFERROR((-IPMT(C57/12,B57,IF(C57=КАЛЬКУЛЯТОР!$C$21,$E$2,$E$2-$E$3),IF(C57=КАЛЬКУЛЯТОР!$C$21,$I$11,$I$11-SUMIF($A$12:$A$371,"<="&$E$3,$H$12:$H$371)),0,0)),"") ->  | G57: =IFERROR((-IPMT((C57-'КАЛЬКУЛЯТОР 1'!$P$1)/12,B57,IF(C57=КАЛЬКУЛЯТОР!$C$21,$E$2,$E$2-$E$3),IF(C57=КАЛЬКУЛЯТОР!$C$21,$I$11,$I$11-SUMIF($A$12:$A$371,"<="&$E$3,$H$12:$H$371)),0,0)),"") ->  | H57: =IFERROR((-PPMT(C57/12,B57,IF(C57=КАЛЬКУЛЯТОР!$C$21,$E$2,$E$2-$E$3),IF(C57=КАЛЬКУЛЯТОР!$C$21,$I$11,$I$11-SUMIF($A$12:$A$371,"<="&$E$3,$H$12:$H$371)),0,0)),"") ->  | P57: FALSE
A58: 47 | B58: 47 | C58: =IF(A58<=$E$3,КАЛЬКУЛЯТОР!$C$21,IF(AND(A58>$E$3,A58<=$E$2),$E$4,"")) ->  | D58: =IF(A58<=$E$2,-PMT(C58/12,IF(C58=КАЛЬКУЛЯТОР!$C$21,$E$2,$E$2-$E$3),IF(C58=КАЛЬКУЛЯТОР!$C$21,$I$11,$I$11-SUMIF($A$12:$A$371,"<="&$E$3,$H$12:$H$371)),0,0),"") ->  | F58: =IFERROR((-IPMT(C58/12,B58,IF(C58=КАЛЬКУЛЯТОР!$C$21,$E$2,$E$2-$E$3),IF(C58=КАЛЬКУЛЯТОР!$C$21,$I$11,$I$11-SUMIF($A$12:$A$371,"<="&$E$3,$H$12:$H$371)),0,0)),"") ->  | G58: =IFERROR((-IPMT((C58-'КАЛЬКУЛЯТОР 1'!$P$1)/12,B58,IF(C58=КАЛЬКУЛЯТОР!$C$21,$E$2,$E$2-$E$3),IF(C58=КАЛЬКУЛЯТОР!$C$21,$I$11,$I$11-SUMIF($A$12:$A$371,"<="&$E$3,$H$12:$H$371)),0,0)),"") ->  | H58: =IFERROR((-PPMT(C58/12,B58,IF(C58=КАЛЬКУЛЯТОР!$C$21,$E$2,$E$2-$E$3),IF(C58=КАЛЬКУЛЯТОР!$C$21,$I$11,$I$11-SUMIF($A$12:$A$371,"<="&$E$3,$H$12:$H$371)),0,0)),"") ->  | P58: FALSE
A59: 48 | B59: 48 | C59: =IF(A59<=$E$3,КАЛЬКУЛЯТОР!$C$21,IF(AND(A59>$E$3,A59<=$E$2),$E$4,"")) ->  | D59: =IF(A59<=$E$2,-PMT(C59/12,IF(C59=КАЛЬКУЛЯТОР!$C$21,$E$2,$E$2-$E$3),IF(C59=КАЛЬКУЛЯТОР!$C$21,$I$11,$I$11-SUMIF($A$12:$A$371,"<="&$E$3,$H$12:$H$371)),0,0),"") ->  | F59: =IFERROR((-IPMT(C59/12,B59,IF(C59=КАЛЬКУЛЯТОР!$C$21,$E$2,$E$2-$E$3),IF(C59=КАЛЬКУЛЯТОР!$C$21,$I$11,$I$11-SUMIF($A$12:$A$371,"<="&$E$3,$H$12:$H$371)),0,0)),"") ->  | G59: =IFERROR((-IPMT((C59-'КАЛЬКУЛЯТОР 1'!$P$1)/12,B59,IF(C59=КАЛЬКУЛЯТОР!$C$21,$E$2,$E$2-$E$3),IF(C59=КАЛЬКУЛЯТОР!$C$21,$I$11,$I$11-SUMIF($A$12:$A$371,"<="&$E$3,$H$12:$H$371)),0,0)),"") ->  | H59: =IFERROR((-PPMT(C59/12,B59,IF(C59=КАЛЬКУЛЯТОР!$C$21,$E$2,$E$2-$E$3),IF(C59=КАЛЬКУЛЯТОР!$C$21,$I$11,$I$11-SUMIF($A$12:$A$371,"<="&$E$3,$H$12:$H$371)),0,0)),"") ->  | P59: FALSE
A60: 49 | B60: 49 | C60: =IF(A60<=$E$3,КАЛЬКУЛЯТОР!$C$21,IF(AND(A60>$E$3,A60<=$E$2),$E$4,"")) ->  | D60: =IF(A60<=$E$2,-PMT(C60/12,IF(C60=КАЛЬКУЛЯТОР!$C$21,$E$2,$E$2-$E$3),IF(C60=КАЛЬКУЛЯТОР!$C$21,$I$11,$I$11-SUMIF($A$12:$A$371,"<="&$E$3,$H$12:$H$371)),0,0)+E60,"") ->  | E60: =IF($E$2>$A59,(I59+SUM(F60:F71))*($K$4+$K$5),0) -> 0.00 | F60: =IFERROR((-IPMT(C60/12,B60,IF(C60=КАЛЬКУЛЯТОР!$C$21,$E$2,$E$2-$E$3),IF(C60=КАЛЬКУЛЯТОР!$C$21,$I$11,$I$11-SUMIF($A$12:$A$371,"<="&$E$3,$H$12:$H$371)),0,0)),"") ->  | G60: =IFERROR((-IPMT((C60-'КАЛЬКУЛЯТОР 1'!$P$1)/12,B60,IF(C60=КАЛЬКУЛЯТОР!$C$21,$E$2,$E$2-$E$3),IF(C60=КАЛЬКУЛЯТОР!$C$21,$I$11,$I$11-SUMIF($A$12:$A$371,"<="&$E$3,$H$12:$H$371)),0,0)),"") ->  | H60: =IFERROR((-PPMT(C60/12,B60,IF(C60=КАЛЬКУЛЯТОР!$C$21,$E$2,$E$2-$E$3),IF(C60=КАЛЬКУЛЯТОР!$C$21,$I$11,$I$11-SUMIF($A$12:$A$371,"<="&$E$3,$H$12:$H$371)),0,0)),"") ->  | K60: =PV($E$5/12,A60-1,0,-E60) -> 0.00 | P60: FALSE
A61: 50 | B61: 50 | C61: =IF(A61<=$E$3,КАЛЬКУЛЯТОР!$C$21,IF(AND(A61>$E$3,A61<=$E$2),$E$4,"")) ->  | D61: =IF(A61<=$E$2,-PMT(C61/12,IF(C61=КАЛЬКУЛЯТОР!$C$21,$E$2,$E$2-$E$3),IF(C61=КАЛЬКУЛЯТОР!$C$21,$I$11,$I$11-SUMIF($A$12:$A$371,"<="&$E$3,$H$12:$H$371)),0,0),"") ->  | F61: =IFERROR((-IPMT(C61/12,B61,IF(C61=КАЛЬКУЛЯТОР!$C$21,$E$2,$E$2-$E$3),IF(C61=КАЛЬКУЛЯТОР!$C$21,$I$11,$I$11-SUMIF($A$12:$A$371,"<="&$E$3,$H$12:$H$371)),0,0)),"") ->  | G61: =IFERROR((-IPMT((C61-'КАЛЬКУЛЯТОР 1'!$P$1)/12,B61,IF(C61=КАЛЬКУЛЯТОР!$C$21,$E$2,$E$2-$E$3),IF(C61=КАЛЬКУЛЯТОР!$C$21,$I$11,$I$11-SUMIF($A$12:$A$371,"<="&$E$3,$H$12:$H$371)),0,0)),"") ->  | H61: =IFERROR((-PPMT(C61/12,B61,IF(C61=КАЛЬКУЛЯТОР!$C$21,$E$2,$E$2-$E$3),IF(C61=КАЛЬКУЛЯТОР!$C$21,$I$11,$I$11-SUMIF($A$12:$A$371,"<="&$E$3,$H$12:$H$371)),0,0)),"") ->  | P61: FALSE
A62: 51 | B62: 51 | C62: =IF(A62<=$E$3,КАЛЬКУЛЯТОР!$C$21,IF(AND(A62>$E$3,A62<=$E$2),$E$4,"")) ->  | D62: =IF(A62<=$E$2,-PMT(C62/12,IF(C62=КАЛЬКУЛЯТОР!$C$21,$E$2,$E$2-$E$3),IF(C62=КАЛЬКУЛЯТОР!$C$21,$I$11,$I$11-SUMIF($A$12:$A$371,"<="&$E$3,$H$12:$H$371)),0,0),"") ->  | F62: =IFERROR((-IPMT(C62/12,B62,IF(C62=КАЛЬКУЛЯТОР!$C$21,$E$2,$E$2-$E$3),IF(C62=КАЛЬКУЛЯТОР!$C$21,$I$11,$I$11-SUMIF($A$12:$A$371,"<="&$E$3,$H$12:$H$371)),0,0)),"") ->  | G62: =IFERROR((-IPMT((C62-'КАЛЬКУЛЯТОР 1'!$P$1)/12,B62,IF(C62=КАЛЬКУЛЯТОР!$C$21,$E$2,$E$2-$E$3),IF(C62=КАЛЬКУЛЯТОР!$C$21,$I$11,$I$11-SUMIF($A$12:$A$371,"<="&$E$3,$H$12:$H$371)),0,0)),"") ->  | H62: =IFERROR((-PPMT(C62/12,B62,IF(C62=КАЛЬКУЛЯТОР!$C$21,$E$2,$E$2-$E$3),IF(C62=КАЛЬКУЛЯТОР!$C$21,$I$11,$I$11-SUMIF($A$12:$A$371,"<="&$E$3,$H$12:$H$371)),0,0)),"") ->  | P62: FALSE
A63: 52 | B63: 52 | C63: =IF(A63<=$E$3,КАЛЬКУЛЯТОР!$C$21,IF(AND(A63>$E$3,A63<=$E$2),$E$4,"")) ->  | D63: =IF(A63<=$E$2,-PMT(C63/12,IF(C63=КАЛЬКУЛЯТОР!$C$21,$E$2,$E$2-$E$3),IF(C63=КАЛЬКУЛЯТОР!$C$21,$I$11,$I$11-SUMIF($A$12:$A$371,"<="&$E$3,$H$12:$H$371)),0,0),"") ->  | F63: =IFERROR((-IPMT(C63/12,B63,IF(C63=КАЛЬКУЛЯТОР!$C$21,$E$2,$E$2-$E$3),IF(C63=КАЛЬКУЛЯТОР!$C$21,$I$11,$I$11-SUMIF($A$12:$A$371,"<="&$E$3,$H$12:$H$371)),0,0)),"") ->  | G63: =IFERROR((-IPMT((C63-'КАЛЬКУЛЯТОР 1'!$P$1)/12,B63,IF(C63=КАЛЬКУЛЯТОР!$C$21,$E$2,$E$2-$E$3),IF(C63=КАЛЬКУЛЯТОР!$C$21,$I$11,$I$11-SUMIF($A$12:$A$371,"<="&$E$3,$H$12:$H$371)),0,0)),"") ->  | H63: =IFERROR((-PPMT(C63/12,B63,IF(C63=КАЛЬКУЛЯТОР!$C$21,$E$2,$E$2-$E$3),IF(C63=КАЛЬКУЛЯТОР!$C$21,$I$11,$I$11-SUMIF($A$12:$A$371,"<="&$E$3,$H$12:$H$371)),0,0)),"") ->  | P63: FALSE
A64: 53 | B64: 53 | C64: =IF(A64<=$E$3,КАЛЬКУЛЯТОР!$C$21,IF(AND(A64>$E$3,A64<=$E$2),$E$4,"")) ->  | D64: =IF(A64<=$E$2,-PMT(C64/12,IF(C64=КАЛЬКУЛЯТОР!$C$21,$E$2,$E$2-$E$3),IF(C64=КАЛЬКУЛЯТОР!$C$21,$I$11,$I$11-SUMIF($A$12:$A$371,"<="&$E$3,$H$12:$H$371)),0,0),"") ->  | F64: =IFERROR((-IPMT(C64/12,B64,IF(C64=КАЛЬКУЛЯТОР!$C$21,$E$2,$E$2-$E$3),IF(C64=КАЛЬКУЛЯТОР!$C$21,$I$11,$I$11-SUMIF($A$12:$A$371,"<="&$E$3,$H$12:$H$371)),0,0)),"") ->  | G64: =IFERROR((-IPMT((C64-'КАЛЬКУЛЯТОР 1'!$P$1)/12,B64,IF(C64=КАЛЬКУЛЯТОР!$C$21,$E$2,$E$2-$E$3),IF(C64=КАЛЬКУЛЯТОР!$C$21,$I$11,$I$11-SUMIF($A$12:$A$371,"<="&$E$3,$H$12:$H$371)),0,0)),"") ->  | H64: =IFERROR((-PPMT(C64/12,B64,IF(C64=КАЛЬКУЛЯТОР!$C$21,$E$2,$E$2-$E$3),IF(C64=КАЛЬКУЛЯТОР!$C$21,$I$11,$I$11-SUMIF($A$12:$A$371,"<="&$E$3,$H$12:$H$371)),0,0)),"") ->  | P64: FALSE
A65: 54 | B65: 54 | C65: =IF(A65<=$E$3,КАЛЬКУЛЯТОР!$C$21,IF(AND(A65>$E$3,A65<=$E$2),$E$4,"")) ->  | D65: =IF(A65<=$E$2,-PMT(C65/12,IF(C65=КАЛЬКУЛЯТОР!$C$21,$E$2,$E$2-$E$3),IF(C65=КАЛЬКУЛЯТОР!$C$21,$I$11,$I$11-SUMIF($A$12:$A$371,"<="&$E$3,$H$12:$H$371)),0,0),"") ->  | F65: =IFERROR((-IPMT(C65/12,B65,IF(C65=КАЛЬКУЛЯТОР!$C$21,$E$2,$E$2-$E$3),IF(C65=КАЛЬКУЛЯТОР!$C$21,$I$11,$I$11-SUMIF($A$12:$A$371,"<="&$E$3,$H$12:$H$371)),0,0)),"") ->  | G65: =IFERROR((-IPMT((C65-'КАЛЬКУЛЯТОР 1'!$P$1)/12,B65,IF(C65=КАЛЬКУЛЯТОР!$C$21,$E$2,$E$2-$E$3),IF(C65=КАЛЬКУЛЯТОР!$C$21,$I$11,$I$11-SUMIF($A$12:$A$371,"<="&$E$3,$H$12:$H$371)),0,0)),"") ->  | H65: =IFERROR((-PPMT(C65/12,B65,IF(C65=КАЛЬКУЛЯТОР!$C$21,$E$2,$E$2-$E$3),IF(C65=КАЛЬКУЛЯТОР!$C$21,$I$11,$I$11-SUMIF($A$12:$A$371,"<="&$E$3,$H$12:$H$371)),0,0)),"") ->  | P65: FALSE
A66: 55 | B66: 55 | C66: =IF(A66<=$E$3,КАЛЬКУЛЯТОР!$C$21,IF(AND(A66>$E$3,A66<=$E$2),$E$4,"")) ->  | D66: =IF(A66<=$E$2,-PMT(C66/12,IF(C66=КАЛЬКУЛЯТОР!$C$21,$E$2,$E$2-$E$3),IF(C66=КАЛЬКУЛЯТОР!$C$21,$I$11,$I$11-SUMIF($A$12:$A$371,"<="&$E$3,$H$12:$H$371)),0,0),"") ->  | F66: =IFERROR((-IPMT(C66/12,B66,IF(C66=КАЛЬКУЛЯТОР!$C$21,$E$2,$E$2-$E$3),IF(C66=КАЛЬКУЛЯТОР!$C$21,$I$11,$I$11-SUMIF($A$12:$A$371,"<="&$E$3,$H$12:$H$371)),0,0)),"") ->  | G66: =IFERROR((-IPMT((C66-'КАЛЬКУЛЯТОР 1'!$P$1)/12,B66,IF(C66=КАЛЬКУЛЯТОР!$C$21,$E$2,$E$2-$E$3),IF(C66=КАЛЬКУЛЯТОР!$C$21,$I$11,$I$11-SUMIF($A$12:$A$371,"<="&$E$3,$H$12:$H$371)),0,0)),"") ->  | H66: =IFERROR((-PPMT(C66/12,B66,IF(C66=КАЛЬКУЛЯТОР!$C$21,$E$2,$E$2-$E$3),IF(C66=КАЛЬКУЛЯТОР!$C$21,$I$11,$I$11-SUMIF($A$12:$A$371,"<="&$E$3,$H$12:$H$371)),0,0)),"") ->  | P66: FALSE
A67: 56 | B67: 56 | C67: =IF(A67<=$E$3,КАЛЬКУЛЯТОР!$C$21,IF(AND(A67>$E$3,A67<=$E$2),$E$4,"")) ->  | D67: =IF(A67<=$E$2,-PMT(C67/12,IF(C67=КАЛЬКУЛЯТОР!$C$21,$E$2,$E$2-$E$3),IF(C67=КАЛЬКУЛЯТОР!$C$21,$I$11,$I$11-SUMIF($A$12:$A$371,"<="&$E$3,$H$12:$H$371)),0,0),"") ->  | F67: =IFERROR((-IPMT(C67/12,B67,IF(C67=КАЛЬКУЛЯТОР!$C$21,$E$2,$E$2-$E$3),IF(C67=КАЛЬКУЛЯТОР!$C$21,$I$11,$I$11-SUMIF($A$12:$A$371,"<="&$E$3,$H$12:$H$371)),0,0)),"") ->  | G67: =IFERROR((-IPMT((C67-'КАЛЬКУЛЯТОР 1'!$P$1)/12,B67,IF(C67=КАЛЬКУЛЯТОР!$C$21,$E$2,$E$2-$E$3),IF(C67=КАЛЬКУЛЯТОР!$C$21,$I$11,$I$11-SUMIF($A$12:$A$371,"<="&$E$3,$H$12:$H$371)),0,0)),"") ->  | H67: =IFERROR((-PPMT(C67/12,B67,IF(C67=КАЛЬКУЛЯТОР!$C$21,$E$2,$E$2-$E$3),IF(C67=КАЛЬКУЛЯТОР!$C$21,$I$11,$I$11-SUMIF($A$12:$A$371,"<="&$E$3,$H$12:$H$371)),0,0)),"") ->  | P67: FALSE
A68: 57 | B68: 57 | C68: =IF(A68<=$E$3,КАЛЬКУЛЯТОР!$C$21,IF(AND(A68>$E$3,A68<=$E$2),$E$4,"")) ->  | D68: =IF(A68<=$E$2,-PMT(C68/12,IF(C68=КАЛЬКУЛЯТОР!$C$21,$E$2,$E$2-$E$3),IF(C68=КАЛЬКУЛЯТОР!$C$21,$I$11,$I$11-SUMIF($A$12:$A$371,"<="&$E$3,$H$12:$H$371)),0,0),"") ->  | F68: =IFERROR((-IPMT(C68/12,B68,IF(C68=КАЛЬКУЛЯТОР!$C$21,$E$2,$E$2-$E$3),IF(C68=КАЛЬКУЛЯТОР!$C$21,$I$11,$I$11-SUMIF($A$12:$A$371,"<="&$E$3,$H$12:$H$371)),0,0)),"") ->  | G68: =IFERROR((-IPMT((C68-'КАЛЬКУЛЯТОР 1'!$P$1)/12,B68,IF(C68=КАЛЬКУЛЯТОР!$C$21,$E$2,$E$2-$E$3),IF(C68=КАЛЬКУЛЯТОР!$C$21,$I$11,$I$11-SUMIF($A$12:$A$371,"<="&$E$3,$H$12:$H$371)),0,0)),"") ->  | H68: =IFERROR((-PPMT(C68/12,B68,IF(C68=КАЛЬКУЛЯТОР!$C$21,$E$2,$E$2-$E$3),IF(C68=КАЛЬКУЛЯТОР!$C$21,$I$11,$I$11-SUMIF($A$12:$A$371,"<="&$E$3,$H$12:$H$371)),0,0)),"") ->  | P68: FALSE
A69: 58 | B69: 58 | C69: =IF(A69<=$E$3,КАЛЬКУЛЯТОР!$C$21,IF(AND(A69>$E$3,A69<=$E$2),$E$4,"")) ->  | D69: =IF(A69<=$E$2,-PMT(C69/12,IF(C69=КАЛЬКУЛЯТОР!$C$21,$E$2,$E$2-$E$3),IF(C69=КАЛЬКУЛЯТОР!$C$21,$I$11,$I$11-SUMIF($A$12:$A$371,"<="&$E$3,$H$12:$H$371)),0,0),"") ->  | F69: =IFERROR((-IPMT(C69/12,B69,IF(C69=КАЛЬКУЛЯТОР!$C$21,$E$2,$E$2-$E$3),IF(C69=КАЛЬКУЛЯТОР!$C$21,$I$11,$I$11-SUMIF($A$12:$A$371,"<="&$E$3,$H$12:$H$371)),0,0)),"") ->  | G69: =IFERROR((-IPMT((C69-'КАЛЬКУЛЯТОР 1'!$P$1)/12,B69,IF(C69=КАЛЬКУЛЯТОР!$C$21,$E$2,$E$2-$E$3),IF(C69=КАЛЬКУЛЯТОР!$C$21,$I$11,$I$11-SUMIF($A$12:$A$371,"<="&$E$3,$H$12:$H$371)),0,0)),"") ->  | H69: =IFERROR((-PPMT(C69/12,B69,IF(C69=КАЛЬКУЛЯТОР!$C$21,$E$2,$E$2-$E$3),IF(C69=КАЛЬКУЛЯТОР!$C$21,$I$11,$I$11-SUMIF($A$12:$A$371,"<="&$E$3,$H$12:$H$371)),0,0)),"") ->  | P69: FALSE
A70: 59 | B70: 59 | C70: =IF(A70<=$E$3,КАЛЬКУЛЯТОР!$C$21,IF(AND(A70>$E$3,A70<=$E$2),$E$4,"")) ->  | D70: =IF(A70<=$E$2,-PMT(C70/12,IF(C70=КАЛЬКУЛЯТОР!$C$21,$E$2,$E$2-$E$3),IF(C70=КАЛЬКУЛЯТОР!$C$21,$I$11,$I$11-SUMIF($A$12:$A$371,"<="&$E$3,$H$12:$H$371)),0,0),"") ->  | F70: =IFERROR((-IPMT(C70/12,B70,IF(C70=КАЛЬКУЛЯТОР!$C$21,$E$2,$E$2-$E$3),IF(C70=КАЛЬКУЛЯТОР!$C$21,$I$11,$I$11-SUMIF($A$12:$A$371,"<="&$E$3,$H$12:$H$371)),0,0)),"") ->  | G70: =IFERROR((-IPMT((C70-'КАЛЬКУЛЯТОР 1'!$P$1)/12,B70,IF(C70=КАЛЬКУЛЯТОР!$C$21,$E$2,$E$2-$E$3),IF(C70=КАЛЬКУЛЯТОР!$C$21,$I$11,$I$11-SUMIF($A$12:$A$371,"<="&$E$3,$H$12:$H$371)),0,0)),"") ->  | H70: =IFERROR((-PPMT(C70/12,B70,IF(C70=КАЛЬКУЛЯТОР!$C$21,$E$2,$E$2-$E$3),IF(C70=КАЛЬКУЛЯТОР!$C$21,$I$11,$I$11-SUMIF($A$12:$A$371,"<="&$E$3,$H$12:$H$371)),0,0)),"") ->  | P70: FALSE
A71: 60 | B71: 60 | C71: =IF(A71<=$E$3,КАЛЬКУЛЯТОР!$C$21,IF(AND(A71>$E$3,A71<=$E$2),$E$4,"")) ->  | D71: =IF(A71<=$E$2,-PMT(C71/12,IF(C71=КАЛЬКУЛЯТОР!$C$21,$E$2,$E$2-$E$3),IF(C71=КАЛЬКУЛЯТОР!$C$21,$I$11,$I$11-SUMIF($A$12:$A$371,"<="&$E$3,$H$12:$H$371)),0,0),"") ->  | F71: =IFERROR((-IPMT(C71/12,B71,IF(C71=КАЛЬКУЛЯТОР!$C$21,$E$2,$E$2-$E$3),IF(C71=КАЛЬКУЛЯТОР!$C$21,$I$11,$I$11-SUMIF($A$12:$A$371,"<="&$E$3,$H$12:$H$371)),0,0)),"") ->  | G71: =IFERROR((-IPMT((C71-'КАЛЬКУЛЯТОР 1'!$P$1)/12,B71,IF(C71=КАЛЬКУЛЯТОР!$C$21,$E$2,$E$2-$E$3),IF(C71=КАЛЬКУЛЯТОР!$C$21,$I$11,$I$11-SUMIF($A$12:$A$371,"<="&$E$3,$H$12:$H$371)),0,0)),"") ->  | H71: =IFERROR((-PPMT(C71/12,B71,IF(C71=КАЛЬКУЛЯТОР!$C$21,$E$2,$E$2-$E$3),IF(C71=КАЛЬКУЛЯТОР!$C$21,$I$11,$I$11-SUMIF($A$12:$A$371,"<="&$E$3,$H$12:$H$371)),0,0)),"") ->  | P71: FALSE
A72: 61 | B72: 61 | C72: =IF(A72<=$E$3,КАЛЬКУЛЯТОР!$C$21,IF(AND(A72>$E$3,A72<=$E$2),$E$4,"")) ->  | D72: =IF(A72<=$E$2,-PMT(C72/12,IF(C72=КАЛЬКУЛЯТОР!$C$21,$E$2,$E$2-$E$3),IF(C72=КАЛЬКУЛЯТОР!$C$21,$I$11,$I$11-SUMIF($A$12:$A$371,"<="&$E$3,$H$12:$H$371)),0,0)+E72,"") ->  | E72: =IF($E$2>$A71,(I71+SUM(F72:F83))*($K$4+$K$5),0) -> 0.00 | F72: =IFERROR((-IPMT(C72/12,B72,IF(C72=КАЛЬКУЛЯТОР!$C$21,$E$2,$E$2-$E$3),IF(C72=КАЛЬКУЛЯТОР!$C$21,$I$11,$I$11-SUMIF($A$12:$A$371,"<="&$E$3,$H$12:$H$371)),0,0)),"") ->  | G72: =IFERROR((-IPMT((C72-'КАЛЬКУЛЯТОР 1'!$P$1)/12,B72,IF(C72=КАЛЬКУЛЯТОР!$C$21,$E$2,$E$2-$E$3),IF(C72=КАЛЬКУЛЯТОР!$C$21,$I$11,$I$11-SUMIF($A$12:$A$371,"<="&$E$3,$H$12:$H$371)),0,0)),"") ->  | H72: =IFERROR((-PPMT(C72/12,B72,IF(C72=КАЛЬКУЛЯТОР!$C$21,$E$2,$E$2-$E$3),IF(C72=КАЛЬКУЛЯТОР!$C$21,$I$11,$I$11-SUMIF($A$12:$A$371,"<="&$E$3,$H$12:$H$371)),0,0)),"") ->  | K72: =PV($E$5/12,A72-1,0,-E72) -> 0.00 | P72: FALSE
A73: 62 | B73: 62 | C73: =IF(A73<=$E$3,КАЛЬКУЛЯТОР!$C$21,IF(AND(A73>$E$3,A73<=$E$2),$E$4,"")) ->  | D73: =IF(A73<=$E$2,-PMT(C73/12,IF(C73=КАЛЬКУЛЯТОР!$C$21,$E$2,$E$2-$E$3),IF(C73=КАЛЬКУЛЯТОР!$C$21,$I$11,$I$11-SUMIF($A$12:$A$371,"<="&$E$3,$H$12:$H$371)),0,0),"") ->  | F73: =IFERROR((-IPMT(C73/12,B73,IF(C73=КАЛЬКУЛЯТОР!$C$21,$E$2,$E$2-$E$3),IF(C73=КАЛЬКУЛЯТОР!$C$21,$I$11,$I$11-SUMIF($A$12:$A$371,"<="&$E$3,$H$12:$H$371)),0,0)),"") ->  | G73: =IFERROR((-IPMT((C73-'КАЛЬКУЛЯТОР 1'!$P$1)/12,B73,IF(C73=КАЛЬКУЛЯТОР!$C$21,$E$2,$E$2-$E$3),IF(C73=КАЛЬКУЛЯТОР!$C$21,$I$11,$I$11-SUMIF($A$12:$A$371,"<="&$E$3,$H$12:$H$371)),0,0)),"") ->  | H73: =IFERROR((-PPMT(C73/12,B73,IF(C73=КАЛЬКУЛЯТОР!$C$21,$E$2,$E$2-$E$3),IF(C73=КАЛЬКУЛЯТОР!$C$21,$I$11,$I$11-SUMIF($A$12:$A$371,"<="&$E$3,$H$12:$H$371)),0,0)),"") ->  | P73: FALSE
A74: 63 | B74: 63 | C74: =IF(A74<=$E$3,КАЛЬКУЛЯТОР!$C$21,IF(AND(A74>$E$3,A74<=$E$2),$E$4,"")) ->  | D74: =IF(A74<=$E$2,-PMT(C74/12,IF(C74=КАЛЬКУЛЯТОР!$C$21,$E$2,$E$2-$E$3),IF(C74=КАЛЬКУЛЯТОР!$C$21,$I$11,$I$11-SUMIF($A$12:$A$371,"<="&$E$3,$H$12:$H$371)),0,0),"") ->  | F74: =IFERROR((-IPMT(C74/12,B74,IF(C74=КАЛЬКУЛЯТОР!$C$21,$E$2,$E$2-$E$3),IF(C74=КАЛЬКУЛЯТОР!$C$21,$I$11,$I$11-SUMIF($A$12:$A$371,"<="&$E$3,$H$12:$H$371)),0,0)),"") ->  | G74: =IFERROR((-IPMT((C74-'КАЛЬКУЛЯТОР 1'!$P$1)/12,B74,IF(C74=КАЛЬКУЛЯТОР!$C$21,$E$2,$E$2-$E$3),IF(C74=КАЛЬКУЛЯТОР!$C$21,$I$11,$I$11-SUMIF($A$12:$A$371,"<="&$E$3,$H$12:$H$371)),0,0)),"") ->  | H74: =IFERROR((-PPMT(C74/12,B74,IF(C74=КАЛЬКУЛЯТОР!$C$21,$E$2,$E$2-$E$3),IF(C74=КАЛЬКУЛЯТОР!$C$21,$I$11,$I$11-SUMIF($A$12:$A$371,"<="&$E$3,$H$12:$H$371)),0,0)),"") ->  | P74: FALSE
A75: 64 | B75: 64 | C75: =IF(A75<=$E$3,КАЛЬКУЛЯТОР!$C$21,IF(AND(A75>$E$3,A75<=$E$2),$E$4,"")) ->  | D75: =IF(A75<=$E$2,-PMT(C75/12,IF(C75=КАЛЬКУЛЯТОР!$C$21,$E$2,$E$2-$E$3),IF(C75=КАЛЬКУЛЯТОР!$C$21,$I$11,$I$11-SUMIF($A$12:$A$371,"<="&$E$3,$H$12:$H$371)),0,0),"") ->  | F75: =IFERROR((-IPMT(C75/12,B75,IF(C75=КАЛЬКУЛЯТОР!$C$21,$E$2,$E$2-$E$3),IF(C75=КАЛЬКУЛЯТОР!$C$21,$I$11,$I$11-SUMIF($A$12:$A$371,"<="&$E$3,$H$12:$H$371)),0,0)),"") ->  | G75: =IFERROR((-IPMT((C75-'КАЛЬКУЛЯТОР 1'!$P$1)/12,B75,IF(C75=КАЛЬКУЛЯТОР!$C$21,$E$2,$E$2-$E$3),IF(C75=КАЛЬКУЛЯТОР!$C$21,$I$11,$I$11-SUMIF($A$12:$A$371,"<="&$E$3,$H$12:$H$371)),0,0)),"") ->  | H75: =IFERROR((-PPMT(C75/12,B75,IF(C75=КАЛЬКУЛЯТОР!$C$21,$E$2,$E$2-$E$3),IF(C75=КАЛЬКУЛЯТОР!$C$21,$I$11,$I$11-SUMIF($A$12:$A$371,"<="&$E$3,$H$12:$H$371)),0,0)),"") ->  | P75: FALSE
A76: 65 | B76: 65 | C76: =IF(A76<=$E$3,КАЛЬКУЛЯТОР!$C$21,IF(AND(A76>$E$3,A76<=$E$2),$E$4,"")) ->  | D76: =IF(A76<=$E$2,-PMT(C76/12,IF(C76=КАЛЬКУЛЯТОР!$C$21,$E$2,$E$2-$E$3),IF(C76=КАЛЬКУЛЯТОР!$C$21,$I$11,$I$11-SUMIF($A$12:$A$371,"<="&$E$3,$H$12:$H$371)),0,0),"") ->  | F76: =IFERROR((-IPMT(C76/12,B76,IF(C76=КАЛЬКУЛЯТОР!$C$21,$E$2,$E$2-$E$3),IF(C76=КАЛЬКУЛЯТОР!$C$21,$I$11,$I$11-SUMIF($A$12:$A$371,"<="&$E$3,$H$12:$H$371)),0,0)),"") ->  | G76: =IFERROR((-IPMT((C76-'КАЛЬКУЛЯТОР 1'!$P$1)/12,B76,IF(C76=КАЛЬКУЛЯТОР!$C$21,$E$2,$E$2-$E$3),IF(C76=КАЛЬКУЛЯТОР!$C$21,$I$11,$I$11-SUMIF($A$12:$A$371,"<="&$E$3,$H$12:$H$371)),0,0)),"") ->  | H76: =IFERROR((-PPMT(C76/12,B76,IF(C76=КАЛЬКУЛЯТОР!$C$21,$E$2,$E$2-$E$3),IF(C76=КАЛЬКУЛЯТОР!$C$21,$I$11,$I$11-SUMIF($A$12:$A$371,"<="&$E$3,$H$12:$H$371)),0,0)),"") ->  | I76: =IFERROR(I75-H76,"") ->  | J76: =PV($E$5/12,A76-1,0,-D76) ->  | L76: =PV($E$5/12,A76-1,0,-F76) ->  | M76: =PV($E$5/12,A76-1,0,-G76) ->  | N76: =PV($E$5/12,A76-1,0,-H76) ->  | O76: =O75-N76 ->  | P76: =AND(A76<=$E$3) -> FALSE
A77: 66 | B77: =ROUND(IF(P77=$P$12,B76+1,A77-$E$3),0) -> 66 | C77: =IF(A77<=$E$3,КАЛЬКУЛЯТОР!$C$21,IF(AND(A77>$E$3,A77<=$E$2),$E$4,"")) ->  | D77: =IF(A77<=$E$2,-PMT(C77/12,IF(C77=КАЛЬКУЛЯТОР!$C$21,$E$2,$E$2-$E$3),IF(C77=КАЛЬКУЛЯТОР!$C$21,$I$11,$I$11-SUMIF($A$12:$A$371,"<="&$E$3,$H$12:$H$371)),0,0),"") ->  | F77: =IFERROR((-IPMT(C77/12,B77,IF(C77=КАЛЬКУЛЯТОР!$C$21,$E$2,$E$2-$E$3),IF(C77=КАЛЬКУЛЯТОР!$C$21,$I$11,$I$11-SUMIF($A$12:$A$371,"<="&$E$3,$H$12:$H$371)),0,0)),"") ->  | G77: =IFERROR((-IPMT((C77-'КАЛЬКУЛЯТОР 1'!$P$1)/12,B77,IF(C77=КАЛЬКУЛЯТОР!$C$21,$E$2,$E$2-$E$3),IF(C77=КАЛЬКУЛЯТОР!$C$21,$I$11,$I$11-SUMIF($A$12:$A$371,"<="&$E$3,$H$12:$H$371)),0,0)),"") ->  | H77: =IFERROR((-PPMT(C77/12,B77,IF(C77=КАЛЬКУЛЯТОР!$C$21,$E$2,$E$2-$E$3),IF(C77=КАЛЬКУЛЯТОР!$C$21,$I$11,$I$11-SUMIF($A$12:$A$371,"<="&$E$3,$H$12:$H$371)),0,0)),"") ->  | P77: FALSE
A78: 67 | B78: 67 | C78: =IF(A78<=$E$3,КАЛЬКУЛЯТОР!$C$21,IF(AND(A78>$E$3,A78<=$E$2),$E$4,"")) ->  | D78: =IF(A78<=$E$2,-PMT(C78/12,IF(C78=КАЛЬКУЛЯТОР!$C$21,$E$2,$E$2-$E$3),IF(C78=КАЛЬКУЛЯТОР!$C$21,$I$11,$I$11-SUMIF($A$12:$A$371,"<="&$E$3,$H$12:$H$371)),0,0),"") ->  | F78: =IFERROR((-IPMT(C78/12,B78,IF(C78=КАЛЬКУЛЯТОР!$C$21,$E$2,$E$2-$E$3),IF(C78=КАЛЬКУЛЯТОР!$C$21,$I$11,$I$11-SUMIF($A$12:$A$371,"<="&$E$3,$H$12:$H$371)),0,0)),"") ->  | G78: =IFERROR((-IPMT((C78-'КАЛЬКУЛЯТОР 1'!$P$1)/12,B78,IF(C78=КАЛЬКУЛЯТОР!$C$21,$E$2,$E$2-$E$3),IF(C78=КАЛЬКУЛЯТОР!$C$21,$I$11,$I$11-SUMIF($A$12:$A$371,"<="&$E$3,$H$12:$H$371)),0,0)),"") ->  | H78: =IFERROR((-PPMT(C78/12,B78,IF(C78=КАЛЬКУЛЯТОР!$C$21,$E$2,$E$2-$E$3),IF(C78=КАЛЬКУЛЯТОР!$C$21,$I$11,$I$11-SUMIF($A$12:$A$371,"<="&$E$3,$H$12:$H$371)),0,0)),"") ->  | P78: FALSE
A79: 68 | B79: 68 | C79: =IF(A79<=$E$3,КАЛЬКУЛЯТОР!$C$21,IF(AND(A79>$E$3,A79<=$E$2),$E$4,"")) ->  | D79: =IF(A79<=$E$2,-PMT(C79/12,IF(C79=КАЛЬКУЛЯТОР!$C$21,$E$2,$E$2-$E$3),IF(C79=КАЛЬКУЛЯТОР!$C$21,$I$11,$I$11-SUMIF($A$12:$A$371,"<="&$E$3,$H$12:$H$371)),0,0),"") ->  | F79: =IFERROR((-IPMT(C79/12,B79,IF(C79=КАЛЬКУЛЯТОР!$C$21,$E$2,$E$2-$E$3),IF(C79=КАЛЬКУЛЯТОР!$C$21,$I$11,$I$11-SUMIF($A$12:$A$371,"<="&$E$3,$H$12:$H$371)),0,0)),"") ->  | G79: =IFERROR((-IPMT((C79-'КАЛЬКУЛЯТОР 1'!$P$1)/12,B79,IF(C79=КАЛЬКУЛЯТОР!$C$21,$E$2,$E$2-$E$3),IF(C79=КАЛЬКУЛЯТОР!$C$21,$I$11,$I$11-SUMIF($A$12:$A$371,"<="&$E$3,$H$12:$H$371)),0,0)),"") ->  | H79: =IFERROR((-PPMT(C79/12,B79,IF(C79=КАЛЬКУЛЯТОР!$C$21,$E$2,$E$2-$E$3),IF(C79=КАЛЬКУЛЯТОР!$C$21,$I$11,$I$11-SUMIF($A$12:$A$371,"<="&$E$3,$H$12:$H$371)),0,0)),"") ->  | P79: FALSE
A80: 69 | B80: 69 | C80: =IF(A80<=$E$3,КАЛЬКУЛЯТОР!$C$21,IF(AND(A80>$E$3,A80<=$E$2),$E$4,"")) ->  | D80: =IF(A80<=$E$2,-PMT(C80/12,IF(C80=КАЛЬКУЛЯТОР!$C$21,$E$2,$E$2-$E$3),IF(C80=КАЛЬКУЛЯТОР!$C$21,$I$11,$I$11-SUMIF($A$12:$A$371,"<="&$E$3,$H$12:$H$371)),0,0),"") ->  | F80: =IFERROR((-IPMT(C80/12,B80,IF(C80=КАЛЬКУЛЯТОР!$C$21,$E$2,$E$2-$E$3),IF(C80=КАЛЬКУЛЯТОР!$C$21,$I$11,$I$11-SUMIF($A$12:$A$371,"<="&$E$3,$H$12:$H$371)),0,0)),"") ->  | G80: =IFERROR((-IPMT((C80-'КАЛЬКУЛЯТОР 1'!$P$1)/12,B80,IF(C80=КАЛЬКУЛЯТОР!$C$21,$E$2,$E$2-$E$3),IF(C80=КАЛЬКУЛЯТОР!$C$21,$I$11,$I$11-SUMIF($A$12:$A$371,"<="&$E$3,$H$12:$H$371)),0,0)),"") ->  | H80: =IFERROR((-PPMT(C80/12,B80,IF(C80=КАЛЬКУЛЯТОР!$C$21,$E$2,$E$2-$E$3),IF(C80=КАЛЬКУЛЯТОР!$C$21,$I$11,$I$11-SUMIF($A$12:$A$371,"<="&$E$3,$H$12:$H$371)),0,0)),"") ->  | P80: FALSE
A81: 70 | B81: 70 | C81: =IF(A81<=$E$3,КАЛЬКУЛЯТОР!$C$21,IF(AND(A81>$E$3,A81<=$E$2),$E$4,"")) ->  | D81: =IF(A81<=$E$2,-PMT(C81/12,IF(C81=КАЛЬКУЛЯТОР!$C$21,$E$2,$E$2-$E$3),IF(C81=КАЛЬКУЛЯТОР!$C$21,$I$11,$I$11-SUMIF($A$12:$A$371,"<="&$E$3,$H$12:$H$371)),0,0),"") ->  | F81: =IFERROR((-IPMT(C81/12,B81,IF(C81=КАЛЬКУЛЯТОР!$C$21,$E$2,$E$2-$E$3),IF(C81=КАЛЬКУЛЯТОР!$C$21,$I$11,$I$11-SUMIF($A$12:$A$371,"<="&$E$3,$H$12:$H$371)),0,0)),"") ->  | G81: =IFERROR((-IPMT((C81-'КАЛЬКУЛЯТОР 1'!$P$1)/12,B81,IF(C81=КАЛЬКУЛЯТОР!$C$21,$E$2,$E$2-$E$3),IF(C81=КАЛЬКУЛЯТОР!$C$21,$I$11,$I$11-SUMIF($A$12:$A$371,"<="&$E$3,$H$12:$H$371)),0,0)),"") ->  | H81: =IFERROR((-PPMT(C81/12,B81,IF(C81=КАЛЬКУЛЯТОР!$C$21,$E$2,$E$2-$E$3),IF(C81=КАЛЬКУЛЯТОР!$C$21,$I$11,$I$11-SUMIF($A$12:$A$371,"<="&$E$3,$H$12:$H$371)),0,0)),"") ->  | P81: FALSE
A82: 71 | B82: 71 | C82: =IF(A82<=$E$3,КАЛЬКУЛЯТОР!$C$21,IF(AND(A82>$E$3,A82<=$E$2),$E$4,"")) ->  | D82: =IF(A82<=$E$2,-PMT(C82/12,IF(C82=КАЛЬКУЛЯТОР!$C$21,$E$2,$E$2-$E$3),IF(C82=КАЛЬКУЛЯТОР!$C$21,$I$11,$I$11-SUMIF($A$12:$A$371,"<="&$E$3,$H$12:$H$371)),0,0),"") ->  | F82: =IFERROR((-IPMT(C82/12,B82,IF(C82=КАЛЬКУЛЯТОР!$C$21,$E$2,$E$2-$E$3),IF(C82=КАЛЬКУЛЯТОР!$C$21,$I$11,$I$11-SUMIF($A$12:$A$371,"<="&$E$3,$H$12:$H$371)),0,0)),"") ->  | G82: =IFERROR((-IPMT((C82-'КАЛЬКУЛЯТОР 1'!$P$1)/12,B82,IF(C82=КАЛЬКУЛЯТОР!$C$21,$E$2,$E$2-$E$3),IF(C82=КАЛЬКУЛЯТОР!$C$21,$I$11,$I$11-SUMIF($A$12:$A$371,"<="&$E$3,$H$12:$H$371)),0,0)),"") ->  | H82: =IFERROR((-PPMT(C82/12,B82,IF(C82=КАЛЬКУЛЯТОР!$C$21,$E$2,$E$2-$E$3),IF(C82=КАЛЬКУЛЯТОР!$C$21,$I$11,$I$11-SUMIF($A$12:$A$371,"<="&$E$3,$H$12:$H$371)),0,0)),"") ->  | P82: FALSE
A83: 72 | B83: 72 | C83: =IF(A83<=$E$3,КАЛЬКУЛЯТОР!$C$21,IF(AND(A83>$E$3,A83<=$E$2),$E$4,"")) ->  | D83: =IF(A83<=$E$2,-PMT(C83/12,IF(C83=КАЛЬКУЛЯТОР!$C$21,$E$2,$E$2-$E$3),IF(C83=КАЛЬКУЛЯТОР!$C$21,$I$11,$I$11-SUMIF($A$12:$A$371,"<="&$E$3,$H$12:$H$371)),0,0),"") ->  | F83: =IFERROR((-IPMT(C83/12,B83,IF(C83=КАЛЬКУЛЯТОР!$C$21,$E$2,$E$2-$E$3),IF(C83=КАЛЬКУЛЯТОР!$C$21,$I$11,$I$11-SUMIF($A$12:$A$371,"<="&$E$3,$H$12:$H$371)),0,0)),"") ->  | G83: =IFERROR((-IPMT((C83-'КАЛЬКУЛЯТОР 1'!$P$1)/12,B83,IF(C83=КАЛЬКУЛЯТОР!$C$21,$E$2,$E$2-$E$3),IF(C83=КАЛЬКУЛЯТОР!$C$21,$I$11,$I$11-SUMIF($A$12:$A$371,"<="&$E$3,$H$12:$H$371)),0,0)),"") ->  | H83: =IFERROR((-PPMT(C83/12,B83,IF(C83=КАЛЬКУЛЯТОР!$C$21,$E$2,$E$2-$E$3),IF(C83=КАЛЬКУЛЯТОР!$C$21,$I$11,$I$11-SUMIF($A$12:$A$371,"<="&$E$3,$H$12:$H$371)),0,0)),"") ->  | P83: FALSE
A84: 73 | B84: 73 | C84: =IF(A84<=$E$3,КАЛЬКУЛЯТОР!$C$21,IF(AND(A84>$E$3,A84<=$E$2),$E$4,"")) ->  | D84: =IF(A84<=$E$2,-PMT(C84/12,IF(C84=КАЛЬКУЛЯТОР!$C$21,$E$2,$E$2-$E$3),IF(C84=КАЛЬКУЛЯТОР!$C$21,$I$11,$I$11-SUMIF($A$12:$A$371,"<="&$E$3,$H$12:$H$371)),0,0)+E84,"") ->  | E84: =IF($E$2>$A83,(I83+SUM(F84:F95))*($K$4+$K$5),0) -> 0.00 | F84: =IFERROR((-IPMT(C84/12,B84,IF(C84=КАЛЬКУЛЯТОР!$C$21,$E$2,$E$2-$E$3),IF(C84=КАЛЬКУЛЯТОР!$C$21,$I$11,$I$11-SUMIF($A$12:$A$371,"<="&$E$3,$H$12:$H$371)),0,0)),"") ->  | G84: =IFERROR((-IPMT((C84-'КАЛЬКУЛЯТОР 1'!$P$1)/12,B84,IF(C84=КАЛЬКУЛЯТОР!$C$21,$E$2,$E$2-$E$3),IF(C84=КАЛЬКУЛЯТОР!$C$21,$I$11,$I$11-SUMIF($A$12:$A$371,"<="&$E$3,$H$12:$H$371)),0,0)),"") ->  | H84: =IFERROR((-PPMT(C84/12,B84,IF(C84=КАЛЬКУЛЯТОР!$C$21,$E$2,$E$2-$E$3),IF(C84=КАЛЬКУЛЯТОР!$C$21,$I$11,$I$11-SUMIF($A$12:$A$371,"<="&$E$3,$H$12:$H$371)),0,0)),"") ->  | K84: =PV($E$5/12,A84-1,0,-E84) -> 0.00 | P84: FALSE
A85: 74 | B85: 74 | C85: =IF(A85<=$E$3,КАЛЬКУЛЯТОР!$C$21,IF(AND(A85>$E$3,A85<=$E$2),$E$4,"")) ->  | D85: =IF(A85<=$E$2,-PMT(C85/12,IF(C85=КАЛЬКУЛЯТОР!$C$21,$E$2,$E$2-$E$3),IF(C85=КАЛЬКУЛЯТОР!$C$21,$I$11,$I$11-SUMIF($A$12:$A$371,"<="&$E$3,$H$12:$H$371)),0,0),"") ->  | F85: =IFERROR((-IPMT(C85/12,B85,IF(C85=КАЛЬКУЛЯТОР!$C$21,$E$2,$E$2-$E$3),IF(C85=КАЛЬКУЛЯТОР!$C$21,$I$11,$I$11-SUMIF($A$12:$A$371,"<="&$E$3,$H$12:$H$371)),0,0)),"") ->  | G85: =IFERROR((-IPMT((C85-'КАЛЬКУЛЯТОР 1'!$P$1)/12,B85,IF(C85=КАЛЬКУЛЯТОР!$C$21,$E$2,$E$2-$E$3),IF(C85=КАЛЬКУЛЯТОР!$C$21,$I$11,$I$11-SUMIF($A$12:$A$371,"<="&$E$3,$H$12:$H$371)),0,0)),"") ->  | H85: =IFERROR((-PPMT(C85/12,B85,IF(C85=КАЛЬКУЛЯТОР!$C$21,$E$2,$E$2-$E$3),IF(C85=КАЛЬКУЛЯТОР!$C$21,$I$11,$I$11-SUMIF($A$12:$A$371,"<="&$E$3,$H$12:$H$371)),0,0)),"") ->  | P85: FALSE
A86: 75 | B86: 75 | C86: =IF(A86<=$E$3,КАЛЬКУЛЯТОР!$C$21,IF(AND(A86>$E$3,A86<=$E$2),$E$4,"")) ->  | D86: =IF(A86<=$E$2,-PMT(C86/12,IF(C86=КАЛЬКУЛЯТОР!$C$21,$E$2,$E$2-$E$3),IF(C86=КАЛЬКУЛЯТОР!$C$21,$I$11,$I$11-SUMIF($A$12:$A$371,"<="&$E$3,$H$12:$H$371)),0,0),"") ->  | F86: =IFERROR((-IPMT(C86/12,B86,IF(C86=КАЛЬКУЛЯТОР!$C$21,$E$2,$E$2-$E$3),IF(C86=КАЛЬКУЛЯТОР!$C$21,$I$11,$I$11-SUMIF($A$12:$A$371,"<="&$E$3,$H$12:$H$371)),0,0)),"") ->  | G86: =IFERROR((-IPMT((C86-'КАЛЬКУЛЯТОР 1'!$P$1)/12,B86,IF(C86=КАЛЬКУЛЯТОР!$C$21,$E$2,$E$2-$E$3),IF(C86=КАЛЬКУЛЯТОР!$C$21,$I$11,$I$11-SUMIF($A$12:$A$371,"<="&$E$3,$H$12:$H$371)),0,0)),"") ->  | H86: =IFERROR((-PPMT(C86/12,B86,IF(C86=КАЛЬКУЛЯТОР!$C$21,$E$2,$E$2-$E$3),IF(C86=КАЛЬКУЛЯТОР!$C$21,$I$11,$I$11-SUMIF($A$12:$A$371,"<="&$E$3,$H$12:$H$371)),0,0)),"") ->  | P86: FALSE
A87: 76 | B87: 76 | C87: =IF(A87<=$E$3,КАЛЬКУЛЯТОР!$C$21,IF(AND(A87>$E$3,A87<=$E$2),$E$4,"")) ->  | D87: =IF(A87<=$E$2,-PMT(C87/12,IF(C87=КАЛЬКУЛЯТОР!$C$21,$E$2,$E$2-$E$3),IF(C87=КАЛЬКУЛЯТОР!$C$21,$I$11,$I$11-SUMIF($A$12:$A$371,"<="&$E$3,$H$12:$H$371)),0,0),"") ->  | F87: =IFERROR((-IPMT(C87/12,B87,IF(C87=КАЛЬКУЛЯТОР!$C$21,$E$2,$E$2-$E$3),IF(C87=КАЛЬКУЛЯТОР!$C$21,$I$11,$I$11-SUMIF($A$12:$A$371,"<="&$E$3,$H$12:$H$371)),0,0)),"") ->  | G87: =IFERROR((-IPMT((C87-'КАЛЬКУЛЯТОР 1'!$P$1)/12,B87,IF(C87=КАЛЬКУЛЯТОР!$C$21,$E$2,$E$2-$E$3),IF(C87=КАЛЬКУЛЯТОР!$C$21,$I$11,$I$11-SUMIF($A$12:$A$371,"<="&$E$3,$H$12:$H$371)),0,0)),"") ->  | H87: =IFERROR((-PPMT(C87/12,B87,IF(C87=КАЛЬКУЛЯТОР!$C$21,$E$2,$E$2-$E$3),IF(C87=КАЛЬКУЛЯТОР!$C$21,$I$11,$I$11-SUMIF($A$12:$A$371,"<="&$E$3,$H$12:$H$371)),0,0)),"") ->  | P87: FALSE
A88: 77 | B88: 77 | C88: =IF(A88<=$E$3,КАЛЬКУЛЯТОР!$C$21,IF(AND(A88>$E$3,A88<=$E$2),$E$4,"")) ->  | D88: =IF(A88<=$E$2,-PMT(C88/12,IF(C88=КАЛЬКУЛЯТОР!$C$21,$E$2,$E$2-$E$3),IF(C88=КАЛЬКУЛЯТОР!$C$21,$I$11,$I$11-SUMIF($A$12:$A$371,"<="&$E$3,$H$12:$H$371)),0,0),"") ->  | F88: =IFERROR((-IPMT(C88/12,B88,IF(C88=КАЛЬКУЛЯТОР!$C$21,$E$2,$E$2-$E$3),IF(C88=КАЛЬКУЛЯТОР!$C$21,$I$11,$I$11-SUMIF($A$12:$A$371,"<="&$E$3,$H$12:$H$371)),0,0)),"") ->  | G88: =IFERROR((-IPMT((C88-'КАЛЬКУЛЯТОР 1'!$P$1)/12,B88,IF(C88=КАЛЬКУЛЯТОР!$C$21,$E$2,$E$2-$E$3),IF(C88=КАЛЬКУЛЯТОР!$C$21,$I$11,$I$11-SUMIF($A$12:$A$371,"<="&$E$3,$H$12:$H$371)),0,0)),"") ->  | H88: =IFERROR((-PPMT(C88/12,B88,IF(C88=КАЛЬКУЛЯТОР!$C$21,$E$2,$E$2-$E$3),IF(C88=КАЛЬКУЛЯТОР!$C$21,$I$11,$I$11-SUMIF($A$12:$A$371,"<="&$E$3,$H$12:$H$371)),0,0)),"") ->  | P88: FALSE
A89: 78 | B89: 78 | C89: =IF(A89<=$E$3,КАЛЬКУЛЯТОР!$C$21,IF(AND(A89>$E$3,A89<=$E$2),$E$4,"")) ->  | D89: =IF(A89<=$E$2,-PMT(C89/12,IF(C89=КАЛЬКУЛЯТОР!$C$21,$E$2,$E$2-$E$3),IF(C89=КАЛЬКУЛЯТОР!$C$21,$I$11,$I$11-SUMIF($A$12:$A$371,"<="&$E$3,$H$12:$H$371)),0,0),"") ->  | F89: =IFERROR((-IPMT(C89/12,B89,IF(C89=КАЛЬКУЛЯТОР!$C$21,$E$2,$E$2-$E$3),IF(C89=КАЛЬКУЛЯТОР!$C$21,$I$11,$I$11-SUMIF($A$12:$A$371,"<="&$E$3,$H$12:$H$371)),0,0)),"") ->  | G89: =IFERROR((-IPMT((C89-'КАЛЬКУЛЯТОР 1'!$P$1)/12,B89,IF(C89=КАЛЬКУЛЯТОР!$C$21,$E$2,$E$2-$E$3),IF(C89=КАЛЬКУЛЯТОР!$C$21,$I$11,$I$11-SUMIF($A$12:$A$371,"<="&$E$3,$H$12:$H$371)),0,0)),"") ->  | H89: =IFERROR((-PPMT(C89/12,B89,IF(C89=КАЛЬКУЛЯТОР!$C$21,$E$2,$E$2-$E$3),IF(C89=КАЛЬКУЛЯТОР!$C$21,$I$11,$I$11-SUMIF($A$12:$A$371,"<="&$E$3,$H$12:$H$371)),0,0)),"") ->  | P89: FALSE
A90: 79 | B90: 79 | C90: =IF(A90<=$E$3,КАЛЬКУЛЯТОР!$C$21,IF(AND(A90>$E$3,A90<=$E$2),$E$4,"")) ->  | D90: =IF(A90<=$E$2,-PMT(C90/12,IF(C90=КАЛЬКУЛЯТОР!$C$21,$E$2,$E$2-$E$3),IF(C90=КАЛЬКУЛЯТОР!$C$21,$I$11,$I$11-SUMIF($A$12:$A$371,"<="&$E$3,$H$12:$H$371)),0,0),"") ->  | F90: =IFERROR((-IPMT(C90/12,B90,IF(C90=КАЛЬКУЛЯТОР!$C$21,$E$2,$E$2-$E$3),IF(C90=КАЛЬКУЛЯТОР!$C$21,$I$11,$I$11-SUMIF($A$12:$A$371,"<="&$E$3,$H$12:$H$371)),0,0)),"") ->  | G90: =IFERROR((-IPMT((C90-'КАЛЬКУЛЯТОР 1'!$P$1)/12,B90,IF(C90=КАЛЬКУЛЯТОР!$C$21,$E$2,$E$2-$E$3),IF(C90=КАЛЬКУЛЯТОР!$C$21,$I$11,$I$11-SUMIF($A$12:$A$371,"<="&$E$3,$H$12:$H$371)),0,0)),"") ->  | H90: =IFERROR((-PPMT(C90/12,B90,IF(C90=КАЛЬКУЛЯТОР!$C$21,$E$2,$E$2-$E$3),IF(C90=КАЛЬКУЛЯТОР!$C$21,$I$11,$I$11-SUMIF($A$12:$A$371,"<="&$E$3,$H$12:$H$371)),0,0)),"") ->  | P90: FALSE
A91: 80 | B91: 80 | C91: =IF(A91<=$E$3,КАЛЬКУЛЯТОР!$C$21,IF(AND(A91>$E$3,A91<=$E$2),$E$4,"")) ->  | D91: =IF(A91<=$E$2,-PMT(C91/12,IF(C91=КАЛЬКУЛЯТОР!$C$21,$E$2,$E$2-$E$3),IF(C91=КАЛЬКУЛЯТОР!$C$21,$I$11,$I$11-SUMIF($A$12:$A$371,"<="&$E$3,$H$12:$H$371)),0,0),"") ->  | F91: =IFERROR((-IPMT(C91/12,B91,IF(C91=КАЛЬКУЛЯТОР!$C$21,$E$2,$E$2-$E$3),IF(C91=КАЛЬКУЛЯТОР!$C$21,$I$11,$I$11-SUMIF($A$12:$A$371,"<="&$E$3,$H$12:$H$371)),0,0)),"") ->  | G91: =IFERROR((-IPMT((C91-'КАЛЬКУЛЯТОР 1'!$P$1)/12,B91,IF(C91=КАЛЬКУЛЯТОР!$C$21,$E$2,$E$2-$E$3),IF(C91=КАЛЬКУЛЯТОР!$C$21,$I$11,$I$11-SUMIF($A$12:$A$371,"<="&$E$3,$H$12:$H$371)),0,0)),"") ->  | H91: =IFERROR((-PPMT(C91/12,B91,IF(C91=КАЛЬКУЛЯТОР!$C$21,$E$2,$E$2-$E$3),IF(C91=КАЛЬКУЛЯТОР!$C$21,$I$11,$I$11-SUMIF($A$12:$A$371,"<="&$E$3,$H$12:$H$371)),0,0)),"") ->  | P91: FALSE
A92: 81 | B92: 81 | C92: =IF(A92<=$E$3,КАЛЬКУЛЯТОР!$C$21,IF(AND(A92>$E$3,A92<=$E$2),$E$4,"")) ->  | D92: =IF(A92<=$E$2,-PMT(C92/12,IF(C92=КАЛЬКУЛЯТОР!$C$21,$E$2,$E$2-$E$3),IF(C92=КАЛЬКУЛЯТОР!$C$21,$I$11,$I$11-SUMIF($A$12:$A$371,"<="&$E$3,$H$12:$H$371)),0,0),"") ->  | F92: =IFERROR((-IPMT(C92/12,B92,IF(C92=КАЛЬКУЛЯТОР!$C$21,$E$2,$E$2-$E$3),IF(C92=КАЛЬКУЛЯТОР!$C$21,$I$11,$I$11-SUMIF($A$12:$A$371,"<="&$E$3,$H$12:$H$371)),0,0)),"") ->  | G92: =IFERROR((-IPMT((C92-'КАЛЬКУЛЯТОР 1'!$P$1)/12,B92,IF(C92=КАЛЬКУЛЯТОР!$C$21,$E$2,$E$2-$E$3),IF(C92=КАЛЬКУЛЯТОР!$C$21,$I$11,$I$11-SUMIF($A$12:$A$371,"<="&$E$3,$H$12:$H$371)),0,0)),"") ->  | H92: =IFERROR((-PPMT(C92/12,B92,IF(C92=КАЛЬКУЛЯТОР!$C$21,$E$2,$E$2-$E$3),IF(C92=КАЛЬКУЛЯТОР!$C$21,$I$11,$I$11-SUMIF($A$12:$A$371,"<="&$E$3,$H$12:$H$371)),0,0)),"") ->  | P92: FALSE
A93: 82 | B93: 82 | C93: =IF(A93<=$E$3,КАЛЬКУЛЯТОР!$C$21,IF(AND(A93>$E$3,A93<=$E$2),$E$4,"")) ->  | D93: =IF(A93<=$E$2,-PMT(C93/12,IF(C93=КАЛЬКУЛЯТОР!$C$21,$E$2,$E$2-$E$3),IF(C93=КАЛЬКУЛЯТОР!$C$21,$I$11,$I$11-SUMIF($A$12:$A$371,"<="&$E$3,$H$12:$H$371)),0,0),"") ->  | F93: =IFERROR((-IPMT(C93/12,B93,IF(C93=КАЛЬКУЛЯТОР!$C$21,$E$2,$E$2-$E$3),IF(C93=КАЛЬКУЛЯТОР!$C$21,$I$11,$I$11-SUMIF($A$12:$A$371,"<="&$E$3,$H$12:$H$371)),0,0)),"") ->  | G93: =IFERROR((-IPMT((C93-'КАЛЬКУЛЯТОР 1'!$P$1)/12,B93,IF(C93=КАЛЬКУЛЯТОР!$C$21,$E$2,$E$2-$E$3),IF(C93=КАЛЬКУЛЯТОР!$C$21,$I$11,$I$11-SUMIF($A$12:$A$371,"<="&$E$3,$H$12:$H$371)),0,0)),"") ->  | H93: =IFERROR((-PPMT(C93/12,B93,IF(C93=КАЛЬКУЛЯТОР!$C$21,$E$2,$E$2-$E$3),IF(C93=КАЛЬКУЛЯТОР!$C$21,$I$11,$I$11-SUMIF($A$12:$A$371,"<="&$E$3,$H$12:$H$371)),0,0)),"") ->  | P93: FALSE
